Workbook

Sheet CA State
A1: Data inputs | B1: Start field: | C1: End field:
A2: Fields to assess | B2: 1 | C2: 147
A3: 1 Inputs
A5: Variables | E5: Unit | G5: Default | H5: Field 1 | I5: Field 2 | J5: Field 3 | K5: Field 4 | L5: Field 5 | M5: Field 6 | N5: Field 7 | O5: Field 8 | P5: Field 9 | Q5: Field 10 | R5: Field 11 | S5: Field 12 | T5: Field 13 | U5: Field 14 | V5: Field 15 | W5: Field 16 | X5: Field 17 | Y5: Field 18 | Z5: Field 19 | AA5: Field 20 | AB5: Field 21 | AC5: Field 22 | AD5: Field 23 | AE5: Field 24 | AF5: Field 25 | AG5: Field 26 | AH5: Field 27 | AI5: Field 28 | AJ5: Field 29 | AK5: Field 30 | AL5: Field 31 | AM5: Field 32 | AN5: Field 33 | AO5: Field 34 | AP5: Field 35 | AQ5: Field 36 | AR5: Field 37 | AS5: Field 38 | AT5: Field 39 | AU5: Field 40 | AV5: Field 41 | AW5: Field 42 | AX5: Field 43 | AY5: Field 44 | AZ5: Field 45 | BA5: Field 46 | BB5: Field 47 | BC5: Field 48 | BD5: Field 49 | BE5: Field 50 | BF5: Field 51 | BG5: Field 52 | BH5: Field 53 | BI5: Field 54 | BJ5: Field 55 | BK5: Field 56 | BL5: Field 57 | BM5: Field 58 | BN5: Field 59 | BO5: Field 60 | BP5: Field 61 | BQ5: Field 62 | BR5: Field 63 | BS5: Field 64 | BT5: Field 65 | BU5: Field 66 | BV5: Field 67 | BW5: Field 68 | BX5: Field 69 | BY5: Field 70 | BZ5: Field 71 | CA5: Field 72 | CB5: Field 73 | CC5: Field 74 | CD5: Field 75 | CE5: Field 76 | CF5: Field 77 | CG5: Field 78 | CH5: Field 79 | CI5: Field 80 | CJ5: Field 81 | CK5: Field 82 | CL5: Field 83 | CM5: Field 84 | CN5: Field 85 | CO5: Field 86 | CP5: Field 87 | CQ5: Field 88 | CR5: Field 89 | CS5: Field 90 | CT5: Field 91 | CU5: Field 92 | CV5: Field 93 | CW5: Field 94 | CX5: Field 95 | CY5: Field 96 | CZ5: Field 97 | DA5: Field 98 | DB5: Field 99 | DC5: Field 100 | DD5: Field 101 | DE5: Field 102 | DF5: Field 103 | DG5: Field 104 | DH5: Field 105 | DI5: Field 106 | DJ5: Field 107 | DK5: Field 108 | DL5: Field 109 | DM5: Field 110 | DN5: Field 111 | DO5: Field 112 | DP5: Field 113 | DQ5: Field 114 | DR5: Field 115 | DS5: Field 116 | DT5: Field 117 | DU5: Field 118 | DV5: Field 119 | DW5: Field 120 | DX5: Field 121 | DY5: Field 122 | DZ5: Field 123 | EA5: Field 124 | EB5: Field 125 | EC5: Field 126 | ED5: Field 127 | EE5: Field 128 | EF5: Field 129 | EG5: Field 130 | EH5: Field 131 | EI5: Field 132 | EJ5: Field 133 | EK5: Field 134 | EL5: Field 135 | EM5: Field 136 | EN5: Field 137 | EO5: Field 138 | EP5: Field 139 | EQ5: Field 140 | ER5: Field 141 | ES5: Field 142 | ET5: Field 143 | EU5: Field 144 | EV5: Field 145 | EW5: Field 146 | EX5: Field 147
G6: =IF(G21="","NA",G21) -> Generic | H6: =IF(H21="","NA",H21) -> Aliso Canyon | I6: Ant Hill | J6: Antelope Hills | K6: Antelope Hills, North | L6: Arroyo Grande | M6: Asphalto | N6: Bandini | O6: Bardsdale | P6: Barham Ranch | Q6: Belgian Anticline | R6: Bellevue | S6: Bellevue, West | T6: Belmont, Offshore | U6: Belridge, North | V6: Belridge, South | W6: Beverly Hills | X6: Big Mountain | Y6: Brea-Olinda | Z6: Buena Vista | AA6: Cabrillo | AB6: Canal | AC6: Canfield Ranch | AD6: Caneros Creek | AE6: Cascade | AF6: Casmalia | AG6: Castaic Hills | AH6: Cat Canyon | AI6: Cheviot Hills | AJ6: Cienaga Canyon | AK6: Coalinga | AL6: Coalinga, East | AM6: Coles Levee, N | AN6: Coles Levee, S | AO6: Coyote, East | AP6: Cuyama, South | AQ6: Cymric | AR6: Deer Creek | AS6: Del Valle | AT6: Devils Den | AU6: Edison | AV6: El Segundo | AW6: Elk Hills | AX6: Elwood, S., Offshore | AY6: Fruitvale | AZ6: Greeley | BA6: Hasley Canyon | BB6: Helm | BC6: Holser | BD6: Honor Rancho | BE6: Huntington Beach | BF6: Hyperion | BG6: Inglewood | BH6: Jacalitos | BI6: Jasmin | BJ6: Kern Front | BK6: Kern River | BL6: Kettleman Middle Dome | BM6: Kettleman North Dome | BN6: Landslide | BO6: Las Cienegas | BP6: Livermore | BQ6: Lompoc | BR6: Long Beach | BS6: Long Beach Airport | BT6: =IF(BT21="","NA",BT21) -> Los Angeles Downtown | BU6: Los Angeles, East | BV6: Lost Hills | BW6: Lost Hills, Northwest | BX6: Lynch Canyon | BY6: McDonald Anticline | BZ6: McKittrick | CA6: Midway-Sunset | CB6: Montalvo, West | CC6: Montebello | CD6: Monument Junction | CE6: Mount Poso | CF6: Mountain View | CG6: Newhall-Potrero | CH6: Newport, West | CI6: Oak Canyon | CJ6: Oak Park | CK6: Oakridge | CL6: Oat Mountain | CM6: Ojai | CN6: Olive | CO6: Orcutt | CP6: Oxnard | CQ6: Paloma | CR6: Placerita | CS6: Playa Del Rey | CT6: Pleito | CU6: Poso Creek | CV6: Pyramid Hills | CW6: Railroad Gap | CX6: Raisin City | CY6: Ramona | CZ6: Richfield | DA6: Rincon | DB6: Rio Bravo | DC6: Rio Viejo | DD6: Riverdale | DE6: Rose | DF6: Rosecrans | DG6: Rosecrans, South | DH6: Rosedale | DI6: Rosedale Ranch | DJ6: Round Mountain | DK6: Russell Ranch | DL6: Salt Lake | DM6: Salt Lake, South | DN6: San Ardo | DO6: San Miguelito | DP6: San Vicente | DQ6: Sansinena | DR6: Santa Clara Avenue | DS6: Santa Fe Springs | DT6: Santa Maria Valley | DU6: Santa Susana | DV6: Sargent | DW6: Saticoy | DX6: Sawtelle | DY6: Seal Beach | DZ6: Semitropic | EA6: Sespe | EB6: Shafter, North | EC6: Shiells Canyon | ED6: South Mountain | EE6: Stockdale | EF6: =IF(EF21="","NA",EF21) -> Strand | EG6: Tapia | EH6: Tapo Canyon, South | EI6: Tejon | EJ6: Tejon Hills | EK6: Tejon, North | EL6: Temescal | EM6: Ten Section | EN6: Timber Canyon | EO6: Torrance | EP6: Torrey Canyon | EQ6: Union Avenue | ER6: Ventura | ES6: Wheeler Ridge | ET6: White Wolf | EU6: Whittier | EV6: Wilmington | EW6: Yowlumne | EX6: Zaca
A7: 1.1 Production methods
A8: Notes: Enter "1" where applicable and "0" where not applicable | EY8: Sources and assumptions
B9: 1.1.1 Downhole pump | E9: NA | G9: 1 | EY9: Assumed
B10: 1.1.2 Water reinjection | E10: NA | G10: 1 | H10: 0 | I10: 1 | J10: 0 | K10: 1 | L10: 1 | M10: 1 | N10: 0 | O10: 1 | P10: 0 | Q10: 1 | R10: 0 | S10: 1 | T10: 1 | U10: 0 | V10: 1 | W10: 1 | X10: 0 | Y10: 1 | Z10: 0 | AA10: 0 | AB10: 1 | AC10: 1 | AD10: 0 | AE10: 1 | AF10: 0 | AG10: 0 | AH10: 0 | AI10: 1 | AJ10: 0 | AK10: 1 | AL10: 1 | AM10: 0 | AN10: 0 | AO10: 1 | AP10: 1 | AQ10: 1 | AR10: 1 | AS10: 1 | AT10: 1 | AU10: 1 | AV10: 1 | AW10: 1 | AX10: 1 | AY10: 0 | AZ10: 1 | BA10: 0 | BB10: 1 | BC10: 1 | BD10: 0 | BE10: 0 | BF10: 0 | BG10: 0 | BH10: 1 | BI10: 1 | BJ10: 1 | BK10: 1 | BL10: 1 | BM10: 1 | BN10: 0 | BO10: 0 | BP10: 1 | BQ10: 0 | BR10: 1 | BS10: 1 | BT10: 0 | BU10: 0 | BV10: 1 | BW10: 0 | BX10: 0 | BY10: 1 | BZ10: 1 | CA10: 1 | CB10: 1 | CC10: 1 | CD10: 0 | CE10: 1 | CF10: 1 | CG10: 0 | CH10: 1 | CI10: 1 | CJ10: 0 | CK10: 0 | CL10: 0 | CM10: 1 | CN10: 0 | CO10: 1 | CP10: 0 | CQ10: 1 | CR10: 1 | CS10: 1 | CT10: 1 | CU10: 1 | CV10: 0 | CW10: 0 | CX10: 0 | CY10: 0 | CZ10: 1 | DA10: 1 | DB10: 1 | DC10: 0 | DD10: 1 | DE10: 1 | DF10: 1 | DG10: 0 | DH10: 0 | DI10: 1 | DJ10: 1 | DK10: 0 | DL10: 0 | DM10: 0 | DN10: 1 | DO10: 0 | DP10: 0 | DQ10: 0 | DR10: 1 | DS10: 1 | DT10: 0 | DU10: 0 | DV10: 0 | DW10: 1 | DX10: 0 | DY10: 1 | DZ10: 0 | EA10: 1 | EB10: 0 | EC10: 1 | ED10: 0 | EE10: 0 | EF10: 1 | EG10: 1 | EH10: 0 | EI10: 1 | EJ10: 1 | EK10: 0 | EL10: 1 | EM10: 0 | EN10: 0 | EO10: 1 | EP10: 0 | EQ10: 1 | ER10: 0 | ES10: 1 | ET10: 0 | EU10: 0 | EV10: 0 | EW10: 0 | EX10: 1 | EY10: Consistent with injection data from DOGGR http://opi.consrv.ca.gov/opi/opi.dll - accessed June 2013
B11: 1.1.3 Natural gas reinjection | E11: NA | G11: 1 | H11: 0 | I11: 0 | J11: 1 | K11: 0 | L11: 1 | M11: 0 | N11: 0 | O11: 0 | P11: 0 | Q11: 0 | R11: 0 | S11: 0 | T11: 0 | U11: 0 | V11: 0 | W11: 0 | X11: 0 | Y11: 0 | Z11: 0 | AA11: 0 | AB11: 0 | AC11: 0 | AD11: 0 | AE11: 0 | AF11: 0 | AG11: 0 | AH11: 0 | AI11: 0 | AJ11: 0 | AK11: 0 | AL11: 0 | AM11: 0 | AN11: 0 | AO11: 0 | AP11: 0 | AQ11: 1 | AR11: 0 | AS11: 0 | AT11: 0 | AU11: 0 | AV11: 0 | AW11: 1 | AX11: 1 | AY11: 0 | AZ11: 0 | BA11: 0 | BB11: 0 | BC11: 0 | BD11: 0 | BE11: 1 | BF11: 0 | BG11: 0 | BH11: 0 | BI11: 0 | BJ11: 0 | BK11: 0 | BL11: 0 | BM11: 0 | BN11: 0 | BO11: 0 | BP11: 0 | BQ11: 1 | BR11: 0 | BS11: 0 | BT11: 0 | BU11: 0 | BV11: 0 | BW11: 0 | BX11: 0 | BY11: 0 | BZ11: 0 | CA11: 1 | CB11: 0 | CC11: 0 | CD11: 0 | CE11: 0 | CF11: 0 | CG11: 0 | CH11: 0 | CI11: 0 | CJ11: 0 | CK11: 0 | CL11: 0 | CM11: 0 | CN11: 0 | CO11: 0 | CP11: 0 | CQ11: 0 | CR11: 0 | CS11: 0 | CT11: 0 | CU11: 0 | CV11: 0 | CW11: 0 | CX11: 0 | CY11: 0 | CZ11: 0 | DA11: 0 | DB11: 0 | DC11: 0 | DD11: 0 | DE11: 0 | DF11: 0 | DG11: 0 | DH11: 0 | DI11: 0 | DJ11: 0 | DK11: 0 | DL11: 0 | DM11: 0 | DN11: 0 | DO11: 0 | DP11: 0 | DQ11: 0 | DR11: 0 | DS11: 0 | DT11: 0 | DU11: 0 | DV11: 1 | DW11: 0 | DX11: 0 | DY11: 0 | DZ11: 0 | EA11: 0 | EB11: 0 | EC11: 0 | ED11: 0 | EE11: 0 | EF11: 0 | EG11: 0 | EH11: 0 | EI11: 0 | EJ11: 0 | EK11: 0 | EL11: 0 | EM11: 0 | EN11: 0 | EO11: 0 | EP11: 0 | EQ11: 0 | ER11: 0 | ES11: 0 | ET11: 0 | EU11: 0 | EV11: 0 | EW11: 0 | EX11: 0 | EY11: Consistent with injection data from DOGGR http://opi.consrv.ca.gov/opi/opi.dll - accessed June 2013
B12: 1.1.4 Water flooding | E12: NA | G12: 0 | H12: 1 | I12: 0 | J12: 0 | K12: 0 | L12: 0 | M12: 0 | N12: 0 | O12: 0 | P12: 1 | Q12: 0 | R12: 1 | S12: 0 | T12: 0 | U12: 1 | V12: 0 | W12: 0 | X12: 0 | Y12: 0 | Z12: 1 | AA12: 0 | AB12: 0 | AC12: 0 | AD12: 0 | AE12: 0 | AF12: 1 | AG12: 1 | AH12: 1 | AI12: 0 | AJ12: 0 | AK12: 0 | AL12: 0 | AM12: 1 | AN12: 1 | AO12: 0 | AP12: 0 | AQ12: 0 | AR12: 0 | AS12: 0 | AT12: 0 | AU12: 0 | AV12: 0 | AW12: 0 | AX12: 0 | AY12: 1 | AZ12: 0 | BA12: 0 | BB12: 0 | BC12: 0 | BD12: 1 | BE12: 1 | BF12: 0 | BG12: 1 | BH12: 0 | BI12: 0 | BJ12: 0 | BK12: 0 | BL12: 0 | BM12: 0 | BN12: 1 | BO12: 1 | BP12: 0 | BQ12: 1 | BR12: 0 | BS12: 0 | BT12: 1 | BU12: 0 | BV12: 0 | BW12: 1 | BX12: 1 | BY12: 0 | BZ12: 0 | CA12: 0 | CB12: 0 | CC12: 0 | CD12: 0 | CE12: 0 | CF12: 0 | CG12: 1 | CH12: 0 | CI12: 0 | CJ12: 1 | CK12: 1 | CL12: 0 | CM12: 0 | CN12: 0 | CO12: 0 | CP12: 1 | CQ12: 0 | CR12: 0 | CS12: 0 | CT12: 0 | CU12: 0 | CV12: 1 | CW12: 0 | CX12: 1 | CY12: 1 | CZ12: 0 | DA12: 0 | DB12: 0 | DC12: 1 | DD12: 0 | DE12: 0 | DF12: 0 | DG12: 0 | DH12: 1 | DI12: 0 | DJ12: 0 | DK12: 1 | DL12: 0 | DM12: 0 | DN12: 0 | DO12: 1 | DP12: 1 | DQ12: 1 | DR12: 0 | DS12: 0 | DT12: 1 | DU12: 0 | DV12: 1 | DW12: 0 | DX12: 1 | DY12: 0 | DZ12: 0 | EA12: 0 | EB12: 1 | EC12: 0 | ED12: 1 | EE12: 0 | EF12: 0 | EG12: 0 | EH12: 0 | EI12: 0 | EJ12: 0 | EK12: 0 | EL12: 0 | EM12: 1 | EN12: 0 | EO12: 0 | EP12: 0 | EQ12: 0 | ER12: 1 | ES12: 0 | ET12: 0 | EU12: 0 | EV12: 1 | EW12: 1 | EX12: 0 | EY12: Consistent with injection data from DOGGR http://opi.consrv.ca.gov/opi/opi.dll - accessed June 2013
B13: 1.1.5 Gas lifting | E13: NA | G13: 0
B14: 1.1.6 Gas flooding | E14: NA | G14: 0 | BK14: 1 | CT14: 1 | DJ14: 1 | DK14: 1 | EY14: Consistent with injection data from DOGGR http://opi.consrv.ca.gov/opi/opi.dll - accessed June 2013
B15: 1.1.7 Steam flooding | E15: NA | G15: 0 | H15: 0 | I15: 0 | J15: 0 | K15: 1 | L15: 1 | M15: 0 | N15: 0 | O15: 0 | P15: 0 | Q15: 0 | R15: 0 | S15: 0 | T15: 0 | U15: 1 | V15: 1 | W15: 0 | X15: 0 | Y15: 0 | Z15: 1 | AA15: 0 | AB15: 0 | AC15: 0 | AD15: 0 | AE15: 0 | AF15: 0 | AG15: 0 | AH15: 0 | AI15: 0 | AJ15: 0 | AK15: 1 | AL15: 0 | AM15: 0 | AN15: 0 | AO15: 0 | AP15: 0 | AQ15: 1 | AR15: 0 | AS15: 0 | AT15: 0 | AU15: 1 | AV15: 0 | AW15: 0 | AX15: 0 | AY15: 1 | AZ15: 0 | BA15: 0 | BB15: 0 | BC15: 0 | BD15: 0 | BE15: 0 | BF15: 0 | BG15: 0 | BH15: 0 | BI15: 1 | BJ15: 1 | BK15: 1 | BL15: 0 | BM15: 0 | BN15: 0 | BO15: 0 | BP15: 0 | BQ15: 0 | BR15: 0 | BS15: 0 | BT15: 0 | BU15: 0 | BV15: 1 | BW15: 0 | BX15: 1 | BY15: 0 | BZ15: 1 | CA15: 1 | CB15: 0 | CC15: 0 | CD15: 0 | CE15: 1 | CF15: 1 | CG15: 0 | CH15: 0 | CI15: 0 | CJ15: 0 | CK15: 0 | CL15: 0 | CM15: 0 | CN15: 0 | CO15: 1 | CP15: 1 | CQ15: 0 | CR15: 1 | CS15: 0 | CT15: 0 | CU15: 1 | CV15: 0 | CW15: 0 | CX15: 0 | CY15: 0 | CZ15: 0 | DA15: 0 | DB15: 0 | DC15: 0 | DD15: 0 | DE15: 0 | DF15: 0 | DG15: 0 | DH15: 0 | DI15: 0 | DJ15: 1 | DK15: 0 | DL15: 0 | DM15: 0 | DN15: 1 | DO15: 0 | DP15: 0 | DQ15: 0 | DR15: 0 | DS15: 0 | DT15: 0 | DU15: 0 | DV15: 0 | DW15: 0 | DX15: 0 | DY15: 0 | DZ15: 0 | EA15: 0 | EB15: 0 | EC15: 0 | ED15: 0 | EE15: 0 | EF15: 0 | EG15: 1 | EH15: 0 | EI15: 0 | EJ15: 0 | EK15: 0 | EL15: 0 | EM15: 0 | EN15: 0 | EO15: 0 | EP15: 0 | EQ15: 0 | ER15: 0 | ES15: 0 | ET15: 0 | EU15: 0 | EV15: 0 | EW15: 0 | EX15: 0 | EY15: Consistent with injection data from DOGGR http://opi.consrv.ca.gov/opi/opi.dll - accessed June 2013
B16: 1.1.8 Oil sands mine (integrated with upgrader) | E16: NA | G16: 0
B17: 1.1.9 Oil sands mine (non-integrated with upgrader) | E17: NA | G17: 0
A19: 1.2 Field properties
B20: 1.2.1 Field location (Country) | E20: NA | G20: Generic | H20: United States | I20: United States | J20: United States | K20: United States | L20: United States | M20: United States | N20: United States | O20: United States | P20: United States | Q20: United States | R20: United States | S20: United States | T20: United States | U20: United States | V20: United States | W20: United States | X20: United States | Y20: United States | Z20: United States | AA20: United States | AB20: United States | AC20: United States | AD20: United States | AE20: United States | AF20: United States | AG20: United States | AH20: United States | AI20: United States | AJ20: United States | AK20: United States | AL20: United States | AM20: United States | AN20: United States | AO20: United States | AP20: United States | AQ20: United States | AR20: United States | AS20: United States | AT20: United States | AU20: United States | AV20: United States | AW20: United States | AX20: United States | AY20: United States | AZ20: United States | BA20: United States | BB20: United States | BC20: United States | BD20: United States | BE20: United States | BF20: United States | BG20: United States | BH20: United States | BI20: United States | BJ20: United States | BK20: United States | BL20: United States | BM20: United States | BN20: United States | BO20: United States | BP20: United States | BQ20: United States | BR20: United States | BS20: United States | BT20: United States | BU20: United States | BV20: United States | BW20: United States | BX20: United States | BY20: United States | BZ20: United States | CA20: United States | CB20: United States | CC20: United States | CD20: United States | CE20: United States | CF20: United States | CG20: United States | CH20: United States | CI20: United States | CJ20: United States | CK20: United States | CL20: United States | CM20: United States | CN20: United States | CO20: United States | CP20: United States | CQ20: United States | CR20: United States | CS20: United States | CT20: United States | CU20: United States | CV20: United States | CW20: United States | CX20: United States | CY20: United States | CZ20: United States | DA20: United States | DB20: United States | DC20: United States | DD20: United States | DE20: United States | DF20: United States | DG20: United States | DH20: United States | DI20: United States | DJ20: United States | DK20: United States | DL20: United States | DM20: United States | DN20: United States | DO20: United States | DP20: United States | DQ20: United States | DR20: United States | DS20: United States | DT20: United States | DU20: United States | DV20: United States | DW20: United States | DX20: United States | DY20: United States | DZ20: United States | EA20: United States | EB20: United States | EC20: United States | ED20: United States | EE20: United States | EF20: United States | EG20: United States | EH20: United States | EI20: United States | EJ20: United States | EK20: United States | EL20: United States | EM20: United States | EN20: United States | EO20: United States | EP20: United States | EQ20: United States | ER20: United States | ES20: United States | ET20: United States | EU20: United States | EV20: United States | EW20: United States | EX20: United States
B21: 1.2.2 Field name | E21: NA | G21: Generic | H21: Aliso Canyon | I21: Ant Hill | J21: Antelope Hills | K21: Antelope Hills, North | L21: Arroyo Grande | M21: Asphalto | N21: Bandini | O21: Bardsdale | P21: Barham Ranch | Q21: Belgian Anticline | R21: Bellevue | S21: Bellevue, West | T21: Belmont, Offshore | U21: Belridge, North | V21: Belridge, South | W21: Beverly Hills | X21: Big Mountain | Y21: Brea-Olinda | Z21: Buena Vista | AA21: Cabrillo | AB21: Canal | AC21: Canfield Ranch | AD21: Caneros Creek | AE21: Cascade | AF21: Casmalia | AG21: Castaic Hills | AH21: Cat Canyon | AI21: Cheviot Hills | AJ21: Cienaga Canyon | AK21: Coalinga | AL21: Coalinga, East | AM21: Coles Levee, N | AN21: Coles Levee, S | AO21: Coyote, East | AP21: Cuyama, South | AQ21: Cymric | AR21: Deer Creek | AS21: Del Valle | AT21: Devils Den | AU21: Edison | AV21: El Segundo | AW21: Elk Hills | AX21: Elwood, S., Offshore | AY21: Fruitvale | AZ21: Greeley | BA21: Hasley Canyon | BB21: Helm | BC21: Holser | BD21: Honor Rancho | BE21: Huntington Beach | BF21: Hyperion | BG21: Inglewood | BH21: Jacalitos | BI21: Jasmin | BJ21: Kern Front | BK21: Kern River | BL21: Kettleman Middle Dome | BM21: Kettleman North Dome | BN21: Landslide | BO21: Las Cienegas | BP21: Livermore | BQ21: Lompoc | BR21: Long Beach | BS21: Long Beach Airport | BT21: Los Angeles Downtown | BU21: Los Angeles, East | BV21: Lost Hills | BW21: Lost Hills, Northwest | BX21: Lynch Canyon | BY21: McDonald Anticline | BZ21: McKittrick | CA21: Midway-Sunset | CB21: Montalvo, West | CC21: Montebello | CD21: Monument Junction | CE21: Mount Poso | CF21: Mountain View | CG21: Newhall-Potrero | CH21: Newport, West | CI21: Oak Canyon | CJ21: Oak Park | CK21: Oakridge | CL21: Oat Mountain | CM21: Ojai | CN21: Olive | CO21: Orcutt | CP21: Oxnard | CQ21: Paloma | CR21: Placerita | CS21: Playa Del Rey | CT21: Pleito | CU21: Poso Creek | CV21: Pyramid Hills | CW21: Railroad Gap | CX21: Raisin City | CY21: Ramona | CZ21: Richfield | DA21: Rincon | DB21: Rio Bravo | DC21: Rio Viejo | DD21: Riverdale | DE21: Rose | DF21: Rosecrans | DG21: Rosecrans, South | DH21: Rosedale | DI21: Rosedale Ranch | DJ21: Round Mountain | DK21: Russell Ranch | DL21: Salt Lake | DM21: Salt Lake, South | DN21: San Ardo | DO21: San Miguelito | DP21: San Vicente | DQ21: Sansinena | DR21: Santa Clara Avenue | DS21: Santa Fe Springs | DT21: Santa Maria Valley | DU21: Santa Susana | DV21: Sargent | DW21: Saticoy | DX21: Sawtelle | DY21: Seal Beach | DZ21: Semitropic | EA21: Sespe | EB21: Shafter, North | EC21: Shiells Canyon | ED21: South Mountain | EE21: Stockdale | EF21: Strand | EG21: Tapia | EH21: Tapo Canyon, South | EI21: Tejon | EJ21: Tejon Hills | EK21: Tejon, North | EL21: Temescal | EM21: Ten Section | EN21: Timber Canyon | EO21: Torrance | EP21: Torrey Canyon | EQ21: Union Avenue | ER21: Ventura | ES21: Wheeler Ridge | ET21: White Wolf | EU21: Whittier | EV21: Wilmington | EW21: Yowlumne | EX21: Zaca
B22: 1.2.3 Field age | E22: yr. | G22: 35
B23: 1.2.4 Field depth | E23: ft | G23: 7240 | H23: 7422 | I23: 2300 | J23: 2205 | K23: 1701 | L23: 750 | M23: 5915 | N23: 5040 | O23: 5000 | P23: 3561 | Q23: 3965 | R23: 6975 | S23: 8165 | U23: 2264 | V23: 779 | W23: 7545 | X23: 6917 | Y23: 3000 | Z23: 3858 | AB23: 8242 | AC23: 8400 | AD23: 3457 | AE23: 2733 | AF23: 2914 | AG23: 5546 | AH23: 3301 | AI23: 8225 | AJ23: 3015 | AK23: 2650 | AL23: 7367 | AM23: 10542 | AN23: 8256 | AO23: 4014 | AP23: 3799 | AQ23: 2572 | AR23: 715 | AS23: 6700 | AT23: 1987 | AU23: 3646 | AV23: 6121 | AW23: 5683 | AX23: 3400 | AY23: 3817 | AZ23: 10519 | BA23: 5063 | BB23: 7393 | BC23: 4400 | BD23: 6395 | BE23: 3478 | BG23: 4300 | BH23: 3400 | BI23: 2228 | BJ23: 2290 | BK23: 850 | BL23: 11924 | BM23: 8015 | BN23: 12190 | BO23: 4078 | BP23: 3375 | BQ23: 2500 | BR23: 4770 | BS23: 8200 | BT23: 3260 | BU23: 8390 | BV23: 1128 | BW23: 2543 | BX23: 1800 | BY23: 1300 | BZ23: 3473 | CA23: 2698 | CB23: 10100 | CC23: 5559 | CD23: 4550 | CE23: 1628 | CF23: 6763 | CG23: 8810 | CH23: 1225 | CI23: 4105 | CJ23: 1150 | CK23: 2500 | CL23: 8046 | CM23: 2278 | CN23: 4900 | CO23: 5544 | CP23: 2573 | CQ23: 9920 | CR23: 1608 | CS23: 7800 | CT23: 8607 | CU23: 2272 | CV23: 861 | CW23: 6278 | CX23: 4719 | CY23: 5648 | CZ23: 4030 | DA23: 7114 | DB23: 10914 | DC23: 14100 | DD23: 7226 | DF23: 6146 | DG23: 7367 | DH23: 6342 | DI23: 4315 | DJ23: 1652 | DK23: 3200 | DL23: 2420 | DM23: 1750 | DN23: 2024 | DO23: 10130 | DP23: 3133 | DQ23: 3501 | DR23: 8815 | DS23: 5688 | DT23: 4354 | DU23: 6198 | DW23: 7889 | DX23: 9500 | DY23: 5277 | DZ23: 9437 | EA23: 1953 | EB23: 7575 | EC23: 4411 | ED23: 5500 | EE23: 8925 | EF23: 8465 | EG23: 1050 | EH23: 2020 | EI23: 3710 | EJ23: 1366 | EK23: 8979 | EL23: 2583 | EM23: 7865 | EN23: 5500 | EO23: 3433 | EP23: 6335 | EQ23: 4550 | ER23: 8819 | ES23: 5978 | ET23: 1795 | EU23: 1871 | EV23: 2824 | EW23: 11676 | EX23: 3500 | EY23: See "Depth" spreadsheet
B24: 1.2.5 Oil production volume | E24: bbl/d | G24: 1500 | H24: 230.2684932 | I24: 119.7534247 | J24: 454.6246575 | K24: 830.8739726 | L24: 1141.131507 | M24: 909.909589 | N24: 35.1890411 | O24: 187.5068493 | P24: 213.9150685 | Q24: 138.030137 | R24: 67.65753425 | S24: 55.04657534 | T24: 2395.068493 | U24: 8031.616438 | V24: 72563.98904 | W24: 2257.361644 | X24: 88.24657534 | Y24: 3287.917808 | Z24: 2000.227397 | AA24: 103.4164384 | AB24: 80.42465753 | AC24: 326.2986301 | AD24: 88.01369863 | AE24: 484.7589041 | AF24: 471.3808219 | AG24: 35.26849315 | AH24: 921.7835616 | AI24: 139.7808219 | AJ24: 116.8136986 | AK24: 15446.0137 | AL24: 60.23013699 | AM24: 409.8547945 | AN24: 238.4273973 | AO24: 622.2821918 | AP24: 599.0356164 | AQ24: 42398.92603 | AR24: 133.1534247 | AS24: 179.0630137 | AT24: 55.30958904 | AU24: 2076.142466 | AV24: 55.75342466 | AW24: 38195.13973 | AX24: 2385.386301 | AY24: 1285.739726 | AZ24: 362.3945205 | BA24: 123.7726027 | BB24: 292.6 | BC24: 54.98630137 | BD24: 147.0876712 | BE24: 5003.534247 | BF24: 28.43287671 | BG24: 7226.813699 | BH24: 359.0082192 | BI24: 277.1726027 | BJ24: 7693.479452 | BK24: 75004.47671 | BL24: 91.75616438 | BM24: 102.0410959 | BN24: 94.96164384 | BO24: 1252.810959 | BP24: 43.93150685 | BQ24: 571.2410959 | BR24: 3987.29589 | BS24: 30.50958904 | BT24: 81.10684932 | BU24: 43.3890411 | BV24: 31320.66027 | BW24: 61.42465753 | BX24: 416.0575342 | BY24: 140.339726 | BZ24: 5525.619178 | CA24: 88787.7589 | CB24: 1516.731507 | CC24: 1997.912329 | CD24: 285.4465753 | CE24: 1487.632877 | CF24: 363.1150685 | CG24: 391.9589041 | CH24: 266.2739726 | CI24: 81.86575342 | CJ24: 57.41917808 | CK24: 198.2684932 | CL24: 308.5972603 | CM24: 718.7972603 | CN24: 50.64657534 | CO24: 2958.164384 | CP24: 324.630137 | CQ24: 77.38082192 | CR24: 2040.161644 | CS24: 124.7068493 | CT24: 681.5863014 | CU24: 6811.884932 | CV24: 170.139726 | CW24: 294.0849315 | CX24: 411.6876712 | CY24: 171.2054795 | CZ24: 1039.523288 | DA24: 903.3835616 | DB24: 633.2767123 | DC24: 227.2246575 | DD24: 225.3287671 | DE24: 569.5534247 | DF24: 478.5972603 | DG24: 29.44657534 | DH24: 50.51232877 | DI24: 503.3534247 | DJ24: 7469.964384 | DK24: 167.5726027 | DL24: 121.4109589 | DM24: 168.5342466 | DN24: 16571.4274 | DO24: 1681.238356 | DP24: 845.109589 | DQ24: 419.1178082 | DR24: 196.2931507 | DS24: 1780.049315 | DT24: 508.7589041 | DU24: 51.68767123 | DV24: 62.58630137 | DW24: 107.8821918 | DX24: 498.6164384 | DY24: 1252.810959 | DZ24: 92.44383562 | EA24: 940.7534247 | EB24: 1983.59726 | EC24: 242.2164384 | ED24: 1145.871233 | EE24: 260.1013699 | EF24: 34.83013699 | EG24: 148.6136986 | EH24: 34.07671233 | EI24: 1291.219178 | EJ24: 42.04109589 | EK24: 101.7972603 | EL24: 76.81369863 | EM24: 286.5452055 | EN24: 97.69863014 | EO24: 995.2383562 | EP24: 201.7835616 | EQ24: 59.17808219 | ER24: 12473.88767 | ES24: 177.8849315 | ET24: 32.84657534 | EU24: 295.7068493 | EV24: 36577.21096 | EW24: 654.509589 | EX24: 501.8931507 | EY24: Based on data from DOGGR http://opi.consrv.ca.gov/opi/opi.dll - accessed June 2013
B25: 1.2.6 Number of producing wells | E25: [-] | G25: 8 | H25: 13 | I25: 8 | J25: 82 | K25: 79 | L25: 92 | M25: 82 | N25: 11 | O25: 36 | P25: 19 | Q25: 34 | R25: 10 | S25: 3 | T25: 32 | U25: 664 | V25: 5274 | W25: 87 | X25: 8 | Y25: 434 | Z25: 346 | AA25: 4 | AB25: 11 | AC25: 32 | AD25: 23 | AE25: 17 | AF25: 104 | AG25: 8 | AH25: 242 | AI25: 10 | AJ25: 23 | AK25: 1473 | AL25: 105 | AM25: 49 | AN25: 33 | AO25: 48 | AP25: 74 | AQ25: 1709 | AR25: 65 | AS25: 21 | AT25: 64 | AU25: 891 | AV25: 3 | AW25: 2430 | AX25: 15 | AY25: 198 | AZ25: 24 | BA25: 12 | BB25: 19 | BC25: 15 | BD25: 11 | BE25: 220 | BF25: 1 | BG25: 422 | BH25: 55 | BI25: 47 | BJ25: 744 | BK25: 9448 | BL25: 6 | BM25: 12 | BN25: 4 | BO25: 47 | BP25: 6 | BQ25: 35 | BR25: 283 | BS25: 3 | BT25: 5 | BU25: 3 | BV25: 2600 | BW25: 29 | BX25: 13 | BY25: 46 | BZ25: 416 | CA25: 10341 | CB25: 31 | CC25: 101 | CD25: 34 | CE25: 519 | CF25: 127 | CG25: 34 | CH25: 68 | CI25: 11 | CJ25: 10 | CK25: 13 | CL25: 10 | CM25: 142 | CN25: 3 | CO25: 253 | CP25: 29 | CQ25: 21 | CR25: 113 | CS25: 4 | CT25: 20 | CU25: 659 | CV25: 123 | CW25: 35 | CX25: 44 | CY25: 60 | CZ25: 107 | DA25: 59 | DB25: 20 | DC25: 8 | DD25: 13 | DE25: 21 | DF25: 49 | DG25: 5 | DH25: 15 | DI25: 52 | DJ25: 299 | DK25: 39 | DL25: 4 | DM25: 10 | DN25: 473 | DO25: 58 | DP25: 33 | DQ25: 85 | DR25: 18 | DS25: 100 | DT25: 71 | DU25: 7 | DV25: 10 | DW25: 12 | DX25: 11 | DY25: 121 | DZ25: 54 | EA25: 191 | EB25: 43 | EC25: 34 | ED25: 249 | EE25: 9 | EF25: 4 | EG25: 23 | EH25: 14 | EI25: 107 | EJ25: 44 | EK25: 28 | EL25: 8 | EM25: 32 | EN25: 26 | EO25: 104 | EP25: 35 | EQ25: 3 | ER25: 431 | ES25: 21 | ET25: 4 | EU25: 22 | EV25: 1225 | EW25: 27 | EX25: 30 | EY25: December 2010 Monthly Oil and Gas Production and Injection Report, California Department of Conservation (ftp://ftp.consrv.ca.gov/pub/oil/monthly_production_reports/)
B26: 1.2.7 Number of water injecting wells | E26: [-] | G26: 5 | H26: 6 | I26: 2 | J26: 0 | K26: 2 | L26: 9 | M26: 14 | N26: 0 | O26: 4 | P26: 1 | Q26: 2 | R26: 2 | S26: 1 | T26: 12 | U26: 204 | V26: 1238 | W26: 19 | X26: 0 | Y26: 19 | Z26: 45 | AA26: 0 | AB26: 1 | AC26: 4 | AD26: 0 | AE26: 2 | AF26: 7 | AG26: 2 | AH26: 16 | AI26: 1 | AJ26: 0 | AK26: 104 | AL26: 2 | AM26: 7 | AN26: 4 | AO26: 12 | AP26: 12 | AQ26: 13 | AR26: 8 | AS26: 2 | AT26: 2 | AU26: 11 | AV26: 1 | AW26: 265 | AX26: 3 | AY26: 29 | AZ26: 4 | BA26: 0 | BB26: 4 | BC26: 2 | BD26: 3 | BE26: 52 | BF26: 0 | BG26: 177 | BH26: 3 | BI26: 3 | BJ26: 14 | BK26: 23 | BL26: 1 | BM26: 1 | BN26: 7 | BO26: 18 | BP26: 1 | BQ26: 7 | BR26: 56 | BS26: 1 | BT26: 5 | BU26: 0 | BV26: 821 | BW26: 2 | BX26: 2 | BY26: 6 | BZ26: 6 | CA26: 87 | CB26: 6 | CC26: 51 | CD26: 0 | CE26: 17 | CF26: 5 | CG26: 2 | CH26: 2 | CI26: 1 | CJ26: 3 | CK26: 6 | CL26: 0 | CM26: 8 | CN26: 0 | CO26: 59 | CP26: 3 | CQ26: 1 | CR26: 8 | CS26: 1 | CT26: 1 | CU26: 49 | CV26: 3 | CW26: 0 | CX26: 11 | CY26: 4 | CZ26: 38 | DA26: 12 | DB26: 5 | DC26: 1 | DD26: 3 | DE26: 1 | DF26: 9 | DG26: 0 | DH26: 3 | DI26: 18 | DJ26: 36 | DK26: 1 | DL26: 0 | DM26: 0 | DN26: 21 | DO26: 37 | DP26: 2 | DQ26: 2 | DR26: 1 | DS26: 54 | DT26: 9 | DU26: 0 | DV26: 1 | DW26: 3 | DX26: 3 | DY26: 10 | DZ26: 0 | EA26: 5 | EB26: 4 | EC26: 4 | ED26: 7 | EE26: 0 | EF26: 1 | EG26: 2 | EH26: 0 | EI26: 11 | EJ26: 2 | EK26: 0 | EL26: 1 | EM26: 5 | EN26: 0 | EO26: 36 | EP26: 0 | EQ26: 2 | ER26: 299 | ES26: 1 | ET26: 0 | EU26: 0 | EV26: 729 | EW26: 11 | EX26: 3 | EY26: December 2010 Monthly Oil and Gas Production and Injection Report, California Department of Conservation (ftp://ftp.consrv.ca.gov/pub/oil/monthly_production_reports/)
B27: 1.2.8 Well diameter | E27: in | G27: 2.775
B28: 1.2.9 Productivity index | E28: bbl/psi-d | G28: 3
B29: 1.2.10 Reservoir pressure | E29: psi | G29: 1556.6
B30: 1.2.11 Reservoir temperature | E30: ◦F | G30: 150
B31: 1.2.12 Offshore? | E31: [0-1] | G31: 0 | T31: 1 | AX31: 1
A33: 1.3 Fluid properties
B34: 1.3.1 API gravity | E34: deg. API | G34: 30 | H34: 30.7 | I34: 14 | J34: 17.6 | K34: 15.4 | L34: 14 | M34: 35.8 | N34: 37.4 | O34: 29.2 | P34: 27.1 | Q34: 33.9 | R34: 34 | S34: 31.7 | U34: 27.2 | V34: 21.4 | W34: 33.1 | X34: 20.3 | Y34: 23.6 | Z34: 20.2 | AB34: 35.9 | AC34: 28 | AD34: 26.2 | AE34: 19.5 | AF34: 16.5 | AG34: 32.5 | AH34: 11.5 | AI34: 31 | AJ34: 26 | AK34: 21 | AL34: 32.2 | AM34: 41 | AN34: 43 | AO34: 22.1 | AP34: 34.6 | AQ34: 21.7 | AR34: 12 | AS34: 32.3 | AT34: 25.3 | AU34: 24.3 | AV34: 23 | AW34: 36.4 | AX34: 38 | AY34: 19.2 | AZ34: 35.7 | BA34: 15.5 | BB34: 40.9 | BC34: 26.8 | BD34: 36.5 | BE34: 19.3 | BF34: 16.5 | BG34: 23.6 | BH34: 35 | BI34: 14 | BJ34: 14 | BK34: 13 | BL34: 41.6 | BM34: 39.1 | BN34: 30.7 | BO34: 32.7 | BP34: 26 | BQ34: 20.5 | BR34: 24.8 | BS34: 34 | BT34: 33.8 | BU34: 34.5 | BV34: 22.4 | BW34: 26.4 | BX34: 11 | BY34: 20 | BZ34: 21.8 | CA34: 19 | CB34: 22 | CC34: 33.2 | CD34: 26 | CE34: 15.2 | CF34: 31.6 | CG34: 34 | CH34: 18 | CI34: 28.8 | CJ34: 22 | CK34: 21 | CL34: 17.8 | CM34: 22.4 | CN34: 14 | CO34: 27 | CP34: 8.4 | CQ34: 27 | CR34: 20.5 | CS34: 22.5 | CT34: 20.8 | CU34: 13.5 | CV34: 17.3 | CW34: 37.7 | CX34: 26 | CY34: 20.6 | CZ34: 18.5 | DA34: 29.1 | DB34: 35 | DC34: 29.5 | DD34: 36.4 | DF34: 34.3 | DG34: 33.3 | DH34: 30.8 | DI34: 24 | DJ34: 21.1 | DK34: 34.8 | DL34: 16.9 | DM34: 24 | DN34: 13 | DO34: 29.7 | DP34: 23.7 | DQ34: 21.4 | DR34: 24.3 | DS34: 33.3 | DT34: 13.7 | DU34: 39.8 | DW34: 34.3 | DX34: 22.5 | DY34: 23.5 | EA34: 32 | EB34: 27.5 | EC34: 32.1 | ED34: 27.5 | EE34: 27 | EF34: 33.2 | EG34: 17 | EH34: 21.5 | EI34: 22.2 | EJ34: 30.8 | EK34: 41.8 | EL34: 22 | EM34: 34.5 | EN34: 35.5 | EO34: 23.3 | EP34: 26.9 | EQ34: 39.5 | ER34: 29.9 | ES34: 36.8 | ET34: 14.7 | EU34: 17 | EV34: 19.5 | EW34: 32.2 | EX34: 8 | EY34: See "API gravity" spreadsheet
B35: 1.3.2 Gas composition
C36: N2 | E36: mol% | G36: 2
C37: CO2 | E37: mol% | G37: 6
C38: C1 | E38: mol% | G38: 84
C39: C2 | E39: mol% | G39: 4
C40: C3 | E40: mol% | G40: 2
C41: C4+ | E41: mol% | G41: 1
C42: H2S | E42: mol% | G42: 1
A44: 1.4 Production practices
A45: Notes: Enter "NA" where not applicable
B46: 1.4.1 Gas-to-oil ratio (GOR) | E46: scf/bbl oil | G46: 908 | H46: 293.4037693 | I46: 205.9025395 | J46: 422.3023057 | K46: 0 | L46: 2364.238331 | M46: 15571.57568 | N46: 420.3519153 | O46: 2352.454705 | P46: 2601.557397 | Q46: 4409.956134 | R46: 825.389755 | S46: 821.122835 | T46: 301.8142302 | U46: 1091.578488 | V46: 408.6172635 | W46: 1248.105134 | X46: 3552.095622 | Y46: 500.5891225 | Z46: 1899.618263 | AA46: 3810.792911 | AB46: 617.3394652 | AC46: 1156.407694 | AD46: 915.922179 | AE46: 1500.336278 | AF46: 281.2895951 | AG46: 917.4240659 | AH46: 594.8711699 | AI46: 1151.548412 | AJ46: 1788.024486 | AK46: 34.48511342 | AL46: 15160.34389 | AM46: 649.1507183 | AN46: 12182.15246 | AO46: 593.4012231 | AP46: 1547.31349 | AQ46: 327.8755833 | AR46: 0 | AS46: 1433.122189 | AT46: 117.9413513 | AU46: 4.66090959 | AV46: 294.5945946 | AW46: 8937.447037 | AX46: 711.4186152 | AY46: 170.877593 | AZ46: 1420.5286 | BA46: 229.5415809 | BB46: 2786.88939 | BC46: 877.1300448 | BD46: 236.4445769 | BE46: 414.4347283 | BF46: 0 | BG46: 542.4880781 | BH46: 183.5574414 | BI46: 0 | BJ46: 0 | BK46: 0.0666626876 | BL46: 1552.805231 | BM46: 2414.767083 | BN46: 959.1760192 | BO46: 1279.625434 | BP46: 0 | BQ46: 922.5526731 | BR46: 186.8908307 | BS46: 342.7622126 | BT46: 851.8781246 | BU46: 969.2492265 | BV46: 696.5445628 | BW46: 987.823372 | BX46: 0 | BY46: 612.7596439 | BZ46: 797.9949932 | CA46: 147.8969765 | CB46: 555.4246966 | CC46: 943.4670163 | CD46: 2687.535993 | CE46: 0 | CF46: 345.7826871 | CG46: 1839.01024 | CH46: 257.4441815 | CI46: 1334.962016 | CJ46: 434.2494513 | CK46: 422.3137298 | CL46: 30.75338696 | CM46: 4638.787777 | CN46: 0 | CO46: 803.0516888 | CP46: 3.10574732 | CQ46: 3047.089647 | CR46: 0 | CS46: 813.8758293 | CT46: 490.1820491 | CU46: 8.030686093 | CV46: 0.1932336033 | CW46: 21379.84554 | CX46: 327.0134295 | CY46: 1962.217955 | CZ46: 84.3221076 | DA46: 867.06901 | DB46: 1327.368849 | DC46: 138.4303749 | DD46: 849.7294668 | DE46: 391.9581311 | DF46: 707.9593332 | DG46: 901.5630815 | DH46: 179.4218148 | DI46: 1240.474843 | DJ46: 5.465174322 | DK46: 281.6853051 | DL46: 1090.308022 | DM46: 1525.188978 | DN46: 261.8563955 | DO46: 772.8924537 | DP46: 868.7079571 | DQ46: 809.1555649 | DR46: 713.1491898 | DS46: 177.1045284 | DT46: 523.7349015 | DU46: 3196.226015 | DV46: 1514.533357 | DW46: 1059.730299 | DX46: 593.9668672 | DY46: 623.1160175 | DZ46: 468.6740561 | EA46: 2376.690207 | EB46: 713.7634269 | EC46: 2873.711952 | ED46: 1680.453708 | EE46: 314.6191685 | EF46: 479.037206 | EG46: 101.264656 | EH46: 272.9538511 | EI46: 317.525117 | EJ46: 0 | EK46: 9927.441059 | EL46: 2014.730535 | EM46: 460.9758196 | EN46: 3318.255749 | EO46: 194.7822784 | EP46: 1824.130019 | EQ46: 422.4537037 | ER46: 592.2818715 | ES46: 945.7706999 | ET46: 0 | EU46: 669.7302956 | EV46: 337.7202753 | EW46: 553.014701 | EX46: 104.7485957 | EY46: Based on data from DOGGR http://opi.consrv.ca.gov/opi/opi.dll - accessed June 2013
B47: 1.4.2 Water-to-oil ratio (WOR) | E47: bbl water/bbl oil | G47: 4.308369057 | H47: 3.597099277 | I47: 102.8760009 | J47: 6.088557172 | K47: 4.06678889 | L47: 16.21850218 | M47: 28.15552953 | N47: 32.08891311 | O47: 16.72996786 | P47: 1.439119353 | Q47: 2.241936444 | R47: 32.85806843 | S47: 31.27841927 | T47: 8.900150995 | U47: 9.223951916 | V47: 11.34557007 | W47: 9.998035044 | X47: 2.960571251 | Y47: 5.717393695 | Z47: 19.56373864 | AA47: 0.7498344239 | AB47: 7.808141714 | AC47: 5.777000647 | AD47: 1.189634241 | AE47: 0.9735103455 | AF47: 41.54108594 | AG47: 0.611434786 | AH47: 13.1250078 | AI47: 3.304645237 | AJ47: 12.44118958 | AK47: 12.09706419 | AL47: 54.20210153 | AM47: 6.200752689 | AN47: 0.8961000161 | AO47: 25.57430228 | AP47: 65.71417072 | AQ47: 6.902962714 | AR47: 83.86251312 | AS47: 10.57887328 | AT47: 2.856300773 | AU47: 11.48155826 | AV47: 8.233415233 | AW47: 9.453800907 | AX47: 6.575151666 | AY47: 14.71593774 | AZ47: 23.5537067 | BA47: 1.576620847 | BB47: 3.621176228 | BC47: 1.07513702 | BD47: 8.044312403 | BE47: 25.15784788 | BF47: 0.03208710734 | BG47: 45.0118952 | BH47: 2.429852409 | BI47: 56.35509252 | BJ47: 29.95769803 | BK47: 10.06140284 | BL47: 4.032426622 | BM47: 10.70414821 | BN47: 30.6019734 | BO47: 16.59389734 | BP47: 3.05818522 | BQ47: 54.75139926 | BR47: 29.0062651 | BS47: 9.486619971 | BT47: 15.09900689 | BU47: 28.84946644 | BV47: 12.65883599 | BW47: 8.219536128 | BX47: 5.870539507 | BY47: 22.712459 | BZ47: 8.098814439 | CA47: 6.769264071 | CB47: 1.985307267 | CC47: 49.65613695 | CD47: 7.305476638 | CE47: 71.72438332 | CF47: 3.995918121 | CG47: 0.7517771642 | CH47: 23.35885379 | CI47: 7.161206118 | CJ47: 1.693625346 | CK47: 8.455795379 | CL47: 0.7897601165 | CM47: 2.53869287 | CN47: 1.344639186 | CO47: 28.01969381 | CP47: 6.387197232 | CQ47: 1.58922249 | CR47: 31.27748003 | CS47: 16.68271892 | CT47: 1.058955941 | CU47: 52.03076814 | CV47: 2.352667429 | CW47: 17.92738096 | CX47: 38.00039264 | CY47: 1.046103377 | CZ47: 16.30003742 | DA47: 5.899058335 | DB47: 10.03759096 | DC47: 1.465907858 | DD47: 3.675262934 | DE47: 2.487202182 | DF47: 16.71830349 | DG47: 2.523539263 | DH47: 25.80023865 | DI47: 43.9533485 | DJ47: 37.73122279 | DK47: 18.95036296 | DL47: 3.277468126 | DM47: 14.25717305 | DN47: 18.64157567 | DO47: 9.392065861 | DP47: 1.854829559 | DQ47: 1.095693498 | DR47: 4.60337488 | DS47: 53.63549417 | DT47: 20.09543504 | DU47: 1.003657373 | DV47: 0.8086587288 | DW47: 3.796277015 | DX47: 2.887952966 | DY47: 16.56790429 | DZ47: 0.7104498844 | EA47: 0.7047630142 | EB47: 2.054617804 | EC47: 3.829598797 | ED47: 1.647293559 | EE47: 0.5737805071 | EF47: 1.690867616 | EG47: 12.53513753 | EH47: 1.437851745 | EI47: 25.93503856 | EJ47: 13.57523623 | EK47: 1.043896006 | EL47: 6.063273531 | EM47: 21.69666982 | EN47: 0.4481491868 | EO47: 22.01951484 | EP47: 0.3426158504 | EQ47: 0.9167592593 | ER47: 10.16753134 | ES47: 9.418709956 | ET47: 0.1343731754 | EU47: 1.966507 | EV47: 36.1380892 | EW47: 33.03429526 | EX47: 30.676114 | EY47: Based on data from DOGGR http://opi.consrv.ca.gov/opi/opi.dll - accessed June 2013
B48: 1.4.3 Water injection ratio | E48: bbl water/bbl oil | G48: 5.308369057 | H48: 6.113197221 | P48: 1.940022285 | R48: 33.72783964 | U48: 11.60029404 | Z48: 36.8451861 | AF48: 41.69613028 | AG48: 1.917734794 | AH48: 13.21233998 | AM48: 8.747782375 | AN48: 1.371210902 | AY48: 18.99677815 | BD48: 9.148099167 | BE48: 27.8399931 | BG48: 45.63214088 | BN48: 31.29776983 | BO48: 16.70945118 | BQ48: 118.2234644 | BT48: 15.16217403 | BW48: 10.41891169 | BX48: 5.954892961 | CG48: 1.26118897 | CJ48: 6.243820975 | CK48: 12.96661508 | CP48: 8.483720145 | CV48: 3.466804077 | CX48: 38.11860967 | CY48: 1.186589854 | DC48: 1.496376768 | DH48: 27.49134892 | DK48: 20.76257276 | DO48: 11.57543363 | DP48: 1.858641985 | DQ48: 2.351311953 | DT48: 22.77203186 | DV48: 0.8210471021 | DX48: 5.597813127 | EB48: 2.104720495 | ED48: 1.985384095 | EM48: 21.8939659 | ER48: 11.14756898 | EV48: 38.7288376 | EW48: 33.13894749 | EY48: Based on data from DOGGR http://opi.consrv.ca.gov/opi/opi.dll - accessed June 2013
B49: 1.4.4 Gas lifting injection ratio | E49: scf/bbl liquid | G49: 1500
B50: 1.4.5 Gas flooding injection ratio | E50: scf/bbl oil | G50: 1362 | BK50: 22.92180989 | CT50: 676.8336556 | DJ50: 11.361665 | DK50: 856.0918187 | EY50: Based on data from DOGGR http://opi.consrv.ca.gov/opi/opi.dll - accessed June 2013
B51: 1.4.6 Flood gas | E51: NA | G51: 1
C52: 1= Natural gas
C53: 2= Nitrogen (N2)
C54: 3= Carbon Dioxide (CO2)
B57: 1.4.7 Carbon dioxide flooding and sequestration parameters
C58: 1.4.7.1 Percentage of newly acquired CO2 (total injected CO2 includes both new and recycled) | E58: % | G58: 41
C59: 1.4.7.2 Source of CO2 | E59: NA | G59: 1
D60: 1= Natural subsurface reservoir
D61: 2= Anthropogenic
C62: 1.4.7.3 Percentage of sequestration credit assigned to the oilfield | E62: % | G62: 0
B63: 1.4.8 Steam-to-oil ratio (SOR) | E63: bbl steam/bbl oil | G63: 3 | K63: 2.390775186 | L63: 4.9761376 | U63: 0.2568117781 | V63: 2.580582104 | Z63: 0.4289306832 | AK63: 5.621770745 | AQ63: 4.014693962 | AU63: 0.9289963473 | AY63: 1.479229483 | BI63: 1.645777321 | BJ63: 4.857383588 | BK63: 2.327701572 | BV63: 1.718730365 | BX63: 1.147483554 | BZ63: 3.445306074 | CA63: 4.741927617 | CE63: 0.9691539008 | CF63: 0.2789787003 | CO63: 1.050530225 | CP63: 3.045269643 | CR63: 8.570282505 | CU63: 3.392779662 | DJ63: 3.94524923 | DN63: 5.969942487 | EG63: 0.5150800088 | EY63: January to December 2010 Monthly Oil and Gas Production and Injection Reports, California Department of Conservation (ftp://ftp.consrv.ca.gov/pub/oil/monthly_production_reports/)
B64: 1.4.9 Fraction of required electricity generated onsite | E64: [-] | G64: 0
B65: 1.4.10 Fraction of remaining natural gas reinjected | E65: [-] | G65: 0 | H65: 0 | I65: 0 | J65: 0.7685655574 | K65: 0 | L65: 1 | M65: 0 | N65: 0 | O65: 0 | P65: 0 | Q65: 0 | R65: 0 | S65: 0 | T65: 0 | U65: 0 | V65: 0 | W65: 4.37589949e-05 | X65: 0 | Y65: 0 | Z65: 0 | AA65: 0 | AB65: 0 | AC65: 0 | AD65: 0 | AE65: 0 | AF65: 0 | AG65: 0 | AH65: 0 | AI65: 0 | AJ65: 0 | AK65: 0 | AL65: 0 | AM65: 0 | AN65: 0 | AO65: 0 | AP65: 0 | AQ65: 0.05901470889 | AR65: 0 | AS65: 0 | AT65: 0 | AU65: 0 | AV65: 0 | AW65: 0.1076651605 | AX65: 0.7016489939 | AY65: 0 | AZ65: 0 | BA65: 0 | BB65: 0 | BC65: 0 | BD65: 0 | BE65: 0.0198023988 | BF65: 0 | BG65: 0 | BH65: 0 | BI65: 0 | BJ65: 0 | BK65: 1 | BL65: 0 | BM65: 0 | BN65: 0 | BO65: 0 | BP65: 0 | BQ65: 0.2326687635 | BR65: 0 | BS65: 0 | BT65: 0 | BU65: 0 | BV65: 0 | BW65: 0 | BX65: 0 | BY65: 0 | BZ65: 0 | CA65: 0.5604173691 | CB65: 0 | CC65: 0 | CD65: 0 | CE65: 0 | CF65: 0 | CG65: 0 | CH65: 0 | CI65: 0 | CJ65: 0 | CK65: 0 | CL65: 0 | CM65: 0 | CN65: 0 | CO65: 0 | CP65: 0 | CQ65: 0 | CR65: 0 | CS65: 0 | CT65: 1 | CU65: 0 | CV65: 0 | CW65: 0 | CX65: 0 | CY65: 0 | CZ65: 0.0003750703257 | DA65: 0 | DB65: 0 | DC65: 0 | DD65: 0 | DE65: 0 | DF65: 0 | DG65: 0 | DH65: 0 | DI65: 0 | DJ65: 1 | DK65: 1 | DL65: 0 | DM65: 0 | DN65: 0 | DO65: 0 | DP65: 0 | DQ65: 0 | DR65: 0 | DS65: 0 | DT65: 0 | DU65: 0 | DV65: 0.8335163882 | DW65: 0 | DX65: 0 | DY65: 0 | DZ65: 0 | EA65: 0 | EB65: 0 | EC65: 0 | ED65: 0 | EE65: 0 | EF65: 0 | EG65: 0 | EH65: 0 | EI65: 0 | EJ65: 0 | EK65: 0 | EL65: 0 | EM65: 0 | EN65: 0 | EO65: 0 | EP65: 0 | EQ65: 0 | ER65: 0 | ES65: 0 | ET65: 0 | EU65: 0 | EV65: 0 | EW65: 0 | EX65: 0 | EY65: Based on data from DOGGR http://opi.consrv.ca.gov/opi/opi.dll - accessed June 2013
B66: 1.4.11 Fraction of produced water reinjected | E66: [-] | G66: 1 | H66: 1 | I66: 1 | J66: 0 | K66: 0.4531930196 | L66: 0.6931799526 | M66: 0.6810789943 | N66: 0 | O66: 0.3905732669 | P66: 1 | Q66: 0.9520588574 | R66: 1 | S66: 0.9700467502 | T66: 0.9392340761 | U66: 1 | V66: 0.804383739 | W66: 0.99356924 | X66: 0 | Y66: 0.8163553521 | Z66: 1 | AA66: 0 | AB66: 0.5188824125 | AC66: 0.9570632308 | AD66: 0 | AE66: 0.9743802612 | AF66: 1 | AG66: 1 | AH66: 1 | AI66: 0.1508751327 | AJ66: 0 | AK66: 0.1931233678 | AL66: 0.9629147543 | AM66: 1 | AN66: 1 | AO66: 0.9904490935 | AP66: 0.7235273664 | AQ66: 0.03537116761 | AR66: 0.5878325296 | AS66: 0.6981996315 | AT66: 0.3533635087 | AU66: 0.5925271184 | AV66: 0.2166517457 | AW66: 0.9475269329 | AX66: 0.7992262035 | AY66: 1 | AZ66: 0.9763822871 | BA66: 0 | BB66: 0.9165895257 | BC66: 1 | BD66: 1 | BE66: 1 | BF66: 0 | BG66: 1 | BH66: 0.5088300047 | BI66: 0.04348054104 | BJ66: 0.1111963984 | BK66: 0.07590010407 | BL66: 0.9668715291 | BM66: 0.07462952372 | BN66: 1 | BO66: 1 | BP66: 1 | BQ66: 1 | BR66: 0.7083809896 | BS66: 1 | BT66: 1 | BU66: 0 | BV66: 0.8846478226 | BW66: 1 | BX66: 1 | BY66: 0.9994447419 | BZ66: 0.3395956509 | CA66: 0.2055859273 | CB66: 0.9508261455 | CC66: 0.9581458933 | CD66: 0 | CE66: 0.4495379883 | CF66: 0.215121779 | CG66: 1 | CH66: 0.2413142711 | CI66: 0.9996495065 | CJ66: 1 | CK66: 1 | CL66: 0 | CM66: 0.9451410847 | CN66: 0 | CO66: 0.9755412428 | CP66: 1 | CQ66: 0.925299648 | CR66: 0.6041400783 | CS66: 0.8585447822 | CT66: 0.8993380048 | CU66: 0.9270105093 | CV66: 1 | CW66: 0 | CX66: 1 | CY66: 1 | CZ66: 0.976392389 | DA66: 0.4739821482 | DB66: 0.9598133568 | DC66: 1 | DD66: 0.8373914885 | DE66: 0.5433540209 | DF66: 0.9268443927 | DG66: 0 | DH66: 1 | DI66: 0.9095514276 | DJ66: 0.8957916396 | DK66: 1 | DL66: 0 | DM66: 0 | DN66: 0.3798191234 | DO66: 1 | DP66: 1 | DQ66: 1 | DR66: 0.9916529722 | DS66: 0.7930011714 | DT66: 1 | DU66: 0 | DV66: 1 | DW66: 0.9618292014 | DX66: 1 | DY66: 0.2971352694 | DZ66: 0 | EA66: 0.9864255076 | EB66: 1 | EC66: 0.9983755254 | ED66: 1 | EE66: 0 | EF66: 0.1039728322 | EG66: 0.9195212631 | EH66: 0 | EI66: 0.9988822761 | EJ66: 0.4616104689 | EK66: 0 | EL66: 0.9999941175 | EM66: 1 | EN66: 0 | EO66: 0.9466179714 | EP66: 0 | EQ66: 1 | ER66: 1 | ES66: 0.1504550821 | ET66: 0 | EU66: 0 | EV66: 1 | EW66: 1 | EX66: 0.9999991103 | EY66: Based on data from DOGGR http://opi.consrv.ca.gov/opi/opi.dll - accessed June 2013
B67: 1.4.12 Fraction of steam generation via cogeneration | E67: [-] | G67: 0 | L67: 0.1256636858 | V67: 0.1392352819 | AK67: 0.3268101341 | AQ67: 0.08633447573 | BI67: 1 | BJ67: 0.4832426059 | BK67: 0.917361092 | BV67: 0.06729763399 | BZ67: 0.4324909438 | CA67: 0.2831850478 | CE67: 0.9518006822 | CR67: 0.9417942994 | CU67: 0.6887626013 | DN67: 0.2973919735 | EY67: See "Cogen Data" sheet.
A69: 1.5 Processing practices
B70: 1.5.1 Heater/treater | E70: NA | G70: 0
B71: 1.5.2 Stabilizer column | E71: NA | G71: 1
B72: 1.5.3 Upgrader type | G72: 0
C73: 0 = None
C74: 1 = Delayed coking
C75: 2 = Hydroconversion
C76: 3 = Combined hydroconversion and fluid coking
B77: 1.5.3 Associated Gas Processing Path | E77: NA | G77: 5
C78: 1= None
C79: 2= Minimal: Dehydrator
C80: 3= Acid Gas: Dehydrator + Amine Process
C81: 4= Wet Gas: Dehydrator + Demethanizer
C82: 5= Acid Wet Gas: Dehydrator + Amine Process + Demethanizer
C83: 6= CO2-EOR Membrane: Dehydrator + Compressor + Membrane + Amine Process + Demethanizer
C84: 7= CO2-EOR Ryan Holmes: Dehydrator + Ryan Holmes Process (Demethanizer Included)
C85: Notes: Choose paths 6 or 7 only if gas flooding is ON and CO2 is the flood gas
B86: 1.5.4 Flaring-to-oil ratio | E86: scf/bbl oil | G86: 181.5280918 | H86: 14 | I86: 14 | J86: 14 | K86: 14 | L86: 14 | M86: 14 | N86: 14 | O86: 14 | P86: 14 | Q86: 14 | R86: 14 | S86: 14 | T86: 14 | U86: 14 | V86: 14 | W86: 14 | X86: 14 | Y86: 14 | Z86: 14 | AA86: 14 | AB86: 14 | AC86: 14 | AD86: 14 | AE86: 14 | AF86: 14 | AG86: 14 | AH86: 14 | AI86: 14 | AJ86: 14 | AK86: 14 | AL86: 14 | AM86: 14 | AN86: 14 | AO86: 14 | AP86: 14 | AQ86: 14 | AR86: 14 | AS86: 14 | AT86: 14 | AU86: 14 | AV86: 14 | AW86: 14 | AX86: 14 | AY86: 14 | AZ86: 14 | BA86: 14 | BB86: 14 | BC86: 14 | BD86: 14 | BE86: 14 | BF86: 14 | BG86: 14 | BH86: 14 | BI86: 14 | BJ86: 14 | BK86: 14 | BL86: 14 | BM86: 14 | BN86: 14 | BO86: 14 | BP86: 14 | BQ86: 14 | BR86: 14 | BS86: 14 | BT86: 14 | BU86: 14 | BV86: 14 | BW86: 14 | BX86: 14 | BY86: 14 | BZ86: 14 | CA86: 14 | CB86: 14 | CC86: 14 | CD86: 14 | CE86: 14 | CF86: 14 | CG86: 14 | CH86: 14 | CI86: 14 | CJ86: 14 | CK86: 14 | CL86: 14 | CM86: 14 | CN86: 14 | CO86: 14 | CP86: 14 | CQ86: 14 | CR86: 14 | CS86: 14 | CT86: 14 | CU86: 14 | CV86: 14 | CW86: 14 | CX86: 14 | CY86: 14 | CZ86: 14 | DA86: 14 | DB86: 14 | DC86: 14 | DD86: 14 | DE86: 14 | DF86: 14 | DG86: 14 | DH86: 14 | DI86: 14 | DJ86: 14 | DK86: 14 | DL86: 14 | DM86: 14 | DN86: 14 | DO86: 14 | DP86: 14 | DQ86: 14 | DR86: 14 | DS86: 14 | DT86: 14 | DU86: 14 | DV86: 14 | DW86: 14 | DX86: 14 | DY86: 14 | DZ86: 14 | EA86: 14 | EB86: 14 | EC86: 14 | ED86: 14 | EE86: 14 | EF86: 14 | EG86: 14 | EH86: 14 | EI86: 14 | EJ86: 14 | EK86: 14 | EL86: 14 | EM86: 14 | EN86: 14 | EO86: 14 | EP86: 14 | EQ86: 14 | ER86: 14 | ES86: 14 | ET86: 14 | EU86: 14 | EV86: 14 | EW86: 14 | EX86: 14 | EY86: See "2010 California flaring data" sheet
B87: 1.5.5 Venting-to-oil ratio | E87: scf/bbl oil | G87: 0
B88: 1.5.6 Volume fraction of diluent | E88: [-] | G88: 0
A90: 1.6 Land use impacts
B91: 1.6.1 Crude ecosystem carbon richness
C92: 1.6.1.1 Low carbon richness (semi-arid grasslands) | E92: NA | G92: 0 | H92: 1 | I92: 1 | J92: 1 | K92: 1 | L92: 1 | M92: 1 | N92: 1 | O92: 1 | P92: 1 | Q92: 1 | R92: 1 | S92: 1 | U92: 1 | V92: 1 | W92: 1 | X92: 1 | Y92: 1 | Z92: 1 | AA92: 1 | AB92: 1 | AC92: 1 | AD92: 1 | AE92: 1 | AF92: 1 | AG92: 1 | AH92: 1 | AI92: 1 | AJ92: 1 | AK92: 1 | AL92: 1 | AM92: 1 | AN92: 1 | AO92: 1 | AP92: 1 | AQ92: 1 | AR92: 1 | AS92: 1 | AT92: 1 | AU92: 1 | AV92: 1 | AW92: 1 | AY92: 1 | AZ92: 1 | BA92: 1 | BB92: 1 | BC92: 1 | BD92: 1 | BE92: 1 | BF92: 1 | BG92: 1 | BH92: 1 | BI92: 1 | BJ92: 1 | BK92: 1 | BL92: 1 | BM92: 1 | BN92: 1 | BO92: 1 | BP92: 1 | BQ92: 1 | BR92: 1 | BS92: 1 | BT92: 1 | BU92: 1 | BV92: 1 | BW92: 1 | BX92: 1 | BY92: 1 | BZ92: 1 | CA92: 1 | CB92: 1 | CC92: 1 | CD92: 1 | CE92: 1 | CF92: 1 | CG92: 1 | CH92: 1 | CI92: 1 | CJ92: 1 | CK92: 1 | CL92: 1 | CM92: 1 | CN92: 1 | CO92: 1 | CP92: 1 | CQ92: 1 | CR92: 1 | CS92: 1 | CT92: 1 | CU92: 1 | CV92: 1 | CW92: 1 | CX92: 1 | CY92: 1 | CZ92: 1 | DA92: 1 | DB92: 1 | DC92: 1 | DD92: 1 | DE92: 1 | DF92: 1 | DG92: 1 | DH92: 1 | DI92: 1 | DJ92: 1 | DK92: 1 | DL92: 1 | DM92: 1 | DN92: 1 | DO92: 1 | DP92: 1 | DQ92: 1 | DR92: 1 | DS92: 1 | DT92: 1 | DU92: 1 | DV92: 1 | DW92: 1 | DX92: 1 | DY92: 1 | DZ92: 1 | EA92: 1 | EB92: 1 | EC92: 1 | ED92: 1 | EE92: 1 | EF92: 1 | EG92: 1 | EH92: 1 | EI92: 1 | EJ92: 1 | EK92: 1 | EL92: 1 | EM92: 1 | EN92: 1 | EO92: 1 | EP92: 1 | EQ92: 1 | ER92: 1 | ES92: 1 | ET92: 1 | EU92: 1 | EV92: 1 | EW92: 1 | EX92: 1 | EY92: Assumed low ecosystem carbon richness (grassland) for all California fields
C93: 1.6.1.2 Moderate carbon richness (mixed) | E93: NA | G93: 1 | H93: 0 | I93: 0 | J93: 0 | K93: 0 | L93: 0 | M93: 0 | N93: 0 | O93: 0 | P93: 0 | Q93: 0 | R93: 0 | S93: 0 | U93: 0 | V93: 0 | W93: 0 | X93: 0 | Y93: 0 | Z93: 0 | AA93: 0 | AB93: 0 | AC93: 0 | AD93: 0 | AE93: 0 | AF93: 0 | AG93: 0 | AH93: 0 | AI93: 0 | AJ93: 0 | AK93: 0 | AL93: 0 | AM93: 0 | AN93: 0 | AO93: 0 | AP93: 0 | AQ93: 0 | AR93: 0 | AS93: 0 | AT93: 0 | AU93: 0 | AV93: 0 | AW93: 0 | AY93: 0 | AZ93: 0 | BA93: 0 | BB93: 0 | BC93: 0 | BD93: 0 | BE93: 0 | BF93: 0 | BG93: 0 | BH93: 0 | BI93: 0 | BJ93: 0 | BK93: 0 | BL93: 0 | BM93: 0 | BN93: 0 | BO93: 0 | BP93: 0 | BQ93: 0 | BR93: 0 | BS93: 0 | BT93: 0 | BU93: 0 | BV93: 0 | BW93: 0 | BX93: 0 | BY93: 0 | BZ93: 0 | CA93: 0 | CB93: 0 | CC93: 0 | CD93: 0 | CE93: 0 | CF93: 0 | CG93: 0 | CH93: 0 | CI93: 0 | CJ93: 0 | CK93: 0 | CL93: 0 | CM93: 0 | CN93: 0 | CO93: 0 | CP93: 0 | CQ93: 0 | CR93: 0 | CS93: 0 | CT93: 0 | CU93: 0 | CV93: 0 | CW93: 0 | CX93: 0 | CY93: 0 | CZ93: 0 | DA93: 0 | DB93: 0 | DC93: 0 | DD93: 0 | DE93: 0 | DF93: 0 | DG93: 0 | DH93: 0 | DI93: 0 | DJ93: 0 | DK93: 0 | DL93: 0 | DM93: 0 | DN93: 0 | DO93: 0 | DP93: 0 | DQ93: 0 | DR93: 0 | DS93: 0 | DT93: 0 | DU93: 0 | DV93: 0 | DW93: 0 | DX93: 0 | DY93: 0 | DZ93: 0 | EA93: 0 | EB93: 0 | EC93: 0 | ED93: 0 | EE93: 0 | EF93: 0 | EG93: 0 | EH93: 0 | EI93: 0 | EJ93: 0 | EK93: 0 | EL93: 0 | EM93: 0 | EN93: 0 | EO93: 0 | EP93: 0 | EQ93: 0 | ER93: 0 | ES93: 0 | ET93: 0 | EU93: 0 | EV93: 0 | EW93: 0 | EX93: 0
C94: 1.6.1.3 High carbon richness (forested) | E94: NA | G94: 0 | H94: 0 | I94: 0 | J94: 0 | K94: 0 | L94: 0 | M94: 0 | N94: 0 | O94: 0 | P94: 0 | Q94: 0 | R94: 0 | S94: 0 | U94: 0 | V94: 0 | W94: 0 | X94: 0 | Y94: 0 | Z94: 0 | AA94: 0 | AB94: 0 | AC94: 0 | AD94: 0 | AE94: 0 | AF94: 0 | AG94: 0 | AH94: 0 | AI94: 0 | AJ94: 0 | AK94: 0 | AL94: 0 | AM94: 0 | AN94: 0 | AO94: 0 | AP94: 0 | AQ94: 0 | AR94: 0 | AS94: 0 | AT94: 0 | AU94: 0 | AV94: 0 | AW94: 0 | AY94: 0 | AZ94: 0 | BA94: 0 | BB94: 0 | BC94: 0 | BD94: 0 | BE94: 0 | BF94: 0 | BG94: 0 | BH94: 0 | BI94: 0 | BJ94: 0 | BK94: 0 | BL94: 0 | BM94: 0 | BN94: 0 | BO94: 0 | BP94: 0 | BQ94: 0 | BR94: 0 | BS94: 0 | BT94: 0 | BU94: 0 | BV94: 0 | BW94: 0 | BX94: 0 | BY94: 0 | BZ94: 0 | CA94: 0 | CB94: 0 | CC94: 0 | CD94: 0 | CE94: 0 | CF94: 0 | CG94: 0 | CH94: 0 | CI94: 0 | CJ94: 0 | CK94: 0 | CL94: 0 | CM94: 0 | CN94: 0 | CO94: 0 | CP94: 0 | CQ94: 0 | CR94: 0 | CS94: 0 | CT94: 0 | CU94: 0 | CV94: 0 | CW94: 0 | CX94: 0 | CY94: 0 | CZ94: 0 | DA94: 0 | DB94: 0 | DC94: 0 | DD94: 0 | DE94: 0 | DF94: 0 | DG94: 0 | DH94: 0 | DI94: 0 | DJ94: 0 | DK94: 0 | DL94: 0 | DM94: 0 | DN94: 0 | DO94: 0 | DP94: 0 | DQ94: 0 | DR94: 0 | DS94: 0 | DT94: 0 | DU94: 0 | DV94: 0 | DW94: 0 | DX94: 0 | DY94: 0 | DZ94: 0 | EA94: 0 | EB94: 0 | EC94: 0 | ED94: 0 | EE94: 0 | EF94: 0 | EG94: 0 | EH94: 0 | EI94: 0 | EJ94: 0 | EK94: 0 | EL94: 0 | EM94: 0 | EN94: 0 | EO94: 0 | EP94: 0 | EQ94: 0 | ER94: 0 | ES94: 0 | ET94: 0 | EU94: 0 | EV94: 0 | EW94: 0 | EX94: 0
B95: 1.6.2 Field development intensity
C96: 1.6.2.1 Low intensity development and low oxidation | E96: NA | G96: 0 | H96: 0 | I96: 0 | J96: 0 | K96: 0 | L96: 0 | M96: 0 | N96: 0 | O96: 0 | P96: 0 | Q96: 0 | R96: 0 | S96: 0 | U96: 0 | V96: 0 | W96: 0 | X96: 0 | Y96: 0 | Z96: 0 | AA96: 0 | AB96: 0 | AC96: 0 | AD96: 0 | AE96: 0 | AF96: 0 | AG96: 0 | AH96: 0 | AI96: 0 | AJ96: 0 | AK96: 0 | AL96: 0 | AM96: 0 | AN96: 0 | AO96: 0 | AP96: 0 | AQ96: 0 | AR96: 0 | AS96: 0 | AT96: 0 | AU96: 0 | AV96: 0 | AW96: 0 | AY96: 0 | AZ96: 0 | BA96: 0 | BB96: 0 | BC96: 0 | BD96: 0 | BE96: 0 | BF96: 0 | BG96: 0 | BH96: 0 | BI96: 0 | BJ96: 0 | BK96: 0 | BL96: 0 | BM96: 0 | BN96: 0 | BO96: 0 | BP96: 0 | BQ96: 0 | BR96: 0 | BS96: 0 | BT96: 0 | BU96: 0 | BV96: 0 | BW96: 0 | BX96: 0 | BY96: 0 | BZ96: 0 | CA96: 0 | CB96: 0 | CC96: 0 | CD96: 0 | CE96: 0 | CF96: 0 | CG96: 0 | CH96: 0 | CI96: 0 | CJ96: 0 | CK96: 0 | CL96: 0 | CM96: 0 | CN96: 0 | CO96: 0 | CP96: 0 | CQ96: 0 | CR96: 0 | CS96: 0 | CT96: 0 | CU96: 0 | CV96: 0 | CW96: 0 | CX96: 0 | CY96: 0 | CZ96: 0 | DA96: 0 | DB96: 0 | DC96: 0 | DD96: 0 | DE96: 0 | DF96: 0 | DG96: 0 | DH96: 0 | DI96: 0 | DJ96: 0 | DK96: 0 | DL96: 0 | DM96: 0 | DN96: 0 | DO96: 0 | DP96: 0 | DQ96: 0 | DR96: 0 | DS96: 0 | DT96: 0 | DU96: 0 | DV96: 0 | DW96: 0 | DX96: 0 | DY96: 0 | DZ96: 0 | EA96: 0 | EB96: 0 | EC96: 0 | ED96: 0 | EE96: 0 | EF96: 0 | EG96: 0 | EH96: 0 | EI96: 0 | EJ96: 0 | EK96: 0 | EL96: 0 | EM96: 0 | EN96: 0 | EO96: 0 | EP96: 0 | EQ96: 0 | ER96: 0 | ES96: 0 | ET96: 0 | EU96: 0 | EV96: 0 | EW96: 0 | EX96: 0
C97: 1.6.2.2 Moderate intensity development and moderate oxidation | E97: NA | G97: 1 | H97: 1 | I97: 1 | J97: 1 | K97: 1 | L97: 1 | M97: 1 | N97: 1 | O97: 1 | P97: 1 | Q97: 1 | R97: 1 | S97: 1 | U97: 1 | V97: 1 | W97: 1 | X97: 1 | Y97: 1 | Z97: 1 | AA97: 1 | AB97: 1 | AC97: 1 | AD97: 1 | AE97: 1 | AF97: 1 | AG97: 1 | AH97: 1 | AI97: 1 | AJ97: 1 | AK97: 1 | AL97: 1 | AM97: 1 | AN97: 1 | AO97: 1 | AP97: 1 | AQ97: 1 | AR97: 1 | AS97: 1 | AT97: 1 | AU97: 1 | AV97: 1 | AW97: 1 | AY97: 1 | AZ97: 1 | BA97: 1 | BB97: 1 | BC97: 1 | BD97: 1 | BE97: 1 | BF97: 1 | BG97: 1 | BH97: 1 | BI97: 1 | BJ97: 1 | BK97: 1 | BL97: 1 | BM97: 1 | BN97: 1 | BO97: 1 | BP97: 1 | BQ97: 1 | BR97: 1 | BS97: 1 | BT97: 1 | BU97: 1 | BV97: 1 | BW97: 1 | BX97: 1 | BY97: 1 | BZ97: 1 | CA97: 1 | CB97: 1 | CC97: 1 | CD97: 1 | CE97: 1 | CF97: 1 | CG97: 1 | CH97: 1 | CI97: 1 | CJ97: 1 | CK97: 1 | CL97: 1 | CM97: 1 | CN97: 1 | CO97: 1 | CP97: 1 | CQ97: 1 | CR97: 1 | CS97: 1 | CT97: 1 | CU97: 1 | CV97: 1 | CW97: 1 | CX97: 1 | CY97: 1 | CZ97: 1 | DA97: 1 | DB97: 1 | DC97: 1 | DD97: 1 | DE97: 1 | DF97: 1 | DG97: 1 | DH97: 1 | DI97: 1 | DJ97: 1 | DK97: 1 | DL97: 1 | DM97: 1 | DN97: 1 | DO97: 1 | DP97: 1 | DQ97: 1 | DR97: 1 | DS97: 1 | DT97: 1 | DU97: 1 | DV97: 1 | DW97: 1 | DX97: 1 | DY97: 1 | DZ97: 1 | EA97: 1 | EB97: 1 | EC97: 1 | ED97: 1 | EE97: 1 | EF97: 1 | EG97: 1 | EH97: 1 | EI97: 1 | EJ97: 1 | EK97: 1 | EL97: 1 | EM97: 1 | EN97: 1 | EO97: 1 | EP97: 1 | EQ97: 1 | ER97: 1 | ES97: 1 | ET97: 1 | EU97: 1 | EV97: 1 | EW97: 1 | EX97: 1 | EY97: Assumed moderate development intensity for all California fields
C98: 1.6.2.3 High intensity development and high oxidation | E98: NA | G98: 0 | H98: 0 | I98: 0 | J98: 0 | K98: 0 | L98: 0 | M98: 0 | N98: 0 | O98: 0 | P98: 0 | Q98: 0 | R98: 0 | S98: 0 | U98: 0 | V98: 0 | W98: 0 | X98: 0 | Y98: 0 | Z98: 0 | AA98: 0 | AB98: 0 | AC98: 0 | AD98: 0 | AE98: 0 | AF98: 0 | AG98: 0 | AH98: 0 | AI98: 0 | AJ98: 0 | AK98: 0 | AL98: 0 | AM98: 0 | AN98: 0 | AO98: 0 | AP98: 0 | AQ98: 0 | AR98: 0 | AS98: 0 | AT98: 0 | AU98: 0 | AV98: 0 | AW98: 0 | AY98: 0 | AZ98: 0 | BA98: 0 | BB98: 0 | BC98: 0 | BD98: 0 | BE98: 0 | BF98: 0 | BG98: 0 | BH98: 0 | BI98: 0 | BJ98: 0 | BK98: 0 | BL98: 0 | BM98: 0 | BN98: 0 | BO98: 0 | BP98: 0 | BQ98: 0 | BR98: 0 | BS98: 0 | BT98: 0 | BU98: 0 | BV98: 0 | BW98: 0 | BX98: 0 | BY98: 0 | BZ98: 0 | CA98: 0 | CB98: 0 | CC98: 0 | CD98: 0 | CE98: 0 | CF98: 0 | CG98: 0 | CH98: 0 | CI98: 0 | CJ98: 0 | CK98: 0 | CL98: 0 | CM98: 0 | CN98: 0 | CO98: 0 | CP98: 0 | CQ98: 0 | CR98: 0 | CS98: 0 | CT98: 0 | CU98: 0 | CV98: 0 | CW98: 0 | CX98: 0 | CY98: 0 | CZ98: 0 | DA98: 0 | DB98: 0 | DC98: 0 | DD98: 0 | DE98: 0 | DF98: 0 | DG98: 0 | DH98: 0 | DI98: 0 | DJ98: 0 | DK98: 0 | DL98: 0 | DM98: 0 | DN98: 0 | DO98: 0 | DP98: 0 | DQ98: 0 | DR98: 0 | DS98: 0 | DT98: 0 | DU98: 0 | DV98: 0 | DW98: 0 | DX98: 0 | DY98: 0 | DZ98: 0 | EA98: 0 | EB98: 0 | EC98: 0 | ED98: 0 | EE98: 0 | EF98: 0 | EG98: 0 | EH98: 0 | EI98: 0 | EJ98: 0 | EK98: 0 | EL98: 0 | EM98: 0 | EN98: 0 | EO98: 0 | EP98: 0 | EQ98: 0 | ER98: 0 | ES98: 0 | ET98: 0 | EU98: 0 | EV98: 0 | EW98: 0 | EX98: 0
A100: 1.8 Crude oil transport
B101: 1.8.1 Fraction of oil transported by each mode
C102: 1.8.1.1 Ocean tanker | E102: [-] | G102: 1 | H102: 0 | I102: 0 | J102: 0 | K102: 0 | L102: 0 | M102: 0 | N102: 0 | O102: 0 | P102: 0 | Q102: 0 | R102: 0 | S102: 0 | T102: 0 | U102: 0 | V102: 0 | W102: 0 | X102: 0 | Y102: 0 | Z102: 0 | AA102: 0 | AB102: 0 | AC102: 0 | AD102: 0 | AE102: 0 | AF102: 0 | AG102: 0 | AH102: 0 | AI102: 0 | AJ102: 0 | AK102: 0 | AL102: 0 | AM102: 0 | AN102: 0 | AO102: 0 | AP102: 0 | AQ102: 0 | AR102: 0 | AS102: 0 | AT102: 0 | AU102: 0 | AV102: 0 | AW102: 0 | AX102: 0 | AY102: 0 | AZ102: 0 | BA102: 0 | BB102: 0 | BC102: 0 | BD102: 0 | BE102: 0 | BF102: 0 | BG102: 0 | BH102: 0 | BI102: 0 | BJ102: 0 | BK102: 0 | BL102: 0 | BM102: 0 | BN102: 0 | BO102: 0 | BP102: 0 | BQ102: 0 | BR102: 0 | BS102: 0 | BT102: 0 | BU102: 0 | BV102: 0 | BW102: 0 | BX102: 0 | BY102: 0 | BZ102: 0 | CA102: 0 | CB102: 0 | CC102: 0 | CD102: 0 | CE102: 0 | CF102: 0 | CG102: 0 | CH102: 0 | CI102: 0 | CJ102: 0 | CK102: 0 | CL102: 0 | CM102: 0 | CN102: 0 | CO102: 0 | CP102: 0 | CQ102: 0 | CR102: 0 | CS102: 0 | CT102: 0 | CU102: 0 | CV102: 0 | CW102: 0 | CX102: 0 | CY102: 0 | CZ102: 0 | DA102: 0 | DB102: 0 | DC102: 0 | DD102: 0 | DE102: 0 | DF102: 0 | DG102: 0 | DH102: 0 | DI102: 0 | DJ102: 0 | DK102: 0 | DL102: 0 | DM102: 0 | DN102: 0 | DO102: 0 | DP102: 0 | DQ102: 0 | DR102: 0 | DS102: 0 | DT102: 0 | DU102: 0 | DV102: 0 | DW102: 0 | DX102: 0 | DY102: 0 | DZ102: 0 | EA102: 0 | EB102: 0 | EC102: 0 | ED102: 0 | EE102: 0 | EF102: 0 | EG102: 0 | EH102: 0 | EI102: 0 | EJ102: 0 | EK102: 0 | EL102: 0 | EM102: 0 | EN102: 0 | EO102: 0 | EP102: 0 | EQ102: 0 | ER102: 0 | ES102: 0 | ET102: 0 | EU102: 0 | EV102: 0 | EW102: 0 | EX102: 0
C103: 1.8.1.2 Barge | E103: [-] | G103: 0 | H103: 0 | I103: 0 | J103: 0 | K103: 0 | L103: 0 | M103: 0 | N103: 0 | O103: 0 | P103: 0 | Q103: 0 | R103: 0 | S103: 0 | T103: 0 | U103: 0 | V103: 0 | W103: 0 | X103: 0 | Y103: 0 | Z103: 0 | AA103: 0 | AB103: 0 | AC103: 0 | AD103: 0 | AE103: 0 | AF103: 0 | AG103: 0 | AH103: 0 | AI103: 0 | AJ103: 0 | AK103: 0 | AL103: 0 | AM103: 0 | AN103: 0 | AO103: 0 | AP103: 0 | AQ103: 0 | AR103: 0 | AS103: 0 | AT103: 0 | AU103: 0 | AV103: 0 | AW103: 0 | AX103: 0 | AY103: 0 | AZ103: 0 | BA103: 0 | BB103: 0 | BC103: 0 | BD103: 0 | BE103: 0 | BF103: 0 | BG103: 0 | BH103: 0 | BI103: 0 | BJ103: 0 | BK103: 0 | BL103: 0 | BM103: 0 | BN103: 0 | BO103: 0 | BP103: 0 | BQ103: 0 | BR103: 0 | BS103: 0 | BT103: 0 | BU103: 0 | BV103: 0 | BW103: 0 | BX103: 0 | BY103: 0 | BZ103: 0 | CA103: 0 | CB103: 0 | CC103: 0 | CD103: 0 | CE103: 0 | CF103: 0 | CG103: 0 | CH103: 0 | CI103: 0 | CJ103: 0 | CK103: 0 | CL103: 0 | CM103: 0 | CN103: 0 | CO103: 0 | CP103: 0 | CQ103: 0 | CR103: 0 | CS103: 0 | CT103: 0 | CU103: 0 | CV103: 0 | CW103: 0 | CX103: 0 | CY103: 0 | CZ103: 0 | DA103: 0 | DB103: 0 | DC103: 0 | DD103: 0 | DE103: 0 | DF103: 0 | DG103: 0 | DH103: 0 | DI103: 0 | DJ103: 0 | DK103: 0 | DL103: 0 | DM103: 0 | DN103: 0 | DO103: 0 | DP103: 0 | DQ103: 0 | DR103: 0 | DS103: 0 | DT103: 0 | DU103: 0 | DV103: 0 | DW103: 0 | DX103: 0 | DY103: 0 | DZ103: 0 | EA103: 0 | EB103: 0 | EC103: 0 | ED103: 0 | EE103: 0 | EF103: 0 | EG103: 0 | EH103: 0 | EI103: 0 | EJ103: 0 | EK103: 0 | EL103: 0 | EM103: 0 | EN103: 0 | EO103: 0 | EP103: 0 | EQ103: 0 | ER103: 0 | ES103: 0 | ET103: 0 | EU103: 0 | EV103: 0 | EW103: 0 | EX103: 0
C104: 1.8.1.3 Pipeline | E104: [-] | G104: 1 | H104: 1 | I104: 1 | J104: 1 | K104: 1 | L104: 1 | M104: 1 | N104: 1 | O104: 1 | P104: 1 | Q104: 1 | R104: 1 | S104: 1 | T104: 1 | U104: 1 | V104: 1 | W104: 1 | X104: 1 | Y104: 1 | Z104: 1 | AA104: 1 | AB104: 1 | AC104: 1 | AD104: 1 | AE104: 1 | AF104: 1 | AG104: 1 | AH104: 1 | AI104: 1 | AJ104: 1 | AK104: 1 | AL104: 1 | AM104: 1 | AN104: 1 | AO104: 1 | AP104: 1 | AQ104: 1 | AR104: 1 | AS104: 1 | AT104: 1 | AU104: 1 | AV104: 1 | AW104: 1 | AX104: 1 | AY104: 1 | AZ104: 1 | BA104: 1 | BB104: 1 | BC104: 1 | BD104: 1 | BE104: 1 | BF104: 1 | BG104: 1 | BH104: 1 | BI104: 1 | BJ104: 1 | BK104: 1 | BL104: 1 | BM104: 1 | BN104: 1 | BO104: 1 | BP104: 1 | BQ104: 1 | BR104: 1 | BS104: 1 | BT104: 1 | BU104: 1 | BV104: 1 | BW104: 1 | BX104: 1 | BY104: 1 | BZ104: 1 | CA104: 1 | CB104: 1 | CC104: 1 | CD104: 1 | CE104: 1 | CF104: 1 | CG104: 1 | CH104: 1 | CI104: 1 | CJ104: 1 | CK104: 1 | CL104: 1 | CM104: 1 | CN104: 1 | CO104: 1 | CP104: 1 | CQ104: 1 | CR104: 1 | CS104: 1 | CT104: 1 | CU104: 1 | CV104: 1 | CW104: 1 | CX104: 1 | CY104: 1 | CZ104: 1 | DA104: 1 | DB104: 1 | DC104: 1 | DD104: 1 | DE104: 1 | DF104: 1 | DG104: 1 | DH104: 1 | DI104: 1 | DJ104: 1 | DK104: 1 | DL104: 1 | DM104: 1 | DN104: 1 | DO104: 1 | DP104: 1 | DQ104: 1 | DR104: 1 | DS104: 1 | DT104: 1 | DU104: 1 | DV104: 1 | DW104: 1 | DX104: 1 | DY104: 1 | DZ104: 1 | EA104: 1 | EB104: 1 | EC104: 1 | ED104: 1 | EE104: 1 | EF104: 1 | EG104: 1 | EH104: 1 | EI104: 1 | EJ104: 1 | EK104: 1 | EL104: 1 | EM104: 1 | EN104: 1 | EO104: 1 | EP104: 1 | EQ104: 1 | ER104: 1 | ES104: 1 | ET104: 1 | EU104: 1 | EV104: 1 | EW104: 1 | EX104: 1 | EY104: Assumed pipeline transport for all California fields
C105: 1.8.1.4 Rail | E105: [-] | G105: 0 | H105: 0 | I105: 0 | J105: 0 | K105: 0 | L105: 0 | M105: 0 | N105: 0 | O105: 0 | P105: 0 | Q105: 0 | R105: 0 | S105: 0 | T105: 0 | U105: 0 | V105: 0 | W105: 0 | X105: 0 | Y105: 0 | Z105: 0 | AA105: 0 | AB105: 0 | AC105: 0 | AD105: 0 | AE105: 0 | AF105: 0 | AG105: 0 | AH105: 0 | AI105: 0 | AJ105: 0 | AK105: 0 | AL105: 0 | AM105: 0 | AN105: 0 | AO105: 0 | AP105: 0 | AQ105: 0 | AR105: 0 | AS105: 0 | AT105: 0 | AU105: 0 | AV105: 0 | AW105: 0 | AX105: 0 | AY105: 0 | AZ105: 0 | BA105: 0 | BB105: 0 | BC105: 0 | BD105: 0 | BE105: 0 | BF105: 0 | BG105: 0 | BH105: 0 | BI105: 0 | BJ105: 0 | BK105: 0 | BL105: 0 | BM105: 0 | BN105: 0 | BO105: 0 | BP105: 0 | BQ105: 0 | BR105: 0 | BS105: 0 | BT105: 0 | BU105: 0 | BV105: 0 | BW105: 0 | BX105: 0 | BY105: 0 | BZ105: 0 | CA105: 0 | CB105: 0 | CC105: 0 | CD105: 0 | CE105: 0 | CF105: 0 | CG105: 0 | CH105: 0 | CI105: 0 | CJ105: 0 | CK105: 0 | CL105: 0 | CM105: 0 | CN105: 0 | CO105: 0 | CP105: 0 | CQ105: 0 | CR105: 0 | CS105: 0 | CT105: 0 | CU105: 0 | CV105: 0 | CW105: 0 | CX105: 0 | CY105: 0 | CZ105: 0 | DA105: 0 | DB105: 0 | DC105: 0 | DD105: 0 | DE105: 0 | DF105: 0 | DG105: 0 | DH105: 0 | DI105: 0 | DJ105: 0 | DK105: 0 | DL105: 0 | DM105: 0 | DN105: 0 | DO105: 0 | DP105: 0 | DQ105: 0 | DR105: 0 | DS105: 0 | DT105: 0 | DU105: 0 | DV105: 0 | DW105: 0 | DX105: 0 | DY105: 0 | DZ105: 0 | EA105: 0 | EB105: 0 | EC105: 0 | ED105: 0 | EE105: 0 | EF105: 0 | EG105: 0 | EH105: 0 | EI105: 0 | EJ105: 0 | EK105: 0 | EL105: 0 | EM105: 0 | EN105: 0 | EO105: 0 | EP105: 0 | EQ105: 0 | ER105: 0 | ES105: 0 | ET105: 0 | EU105: 0 | EV105: 0 | EW105: 0 | EX105: 0
C106: 1.8.1.5 Truck | G106: 0
B107: 1.8.2 Transport distance (one way)
C108: 1.8.2.1 Ocean tanker | E108: Mile | G108: 5082 | H108: 0 | I108: 0 | J108: 0 | K108: 0 | L108: 0 | M108: 0 | N108: 0 | O108: 0 | P108: 0 | Q108: 0 | R108: 0 | S108: 0 | T108: 0 | U108: 0 | V108: 0 | W108: 0 | X108: 0 | Y108: 0 | Z108: 0 | AA108: 0 | AB108: 0 | AC108: 0 | AD108: 0 | AE108: 0 | AF108: 0 | AG108: 0 | AH108: 0 | AI108: 0 | AJ108: 0 | AK108: 0 | AL108: 0 | AM108: 0 | AN108: 0 | AO108: 0 | AP108: 0 | AQ108: 0 | AR108: 0 | AS108: 0 | AT108: 0 | AU108: 0 | AV108: 0 | AW108: 0 | AX108: 0 | AY108: 0 | AZ108: 0 | BA108: 0 | BB108: 0 | BC108: 0 | BD108: 0 | BE108: 0 | BF108: 0 | BG108: 0 | BH108: 0 | BI108: 0 | BJ108: 0 | BK108: 0 | BL108: 0 | BM108: 0 | BN108: 0 | BO108: 0 | BP108: 0 | BQ108: 0 | BR108: 0 | BS108: 0 | BT108: 0 | BU108: 0 | BV108: 0 | BW108: 0 | BX108: 0 | BY108: 0 | BZ108: 0 | CA108: 0 | CB108: 0 | CC108: 0 | CD108: 0 | CE108: 0 | CF108: 0 | CG108: 0 | CH108: 0 | CI108: 0 | CJ108: 0 | CK108: 0 | CL108: 0 | CM108: 0 | CN108: 0 | CO108: 0 | CP108: 0 | CQ108: 0 | CR108: 0 | CS108: 0 | CT108: 0 | CU108: 0 | CV108: 0 | CW108: 0 | CX108: 0 | CY108: 0 | CZ108: 0 | DA108: 0 | DB108: 0 | DC108: 0 | DD108: 0 | DE108: 0 | DF108: 0 | DG108: 0 | DH108: 0 | DI108: 0 | DJ108: 0 | DK108: 0 | DL108: 0 | DM108: 0 | DN108: 0 | DO108: 0 | DP108: 0 | DQ108: 0 | DR108: 0 | DS108: 0 | DT108: 0 | DU108: 0 | DV108: 0 | DW108: 0 | DX108: 0 | DY108: 0 | DZ108: 0 | EA108: 0 | EB108: 0 | EC108: 0 | ED108: 0 | EE108: 0 | EF108: 0 | EG108: 0 | EH108: 0 | EI108: 0 | EJ108: 0 | EK108: 0 | EL108: 0 | EM108: 0 | EN108: 0 | EO108: 0 | EP108: 0 | EQ108: 0 | ER108: 0 | ES108: 0 | ET108: 0 | EU108: 0 | EV108: 0 | EW108: 0 | EX108: 0
C109: 1.8.2.2 Barge | E109: Mile | G109: 500 | H109: 0 | I109: 0 | J109: 0 | K109: 0 | L109: 0 | M109: 0 | N109: 0 | O109: 0 | P109: 0 | Q109: 0 | R109: 0 | S109: 0 | T109: 0 | U109: 0 | V109: 0 | W109: 0 | X109: 0 | Y109: 0 | Z109: 0 | AA109: 0 | AB109: 0 | AC109: 0 | AD109: 0 | AE109: 0 | AF109: 0 | AG109: 0 | AH109: 0 | AI109: 0 | AJ109: 0 | AK109: 0 | AL109: 0 | AM109: 0 | AN109: 0 | AO109: 0 | AP109: 0 | AQ109: 0 | AR109: 0 | AS109: 0 | AT109: 0 | AU109: 0 | AV109: 0 | AW109: 0 | AX109: 0 | AY109: 0 | AZ109: 0 | BA109: 0 | BB109: 0 | BC109: 0 | BD109: 0 | BE109: 0 | BF109: 0 | BG109: 0 | BH109: 0 | BI109: 0 | BJ109: 0 | BK109: 0 | BL109: 0 | BM109: 0 | BN109: 0 | BO109: 0 | BP109: 0 | BQ109: 0 | BR109: 0 | BS109: 0 | BT109: 0 | BU109: 0 | BV109: 0 | BW109: 0 | BX109: 0 | BY109: 0 | BZ109: 0 | CA109: 0 | CB109: 0 | CC109: 0 | CD109: 0 | CE109: 0 | CF109: 0 | CG109: 0 | CH109: 0 | CI109: 0 | CJ109: 0 | CK109: 0 | CL109: 0 | CM109: 0 | CN109: 0 | CO109: 0 | CP109: 0 | CQ109: 0 | CR109: 0 | CS109: 0 | CT109: 0 | CU109: 0 | CV109: 0 | CW109: 0 | CX109: 0 | CY109: 0 | CZ109: 0 | DA109: 0 | DB109: 0 | DC109: 0 | DD109: 0 | DE109: 0 | DF109: 0 | DG109: 0 | DH109: 0 | DI109: 0 | DJ109: 0 | DK109: 0 | DL109: 0 | DM109: 0 | DN109: 0 | DO109: 0 | DP109: 0 | DQ109: 0 | DR109: 0 | DS109: 0 | DT109: 0 | DU109: 0 | DV109: 0 | DW109: 0 | DX109: 0 | DY109: 0 | DZ109: 0 | EA109: 0 | EB109: 0 | EC109: 0 | ED109: 0 | EE109: 0 | EF109: 0 | EG109: 0 | EH109: 0 | EI109: 0 | EJ109: 0 | EK109: 0 | EL109: 0 | EM109: 0 | EN109: 0 | EO109: 0 | EP109: 0 | EQ109: 0 | ER109: 0 | ES109: 0 | ET109: 0 | EU109: 0 | EV109: 0 | EW109: 0 | EX109: 0
C110: 1.8.2.3 Pipeline | E110: Mile | G110: 750 | H110: 100 | I110: 100 | J110: 100 | K110: 100 | L110: 100 | M110: 100 | N110: 100 | O110: 100 | P110: 100 | Q110: 100 | R110: 100 | S110: 100 | T110: 100 | U110: 100 | V110: 100 | W110: 100 | X110: 100 | Y110: 100 | Z110: 100 | AA110: 100 | AB110: 100 | AC110: 100 | AD110: 100 | AE110: 100 | AF110: 100 | AG110: 100 | AH110: 100 | AI110: 100 | AJ110: 100 | AK110: 100 | AL110: 100 | AM110: 100 | AN110: 100 | AO110: 100 | AP110: 100 | AQ110: 100 | AR110: 100 | AS110: 100 | AT110: 100 | AU110: 100 | AV110: 100 | AW110: 100 | AX110: 100 | AY110: 100 | AZ110: 100 | BA110: 100 | BB110: 100 | BC110: 100 | BD110: 100 | BE110: 100 | BF110: 100 | BG110: 100 | BH110: 100 | BI110: 100 | BJ110: 100 | BK110: 100 | BL110: 100 | BM110: 100 | BN110: 100 | BO110: 100 | BP110: 100 | BQ110: 100 | BR110: 100 | BS110: 100 | BT110: 100 | BU110: 100 | BV110: 100 | BW110: 100 | BX110: 100 | BY110: 100 | BZ110: 100 | CA110: 100 | CB110: 100 | CC110: 100 | CD110: 100 | CE110: 100 | CF110: 100 | CG110: 100 | CH110: 100 | CI110: 100 | CJ110: 100 | CK110: 100 | CL110: 100 | CM110: 100 | CN110: 100 | CO110: 100 | CP110: 100 | CQ110: 100 | CR110: 100 | CS110: 100 | CT110: 100 | CU110: 100 | CV110: 100 | CW110: 100 | CX110: 100 | CY110: 100 | CZ110: 100 | DA110: 100 | DB110: 100 | DC110: 100 | DD110: 100 | DE110: 100 | DF110: 100 | DG110: 100 | DH110: 100 | DI110: 100 | DJ110: 100 | DK110: 100 | DL110: 100 | DM110: 100 | DN110: 100 | DO110: 100 | DP110: 100 | DQ110: 100 | DR110: 100 | DS110: 100 | DT110: 100 | DU110: 100 | DV110: 100 | DW110: 100 | DX110: 100 | DY110: 100 | DZ110: 100 | EA110: 100 | EB110: 100 | EC110: 100 | ED110: 100 | EE110: 100 | EF110: 100 | EG110: 100 | EH110: 100 | EI110: 100 | EJ110: 100 | EK110: 100 | EL110: 100 | EM110: 100 | EN110: 100 | EO110: 100 | EP110: 100 | EQ110: 100 | ER110: 100 | ES110: 100 | ET110: 100 | EU110: 100 | EV110: 100 | EW110: 100 | EX110: 100 | EY110: Assumed 100 mile transport distance for all California fields
C111: 1.8.2.4 Rail | E111: Mile | G111: 800 | H111: 0 | I111: 0 | J111: 0 | K111: 0 | L111: 0 | M111: 0 | N111: 0 | O111: 0 | P111: 0 | Q111: 0 | R111: 0 | S111: 0 | T111: 0 | U111: 0 | V111: 0 | W111: 0 | X111: 0 | Y111: 0 | Z111: 0 | AA111: 0 | AB111: 0 | AC111: 0 | AD111: 0 | AE111: 0 | AF111: 0 | AG111: 0 | AH111: 0 | AI111: 0 | AJ111: 0 | AK111: 0 | AL111: 0 | AM111: 0 | AN111: 0 | AO111: 0 | AP111: 0 | AQ111: 0 | AR111: 0 | AS111: 0 | AT111: 0 | AU111: 0 | AV111: 0 | AW111: 0 | AX111: 0 | AY111: 0 | AZ111: 0 | BA111: 0 | BB111: 0 | BC111: 0 | BD111: 0 | BE111: 0 | BF111: 0 | BG111: 0 | BH111: 0 | BI111: 0 | BJ111: 0 | BK111: 0 | BL111: 0 | BM111: 0 | BN111: 0 | BO111: 0 | BP111: 0 | BQ111: 0 | BR111: 0 | BS111: 0 | BT111: 0 | BU111: 0 | BV111: 0 | BW111: 0 | BX111: 0 | BY111: 0 | BZ111: 0 | CA111: 0 | CB111: 0 | CC111: 0 | CD111: 0 | CE111: 0 | CF111: 0 | CG111: 0 | CH111: 0 | CI111: 0 | CJ111: 0 | CK111: 0 | CL111: 0 | CM111: 0 | CN111: 0 | CO111: 0 | CP111: 0 | CQ111: 0 | CR111: 0 | CS111: 0 | CT111: 0 | CU111: 0 | CV111: 0 | CW111: 0 | CX111: 0 | CY111: 0 | CZ111: 0 | DA111: 0 | DB111: 0 | DC111: 0 | DD111: 0 | DE111: 0 | DF111: 0 | DG111: 0 | DH111: 0 | DI111: 0 | DJ111: 0 | DK111: 0 | DL111: 0 | DM111: 0 | DN111: 0 | DO111: 0 | DP111: 0 | DQ111: 0 | DR111: 0 | DS111: 0 | DT111: 0 | DU111: 0 | DV111: 0 | DW111: 0 | DX111: 0 | DY111: 0 | DZ111: 0 | EA111: 0 | EB111: 0 | EC111: 0 | ED111: 0 | EE111: 0 | EF111: 0 | EG111: 0 | EH111: 0 | EI111: 0 | EJ111: 0 | EK111: 0 | EL111: 0 | EM111: 0 | EN111: 0 | EO111: 0 | EP111: 0 | EQ111: 0 | ER111: 0 | ES111: 0 | ET111: 0 | EU111: 0 | EV111: 0 | EW111: 0 | EX111: 0
C112: 1.8.2.5 Truck | G112: 100 | H112: 0 | I112: 0 | J112: 0 | K112: 0 | L112: 0 | M112: 0 | N112: 0 | O112: 0 | P112: 0 | Q112: 0 | R112: 0 | S112: 0 | T112: 0 | U112: 0 | V112: 0 | W112: 0 | X112: 0 | Y112: 0 | Z112: 0 | AA112: 0 | AB112: 0 | AC112: 0 | AD112: 0 | AE112: 0 | AF112: 0 | AG112: 0 | AH112: 0 | AI112: 0 | AJ112: 0 | AK112: 0 | AL112: 0 | AM112: 0 | AN112: 0 | AO112: 0 | AP112: 0 | AQ112: 0 | AR112: 0 | AS112: 0 | AT112: 0 | AU112: 0 | AV112: 0 | AW112: 0 | AX112: 0 | AY112: 0 | AZ112: 0 | BA112: 0 | BB112: 0 | BC112: 0 | BD112: 0 | BE112: 0 | BF112: 0 | BG112: 0 | BH112: 0 | BI112: 0 | BJ112: 0 | BK112: 0 | BL112: 0 | BM112: 0 | BN112: 0 | BO112: 0 | BP112: 0 | BQ112: 0 | BR112: 0 | BS112: 0 | BT112: 0 | BU112: 0 | BV112: 0 | BW112: 0 | BX112: 0 | BY112: 0 | BZ112: 0 | CA112: 0 | CB112: 0 | CC112: 0 | CD112: 0 | CE112: 0 | CF112: 0 | CG112: 0 | CH112: 0 | CI112: 0 | CJ112: 0 | CK112: 0 | CL112: 0 | CM112: 0 | CN112: 0 | CO112: 0 | CP112: 0 | CQ112: 0 | CR112: 0 | CS112: 0 | CT112: 0 | CU112: 0 | CV112: 0 | CW112: 0 | CX112: 0 | CY112: 0 | CZ112: 0 | DA112: 0 | DB112: 0 | DC112: 0 | DD112: 0 | DE112: 0 | DF112: 0 | DG112: 0 | DH112: 0 | DI112: 0 | DJ112: 0 | DK112: 0 | DL112: 0 | DM112: 0 | DN112: 0 | DO112: 0 | DP112: 0 | DQ112: 0 | DR112: 0 | DS112: 0 | DT112: 0 | DU112: 0 | DV112: 0 | DW112: 0 | DX112: 0 | DY112: 0 | DZ112: 0 | EA112: 0 | EB112: 0 | EC112: 0 | ED112: 0 | EE112: 0 | EF112: 0 | EG112: 0 | EH112: 0 | EI112: 0 | EJ112: 0 | EK112: 0 | EL112: 0 | EM112: 0 | EN112: 0 | EO112: 0 | EP112: 0 | EQ112: 0 | ER112: 0 | ES112: 0 | ET112: 0 | EU112: 0 | EV112: 0 | EW112: 0 | EX112: 0
B113: 1.8.3 Ocean tanker size, if applicable | E113: Ton | G113: 250000
A115: 1.9 Small sources emissions | E115: gCO2eq/MJ | G115: 0.5

Sheet CA Venting and Fugitives
A1: California-specific venting and fugitive emission factors and device counts
A2: Source: Stephanie Detwiler, California Air Resources Board, 2007 Oil and Gas Industry Survey Results, October 2013.
A4: Gas Dehydrators | E4: Emission Factor (g/MMscf)
D5: Gas Throughput (MSCF/yr)
B6: CO2 (MT/yr) | C6: CH4 (MT/yr) | E6: CO2 | F6: CH4 | G6: Source Tables | H6: Cells Replaced in OPGEE
A7: Venting | B7: 308 | C7: 1975 | D7: 703581432 | E7: =B7*1000000000/D7 -> 437.7602734 | F7: =C7*1000000000/D7 -> 2807.066688 | G7: 11-1 and 11-3 | H7: Emissions Factors G67 and H67
A8: Fugitive | B8: 16567 | C8: 1252 | D8: 703581432 | E8: =B8*1000000000/D8 -> 23546.67029 | F8: =C8*1000000000/D8 -> 1779.467085 | G8: 11-2 and 11-3 | H8: Emissions Factors G96 and H96
A11: Crude Oil Storage Tanks | E11: Emission Factor (g/bbl produced)
D12: Oil Production (bbl/yr)
B13: CO2 (MT/yr) | C13: CH4 (MT/yr) | E13: CO2 | F13: CH4 | G13: Source Tables | H13: Cells Replaced in OPGEE
A14: Venting | B14: 0 | C14: 5 | D14: 234093299 | E14: =B14*1000000/D14 -> 0 | F14: =C14*1000000/D14 -> 0.02135900524 | G14: 19-1 and 2-3
A15: Fugitive | B15: 1084 | C15: 11501 | D15: 234093299 | E15: =B15*1000000/D15 -> 4.630632336 | F15: =C15*1000000/D15 -> 49.12998385 | G15: 19-1 and 2-3
A16: Total V&F | B16: =SUM(B14:B15) -> 1084 | C16: =SUM(C14:C15) -> 11506 | D16: 234093299 | E16: =B16*1000000/D16 -> 4.630632336 | F16: =C16*1000000/D16 -> 49.15134286 | H16: Emissions Factors G70 and H70
A18: High Bleed Pneumatic Device Venting | E18: Emission Factor (g/device*yr)
D19: Number of devices
B20: CO2 (MT/yr) | C20: CH4 (MT/yr) | E20: CO2 | F20: CH4 | G20: Source Tables | H20: Cells Replaced in OPGEE
A21: Continuous | B21: 89 | C21: 4915 | D21: 1151 | E21: =B21*1000000/D21 -> 77324.06603 | F21: =C21*1000000/D21 -> 4270199.826 | G21: 9-2
A22: Intermittent | B22: 69 | C22: 760 | D22: 405 | E22: =B22*1000000/D22 -> 170370.3704 | F22: =C22*1000000/D22 -> 1876543.21 | G22: 9-2
A23: Total | B23: =SUM(B21:B22) -> 158 | C23: =SUM(C21:C22) -> 5675 | D23: =SUM(D21:D22) -> 1556 | E23: =B23*1000000/D23 -> 101542.4165 | F23: =C23*1000000/D23 -> 3647172.237 | H23: Emissions Factors G74 and H74
A25: Low Bleed Pneumatic Device Venting | E25: Emission Factor (g/device*yr)
D26: Number of devices | H26: Cells Replaced in OPGEE
B27: CO2 (MT/yr) | C27: CH4 (MT/yr) | E27: CO2 | F27: CH4 | G27: Source Tables
A28: Low Bleed | B28: 2 | C28: 46 | D28: 50 | E28: =B28*1000000/D28 -> 40000 | F28: =C28*1000000/D28 -> 920000 | G28: 9-2 | H28: Emissions Factors G73 and H73
A31: High Bleed Pneumatic Device Usage Intensity
B32: Number of devices | C32: Oil Production (bbl/yr) | D32: Usage Intensity (device*day/bbl)
E33: Source Tables | F33: Cells Replaced in OPGEE
A34: Continuous | B34: 1151 | C34: 234093299 | D34: =B34*365/C34 -> 0.001794647697 | E34: 9-2 and 2-3
A35: Intermittent | B35: 405 | C35: 234093299 | D35: =B35*365/C35 -> 0.0006314789899 | E35: 9-2 and 2-3
A36: Total | B36: =SUM(B34:B35) -> 1556 | C36: 234093299 | D36: =B36*365/C36 -> 0.002426126687 | F36: Venting and Fugitives M367 and N367
A38: Low Bleed Pneumatic Device Usage Intensity
B39: Number of devices | C39: Oil Production (bbl/yr) | D39: Usage Intensity (device*day/bbl) | F39: Cells Replaced in OPGEE
E40: Source Tables
A41: Total | B41: 50 | C41: 234093299 | D41: =B41*365/C41 -> 7.796036913e-05 | E41: 9-2 and 2-3 | F41: Venting and Fugitives M368 and N368

Sheet DOGGR Data
A1: Online DOGGR Data (2010) from http://opi.consrv.ca.gov/opi/opi.dll (accessed June 6, 2013)
B2: 1 | C2: =B2+1 -> 2 | D2: 3 | E2: 4 | F2: 5 | G2: 6 | H2: 7 | I2: 8 | J2: 9 | K2: 10 | L2: 11 | M2: 12 | N2: 13 | O2: 14 | P2: 15 | Q2: 16 | R2: 17 | S2: 18 | T2: 19 | U2: 20 | V2: 21 | W2: 22 | X2: 23 | Y2: 24 | Z2: 25 | AA2: 26 | AB2: 27 | AC2: 28 | AD2: 29 | AE2: 30 | AF2: 31 | AG2: 32 | AH2: 33 | AI2: =AH2+1 -> 34 | AJ2: 35 | AK2: 36 | AL2: 37 | AM2: 38 | AN2: 39 | AO2: 40 | AP2: 41 | AQ2: 42 | AR2: 43 | AS2: 44 | AT2: 45 | AU2: 46 | AV2: 47 | AW2: 48 | AX2: 49 | AY2: 50 | AZ2: 51 | BA2: 52 | BB2: 53 | BC2: 54 | BD2: 55 | BE2: 56 | BF2: 57 | BG2: 58 | BH2: 59 | BI2: 60 | BJ2: 61 | BK2: 62 | BL2: 63 | BM2: 64 | BN2: 65 | BO2: =BN2+1 -> 66 | BP2: 67 | BQ2: 68 | BR2: 69 | BS2: 70 | BT2: 71 | BU2: 72 | BV2: 73 | BW2: 74 | BX2: 75 | BY2: 76 | BZ2: 77 | CA2: 78 | CB2: 79 | CC2: 80 | CD2: 81 | CE2: 82 | CF2: 83 | CG2: 84 | CH2: 85 | CI2: 86 | CJ2: 87 | CK2: 88 | CL2: 89 | CM2: 90 | CN2: 91 | CO2: 92 | CP2: 93 | CQ2: 94 | CR2: 95 | CS2: 96 | CT2: 97 | CU2: =CT2+1 -> 98 | CV2: 99 | CW2: 100 | CX2: 101 | CY2: 102 | CZ2: 103 | DA2: 104 | DB2: 105 | DC2: 106 | DD2: 107 | DE2: 108 | DF2: 109 | DG2: 110 | DH2: 111 | DI2: 112 | DJ2: 113 | DK2: 114 | DL2: 115 | DM2: 116 | DN2: 117 | DO2: 118 | DP2: 119 | DQ2: 120 | DR2: 121 | DS2: 122 | DT2: 123 | DU2: 124 | DV2: 125 | DW2: 126 | DX2: 127 | DY2: 128 | DZ2: 129 | EA2: =DZ2+1 -> 130 | EB2: 131 | EC2: 132 | ED2: 133 | EE2: 134 | EF2: 135 | EG2: 136 | EH2: 137 | EI2: 138 | EJ2: 139 | EK2: 140 | EL2: 141 | EM2: 142 | EN2: 143 | EO2: 144 | EP2: 145 | EQ2: 146 | ER2: 147
A3: Field Name | B3: Aliso Canyon | C3: Ant Hill | D3: Antelope Hills | E3: Antelope Hills, North | F3: Arroyo Grande | G3: Asphalto | H3: Bandini | I3: Bardsdale | J3: Barham Ranch | K3: Belgian Anticline | L3: Bellevue | M3: Bellevue, West | N3: Belmont, Offshore | O3: Belridge, North | P3: Belridge, South | Q3: Beverly Hills | R3: Big Mountain | S3: Brea-Olinda | T3: Buena Vista | U3: Cabrillo | V3: Canal | W3: Canfield Ranch | X3: Caneros Creek | Y3: Cascade | Z3: Casmalia | AA3: Castaic Hills | AB3: Cat Canyon | AC3: Cheviot Hills | AD3: Cienaga Canyon | AE3: Coalinga | AF3: Coalinga, East | AG3: Coles Levee, N | AH3: Coles Levee, S | AI3: Coyote, East | AJ3: Cuyama, South | AK3: Cymric | AL3: Deer Creek | AM3: Del Valle | AN3: Devils Den | AO3: Edison | AP3: El Segundo | AQ3: Elk Hills | AR3: Elwood, S., Offshore | AS3: Fruitvale | AT3: Greeley | AU3: Hasley Canyon | AV3: Helm | AW3: Holser | AX3: Honor Rancho | AY3: Huntington Beach | AZ3: Hyperion | BA3: Inglewood | BB3: Jacalitos | BC3: Jasmin | BD3: Kern Front | BE3: Kern River | BF3: Kettleman Middle Dome | BG3: Kettleman North Dome | BH3: Landslide | BI3: Las Cienegas | BJ3: Livermore | BK3: Lompoc | BL3: Long Beach | BM3: Long Beach Airport | BN3: Los Angeles Downtown | BO3: Los Angeles, East | BP3: Lost Hills | BQ3: Lost Hills, Northwest | BR3: Lynch Canyon | BS3: McDonald Anticline | BT3: McKittrick | BU3: Midway-Sunset | BV3: Montalvo, West | BW3: Montebello | BX3: Monument Junction | BY3: Mount Poso | BZ3: Mountain View | CA3: Newhall-Potrero | CB3: Newport, West | CC3: Oak Canyon | CD3: Oak Park | CE3: Oakridge | CF3: Oat Mountain | CG3: Ojai | CH3: Olive | CI3: Orcutt | CJ3: Oxnard | CK3: Paloma | CL3: Placerita | CM3: Playa Del Rey | CN3: Pleito | CO3: Poso Creek | CP3: Pyramid Hills | CQ3: Railroad Gap | CR3: Raisin City | CS3: Ramona | CT3: Richfield | CU3: Rincon | CV3: Rio Bravo | CW3: Rio Viejo | CX3: Riverdale | CY3: Rose | CZ3: Rosecrans | DA3: Rosecrans, South | DB3: Rosedale | DC3: Rosedale Ranch | DD3: Round Mountain | DE3: Russell Ranch | DF3: Salt Lake | DG3: Salt Lake, South | DH3: San Ardo | DI3: San Miguelito | DJ3: San Vicente | DK3: Sansinena | DL3: Santa Clara Avenue | DM3: Santa Fe Springs | DN3: Santa Maria Valley | DO3: Santa Susana | DP3: Sargent | DQ3: Saticoy | DR3: Sawtelle | DS3: Seal Beach | DT3: Semitropic | DU3: Sespe | DV3: Shafter, North | DW3: Shiells Canyon | DX3: South Mountain | DY3: Stockdale | DZ3: Strand | EA3: Tapia | EB3: Tapo Canyon, South | EC3: Tejon | ED3: Tejon Hills | EE3: Tejon, North | EF3: Temescal | EG3: Ten Section | EH3: Timber Canyon | EI3: Torrance | EJ3: Torrey Canyon | EK3: Union Avenue | EL3: Ventura | EM3: Wheeler Ridge | EN3: White Wolf | EO3: Whittier | EP3: Wilmington | EQ3: Yowlumne | ER3: Zaca | ES3: Total
A4: Oil Production (bbl) | B4: ='Oil-Gas Fields'!C63 -> 84048 | C4: 43710 | D4: 165938 | E4: 303269 | F4: 416513 | G4: 332117 | H4: 12844 | I4: 68440 | J4: 78079 | K4: 50381 | L4: 24695 | M4: 20092 | N4: 874200 | O4: 2931540 | P4: 26485856 | Q4: 823937 | R4: 32210 | S4: 1200090 | T4: 730083 | U4: 37747 | V4: 29355 | W4: 119099 | X4: 32125 | Y4: 176937 | Z4: 172054 | AA4: 12873 | AB4: 336451 | AC4: 51020 | AD4: 42637 | AE4: 5637795 | AF4: 21984 | AG4: 149597 | AH4: 87026 | AI4: 227133 | AJ4: 218648 | AK4: 15475608 | AL4: 48601 | AM4: 65358 | AN4: 20188 | AO4: 757792 | AP4: 20350 | AQ4: 13941226 | AR4: 870666 | AS4: 469295 | AT4: 132274 | AU4: 45177 | AV4: 106799 | AW4: 20070 | AX4: ='Oil-Gas Fields'!D63 -> 53687 | AY4: 1826290 | AZ4: 10378 | BA4: 2637787 | BB4: 131038 | BC4: 101168 | BD4: 2808120 | BE4: 27376634 | BF4: 33491 | BG4: ='Oil-Gas Fields'!E63 -> 37245 | BH4: 34661 | BI4: 457276 | BJ4: 16035 | BK4: 208503 | BL4: 1455363 | BM4: 11136 | BN4: 29604 | BO4: 15837 | BP4: 11432041 | BQ4: 22420 | BR4: 151861 | BS4: 51224 | BT4: 2016851 | BU4: 32407532 | BV4: 553607 | BW4: 729238 | BX4: 104188 | BY4: 542986 | BZ4: 132537 | CA4: 143065 | CB4: 97190 | CC4: 29881 | CD4: 20958 | CE4: 72368 | CF4: 112638 | CG4: 262361 | CH4: 18486 | CI4: 1079730 | CJ4: 118490 | CK4: 28244 | CL4: 744659 | CM4: ='Oil-Gas Fields'!F63 -> 45518 | CN4: 248779 | CO4: 2486338 | CP4: 62101 | CQ4: 107341 | CR4: 150266 | CS4: 62490 | CT4: 379426 | CU4: 329735 | CV4: 231146 | CW4: 82937 | CX4: 82245 | CY4: 207887 | CZ4: 174688 | DA4: 10748 | DB4: 18437 | DC4: 183724 | DD4: 2726537 | DE4: 61164 | DF4: 44315 | DG4: 61515 | DH4: 6048571 | DI4: 613652 | DJ4: 308465 | DK4: 152978 | DL4: 71647 | DM4: 649718 | DN4: 185697 | DO4: 18866 | DP4: 22844 | DQ4: 39377 | DR4: 181995 | DS4: 457276 | DT4: 33742 | DU4: 343375 | DV4: 724013 | DW4: 88409 | DX4: 418243 | DY4: 94937 | DZ4: 12713 | EA4: 54244 | EB4: 12438 | EC4: 471295 | ED4: 15345 | EE4: 37156 | EF4: 28037 | EG4: 104589 | EH4: 35660 | EI4: 363262 | EJ4: 73651 | EK4: 21600 | EL4: 4552969 | EM4: 64928 | EN4: 11989 | EO4: 107933 | EP4: 13350682 | EQ4: 238896 | ER4: 183191 | ES4: =SUM(B4:ER4) -> 200072455
A5: Water Production (bbl) | B5: ='Oil-Gas Fields'!C65 -> 302329 | C5: 4496710 | D5: 1010323 | E5: 1233331 | F5: 6755217 | G5: 9350930 | H5: 412150 | I5: 1144999 | J5: 112365 | K5: 112951 | L5: 811430 | M5: 628446 | N5: 7780512 | O5: 27040384 | P5: 300497135 | Q5: 8237751 | R5: 95360 | S5: 6861387 | T5: 14283153 | U5: 28304 | V5: 229208 | W5: 688035 | X5: 38217 | Y5: 172250 | Z5: 7147310 | AA5: 7871 | AB5: 4415922 | AC5: 168603 | AD5: 530455 | AE5: 68200768 | AF5: 1191579 | AG5: 927614 | AH5: 77984 | AI5: 5808768 | AJ5: 14368272 | AK5: 106827545 | AL5: 4075802 | AM5: 691414 | AN5: 57663 | AO5: 8700633 | AP5: 167550 | AQ5: 131797575 | AR5: 5724761 | AS5: 6906116 | AT5: 3115543 | AU5: 71227 | AV5: 386738 | AW5: 21578 | AX5: ='Oil-Gas Fields'!D65 -> 431875 | AY5: 45945526 | AZ5: 333 | BA5: 118731792 | BB5: 318403 | BC5: 5701332 | BD5: 84124811 | BE5: 275447343 | BF5: 135050 | BG5: ='Oil-Gas Fields'!E65 -> 398676 | BH5: 1060695 | BI5: 7587991 | BJ5: 49038 | BK5: 11415831 | BL5: 42214645 | BM5: 105643 | BN5: 446991 | BO5: 456889 | BP5: 144716332 | BQ5: 184282 | BR5: 891506 | BS5: 1163423 | BT5: 16334102 | BU5: 219375142 | BV5: 1099080 | BW5: 36211142 | BX5: 761143 | BY5: 38945336 | BZ5: 529607 | CA5: 107553 | CB5: 2270247 | CC5: 213984 | CD5: 35495 | CE5: 611929 | CF5: 88957 | CG5: 666054 | CH5: 24857 | CI5: 30253704 | CJ5: 756819 | CK5: 44886 | CL5: 23291057 | CM5: ='Oil-Gas Fields'!F65 -> 759364 | CN5: 263446 | CO5: 129366076 | CP5: 146103 | CQ5: 1924343 | CR5: 5710167 | CS5: 65371 | CT5: 6184658 | CU5: 1945126 | CV5: 2320149 | CW5: 121578 | CX5: 302272 | CY5: 517057 | CZ5: 2920487 | DA5: 27123 | DB5: 475679 | DC5: 8075285 | DD5: 102875575 | DE5: 1159080 | DF5: 145241 | DG5: 877030 | DH5: 112754894 | DI5: 5763460 | DJ5: 572150 | DK5: 167617 | DL5: 329818 | DM5: 34847946 | DN5: 3731662 | DO5: 18935 | DP5: 18473 | DQ5: 149486 | DR5: 525593 | DS5: 7576105 | DT5: 23972 | DU5: 241998 | DV5: 1487570 | DW5: 338571 | DX5: 688969 | DY5: 54473 | DZ5: 21496 | EA5: 679956 | EB5: 17884 | EC5: 12223054 | ED5: 208312 | EE5: 38787 | EF5: 169996 | EG5: 2269233 | EH5: 15981 | EI5: 7998853 | EJ5: 25234 | EK5: 19802 | EL5: 46292455 | EM5: 611538 | EN5: 1611 | EO5: 212251 | EP5: 482468137 | EQ5: 7891761 | ER5: 5619588 | ES5: 2879120500
A6: Gas Production (Mcf) | B6: ='Oil-Gas Fields'!C64 -> 24660 | C6: 9000 | D6: 70076 | E6: 0 | F6: 984736 | G6: 5171585 | H6: 5399 | I6: 161002 | J6: 203127 | K6: 222178 | L6: 20383 | M6: 16498 | N6: 263846 | O6: 3200006 | P6: 10822578 | Q6: 1028360 | R6: 114413 | S6: 600752 | T6: 1386879 | U6: 143846 | V6: 18122 | W6: 137727 | X6: 29424 | Y6: 265465 | Z6: 48397 | AA6: 11810 | AB6: 200145 | AC6: 58752 | AD6: 76236 | AE6: 194420 | AF6: 333285 | AG6: 97111 | AH6: 1060164 | AI6: 134781 | AJ6: 338317 | AK6: 5074074 | AL6: 0 | AM6: 93666 | AN6: 2381 | AO6: 3532 | AP6: 5995 | AQ6: 124598969 | AR6: 619408 | AS6: 80192 | AT6: 187899 | AU6: 10370 | AV6: 297637 | AW6: 17604 | AX6: ='Oil-Gas Fields'!D64 -> 12694 | AY6: 756878 | AZ6: 0 | BA6: 1430968 | BB6: 24053 | BC6: 0 | BD6: 0 | BE6: 1825 | BF6: 52005 | BG6: ='Oil-Gas Fields'!E64 -> 89938 | BH6: 33246 | BI6: 585142 | BJ6: 0 | BK6: 192355 | BL6: 271994 | BM6: 3817 | BN6: 25219 | BO6: 15350 | BP6: 7962926 | BQ6: 22147 | BR6: 0 | BS6: 31388 | BT6: 1609437 | BU6: 4792976 | BV6: 307487 | BW6: 688012 | BX6: 280009 | BY6: 0 | BZ6: 45829 | CA6: 263098 | CB6: 25021 | CC6: 39890 | CD6: 9101 | CE6: 30562 | CF6: 3464 | CG6: 1217037 | CH6: 0 | CI6: 867079 | CJ6: 368 | CK6: 86062 | CL6: 0 | CM6: ='Oil-Gas Fields'!F64 -> 37046 | CN6: 121947 | CO6: 19967 | CP6: 12 | CQ6: 2294934 | CR6: 49139 | CS6: 122619 | CT6: 31994 | CU6: 285903 | CV6: 306816 | CW6: 11481 | CX6: 69886 | CY6: 81483 | CZ6: 123672 | DA6: 9690 | DB6: 3308 | DC6: 227905 | DD6: 14901 | DE6: 17229 | DF6: 48317 | DG6: 93822 | DH6: 1583857 | DI6: 474287 | DJ6: 267966 | DK6: 123783 | DL6: 51095 | DM6: 115068 | DN6: 97256 | DO6: 60300 | DP6: 34598 | DQ6: 41729 | DR6: 108099 | DS6: 284936 | DT6: 15814 | DU6: 816096 | DV6: 516774 | DW6: 254062 | DX6: 702838 | DY6: 29869 | DZ6: 6090 | EA6: 5493 | EB6: 3395 | EC6: 149648 | ED6: 0 | EE6: 368864 | EF6: 56487 | EG6: 48213 | EH6: 118329 | EI6: 70757 | EJ6: 134349 | EK6: 9125 | EL6: 2696641 | EM6: 61407 | EN6: 0 | EO6: 72286 | EP6: 4508796 | EQ6: 132113 | ER6: 19189 | ES6: 198234264
A7: Water Injection (bbl) | B7: ='Oil-Gas Fields'!C67 -> 513802 | C7: 4496714 | D7: 0 | E7: ='TEOR Fields'!C28 -> 558937 | F7: ='TEOR Fields'!D28 -> 4682581 | G7: 6368722 | H7: 0 | I7: 447206 | J7: 151475 | K7: 107536 | L7: 832909 | M7: 609622 | N7: 7307722 | O7: ='TEOR Fields'!E28 -> 34006726 | P7: ='TEOR Fields'!F28 -> 241715009 | Q7: 8184776 | R7: 0 | S7: 5601330 | T7: ='TEOR Fields'!G28 -> 26900044 | U7: 0 | V7: 118932 | W7: 658493 | X7: 0 | Y7: 167837 | Z7: 7173986 | AA7: 24687 | AB7: 4445305 | AC7: 25438 | AD7: 0 | AE7: ='TEOR Fields'!H28 -> 13171162 | AF7: 1147389 | AG7: 1308642 | AH7: 119331 | AI7: 5753289 | AJ7: 10395838 | AK7: ='TEOR Fields'!I28 -> 3778615 | AL7: 2395889 | AM7: 482745 | AN7: 20376 | AO7: ='TEOR Fields'!J28 -> 5155361 | AP7: 36300 | AQ7: 124881752 | AR7: 4575379 | AS7: ='TEOR Fields'!K28 -> 8915093 | AT7: 3041961 | AU7: 0 | AV7: 354480 | AW7: 21665 | AX7: ='Oil-Gas Fields'!D67 -> 491134 | AY7: 50843901 | AZ7: 0 | BA7: 120367868 | BB7: 162013 | BC7: ='TEOR Fields'!L28 -> 247897 | BD7: ='TEOR Fields'!M28 -> 9354376 | BE7: ='TEOR Fields'!N28 -> 20906482 | BF7: 130576 | BG7: ='Oil-Gas Fields'!E67 -> 29753 | BH7: 1084812 | BI7: 7640831 | BJ7: 49038 | BK7: 24649947 | BL7: 29904052 | BM7: 105644 | BN7: 448861 | BO7: 0 | BP7: ='TEOR Fields'!O28 -> 128022988 | BQ7: 233592 | BR7: ='TEOR Fields'!P28 -> 904316 | BS7: 1162777 | BT7: ='TEOR Fields'!Q28 -> 5546990 | BU7: ='TEOR Fields'!R28 -> 45100442 | BV7: 1045034 | BW7: 34695557 | BX7: 0 | BY7: ='TEOR Fields'!S28 -> 17507408 | BZ7: ='TEOR Fields'!T28 -> 113930 | CA7: 180432 | CB7: 547843 | CC7: 213909 | CD7: 130858 | CE7: 938368 | CF7: 0 | CG7: 629515 | CH7: 0 | CI7: ='TEOR Fields'!U28 -> 29513736 | CJ7: ='TEOR Fields'!V28 -> 1005236 | CK7: 41533 | CL7: ='TEOR Fields'!W28 -> 14071061 | CM7: ='Oil-Gas Fields'!F67 -> 651948 | CN7: 236927 | CO7: ='TEOR Fields'!X28 -> 119923712 | CP7: 215292 | CQ7: 0 | CR7: 5727931 | CS7: 74150 | CT7: 6038653 | CU7: 921955 | CV7: 2226910 | CW7: 124105 | CX7: 253120 | CY7: 280945 | CZ7: 2706837 | DA7: 0 | DB7: 506858 | DC7: 7344887 | DD7: ='TEOR Fields'!Y28 -> 92155080 | DE7: 1269922 | DF7: 0 | DG7: 0 | DH7: ='TEOR Fields'!Z28 -> 42826465 | DI7: 7103288 | DJ7: 573326 | DK7: 359699 | DL7: 327065 | DM7: 27634462 | DN7: 4228698 | DO7: 0 | DP7: 18756 | DQ7: 143780 | DR7: 1018774 | DS7: 2251128 | DT7: 0 | DU7: 238713 | DV7: 1523845 | DW7: 338021 | DX7: 830373 | DY7: 0 | DZ7: 2235 | EA7: ='TEOR Fields'!AA28 -> 625234 | EB7: 0 | EC7: 12209392 | ED7: 96159 | EE7: 0 | EF7: 169995 | EG7: 2289868 | EH7: 0 | EI7: 7571858 | EJ7: 0 | EK7: 19802 | EL7: 50754536 | EM7: 92009 | EN7: 0 | EO7: 0 | EP7: 517056395 | EQ7: 7916762 | ER7: 5619583 | ES7: 2023177219
A8: Gas/Air Injection (Mcf) | B8: ='Oil-Gas Fields'!C66 -> 0 | C8: 0 | D8: 53858 | E8: 0 | F8: 984736 | G8: 0 | H8: 0 | I8: 0 | J8: 0 | K8: 0 | L8: 0 | M8: 0 | N8: 0 | O8: 0 | P8: 0 | Q8: 45 | R8: 0 | S8: 0 | T8: 0 | U8: 0 | V8: 0 | W8: 0 | X8: 0 | Y8: 0 | Z8: 0 | AA8: 0 | AB8: 0 | AC8: 0 | AD8: 0 | AE8: 0 | AF8: 0 | AG8: 0 | AH8: 0 | AI8: 0 | AJ8: 0 | AK8: 299445 | AL8: 0 | AM8: 0 | AN8: 0 | AO8: 0 | AP8: 0 | AQ8: 13414968 | AR8: 434607 | AS8: 0 | AT8: 0 | AU8: 0 | AV8: 0 | AW8: 0 | AX8: ='Oil-Gas Fields'!D66 -> 0 | AY8: 14988 | AZ8: 0 | BA8: 0 | BB8: 0 | BC8: 0 | BD8: 0 | BE8: 627522 | BF8: 0 | BG8: ='Oil-Gas Fields'!E66 -> 0 | BH8: 0 | BI8: 0 | BJ8: 0 | BK8: 44755 | BL8: 0 | BM8: 0 | BN8: 0 | BO8: 0 | BP8: 0 | BQ8: 0 | BR8: 0 | BS8: 0 | BT8: 0 | BU8: 2686067 | BV8: 0 | BW8: 0 | BX8: 0 | BY8: 0 | BZ8: 0 | CA8: 0 | CB8: 0 | CC8: 0 | CD8: 0 | CE8: 0 | CF8: 0 | CG8: 0 | CH8: 0 | CI8: 0 | CJ8: 0 | CK8: 0 | CL8: 0 | CM8: ='Oil-Gas Fields'!F66 -> 0 | CN8: 168382 | CO8: 0 | CP8: 0 | CQ8: 0 | CR8: 0 | CS8: 0 | CT8: 12 | CU8: 0 | CV8: 0 | CW8: 0 | CX8: 0 | CY8: 0 | CZ8: 0 | DA8: 0 | DB8: 0 | DC8: 0 | DD8: 30978 | DE8: 52362 | DF8: 0 | DG8: 0 | DH8: 0 | DI8: 0 | DJ8: 0 | DK8: 0 | DL8: 0 | DM8: 0 | DN8: 0 | DO8: 0 | DP8: 28838 | DQ8: 0 | DR8: 0 | DS8: 0 | DT8: 0 | DU8: 0 | DV8: 0 | DW8: 0 | DX8: 0 | DY8: 0 | DZ8: 0 | EA8: 0 | EB8: 0 | EC8: 0 | ED8: 0 | EE8: 0 | EF8: 0 | EG8: 0 | EH8: 0 | EI8: 0 | EJ8: 0 | EK8: 0 | EL8: 0 | EM8: 0 | EN8: 0 | EO8: 0 | EP8: 0 | EQ8: 0 | ER8: 0 | ES8: 18841563
A9: Steam Injection (bwe) | E9: ='TEOR Fields'!C27 -> 725048 | F9: ='TEOR Fields'!D27 -> 2072626 | O9: ='TEOR Fields'!E27 -> 752854 | P9: ='TEOR Fields'!F27 -> 68348926 | T9: ='TEOR Fields'!G27 -> 313155 | AE9: ='TEOR Fields'!H27 -> 31694391 | AK9: ='TEOR Fields'!I27 -> 62129830 | AO9: ='TEOR Fields'!J27 -> 703986 | AS9: ='TEOR Fields'!K27 -> 694195 | BC9: ='TEOR Fields'!L27 -> 166500 | BD9: ='TEOR Fields'!M27 -> 13640116 | BE9: ='TEOR Fields'!N27 -> 63724634 | BP9: ='TEOR Fields'!O27 -> 19648596 | BR9: ='TEOR Fields'!P27 -> 174258 | BT9: ='TEOR Fields'!Q27 -> 6948669 | BU9: ='TEOR Fields'!R27 -> 153674171 | BY9: ='TEOR Fields'!S27 -> 526237 | BZ9: ='TEOR Fields'!T27 -> 36975 | CI9: ='TEOR Fields'!U27 -> 1134289 | CJ9: ='TEOR Fields'!V27 -> 360834 | CL9: ='TEOR Fields'!W27 -> 6381938 | CO9: ='TEOR Fields'!X27 -> 8435597 | DD9: ='TEOR Fields'!Y27 -> 10756868 | DH9: ='TEOR Fields'!Z27 -> 36109621 | EA9: ='TEOR Fields'!AA27 -> 27940 | ES9: 489182254
A10: Daily Oil Production (BOPD) | B10: =B4/365 -> 230.2684932 | C10: 119.7534247 | D10: 454.6246575 | E10: 830.8739726 | F10: 1141.131507 | G10: 909.909589 | H10: 35.1890411 | I10: 187.5068493 | J10: 213.9150685 | K10: 138.030137 | L10: 67.65753425 | M10: 55.04657534 | N10: 2395.068493 | O10: 8031.616438 | P10: 72563.98904 | Q10: 2257.361644 | R10: 88.24657534 | S10: 3287.917808 | T10: 2000.227397 | U10: 103.4164384 | V10: 80.42465753 | W10: 326.2986301 | X10: 88.01369863 | Y10: 484.7589041 | Z10: 471.3808219 | AA10: 35.26849315 | AB10: 921.7835616 | AC10: 139.7808219 | AD10: 116.8136986 | AE10: 15446.0137 | AF10: 60.23013699 | AG10: 409.8547945 | AH10: =AH4/365 -> 238.4273973 | AI10: 622.2821918 | AJ10: 599.0356164 | AK10: 42398.92603 | AL10: 133.1534247 | AM10: 179.0630137 | AN10: 55.30958904 | AO10: 2076.142466 | AP10: 55.75342466 | AQ10: 38195.13973 | AR10: 2385.386301 | AS10: 1285.739726 | AT10: 362.3945205 | AU10: 123.7726027 | AV10: 292.6 | AW10: 54.98630137 | AX10: 147.0876712 | AY10: 5003.534247 | AZ10: 28.43287671 | BA10: 7226.813699 | BB10: 359.0082192 | BC10: 277.1726027 | BD10: 7693.479452 | BE10: 75004.47671 | BF10: 91.75616438 | BG10: 102.0410959 | BH10: 94.96164384 | BI10: 1252.810959 | BJ10: 43.93150685 | BK10: 571.2410959 | BL10: 3987.29589 | BM10: 30.50958904 | BN10: =BN4/365 -> 81.10684932 | BO10: 43.3890411 | BP10: 31320.66027 | BQ10: 61.42465753 | BR10: 416.0575342 | BS10: 140.339726 | BT10: 5525.619178 | BU10: 88787.7589 | BV10: 1516.731507 | BW10: 1997.912329 | BX10: 285.4465753 | BY10: 1487.632877 | BZ10: 363.1150685 | CA10: 391.9589041 | CB10: 266.2739726 | CC10: 81.86575342 | CD10: 57.41917808 | CE10: 198.2684932 | CF10: 308.5972603 | CG10: 718.7972603 | CH10: 50.64657534 | CI10: 2958.164384 | CJ10: 324.630137 | CK10: 77.38082192 | CL10: 2040.161644 | CM10: 124.7068493 | CN10: 681.5863014 | CO10: 6811.884932 | CP10: 170.139726 | CQ10: 294.0849315 | CR10: 411.6876712 | CS10: 171.2054795 | CT10: =CT4/365 -> 1039.523288 | CU10: 903.3835616 | CV10: 633.2767123 | CW10: 227.2246575 | CX10: 225.3287671 | CY10: 569.5534247 | CZ10: 478.5972603 | DA10: 29.44657534 | DB10: 50.51232877 | DC10: 503.3534247 | DD10: 7469.964384 | DE10: 167.5726027 | DF10: 121.4109589 | DG10: 168.5342466 | DH10: 16571.4274 | DI10: 1681.238356 | DJ10: 845.109589 | DK10: 419.1178082 | DL10: 196.2931507 | DM10: 1780.049315 | DN10: 508.7589041 | DO10: 51.68767123 | DP10: 62.58630137 | DQ10: 107.8821918 | DR10: 498.6164384 | DS10: 1252.810959 | DT10: 92.44383562 | DU10: 940.7534247 | DV10: 1983.59726 | DW10: 242.2164384 | DX10: 1145.871233 | DY10: 260.1013699 | DZ10: =DZ4/365 -> 34.83013699 | EA10: 148.6136986 | EB10: 34.07671233 | EC10: 1291.219178 | ED10: 42.04109589 | EE10: 101.7972603 | EF10: 76.81369863 | EG10: 286.5452055 | EH10: 97.69863014 | EI10: 995.2383562 | EJ10: 201.7835616 | EK10: 59.17808219 | EL10: 12473.88767 | EM10: 177.8849315 | EN10: 32.84657534 | EO10: 295.7068493 | EP10: 36577.21096 | EQ10: 654.509589 | ER10: 501.8931507 | ES10: 548143.7123
A11: GOR (scf/bbl) | B11: =B6*1000/B4 -> 293.4037693 | C11: 205.9025395 | D11: 422.3023057 | E11: 0 | F11: 2364.238331 | G11: 15571.57568 | H11: 420.3519153 | I11: 2352.454705 | J11: 2601.557397 | K11: 4409.956134 | L11: 825.389755 | M11: 821.122835 | N11: 301.8142302 | O11: 1091.578488 | P11: 408.6172635 | Q11: 1248.105134 | R11: 3552.095622 | S11: 500.5891225 | T11: 1899.618263 | U11: 3810.792911 | V11: 617.3394652 | W11: 1156.407694 | X11: 915.922179 | Y11: 1500.336278 | Z11: 281.2895951 | AA11: 917.4240659 | AB11: 594.8711699 | AC11: 1151.548412 | AD11: 1788.024486 | AE11: 34.48511342 | AF11: 15160.34389 | AG11: 649.1507183 | AH11: =AH6*1000/AH4 -> 12182.15246 | AI11: 593.4012231 | AJ11: 1547.31349 | AK11: 327.8755833 | AL11: 0 | AM11: 1433.122189 | AN11: 117.9413513 | AO11: 4.66090959 | AP11: 294.5945946 | AQ11: 8937.447037 | AR11: 711.4186152 | AS11: 170.877593 | AT11: 1420.5286 | AU11: 229.5415809 | AV11: 2786.88939 | AW11: 877.1300448 | AX11: 236.4445769 | AY11: 414.4347283 | AZ11: 0 | BA11: 542.4880781 | BB11: 183.5574414 | BC11: 0 | BD11: 0 | BE11: 0.0666626876 | BF11: 1552.805231 | BG11: 2414.767083 | BH11: 959.1760192 | BI11: 1279.625434 | BJ11: 0 | BK11: 922.5526731 | BL11: 186.8908307 | BM11: 342.7622126 | BN11: =BN6*1000/BN4 -> 851.8781246 | BO11: 969.2492265 | BP11: 696.5445628 | BQ11: 987.823372 | BR11: 0 | BS11: 612.7596439 | BT11: 797.9949932 | BU11: 147.8969765 | BV11: 555.4246966 | BW11: 943.4670163 | BX11: 2687.535993 | BY11: 0 | BZ11: 345.7826871 | CA11: 1839.01024 | CB11: 257.4441815 | CC11: 1334.962016 | CD11: 434.2494513 | CE11: 422.3137298 | CF11: 30.75338696 | CG11: 4638.787777 | CH11: 0 | CI11: 803.0516888 | CJ11: 3.10574732 | CK11: 3047.089647 | CL11: 0 | CM11: 813.8758293 | CN11: 490.1820491 | CO11: 8.030686093 | CP11: 0.1932336033 | CQ11: 21379.84554 | CR11: 327.0134295 | CS11: 1962.217955 | CT11: =CT6*1000/CT4 -> 84.3221076 | CU11: 867.06901 | CV11: 1327.368849 | CW11: 138.4303749 | CX11: 849.7294668 | CY11: 391.9581311 | CZ11: 707.9593332 | DA11: 901.5630815 | DB11: 179.4218148 | DC11: 1240.474843 | DD11: 5.465174322 | DE11: 281.6853051 | DF11: 1090.308022 | DG11: 1525.188978 | DH11: 261.8563955 | DI11: 772.8924537 | DJ11: 868.7079571 | DK11: 809.1555649 | DL11: 713.1491898 | DM11: 177.1045284 | DN11: 523.7349015 | DO11: 3196.226015 | DP11: 1514.533357 | DQ11: 1059.730299 | DR11: 593.9668672 | DS11: 623.1160175 | DT11: 468.6740561 | DU11: 2376.690207 | DV11: 713.7634269 | DW11: 2873.711952 | DX11: 1680.453708 | DY11: 314.6191685 | DZ11: =DZ6*1000/DZ4 -> 479.037206 | EA11: 101.264656 | EB11: 272.9538511 | EC11: 317.525117 | ED11: 0 | EE11: 9927.441059 | EF11: 2014.730535 | EG11: 460.9758196 | EH11: 3318.255749 | EI11: 194.7822784 | EJ11: 1824.130019 | EK11: 422.4537037 | EL11: 592.2818715 | EM11: 945.7706999 | EN11: 0 | EO11: 669.7302956 | EP11: 337.7202753 | EQ11: 553.014701 | ER11: 104.7485957 | ES11: 990.8123734
A12: WOR (bbl/bbl) | B12: =B5/B4 -> 3.597099277 | C12: 102.8760009 | D12: 6.088557172 | E12: 4.06678889 | F12: 16.21850218 | G12: 28.15552953 | H12: 32.08891311 | I12: 16.72996786 | J12: 1.439119353 | K12: 2.241936444 | L12: 32.85806843 | M12: 31.27841927 | N12: 8.900150995 | O12: 9.223951916 | P12: 11.34557007 | Q12: 9.998035044 | R12: 2.960571251 | S12: 5.717393695 | T12: 19.56373864 | U12: 0.7498344239 | V12: 7.808141714 | W12: 5.777000647 | X12: 1.189634241 | Y12: 0.9735103455 | Z12: 41.54108594 | AA12: 0.611434786 | AB12: 13.1250078 | AC12: 3.304645237 | AD12: 12.44118958 | AE12: 12.09706419 | AF12: 54.20210153 | AG12: 6.200752689 | AH12: =AH5/AH4 -> 0.8961000161 | AI12: 25.57430228 | AJ12: 65.71417072 | AK12: 6.902962714 | AL12: 83.86251312 | AM12: 10.57887328 | AN12: 2.856300773 | AO12: 11.48155826 | AP12: 8.233415233 | AQ12: 9.453800907 | AR12: 6.575151666 | AS12: 14.71593774 | AT12: 23.5537067 | AU12: 1.576620847 | AV12: 3.621176228 | AW12: 1.07513702 | AX12: 8.044312403 | AY12: 25.15784788 | AZ12: 0.03208710734 | BA12: 45.0118952 | BB12: 2.429852409 | BC12: 56.35509252 | BD12: 29.95769803 | BE12: 10.06140284 | BF12: 4.032426622 | BG12: 10.70414821 | BH12: 30.6019734 | BI12: 16.59389734 | BJ12: 3.05818522 | BK12: 54.75139926 | BL12: 29.0062651 | BM12: 9.486619971 | BN12: =BN5/BN4 -> 15.09900689 | BO12: 28.84946644 | BP12: 12.65883599 | BQ12: 8.219536128 | BR12: 5.870539507 | BS12: 22.712459 | BT12: 8.098814439 | BU12: 6.769264071 | BV12: 1.985307267 | BW12: 49.65613695 | BX12: 7.305476638 | BY12: 71.72438332 | BZ12: 3.995918121 | CA12: 0.7517771642 | CB12: 23.35885379 | CC12: 7.161206118 | CD12: 1.693625346 | CE12: 8.455795379 | CF12: 0.7897601165 | CG12: 2.53869287 | CH12: 1.344639186 | CI12: 28.01969381 | CJ12: 6.387197232 | CK12: 1.58922249 | CL12: 31.27748003 | CM12: 16.68271892 | CN12: 1.058955941 | CO12: 52.03076814 | CP12: 2.352667429 | CQ12: 17.92738096 | CR12: 38.00039264 | CS12: 1.046103377 | CT12: =CT5/CT4 -> 16.30003742 | CU12: 5.899058335 | CV12: 10.03759096 | CW12: 1.465907858 | CX12: 3.675262934 | CY12: 2.487202182 | CZ12: 16.71830349 | DA12: 2.523539263 | DB12: 25.80023865 | DC12: 43.9533485 | DD12: 37.73122279 | DE12: 18.95036296 | DF12: 3.277468126 | DG12: 14.25717305 | DH12: 18.64157567 | DI12: 9.392065861 | DJ12: 1.854829559 | DK12: 1.095693498 | DL12: 4.60337488 | DM12: 53.63549417 | DN12: 20.09543504 | DO12: 1.003657373 | DP12: 0.8086587288 | DQ12: 3.796277015 | DR12: 2.887952966 | DS12: 16.56790429 | DT12: 0.7104498844 | DU12: 0.7047630142 | DV12: 2.054617804 | DW12: 3.829598797 | DX12: 1.647293559 | DY12: 0.5737805071 | DZ12: =DZ5/DZ4 -> 1.690867616 | EA12: 12.53513753 | EB12: 1.437851745 | EC12: 25.93503856 | ED12: 13.57523623 | EE12: 1.043896006 | EF12: 6.063273531 | EG12: 21.69666982 | EH12: 0.4481491868 | EI12: 22.01951484 | EJ12: 0.3426158504 | EK12: 0.9167592593 | EL12: 10.16753134 | EM12: 9.418709956 | EN12: 0.1343731754 | EO12: 1.966507 | EP12: 36.1380892 | EQ12: 33.03429526 | ER12: 30.676114 | ES12: 14.39038922
A13: Fraction gas injected | B13: =IF((B8/B6)>1,1,B8/B6) -> 0 | C13: 0 | D13: 0.7685655574 | F13: 1 | G13: 0 | H13: 0 | I13: 0 | J13: 0 | K13: 0 | L13: 0 | M13: 0 | N13: 0 | O13: 0 | P13: 0 | Q13: 4.37589949e-05 | R13: 0 | S13: 0 | T13: 0 | U13: 0 | V13: 0 | W13: 0 | X13: 0 | Y13: 0 | Z13: 0 | AA13: 0 | AB13: 0 | AC13: 0 | AD13: 0 | AE13: 0 | AF13: 0 | AG13: 0 | AH13: =IF((AH8/AH6)>1,1,AH8/AH6) -> 0 | AI13: 0 | AJ13: 0 | AK13: 0.05901470889 | AM13: 0 | AN13: 0 | AO13: 0 | AP13: 0 | AQ13: 0.1076651605 | AR13: 0.7016489939 | AS13: 0 | AT13: 0 | AU13: 0 | AV13: 0 | AW13: 0 | AX13: 0 | AY13: 0.0198023988 | BA13: 0 | BB13: 0 | BE13: 1 | BF13: 0 | BG13: 0 | BH13: 0 | BI13: 0 | BK13: 0.2326687635 | BL13: 0 | BM13: 0 | BN13: =IF((BN8/BN6)>1,1,BN8/BN6) -> 0 | BO13: 0 | BP13: 0 | BQ13: 0 | BS13: 0 | BT13: 0 | BU13: 0.5604173691 | BV13: 0 | BW13: 0 | BX13: 0 | BZ13: 0 | CA13: 0 | CB13: 0 | CC13: 0 | CD13: 0 | CE13: 0 | CF13: 0 | CG13: 0 | CI13: 0 | CJ13: 0 | CK13: 0 | CM13: 0 | CN13: 1 | CO13: 0 | CP13: 0 | CQ13: 0 | CR13: 0 | CS13: 0 | CT13: =IF((CT8/CT6)>1,1,CT8/CT6) -> 0.0003750703257 | CU13: 0 | CV13: 0 | CW13: 0 | CX13: 0 | CY13: 0 | CZ13: 0 | DA13: 0 | DB13: 0 | DC13: 0 | DD13: 1 | DE13: 1 | DF13: 0 | DG13: 0 | DH13: 0 | DI13: 0 | DJ13: 0 | DK13: 0 | DL13: 0 | DM13: 0 | DN13: 0 | DO13: 0 | DP13: 0.8335163882 | DQ13: 0 | DR13: 0 | DS13: 0 | DT13: 0 | DU13: 0 | DV13: 0 | DW13: 0 | DX13: 0 | DY13: 0 | DZ13: =IF((DZ8/DZ6)>1,1,DZ8/DZ6) -> 0 | EA13: 0 | EB13: 0 | EC13: 0 | EE13: 0 | EF13: 0 | EG13: 0 | EH13: 0 | EI13: 0 | EJ13: 0 | EK13: 0 | EL13: 0 | EM13: 0 | EO13: 0 | EP13: 0 | EQ13: 0 | ER13: 0 | ES13: 0.09504695414
A14: Gas Flooding Injection Ratio | B14: =IF((B8/B6)>1,B8*1000/B4," ") ->  | AH14: =IF((AH8/AH6)>1,AH8*1000/AH4," ") ->  | BE14: 22.92180989 | BN14: =IF((BN8/BN6)>1,BN8*1000/BN4," ") ->  | CN14: 676.8336556 | CT14: =IF((CT8/CT6)>1,CT8*1000/CT4," ") ->  | DD14: 11.361665 | DE14: 856.0918187 | DZ14: =IF((DZ8/DZ6)>1,DZ8*1000/DZ4," ") -> 
A15: Fraction water injected | B15: =IF((B7/B5)>1,1,B7/B5) -> 1 | C15: 1 | D15: 0 | E15: 0.4531930196 | F15: 0.6931799526 | G15: 0.6810789943 | H15: 0 | I15: 0.3905732669 | J15: 1 | K15: 0.9520588574 | L15: 1 | M15: 0.9700467502 | N15: 0.9392340761 | O15: 1 | P15: 0.804383739 | Q15: 0.99356924 | R15: 0 | S15: 0.8163553521 | T15: 1 | U15: 0 | V15: 0.5188824125 | W15: 0.9570632308 | X15: 0 | Y15: 0.9743802612 | Z15: 1 | AA15: 1 | AB15: 1 | AC15: 0.1508751327 | AD15: 0 | AE15: 0.1931233678 | AF15: 0.9629147543 | AG15: 1 | AH15: =IF((AH7/AH5)>1,1,AH7/AH5) -> 1 | AI15: 0.9904490935 | AJ15: 0.7235273664 | AK15: 0.03537116761 | AL15: 0.5878325296 | AM15: 0.6981996315 | AN15: 0.3533635087 | AO15: 0.5925271184 | AP15: 0.2166517457 | AQ15: 0.9475269329 | AR15: 0.7992262035 | AS15: 1 | AT15: 0.9763822871 | AU15: 0 | AV15: 0.9165895257 | AW15: 1 | AX15: 1 | AY15: 1 | AZ15: 0 | BA15: 1 | BB15: 0.5088300047 | BC15: 0.04348054104 | BD15: 0.1111963984 | BE15: 0.07590010407 | BF15: 0.9668715291 | BG15: 0.07462952372 | BH15: 1 | BI15: 1 | BJ15: 1 | BK15: 1 | BL15: 0.7083809896 | BM15: 1 | BN15: =IF((BN7/BN5)>1,1,BN7/BN5) -> 1 | BO15: 0 | BP15: 0.8846478226 | BQ15: 1 | BR15: 1 | BS15: 0.9994447419 | BT15: 0.3395956509 | BU15: 0.2055859273 | BV15: 0.9508261455 | BW15: 0.9581458933 | BX15: 0 | BY15: 0.4495379883 | BZ15: 0.215121779 | CA15: 1 | CB15: 0.2413142711 | CC15: 0.9996495065 | CD15: 1 | CE15: 1 | CF15: 0 | CG15: 0.9451410847 | CH15: 0 | CI15: 0.9755412428 | CJ15: 1 | CK15: 0.925299648 | CL15: 0.6041400783 | CM15: 0.8585447822 | CN15: 0.8993380048 | CO15: 0.9270105093 | CP15: 1 | CQ15: 0 | CR15: 1 | CS15: 1 | CT15: =IF((CT7/CT5)>1,1,CT7/CT5) -> 0.976392389 | CU15: 0.4739821482 | CV15: 0.9598133568 | CW15: 1 | CX15: 0.8373914885 | CY15: 0.5433540209 | CZ15: 0.9268443927 | DA15: 0 | DB15: 1 | DC15: 0.9095514276 | DD15: 0.8957916396 | DE15: 1 | DF15: 0 | DG15: 0 | DH15: 0.3798191234 | DI15: 1 | DJ15: 1 | DK15: 1 | DL15: 0.9916529722 | DM15: 0.7930011714 | DN15: 1 | DO15: 0 | DP15: 1 | DQ15: 0.9618292014 | DR15: 1 | DS15: 0.2971352694 | DT15: 0 | DU15: 0.9864255076 | DV15: 1 | DW15: 0.9983755254 | DX15: 1 | DY15: 0 | DZ15: =IF((DZ7/DZ5)>1,1,DZ7/DZ5) -> 0.1039728322 | EA15: 0.9195212631 | EB15: 0 | EC15: 0.9988822761 | ED15: 0.4616104689 | EE15: 0 | EF15: 0.9999941175 | EG15: 1 | EH15: 0 | EI15: 0.9466179714 | EJ15: 0 | EK15: 1 | EL15: 1 | EM15: 0.1504550821 | EN15: 0 | EO15: 0 | EP15: 1 | EQ15: 1 | ER15: 0.9999991103 | ES15: 0.7027066839
A16: Water Flooding Injection Ratio | B16: =IF((B7/B5)>1,B7/B4," ") -> 6.113197221 | C16: 102.8760924 | J16: 1.940022285 | L16: 33.72783964 | O16: 11.60029404 | T16: 36.8451861 | Z16: 41.69613028 | AA16: 1.917734794 | AB16: 13.21233998 | AG16: 8.747782375 | AH16: =IF((AH7/AH5)>1,AH7/AH4," ") -> 1.371210902 | AS16: 18.99677815 | AW16: 1.079471849 | AX16: 9.148099167 | AY16: 27.8399931 | BA16: 45.63214088 | BH16: 31.29776983 | BI16: 16.70945118 | BK16: 118.2234644 | BM16: 9.48670977 | BN16: =IF((BN7/BN5)>1,BN7/BN4," ") -> 15.16217403 | BQ16: 10.41891169 | BR16: 5.954892961 | CA16: 1.26118897 | CD16: 6.243820975 | CE16: 12.96661508 | CJ16: 8.483720145 | CP16: 3.466804077 | CR16: 38.11860967 | CS16: 1.186589854 | CT16: =IF((CT7/CT5)>1,CT7/CT4," ") ->  | CW16: 1.496376768 | DB16: 27.49134892 | DE16: 20.76257276 | DI16: 11.57543363 | DJ16: 1.858641985 | DK16: 2.351311953 | DN16: 22.77203186 | DP16: 0.8210471021 | DR16: 5.597813127 | DV16: 2.104720495 | DX16: 1.985384095 | DZ16: =IF((DZ7/DZ5)>1,DZ7/DZ4," ") ->  | EG16: 21.8939659 | EL16: 11.14756898 | EP16: 38.7288376 | EQ16: 33.13894749
A17: Steam to Oil Ratio | B17: =IF(B9>0,B9/B4," ") ->  | E17: 2.390775186 | F17: 4.9761376 | O17: 0.2568117781 | P17: 2.580582104 | T17: 0.4289306832 | AE17: 5.621770745 | AH17: =IF(AH9>0,AH9/AH4," ") ->  | AK17: 4.014693962 | AO17: 0.9289963473 | AS17: 1.479229483 | BC17: 1.645777321 | BD17: 4.857383588 | BE17: 2.327701572 | BN17: =IF(BN9>0,BN9/BN4," ") ->  | BP17: 1.718730365 | BR17: 1.147483554 | BT17: 3.445306074 | BU17: 4.741927617 | BY17: 0.9691539008 | BZ17: 0.2789787003 | CI17: 1.050530225 | CJ17: 3.045269643 | CL17: 8.570282505 | CO17: 3.392779662 | CT17: =IF(CT9>0,CT9/CT4," ") ->  | DD17: 3.94524923 | DH17: 5.969942487 | DZ17: =IF(DZ9>0,DZ9/DZ4," ") ->  | EA17: 0.5150800088 | ES17: 2.445025498
A18: Fraction CoGen | F18: ='Cogen Data'!G7 -> 0.1256636858 | P18: ='Cogen Data'!G14 -> 0.1392352819 | AE18: ='Cogen Data'!G60 -> 0.3268101341 | AK18: ='Cogen Data'!G19 -> 0.08633447573 | BC18: ='Cogen Data'!G21 -> 1 | BD18: ='Cogen Data'!G26 -> 0.4832426059 | BE18: ='Cogen Data'!G37 -> 0.917361092 | BP18: ='Cogen Data'!G38 -> 0.06729763399 | BT18: ='Cogen Data'!G41 -> 0.4324909438 | BU18: ='Cogen Data'!G52 -> 0.2831850478 | BY18: ='Cogen Data'!G53 -> 0.9518006822 | CL18: ='Cogen Data'!G6 -> 0.9417942994 | CO18: ='Cogen Data'!G54 -> 0.6887626013 | DH18: ='Cogen Data'!G11 -> 0.2973919735
A20: See TEOR Fields sheet
A21: See Oil-Gas Fields sheet

Sheet TEOR Fields
A1: Steam and Water Injection for TEOR Fields | D1: Sources | E1: January to December 2010 Monthly Oil and Gas Production and Injection Report, California Department of Conservation
C2: Antelope Hills, North | D2: Arroyo Grande | E2: Belridge, North | F2: Belridge, South | G2: Buena Vista | H2: Coalinga | I2: Cymric | J2: Edison | K2: Fruitvale | L2: Jasmin | M2: Kern Front | N2: Kern River | O2: Lost Hills | P2: Lynch Canyon | Q2: McKittrick | R2: Midway-Sunset | S2: Mount Poso | T2: Mountain View | U2: Orcutt | V2: Oxnard | W2: Placerita | X2: Poso Creek | Y2: Round Mountain | Z2: San Ardo | AA2: Tapia | AB2: Sum
A3: January | B3: Steam | C3: 57353 | D3: 186139 | E3: 66814 | F3: 5842666 | G3: 15436 | H3: 2805293 | I3: 5607940 | J3: 74340 | K3: 62262 | L3: 15500 | M3: 1031608 | N3: 5854542 | O3: 1771011 | P3: 2638 | Q3: 504794 | R3: 13928949 | S3: 15286 | U3: 79281 | V3: 23769 | W3: 540535 | X3: 705239 | Y3: 853220 | Z3: 3197180 | AB3: =SUM(C3:AA3) -> 43241795 | AC3: January to December 2010 Monthly Oil and Gas Production and Injection Report, California Department of Conservation
B4: Water | C4: 30 | D4: 375662 | E4: 2823023 | F4: 21151966 | G4: 2301637 | H4: 1472695 | I4: 367303 | J4: 445505 | K4: 733342 | L4: 11242 | M4: 734044 | N4: 2457784 | O4: 11068499 | P4: 60494 | Q4: 396398 | R4: 3296760 | S4: 1331107 | T4: 9406 | U4: 2504062 | V4: 95210 | W4: 1206711 | X4: 8727813 | Y4: 7497748 | Z4: 2729797 | AA4: 54053
A5: February | B5: Steam | C5: 51804 | D5: 164155 | E5: 62818 | F5: 5370824 | G5: 15436 | H5: 2497227 | I5: 4869357 | J5: 70874 | K5: 64387 | L5: 14000 | M5: 1040141 | N5: 5093597 | O5: 1514341 | P5: 6924 | Q5: 492437 | R5: 12010789 | S5: 29611 | U5: 74673 | V5: 40693 | W5: 482454 | X5: 653502 | Y5: 845262 | Z5: 2934521 | AA5: 17214 | AB5: =SUM(C5:AA5) -> 38417041
B6: Water | C6: 0 | D6: 338748 | E6: 2434922 | F6: 18910401 | G6: 2217584 | H6: 1258976 | I6: 285230 | J6: 439892 | K6: 725428 | L6: 11047 | M6: 807900 | N6: 2035706 | O6: 10144842 | P6: 47919 | Q6: 356983 | R6: 3194836 | S6: 1366422 | T6: 8913 | U6: 2266776 | V6: 69714 | W6: 1080140 | X6: 8197846 | Y6: 7387661 | Z6: 2679168 | AA6: 45477
A7: March | B7: Steam | C7: 50753 | D7: 177495 | E7: 67439 | F7: 5823724 | G7: 15436 | H7: 2739462 | I7: 5320824 | J7: 46572 | K7: 61243 | L7: 7500 | M7: 1039410 | N7: 5529849 | O7: 1752347 | P7: 13109 | Q7: 573585 | R7: 13275723 | S7: 45028 | U7: 98888 | V7: 18143 | W7: 537627 | X7: =229777+494114 -> 723891 | Y7: 904416 | Z7: =83529+3008830 -> 3092359 | AA7: 5246 | AB7: =SUM(C7:AA7) -> 41920069
B8: Water | C8: 46879 | D8: 404783 | E8: 2716628 | F8: 20941862 | G8: 2284214 | H8: 1404012 | I8: 289967 | J8: 482833 | K8: 766280 | L8: 21633 | M8: 727919 | N8: 2043176 | O8: 11049478 | P8: 52457 | Q8: 397037 | R8: 3480339 | S8: 1370661 | T8: 9379 | U8: 2545910 | V8: 88107 | W8: 1206548 | X8: 7142822 | Y8: =282170+8618568 -> 8900738 | Z8: =204339+3024878 -> 3229217 | AA8: 52087
A9: April | B9: Steam | C9: =3020+35638 -> 38658 | D9: =5781+160467 -> 166248 | E9: =29466+36842 -> 66308 | F9: =197656+5503136 -> 5700792 | G9: 15436 | H9: =235772+2479997 -> 2715769 | I9: =3751325+1521392 -> 5272717 | J9: 54845 | K9: 65904 | L9: 7500 | M9: 1041854 | N9: =38154+5208220 -> 5246374 | O9: =114984+1505916 -> 1620900 | P9: 12518 | Q9: =201975+321932 -> 523907 | R9: =5397355+7267836 -> 12665191 | S9: 18606 | T9: 7926 | U9: 87450 | V9: 28440 | W9: =53884+447810 -> 501694 | X9: =219551+474620 -> 694171 | Y9: 879176 | Z9: =176150+2838071 -> 3014221 | AA9: 4340 | AB9: =SUM(C9:AA9) -> 40450945
B10: Water | C10: 39541 | D10: 344003 | E10: =2732362+61760 -> 2794122 | F10: =13897579+6183640 -> 20081219 | G10: =1100003+1225124 -> 2325127 | H10: 1270033 | I10: 302416 | J10: 440639 | K10: =24495+748913 -> 773408 | L10: 21850 | M10: =320+795838 -> 796158 | N10: 1464743 | O10: =8319988+2411772 -> 10731760 | P10: 50365 | Q10: 417622 | R10: 3814579 | S10: 1176961 | T10: 9273 | U10: =2244298+252669 -> 2496967 | V10: 97351 | W10: 1177295 | X10: 10121511 | Y10: =311024+7144273 -> 7455297 | Z10: =195516+3163643 -> 3359159 | AA10: 52661
A11: May | B11: Steam | C11: 54614 | D11: =5088+169513 -> 174601 | E11: =22285+41771 -> 64056 | F11: =284221+5573858 -> 5858079 | G11: 15436 | H11: =182651+2569271 -> 2751922 | I11: =4071545+1536659 -> 5608204 | J11: 52958 | K11: 108708 | L11: 15000 | M11: 1083138 | N11: =278621+5149427 -> 5428048 | O11: =104355+1511096 -> 1615451 | Q11: =234050+346397 -> 580447 | R11: =5499208+7487064 -> 12986272 | S11: 2679 | T11: 8727 | U11: 105551 | V11: 20254 | W11: =74387+479206 -> 553593 | X11: =219513+498314 -> 717827 | Y11: 884221 | Z11: =188931+2696893 -> 2885824 | AA11: 1140 | AB11: =SUM(C11:AA11) -> 41576750
B12: Water | C12: 40911 | D12: 382948 | E12: =2708371+78054 -> 2786425 | F12: =13995442+6851642 -> 20847084 | G12: =1104845+1291938 -> 2396783 | H12: 1268685 | I12: 385880 | J12: 459199 | K12: =24863+753937 -> 778800 | L12: 23254 | M12: =320+764774 -> 765094 | N12: 2358633 | O12: =8730381+2685088 -> 11415469 | P12: 50365 | Q12: 417697 | R12: 4675443 | S12: 1631632 | T12: 9284 | U12: =2373888+266896 -> 2640784 | V12: 68292 | W12: 1188965 | X12: 11080211 | Y12: =352983+7790176 -> 8143159 | Z12: =206747+3187900 -> 3394647
A13: June | B13: Steam | C13: 33033 | D13: 167459 | E13: =24617+25428 -> 50045 | F13: =291626+5432326 -> 5723952 | G13: 15436 | H13: =175566+2424739 -> 2600305 | I13: =4105424+1453646 -> 5559070 | J13: 69228 | K13: 100642 | L13: 15000 | M13: 1039612 | N13: =261160+4974860 -> 5236020 | O13: =103484+1442156 -> 1545640 | P13: 23648 | Q13: =215392+364965 -> 580357 | R13: =5331606+7118428 -> 12450034 | S13: 22078 | U13: 97314 | V13: 36059 | W13: =118336+443089 -> 561425 | X13: =151420+547653 -> 699073 | Y13: 883515 | Z13: =155875+2755328 -> 2911203 | AB13: =SUM(C13:AA13) -> 40420148
B14: Water | C14: 54840 | D14: 388061 | E14: 2687523 | F14: =13192244+6706852 -> 19899096 | G14: =1109692+1175669 -> 2285361 | H14: 1326819 | I14: 418782 | J14: 454562 | K14: =22430+695299 -> 717729 | L14: 21768 | M14: 821844 | N14: 1327199 | O14: =8150563+2444418 -> 10594981 | P14: 72874 | Q14: 485307 | R14: 4606841 | S14: 1339807 | T14: 9153 | U14: =2235860+269904 -> 2505764 | V14: 68885 | W14: 1122556 | X14: 10093533 | Y14: =329833+7097943 -> 7427776 | Z14: =234521+3535595 -> 3770116 | AA14: 58278
A15: July | B15: Steam | C15: =44153+20432 -> 64585 | D15: 170692 | E15: 39497 | F15: =252586+4872316 -> 5124902 | G15: 15436 | H15: =194862+2622967 -> 2817829 | I15: =4104968+1571216 -> 5676184 | J15: 56367 | K15: 55197 | L15: 15500 | M15: 1372479 | N15: =185116+5209678 -> 5394794 | O15: =142968+1471125 -> 1614093 | P15: 12629 | Q15: =252091+416275 -> 668366 | R15: =5680454+7260986 -> 12941440 | S15: 60769 | U15: 78765 | V15: 62545 | W15: =69109+494015 -> 563124 | X15: =136850+570573 -> 707423 | Y15: 922923 | Z15: =147444+2990893 -> 3138337 | AB15: =SUM(C15:AA15) -> 41573876
B16: Water | C16: 52388 | D16: 422066 | E16: =2873059+74301 -> 2947360 | F16: =12894767+7114380 -> 20009147 | G16: =1095841+1230169 -> 2326010 | H16: 1043348 | I16: 375502 | J16: 463891 | K16: =24595+763048 -> 787643 | L16: 23664 | M16: 653572 | N16: 1494235 | O16: =8216847+2045622 -> 10262469 | P16: 101864 | Q16: 553942 | R16: 3897142 | S16: 1307521 | T16: 9456 | U16: =2299747+259334 -> 2559081 | V16: 86696 | W16: 1228112 | X16: 10962730 | Y16: =292108+5947311 -> 6239419 | Z16: =242294+3655190 -> 3897484 | AA16: 67541
A17: August | B17: Steam | C17: =29100+23353 -> 52453 | D17: 176327 | E17: =7927+59881 -> 67808 | F17: =293088+5675929 -> 5969017 | G17: 15436 | H17: =144318+2637435 -> 2781753 | I17: =4199312+1578743 -> 5778055 | J17: 56697 | K17: 56754 | L17: 15500 | M17: 1396607 | N17: =352795+5057915 -> 5410710 | O17: =192850+1428560 -> 1621410 | P17: 7670 | Q17: =225613+383135 -> 608748 | R17: =5818595+7087453 -> 12906048 | S17: 81714 | U17: 86904 | V17: 49543 | W17: =87191+437423 -> 524614 | X17: =142989+588082 -> 731071 | Y17: 987516 | Z17: =97865+2968040 -> 3065905 | AB17: =SUM(C17:AA17) -> 42448260
B18: Water | C18: 54994 | D18: 392596 | E18: =3132738+69879 -> 3202617 | F18: =13119463+7108616 -> 20228079 | G18: =1095841+1229808 -> 2325649 | H18: 818377 | I18: 354935 | J18: 439200 | K18: =25553+716874 -> 742427 | L18: 23777 | M18: =38403+874540 -> 912943 | N18: 1370499 | O18: =8282951+2525133 -> 10808084 | P18: 95349 | Q18: 411919 | R18: 3660786 | S18: =12+2556729 -> 2556741 | T18: 9537 | U18: =2125531+249932 -> 2375463 | V18: 89635 | W18: 1287673 | X18: 11768026 | Y18: =347625+7545036 -> 7892661 | Z18: =257413+3611372 -> 3868785 | AA18: 66383
A19: September | B19: Steam | C19: =57606+14035 -> 71641 | D19: 172050 | E19: =16257+49123 -> 65380 | F19: =147104+5038164 -> 5185268 | G19: 15436 | H19: =189821+2347561 -> 2537382 | I19: =3941060+1509638 -> 5450698 | J19: 49583 | K19: 57549 | L19: 15000 | M19: =5865+1129988 -> 1135853 | N19: =326071+4822779 -> 5148850 | O19: =139708+1447802 -> 1587510 | P19: 15290 | Q19: =207908+372531 -> 580439 | R19: =5625709+6814446 -> 12440155 | S19: 131301 | U19: 101332 | V19: 22986 | W19: =85357+423154 -> 508511 | X19: =158269+546499 -> 704768 | Y19: 902140 | Z19: =119301+2801902 -> 2921203 | AB19: =SUM(C19:AA19) -> 39820325
B20: Water | C20: 65124 | D20: 386745 | E20: =2883276+67719 -> 2950995 | F20: =12324987+7394662 -> 19719649 | G20: =1058197+1044498 -> 2102695 | H20: 720704 | I20: 358195 | J20: 387576 | K20: =21532+699830 -> 721362 | L20: 23712 | M20: =23517+709065 -> 732582 | N20: 1491353 | O20: =8085082+1844933 -> 9930015 | P20: 92208 | Q20: 521747 | R20: 3695427 | S20: =12+1797233 -> 1797245 | T20: 9722 | U20: =2136702+269700 -> 2406402 | V20: 77095 | W20: 1137492 | X20: 11369990 | Y20: =387661+7848239 -> 8235900 | Z20: =273680+3533930 -> 3807610 | AA20: 59702
A21: October | B21: Steam | C21: =56575+28029 -> 84604 | D21: 172832 | E21: =14998+56591 -> 71589 | F21: =292560+5689380 -> 5981940 | G21: 15436 | H21: =168380+2466359 -> 2634739 | I21: =2487769+1455549 -> 3943318 | J21: 55784 | K21: 61549 | L21: 15500 | M21: =22617+1223532 -> 1246149 | N21: =314548+4911003 -> 5225551 | O21: =177568+1502895 -> 1680463 | P21: 30488 | Q21: =192116+417761 -> 609877 | R21: =5828131+6969651 -> 12797782 | S21: 93829 | T21: 20322 | U21: 119195 | V21: 10454 | W21: =80297+464699 -> 544996 | X21: =148180+560811 -> 708991 | Y21: 860370 | Z21: =87101+2931700 -> 3018801 | AB21: =SUM(C21:AA21) -> 40004559
B22: Water | C22: 58947 | D22: 424915 | E22: =2973945+71352 -> 3045297 | F22: =12886996+7810176 -> 20697172 | G22: =1077230+1129666 -> 2206896 | H22: 610204 | I22: 190557 | J22: 391762 | K22: =21490+669018 -> 690508 | L22: 23632 | M22: =18526+755416 -> 773942 | N22: 1361405 | O22: =8527333+2314867 -> 10842200 | P22: 73804 | Q22: 547835 | R22: 3746517 | S22: =12+1256646 -> 1256658 | T22: 10043 | U22: =2167768+257308 -> 2425076 | V22: 84437 | W22: 1121493 | X22: 11519716 | Y22: =210870+7916817 -> 8127687 | Z22: =309555+3670154 -> 3979709 | AA22: 61785
A23: November | B23: Steam | C23: =52354+50853 -> 103207 | D23: 169505 | E23: =3546+60173 -> 63719 | F23: =215621+5624116 -> 5839737 | G23: =37805 -> 37805 | H23: =81034+2303748 -> 2384782 | I23: =2794293+1462301 -> 4256594 | J23: 62602 | L23: 15000 | M23: 1081738 | N23: =336478+4711182 -> 5047660 | O23: =148902+1497538 -> 1646440 | P23: 20497 | Q23: =201625+415519 -> 617144 | R23: =5691481+6921398 -> 12612879 | S23: 12668 | U23: 111609 | V23: 26543 | W23: =97431+394391 -> 491822 | X23: =141354+549130 -> 690484 | Y23: 905471 | Z23: =72093+2857167 -> 2929260 | AB23: =SUM(C23:AA23) -> 39127166
B24: Water | C24: 66634 | D24: 414607 | E24: =2695339+77715 -> 2773054 | F24: =11816092+7954256 -> 19770348 | G24: =1185027+1042415 -> 2227442 | H24: 922263 | I24: 190473 | J24: 372167 | K24: =80010+688987 -> 768997 | L24: 20816 | M24: =3423+860016 -> 863439 | N24: 1611691 | O24: =8182923+2350621 -> 10533544 | P24: 93141 | Q24: 510088 | R24: 3697013 | S24: 1247271 | T24: 9817 | U24: =2072076+224801 -> 2296877 | V24: 79475 | W24: 1112335 | X24: 9831336 | Y24: =197872+7534658 -> 7732530 | Z24: =224815+3716569 -> 3941384 | AA24: 60537
A25: December | B25: Steam | C25: =5370+56973 -> 62343 | D25: 175123 | E25: =67381 -> 67381 | F25: =318560+5609465 -> 5928025 | G25: =83185+37805 -> 120990 | H25: =140618+2287310 -> 2427928 | I25: =3337316+1449553 -> 4786869 | J25: 54136 | L25: 15500 | M25: 1131527 | N25: =312866+4795773 -> 5108639 | O25: =130735+1548255 -> 1678990 | P25: 28847 | Q25: =218005+390563 -> 608568 | R25: =5678335+6980574 -> 12658909 | S25: 12668 | U25: 93327 | V25: 21405 | W25: =137368+434175 -> 571543 | X25: =192280+506877 -> 699157 | Y25: =18365+910273 -> 928638 | Z25: =65144+2935663 -> 3000807 | AB25: =SUM(C25:AA25) -> 40181320
B26: Water | C26: 78649 | D26: 407447 | E26: =2764219+80541 -> 2844760 | F26: =11894984+7564002 -> 19458986 | G26: =849238+1051408 -> 1900646 | H26: 1055046 | I26: 259375 | J26: 378135 | K26: =78238+630931 -> 709169 | L26: 21502 | M26: =9244+755695 -> 764939 | N26: 1890058 | O26: =8391323+2250324 -> 10641647 | P26: 113476 | Q26: 530415 | R26: 3334759 | S26: 1125382 | T26: 9947 | U26: =2210259+280315 -> 2490574 | V26: 100339 | W26: 1201741 | X26: 9108178 | Y26: =184773+6929731 -> 7114504 | Z26: =262586+3906803 -> 4169389 | AA26: 46730
A27: Total | B27: Steam | C27: =C3+C5+C7+C9+C11+C13+C15+C17+C19+C21+C23+C25 -> 725048 | D27: 2072626 | E27: 752854 | F27: 68348926 | G27: 313155 | H27: 31694391 | I27: 62129830 | J27: 703986 | K27: 694195 | L27: 166500 | M27: 13640116 | N27: 63724634 | O27: 19648596 | P27: 174258 | Q27: 6948669 | R27: 153674171 | S27: 526237 | T27: 36975 | U27: 1134289 | V27: 360834 | W27: 6381938 | X27: 8435597 | Y27: 10756868 | Z27: 36109621 | AA27: 27940 | AB27: 489182254
B28: Water | C28: =C4+C6+C8+C10+C12+C14+C16+C18+C20+C22+C24+C26 -> 558937 | D28: 4682581 | E28: 34006726 | F28: 241715009 | G28: 26900044 | H28: 13171162 | I28: 3778615 | J28: 5155361 | K28: 8915093 | L28: 247897 | M28: 9354376 | N28: 20906482 | O28: 128022988 | P28: 904316 | Q28: 5546990 | R28: 45100442 | S28: 17507408 | T28: 113930 | U28: 29513736 | V28: 1005236 | W28: 14071061 | X28: 119923712 | Y28: 92155080 | Z28: 42826465 | AA28: 625234
B29: Oil | C29: 303269 | D29: 416513 | E29: 2936578 | F29: 26470458 | G29: 730083 | H29: 5638453 | I29: 15475608 | J29: 745888 | K29: 469295 | L29: 101168 | M29: 2808120 | N29: 27376634 | O29: 11432041 | P29: 151861 | Q29: 2016851 | R29: 32407532 | S29: 523056 | T29: 132537 | U29: 1075528 | V29: 118490 | W29: 744659 | X29: 2486338 | Y29: 2675935 | Z29: 6048571 | AA29: 54244 | AB29: =SUM(C29:AA29) -> 143339710
B30: SOR | C30: =C27/C29 -> 2.390775186 | D30: 4.9761376 | E30: 0.2563711912 | F30: 2.582083242 | G30: 0.4289306832 | H30: 5.621114692 | I30: 4.014693962 | J30: 0.9438226651 | K30: 1.479229483 | L30: 1.645777321 | M30: 4.857383588 | N30: 2.327701572 | O30: 1.718730365 | P30: 1.147483554 | Q30: 3.445306074 | R30: 4.741927617 | S30: 1.006081567 | T30: 0.2789787003 | U30: 1.054634561 | V30: 3.045269643 | W30: 8.570282505 | X30: 3.392779662 | Y30: 4.019853995 | Z30: 5.969942487 | AA30: 0.5150800088 | AB30: 3.412747619

Sheet Oil-Gas Fields
A1: Oil/Gas Fields
C2: Aliso Canyon | D2: Honor Rancho | E2: Kettleman North | F2: Playa Del Rey | G2: Source
A3: January | B3: Oil (bbl) | C3: 7073 | D3: 5471 | E3: 3281 | F3: 3992 | G3: January to December 2010 Monthly Oil and Gas Production and Injection Report, California Department of Conservation
B4: Gas Produced (Mcf) | C4: 2454 | D4: 1171 | E4: 2920 | F4: 3063 | G4: Restricted field data to oil wells.
B5: Water Produced (bbl) | C5: 25771 | D5: 47146 | E5: 30896 | F5: 47941
B6: Gas Injected (Mcf) | C6: 0 | D6: 0 | E6: 0 | F6: 0
B7: Water Injected (bbl) | C7: =8381+69414 -> 77795 | D7: 56654 | E7: 29753 | F7: 23594
A8: February | B8: Oil (bbl) | C8: 5397 | D8: 3754 | E8: 2311 | F8: 4080
B9: Gas Produced (Mcf) | C9: 1784 | D9: 825 | E9: 2376 | F9: 3020
B10: Water Produced (bbl) | C10: 22271 | D10: 30503 | E10: 30463 | F10: 59435
B11: Gas Injected (Mcf) | C11: 0 | D11: 0 | E11: 0 | F11: 0
B12: Water Injected (bbl) | C12: =6311+40215 -> 46526 | D12: 40675 | E12: 0 | F12: 32037
A13: March | B13: Oil (bbl) | C13: 6228 | D13: 2215 | E13: 1755 | F13: 3967
B14: Gas Produced (Mcf) | C14: 2110 | D14: 969 | E14: 1051 | F14: 2347
B15: Water Produced (bbl) | C15: 25932 | D15: 24611 | E15: 22092 | F15: 63529
B16: Gas Injected (Mcf) | C16: 0 | D16: 0 | E16: 0 | F16: 0
B17: Water Injected (bbl) | C17: =6088+40130 -> 46218 | D17: 26941 | E17: 0 | F17: 43585
A18: April | B18: Oil (bbl) | C18: 9169 | D18: 2235 | E18: 2578 | F18: 2608
B19: Gas Produced (Mcf) | C19: 2093 | D19: 1071 | E19: 913 | F19: 1334
B20: Water Produced (bbl) | C20: 26886 | D20: 36334 | E20: 23414 | F20: 50100
B21: Gas Injected (Mcf) | C21: 0 | D21: 0 | E21: 0 | F21: 0
B22: Water Injected (bbl) | C22: =7585+38101 -> 45686 | D22: 41133 | E22: 0 | F22: 54464
A23: May | B23: Oil (bbl) | C23: 8898 | D23: 2000 | E23: 2147 | F23: 2024
B24: Gas Produced (Mcf) | C24: 2511 | D24: 1200 | E24: 2615 | F24: 2233
B25: Water Produced (bbl) | C25: 34882 | D25: 33416 | E25: 194492 | F25: 48712
B26: Gas Injected (Mcf) | C26: 0 | D26: 0 | E26: 0 | F26: 0
B27: Water Injected (bbl) | C27: =38097+13936 -> 52033 | D27: 38531 | E27: 0 | F27: 59269
A28: June | B28: Oil (bbl) | C28: 7092 | D28: 3685 | E28: 2890 | F28: 2188
B29: Gas Produced (Mcf) | C29: 2424 | D29: 984 | E29: 3019 | F29: 1677
B30: Water Produced (bbl) | C30: 30159 | D30: 31290 | E30: 11056 | F30: 75013
B31: Gas Injected (Mcf) | C31: 0 | D31: 0 | E31: 0 | F31: 0
B32: Water Injected (bbl) | C32: 39748 | D32: 39312 | E32: 0 | F32: 69455
A33: July | B33: Oil (bbl) | C33: 7099 | D33: 6830 | E33: 2463 | F33: 4493
B34: Gas Produced (Mcf) | C34: 2337 | D34: 1046 | E34: 1066 | F34: 3639
B35: Water Produced (bbl) | C35: 22210 | D35: 40349 | E35: 3546 | F35: 55468
B36: Gas Injected (Mcf) | C36: 0 | D36: 0 | E36: 0 | F36: 0
B37: Water Injected (bbl) | C37: =32153+71 -> 32224 | D37: 44404 | E37: 0 | F37: 59389
A38: August | B38: Oil (bbl) | C38: 6489 | D38: 5554 | E38: 4568 | F38: 4817
B39: Gas Produced (Mcf) | C39: 1674 | D39: 1235 | E39: 1106 | F39: 4393
B40: Water Produced (bbl) | C40: 26070 | D40: 45131 | E40: 14102 | F40: 49686
B41: Gas Injected (Mcf) | C41: 0 | D41: 0 | E41: 0 | F41: 0
B42: Water Injected (bbl) | C42: =29144+5262 -> 34406 | D42: 48031 | E42: 0 | F42: 56463
A43: September | B43: Oil (bbl) | C43: 6854 | D43: 5834 | E43: 3219 | F43: 3641
B44: Gas Produced (Mcf) | C44: 2041 | D44: 1271 | E44: 12995 | F44: 4092
B45: Water Produced (bbl) | C45: 27273 | D45: 45365 | E45: 12011 | F45: 67606
B46: Gas Injected (Mcf) | C46: 0 | D46: 0 | E46: 0 | F46: 0
B47: Water Injected (bbl) | C47: 44182 | D47: 51088 | E47: 0 | F47: 61921
A48: October | B48: Oil (bbl) | C48: 6447 | D48: 4165 | E48: 4183 | F48: 3128
B49: Gas Produced (Mcf) | C49: 1905 | D49: 1150 | E49: 19341 | F49: 3904
B50: Water Produced (bbl) | C50: 25545 | D50: 38381 | E50: 13669 | F50: 96351
B51: Gas Injected (Mcf) | C51: 0 | D51: 0 | E51: 0 | F51: 0
B52: Water Injected (bbl) | C52: =29743+3060 -> 32803 | D52: 42191 | E52: 0 | F52: 75258
A53: November | B53: Oil (bbl) | C53: 6775 | D53: 7208 | E53: 3473 | F53: 4925
B54: Gas Produced (Mcf) | C54: 1722 | D54: 1109 | E54: 21779 | F54: 4431
B55: Water Produced (bbl) | C55: 16143 | D55: 37310 | E55: 13484 | F55: 69671
B56: Gas Injected (Mcf) | C56: 0 | D56: 0 | E56: 0 | F56: 0
B57: Water Injected (bbl) | C57: =21483+2120 -> 23603 | D57: 38680 | E57: 0 | F57: 63573
A58: December | B58: Oil (bbl) | C58: 6527 | D58: 4736 | E58: 4377 | F58: 4338
B59: Gas Produced (Mcf) | C59: 1605 | D59: 663 | E59: 20757 | F59: 4149
B60: Water Produced (bbl) | C60: 19187 | D60: 22039 | E60: 29451 | F60: 75852
B61: Gas Injected (Mcf) | C61: 0 | D61: 0 | E61: 0 | F61: 0
B62: Water Injected (bbl) | C62: =31189+7389 -> 38578 | D62: 23494 | E62: 0 | F62: 52940
A63: Total | B63: Oil (bbl) | C63: =SUM(C3,C8,C13,C18,C23,C28,C33,C38,C43,C48,C53,C58) -> 84048 | D63: 53687 | E63: 37245 | F63: =SUM(F3,C8,F13,F18,F23,F28,F33,F38,F43,F48,F53,F58) -> 45518
B64: Gas Produced (Mcf) | C64: 24660 | D64: 12694 | E64: 89938 | F64: =SUM(F4,C9,F14,F19,F24,F29,F34,F39,F44,F49,F54,F59) -> 37046
B65: Water Produced (bbl) | C65: 302329 | D65: 431875 | E65: 398676 | F65: =SUM(F5,F10,F15,F20,F25,F30,F35,F40,F45,F50,F55,F60) -> 759364
B66: Gas Injected (Mcf) | C66: 0 | D66: 0 | E66: 0 | F66: =SUM(F6,F11,F16,F21,F26,F31,F36,F41,F46,F51,F56,F61) -> 0
B67: Water Injected (bbl) | C67: 513802 | D67: 491134 | E67: 29753 | F67: =SUM(F7,F12,F17,F22,F27,F32,F37,F42,F47,F52,F57,F62) -> 651948
B68: GOR (scf/bbl) | C68: =C64*1000/C63 -> 293.4037693 | D68: =D64*1000/D63 -> 236.4445769 | E68: =E64*1000/E63 -> 2414.767083 | F68: =F64*1000/F63 -> 813.8758293
B69: WOR (bbl/bbl) | C69: =C65/C63 -> 3.597099277 | D69: 8.044312403 | E69: 10.70414821 | F69: 16.68271892
B70: Fraction gas injected | C70: 0 | D70: 0 | E70: 0 | F70: 0
B71: Fraction water injected | C71: 1.699479706 | D71: 1.137213314 | E71: 0.07462952372 | F71: 0.8585447822
B72: Water injection ratio | C72: =C67/C63 -> 6.113197221 | D72: =D67/D63 -> 9.148099167

Sheet Cogen Data
A1: Cogeneration at CA TEOR fields | C1: Source for Capacity Steam Rate Data: 2009 Annual Report of the State Oil and Gas Supervisor - California Department of Conservation
E2: 0.8
A3: Field | B3: Operator | C3: Capacity Steam Rate (lb/hr) | D3: Capacity Steam Rate (bbl cwe/yr) | E3: Capacity Factor | F3: 2010 Steam Injection Rate (bbl cwe/yr) | G3: Fraction steam from Cogen | H3: Field | I3: Excess steam (bbl cwe/yr)
A4: Placerita | B4: AES | C4: 110000
B5: Berry | C5: 190000
C6: =C4+C5 -> 300000 | D6: =C6*24*365/62.3*7.4805/42 -> 7513091.034 | E6: =E2 -> 0.8 | F6: ='TEOR Fields'!W27 -> 6381938 | G6: =D6*E6/F6 -> 0.9417942994 | H6: Placerita
A7: Arroyo Grande | B7: Plains E&P | C7: 13000 | D7: =C7*24*365/62.3*7.4805/42 -> 325567.2781 | E7: =E2 -> 0.8 | F7: ='TEOR Fields'!D27 -> 2072626 | G7: =D7*E7/F7 -> 0.1256636858 | H7: Arroyo Grande
A8: San Ardo | B8: Aera | C8: 84000
B9: Chevron | C9: 224000
B10: Chevron | C10: 228000
C11: =SUM(C8:C10) -> 536000 | D11: =C11*24*365/62.3*7.4805/42 -> 13423389.31 | E11: =E2 -> 0.8 | F11: ='TEOR Fields'!Z27 -> 36109621 | G11: =D11*E11/F11 -> 0.2973919735 | H11: San Ardo
A12: Belridge, South | B12: Aera | C12: 175000
B13: Aera | C13: 300000
C14: =SUM(C12:C13) -> 475000 | D14: =C14*24*365/62.3*7.4805/42 -> 11895727.47 | E14: =E2 -> 0.8 | F14: ='TEOR Fields'!F27 -> 68348926 | G14: =D14*E14/F14 -> 0.1392352819 | H14: Belridge, South
A15: Cymric | B15: Chevron | C15: 102147
B16: Chevron | C16: 48734
B17: Chevron | C17: 65849
B18: PXP | C18: 51000
C19: =SUM(C15:C18) -> 267730 | D19: =C19*24*365/62.3*7.4805/42 -> 6704932.875 | E19: =E2 -> 0.8 | F19: ='TEOR Fields'!I27 -> 62129830 | G19: =D19*E19/F19 -> 0.08633447573 | H19: Cymric
A20: Elk Hills | B20: Occidental | C20: 177000 | D20: =C20*24*365/62.3*7.4805/42 -> 4432723.71 | E20: =E2 -> 0.8 | F20: 0 | G20: NA | H20: Elk Hills | I20: =D20*E20-F20 -> 3546178.968
A21: Jasmin | B21: Tetra | C21: 290000 | D21: =C21*24*365/62.3*7.4805/42 -> 7262654.666 | E21: =E2 -> 0.8 | F21: ='TEOR Fields'!L27 -> 166500 | G21: 1 | H21: Jasmin | I21: =D21*E21-F21 -> 5643623.733
A22: Kern Front | B22: Oxy USA | C22: 95000
B23: Oxy USA | C23: 95000
B24: Oxy USA | C24: 44000
B25: Oxy USA | C25: 95000
C26: =SUM(C22:C25) -> 329000 | D26: =C26*24*365/62.3*7.4805/42 -> 8239356.501 | E26: =E2 -> 0.8 | F26: ='TEOR Fields'!M27 -> 13640116 | G26: =D26*E26/F26 -> 0.4832426059 | H26: Kern Front
A27: Kern River | B27: Chevron | C27: 55000
B28: Chevron | C28: 55000
B29: Chevron | C29: 28000
B30: Chevron | C30: 269432
B31: DAI | C31: 90000
B32: Chevron | C32: 146000
B33: Chevron | C33: 9000
B34: Chevron | C34: 1116900
B35: Chevron | C35: 1116000
B36: Chevron | C36: 32500
C37: =+SUM(C27:C36) -> 2917832 | D37: =C37*24*365/62.3*7.4805/42 -> 73073124.79 | E37: =E2 -> 0.8 | F37: ='TEOR Fields'!N27 -> 63724634 | G37: =D37*E37/F37 -> 0.917361092 | H37: Kern River
A38: Lost Hills | B38: Aera | C38: 66000 | D38: =C38*24*365/62.3*7.4805/42 -> 1652880.028 | E38: =E2 -> 0.8 | F38: ='TEOR Fields'!O27 -> 19648596 | G38: =D38*E38/F38 -> 0.06729763399 | H38: Lost Hills
A39: McKittrick | B39: Chevron | C39: 115000
B40: McKittrick | C40: 35000
C41: =SUM(C39:C40) -> 150000 | D41: =C41*24*365/62.3*7.4805/42 -> 3756545.517 | E41: =E2 -> 0.8 | F41: ='TEOR Fields'!Q27 -> 6948669 | G41: =D41*E41/F41 -> 0.4324909438 | H41: McKittrick
A42: Midway Sunset | B42: Aera | C42: 37120
B43: Aera | C43: 1222000
B44: Berry | C44: 185000
B45: Berry | C45: 80000
B46: Chevron | C46: 210000
B47: Berry | C47: 31000
B48: Aera | C48: 25000
B49: Chevron | C49: 66000
B50: Chevron | C50: 215000
B51: PXP | C51: 101000
C52: =SUM(C42:C51) -> 2172120 | D52: =C52*24*365/62.3*7.4805/42 -> 54397784.32 | E52: =E2 -> 0.8 | F52: ='TEOR Fields'!R27 -> 153674171 | G52: =D52*E52/F52 -> 0.2831850478 | H52: Midway Sunset
A53: Mount Poso | B53: MacPherson | C53: 25000 | D53: =C53*24*365/62.3*7.4805/42 -> 626090.9195 | E53: =E2 -> 0.8 | F53: ='TEOR Fields'!S27 -> 526237 | G53: =D53*E53/F53 -> 0.9518006822 | H53: Mount Poso
A54: Poso Creek | B54: Rio Bravo | C54: 290000 | D54: =C54*24*365/62.3*7.4805/42 -> 7262654.666 | E54: =E2 -> 0.8 | F54: ='TEOR Fields'!X27 -> 8435597 | G54: =D54*E54/F54 -> 0.6887626013 | H54: Poso Creek
A55: Coalinga | B55: Chevron | C55: 85000
B56: Chevron | C56: 84500
B57: Chevron | C57: 84500
B58: Coalinga | C58: 215000
B59: Aera | C59: 48000
C60: =SUM(C55:C59) -> 517000 | D60: =C60*24*365/62.3*7.4805/42 -> 12947560.22 | E60: =E2 -> 0.8 | F60: ='TEOR Fields'!H27 -> 31694391 | G60: =D60*E60/F60 -> 0.3268101341 | H60: Coalinga
A61: California | D61: =SUM(D4:D60) -> 213514083.3 | E61: =E2 -> 0.8 | F61: ='TEOR Fields'!AB27 -> 489182254 | G61: =D61*E61/F61 -> 0.3491771528 | H61: California

Sheet API gravity
A1: API gravity (density) by field
B2: Data Sources: | C2: California Oil and Gas Fields, Volumes I-III. California Department of Conservation, Division of Oil, Gas, and Geothermal Resources, 1982, 1992, 1998
C3: 2009 Annual Report of the State Oil and Gas Supervisor - California Department of Conservation
A4: Field
A5: Pool | B5: 2009 Production (bbl) | C5: API Gravity | D5: API Gravity Used in Calculation | E5: SG | F5: 2009 Field Production | G5: Production-weighted API for Field | H5: Production-weighted SG for Field | I5: API from Production-weighted SG
A6: Alegria | B6: 0 | C6: 12-25 | D6: 18.5 | E6: =141.5/(D6+131.5) -> 0.9433333333 | F6: =B6 -> 0 | G6: =D6 -> 18.5 | H6: =141.5/(G6+131.5) -> 0.9433333333 | I6: =(141.5/H6)-131.5 -> 18.5
A7: Aliso Canyon | F7: =SUM(B8:B12) -> 147609 | G7: =SUMPRODUCT($B8:$B12,D8:D12)/SUM($B8:$B12) -> 31.01620091 | H7: =SUMPRODUCT($B8:$B12,E8:E12)/SUM($B8:$B12) -> 0.872625868 | I7: =(141.5/H7)-131.5 -> 30.65425784
A8: Aliso | B8: 3314 | C8: 14.5 | D8: 14.5 | E8: =141.5/(D8+131.5) -> 0.9691780822
A9: Aliso, West | B9: 1042 | C9: 11 | D9: 11 | E9: 0.9929824561
A10: Porter-Del Aliso | B10: 53762 | C10: 22.5 | D10: 22.5 | E10: 0.9188311688
A11: Monterey | B11: 113 | C11: 14.5, 11, 23.5, 23.9, 29, 37, 20-24 | D11: 18.8 | E11: 0.9414504325
A12: Sesnon-Frew | B12: 89378 | C12: 37 | D12: 37 | E12: 0.8397626113
A13: Alondra | B13: 0 | C13: 26-29 | D13: 27.5 | E13: 0.8899371069 | F13: =B13 -> 0 | G13: =D13 -> 27.5 | H13: =141.5/(G13+131.5) -> 0.8899371069 | I13: =(141.5/H13)-131.5 -> 27.5
A14: Anaheim | B14: 0 | C14: 11 | D14: 11 | E14: 0.9929824561 | F14: =B14 -> 0 | G14: =D14 -> 11 | H14: =141.5/(G14+131.5) -> 0.9929824561 | I14: =(141.5/H14)-131.5 -> 11
A15: Ant Hill | F15: =SUM(B16:B17) -> 58185 | G15: =SUMPRODUCT($B16:$B17,D16:D17)/SUM($B16:$B17) -> 14 | H15: =SUMPRODUCT($B16:$B17,E16:E17)/SUM($B16:$B17) -> 0.9725085911 | I15: =(141.5/H15)-131.5 -> 14
A16: Olcese | B16: 58185 | C16: 14 | D16: 14 | E16: =141.5/(D16+131.5) -> 0.9725085911
A17: Jewett | B17: 0 | C17: 39 | D17: 39 | E17: =141.5/(D17+131.5) -> 0.8299120235
A18: Antelope Hills | F18: =SUM(B19:B27) -> 156441 | G18: =SUMPRODUCT($B19:$B27,D19:D27)/SUM($B19:$B27) -> 17.64222423 | H18: =SUMPRODUCT($B19:$B27,E19:E27)/SUM($B19:$B27) -> 0.9488698057 | I18: =(141.5/H18)-131.5 -> 17.62477891
A19: Hopkins Area
A20: Phacoides | B20: 1104 | C20: 31 | D20: 31 | E20: =141.5/(D20+131.5) -> 0.8707692308
A21: Eocene | B21: 2518 | C21: 18, 31, 17, 11-13, 17, 18 | D21: 18.8 | E21: =141.5/(D21+131.5) -> 0.9414504325
A22: Williams Area
A23: Upper | B23: 4249 | C23: 11-13 | D23: 12 | E23: =141.5/(D23+131.5) -> 0.9860627178
A24: East Block-Button Bed | B24: 26790 | C24: 17 | D24: 17 | E24: =141.5/(D24+131.5) -> 0.9528619529
A25: East Block-Agua | B25: 38914 | C25: 18 | D25: 18 | E25: =141.5/(D25+131.5) -> 0.9464882943
A26: West Block-Button Bed & Agua | B26: 34896 | C26: 18, 31, 17, 11-13, 17, 18 | D26: 18.8 | E26: =141.5/(D26+131.5) -> 0.9414504325
A27: Point of Rocks | B27: 47970 | C27: 17 | D27: 17 | E27: =141.5/(D27+131.5) -> 0.9528619529
A28: Antelope Hills, North | F28: =SUM(B29:B30) -> 247591 | G28: =SUMPRODUCT($B29:$B30,D29:D30)/SUM($B29:$B30) -> 15.37639737 | H28: =SUMPRODUCT($B29:$B30,E29:E30)/SUM($B29:$B30) -> 0.9634223475 | I28: =(141.5/H28)-131.5 -> 15.37224183
A29: Miocene-Eocene | B29: 96499 | C29: 14.4 | D29: 14.4 | E29: =141.5/(D29+131.5) -> 0.9698423578
A30: Point of Rocks | B30: 151092 | C30: 16 | D30: 16 | E30: =141.5/(D30+131.5) -> 0.9593220339
A31: Arroyo Grande | B31: 451664 | C31: 14 | D31: 14 | E31: =141.5/(D31+131.5) -> 0.9725085911 | F31: =B31 -> 451664 | G31: =D31 -> 14 | H31: =141.5/(G31+131.5) -> 0.9725085911 | I31: =(141.5/H31)-131.5 -> 14
A32: Asphalto | F32: =SUM(B33:B38) -> 238399 | G32: =SUMPRODUCT($B33:$B38,D33:D38)/SUM($B33:$B38) -> 35.84812185 | H32: =SUMPRODUCT($B33:$B38,E33:E38)/SUM($B33:$B38) -> 0.8458174752 | I32: =(141.5/H32)-131.5 -> 35.7937769
A33: Etchegoin | B33: 5106 | C33: 19 | D33: 19 | E33: =141.5/(D33+131.5) -> 0.9401993355
A34: Olig | B34: 0 | C34: 30-77 | D34: 53.5 | E34: 0.7648648649
A35: Antelope Shale | B35: 29807 | C35: 35.7 | D35: 35.7 | E35: 0.846291866
A36: Stevens | B36: 197219 | C36: 29-43 | D36: 36 | E36: 0.8447761194
A37: 1st Carneros | B37: 6267 | C37: 31-60 | D37: 45.5 | E37: 0.7994350282
A38: Carneros (ABD) | B38: 0 | C38: 31-60 | D38: 45.5 | E38: 0.7994350282
A39: Bandini | F39: =SUM(B40:B41) -> 9872 | G39: =SUMPRODUCT($B40:$B41,D40:D41)/SUM($B40:$B41) -> 37.4 | H39: =SUMPRODUCT($B40:$B41,E40:E41)/SUM($B40:$B41) -> 0.8377738307 | I39: =(141.5/H39)-131.5 -> 37.4
A40: Pliocene | B40: 9872 | C40: 32, 38, 39, 40, 39, 38, 36 | D40: 37.4 | E40: =141.5/(D40+131.5) -> 0.8377738307
A41: Miocene (ABD) | B41: 0 | C41: 32, 38, 39, 40, 39, 38, 36 | D41: 37.4 | E41: =141.5/(D41+131.5) -> 0.8377738307
A42: Bardsdale | F42: =SUM(B43:B44) -> 45641 | G42: =SUMPRODUCT($B43:$B44,D43:D44)/SUM($B43:$B44) -> 29.2 | H42: =SUMPRODUCT($B43:$B44,E43:E44)/SUM($B43:$B44) -> 0.8805227131 | I42: =(141.5/H42)-131.5 -> 29.2
A43: No Pool Breakdown | B43: 33477 | C43: 27.2, 26.7, 33.6 | D43: 29.2 | E43: =141.5/(D43+131.5) -> 0.8805227131
A44: Deep | B44: 12164 | C44: 27.2, 26.7, 33.6 | D44: 29.2 | E44: =141.5/(D44+131.5) -> 0.8805227131
A45: Barham Ranch | F45: =SUM(B46:B48) -> 87898 | G45: =SUMPRODUCT($B46:$B48,D46:D48)/SUM($B46:$B48) -> 27.48246832 | H45: =SUMPRODUCT($B46:$B48,E46:E48)/SUM($B46:$B48) -> 0.8920515377 | I45: =(141.5/H45)-131.5 -> 27.12312212
A46: La Laguna Area
A47: Monterey | B47: 67603 | C47: 30-33 | D47: 31.5 | E47: =141.5/(D47+131.5) -> 0.8680981595
A48: Old Area | B48: 20295 | C48: 14.1 | D48: 14.1 | E48: 0.9718406593
A49: Beer Nose | B49: 2418 | C49: 31 | D49: 31 | E49: 0.8707692308 | F49: =B49 -> 2418 | G49: =D49 -> 31 | H49: =141.5/(G49+131.5) -> 0.8707692308 | I49: =(141.5/H49)-131.5 -> 31
A50: Belgian Anticline | B50: 53858 | C50: 33, 37, 36, 33-60, 30, 33, 10-22, 38, 29-43 | D50: 33.9 | E50: 0.8555018138 | F50: =B50 -> 53858 | G50: =D50 -> 33.9 | H50: =141.5/(G50+131.5) -> 0.8555018138 | I50: =(141.5/H50)-131.5 -> 33.9
A51: Bellevue | B51: 32676 | C51: 33-35 | D51: 34 | E51: 0.8549848943 | F51: =B51 -> 32676 | G51: =D51 -> 34 | H51: =141.5/(G51+131.5) -> 0.8549848943 | I51: =(141.5/H51)-131.5 -> 34
A52: Bellevue, West | B52: 29061 | C52: 35, 38, 32 | D52: 31.7 | E52: 0.8670343137 | F52: =B52 -> 29061 | G52: =D52 -> 31.7 | H52: =141.5/(G52+131.5) -> 0.8670343137 | I52: =(141.5/H52)-131.5 -> 31.7
A53: Belridge, North | E53: 1.076045627 | F53: =SUM(B54:B61) -> 3266538 | G53: =SUMPRODUCT($B54:$B61,D54:D61)/SUM($B54:$B61) -> 27.3158379 | H53: =SUMPRODUCT($B54:$B61,E54:E61)/SUM($B54:$B61) -> 0.891459788 | I53: =(141.5/H53)-131.5 -> 27.22841592
A54: Tulare | B54: 123153 | C54: 13 | D54: 13 | E54: 0.9792387543
A55: Diatomite | B55: 3062605 | C55: 24-31 | D55: 27.5 | E55: 0.8899371069
A56: Fractured Shale | B56: 0 | C56: 10-32 | D56: 21 | E56: 0.9278688525
A57: Temblor | B57: 11201 | C57: 40 | D57: 40 | E57: 0.8250728863
A58: R Sand | B58: 14533 | C58: 52 | D58: 52 | E58: 0.7711171662
A59: Carneros | B59: 0 | C59: 39 | D59: 39 | E59: 0.8299120235
A60: Belridge 64 | B60: 55046 | C60: 30-50 | D60: 40 | E60: 0.8250728863
A61: Y Sand (ABD) | B61: 0 | C61: 32 | D61: 32 | E61: 0.8654434251
A62: Belridge, South | F62: =SUM(B63:B70) -> 29273890 | G62: =SUMPRODUCT($B63:$B70,D63:D70)/SUM($B63:$B70) -> 21.74790593 | H62: =SUMPRODUCT($B63:$B70,E63:E70)/SUM($B63:$B70) -> 0.925488621 | I62: =(141.5/H62)-131.5 -> 21.39220935
A63: Tulare | B63: 11234703 | C63: 11-14 | D63: 12.5 | E63: =141.5/(D63+131.5) -> 0.9826388889
A64: Diatomite | B64: 17929189 | C64: 25-30 | D64: 27.5 | E64: 0.8899371069
A65: Diatomite-Antelope Shale | B65: 42673 | C65: 25-30, 26-32 | D65: 28.3 | E65: 0.8854818523
A66: Belridge 64 | B66: 250 | C66: 11-14, 13, 25-30, 26-32, 37, 37 | D66: 26 | E66: 0.8984126984
A67: Etchegoin | B67: 0 | C67: 13 | D67: 13 | E67: 0.9792387543
A68: Antelope Shale | B68: 67075 | C68: 26-32 | D68: 29 | E68: 0.8816199377
A69: McDonald | B69: 0 | C69: 37 | D69: 37 | E69: 0.8397626113
A70: Devilwater Gold | B70: 0 | C70: 37 | D70: 37 | E70: 0.8397626113
A71: Beverly Hills | F71: =SUM(B72:B77) -> 895875 | G71: =SUMPRODUCT($B72:$B77,D72:D77)/SUM($B72:$B77) -> 33.1573378 | H71: =SUMPRODUCT($B72:$B77,E72:E77)/SUM($B72:$B77) -> 0.8594459683 | I71: =(141.5/H71)-131.5 -> 33.1409492
A72: East Area
A73: Pliocene | B73: 58283 | C73: 35, 27, 30-35, 23-60 | D73: 34 | E73: =141.5/(D73+131.5) -> 0.8549848943
A74: Miocene | B74: 648862 | C74: 35, 27, 30-35, 23-60 | D74: 34 | E74: =141.5/(D74+131.5) -> 0.8549848943
A75: West Area
A76: Pliocene | B76: 4566 | C76: 15-22, 23-60 | D76: 30 | E76: =141.5/(D76+131.5) -> 0.8761609907
A77: Miocene | B77: 184164 | C77: 15-22, 23-60 | D77: 30 | E77: =141.5/(D77+131.5) -> 0.8761609907
A78: Big Mountain | F78: =SUM(B79:B80) -> 35359 | G78: =SUMPRODUCT($B79:$B80,D79:D80)/SUM($B79:$B80) -> 20.3 | H78: =SUMPRODUCT($B79:$B80,E79:E80)/SUM($B79:$B80) -> 0.9321475626 | I78: =(141.5/H78)-131.5 -> 20.3
A79: Sespe | B79: 35359 | C79: 20.3 | D79: 20.3 | E79: =141.5/(D79+131.5) -> 0.9321475626
A80: Eocene (ABD) | B80: 0 | C80: 30 | D80: 30 | E80: 0.8761609907
A81: Bitterwater | B81: 1865 | C81: 26-37 | D81: 31.5 | E81: 0.8680981595 | F81: =B81 -> 1865 | G81: =D81 -> 31.5 | H81: =141.5/(G81+131.5) -> 0.8680981595 | I81: =(141.5/H81)-131.5 -> 31.5
A82: Blackwells Corner | B82: 10448 | C82: 12,14,14 | D82: 13.3 | E82: 0.9772099448 | F82: 10448 | G82: 13.3 | H82: 0.9772099448 | I82: 13.3
A83: Bouquet Canyon | B83: 0 | C83: 39 | D83: 39 | E83: 0.8299120235 | F83: 0 | G83: 39 | H83: 0.8299120235 | I83: 39
A84: Bowerbank | B84: 0 | C84: 32 | D84: 32 | E84: 0.8654434251 | F84: 0 | G84: 32 | H84: 0.8654434251 | I84: 32
A85: Boyle Heights | B85: 0 | C85: 26 | D85: 26 | E85: 0.8984126984 | F85: 0 | G85: 26 | H85: 0.8984126984 | I85: 26
A86: Brea-Olinda | B86: 1196057 | C86: 15-18, 23-31, 28, 18-28 | D86: 23.6 | E86: 0.9123146357 | F86: 1196057 | G86: 23.6 | H86: 0.9123146357 | I86: 23.6
A87: Brentwood | B87: 0 | C87: 39, 41, 39, 39 | D87: 39.5 | E87: 0.8274853801 | F87: 0 | G87: 39.5 | H87: 0.8274853801 | I87: 39.5
A88: Buena Park, East | B88: 0 | C88: 21, 22 | D88: 21.5 | E88: 0.9248366013 | F88: 0 | G88: 21.5 | H88: 0.9248366013 | I88: 21.5
A89: Buena Park, West | B89: 0 | C89: 28 | D89: 28 | E89: 0.8871473354 | F89: 0 | G89: 28 | H89: 0.8871473354 | I89: 28
A90: Buena Vista | F90: =SUM(B91:B100) -> 1065707 | G90: =SUMPRODUCT($B91:$B100,D91:D100)/SUM($B91:$B100) -> 20.19301149 | H90: =SUMPRODUCT($B91:$B100,E91:E100)/SUM($B91:$B100) -> 0.9328117399 | I90: 20.19191591
A91: Buena Vista Front Area | B91: 52170 | C91: 18-28 | D91: 22 | E91: =141.5/(D91+131.5) -> 0.9218241042
A92: Buena Vista Hills Area
A93: No Pool Breakdown | B93: 9307 | C93: 18-28, 18-28, 18-28, 18-28, 19-36, 19-36, 19-36, 19-36, 19-36, 19-36, 23-33, 30, 26-34, 26-32 | D93: 20.1 | E93: =141.5/(D93+131.5) -> 0.9333773087
A94: Upper (Undifferentiated) | B94: 558420 | C94: 18-28, 18-28, 18-28, 18-28, 19-36, 19-36, 19-36, 19-36, 19-36, 19-36, 23-33, 30, 26-34, 26-32 | D94: 20.1 | E94: 0.9333773087
A95: Sub Scales & Mulinia | B95: 3023 | C95: 18-28, 18-28, 18-28, 18-28, 19-36, 19-36, 19-36, 19-36, 19-36, 19-36, 23-33, 30, 26-34, 26-32 | D95: 20.1 | E95: 0.9333773087
A96: 27B Undifferentiated | B96: 27356 | C96: 18-28, 18-28, 18-28, 18-28, 19-36, 19-36, 19-36, 19-36, 19-36, 19-36, 23-33, 30, 26-34, 26-32 | D96: 20.1 | E96: 0.9333773087
A97: Reef Ridge | B97: 7879 | C97: 18-28, 18-28, 18-28, 18-28, 19-36, 19-36, 19-36, 19-36, 19-36, 19-36, 23-33, 30, 26-34, 26-32 | D97: 20.1 | E97: 0.9333773087
A98: Antelope Shale-East Dome | B98: 103550 | C98: 18-28, 18-28, 18-28, 18-28, 19-36, 19-36, 19-36, 19-36, 19-36, 19-36, 23-33, 30, 26-34, 26-32 | D98: 20.1 | E98: 0.9333773087
A99: Antelope Shale-West Dome | B99: 81909 | C99: 18-28, 18-28, 18-28, 18-28, 19-36, 19-36, 19-36, 19-36, 19-36, 19-36, 23-33, 30, 26-34, 26-32 | D99: 20.1 | E99: 0.9333773087
A100: 555 Stevens | B100: 222093 | C100: 18-28, 18-28, 18-28, 18-28, 19-36, 19-36, 19-36, 19-36, 19-36, 19-36, 23-33, 30, 26-34, 26-32 | D100: 20.1 | E100: 0.9333773087
A101: Burrel | B101: 1058 | C101: 28-32 | D101: 30 | E101: 0.8761609907 | F101: =B101 -> 1058 | G101: =D101 -> 30 | H101: =141.5/(G101+131.5) -> 0.8761609907 | I101: =(141.5/H101)-131.5 -> 30
A102: Burrel, Southeast | B102: 0 | C102: 27-35 | D102: 31 | E102: 0.8707692308 | F102: 0 | G102: =D102 -> 31 | H102: =141.5/(G102+131.5) -> 0.8707692308 | I102: =(141.5/H102)-131.5 -> 31
A103: Cabrillo | B103: 48520 | C103: none | D103: none | F103: 48520
A104: Calders Corner | B104: 0 | C104: 35 | D104: 35 | E104: =141.5/(D104+131.5) -> 0.8498498498 | F104: 0 | G104: =D104 -> 35 | H104: =141.5/(G104+131.5) -> 0.8498498498 | I104: =(141.5/H104)-131.5 -> 35
A105: Camden | B105: 1354 | C105: 33 | D105: 33 | E105: =141.5/(D105+131.5) -> 0.8601823708 | F105: 1354 | G105: 33 | H105: 0.8601823708 | I105: 33
A106: Canada Larga | B106: 2413 | C106: 25 | D106: 25 | E106: =141.5/(D106+131.5) -> 0.9041533546 | F106: 2413 | G106: 25 | H106: 0.9041533546 | I106: 25
A107: Canal | B107: 34892 | C107: 35, 35, 35, 38.4, 36.1, | D107: 35.9 | E107: =141.5/(D107+131.5) -> 0.8452807646 | F107: 34892 | G107: 35.9 | H107: 0.8452807646 | I107: 35.9
A108: Canfield Ranch | B108: 117109 | C108: 28 | D108: 28 | E108: =141.5/(D108+131.5) -> 0.8871473354 | F108: 117109 | G108: 28 | H108: 0.8871473354 | I108: 28
A109: Canoga park | F109: 0 | G109: 0 | H109: 1.076045627 | I109: 0
A110: Canton Creek | B110: 0 | C110: 30 | E110: =141.5/(D110+131.5) -> 1.076045627 | F110: 0 | G110: 0 | H110: 1.076045627 | I110: 0
A111: Cantua Creek | B111: 0 | C111: 49-58 | D111: 53.5 | E111: 0.7648648649 | F111: 0 | G111: 53.5 | H111: 0.7648648649 | I111: 53.5
A112: Cantua Nueva | B112: 0 | C112: 31 | D112: 31 | E112: 0.8707692308 | F112: 0 | G112: 31 | H112: 0.8707692308 | I112: 31
A113: Capitan | B113: 0 | C113: 19-23 | D113: 21 | E113: 0.9278688525 | F113: 0 | G113: 21 | H113: 0.9278688525 | I113: 21
A114: Capitola Park | B114: 0 | D114: 26 | E114: 0.8984126984 | F114: 0 | G114: 26 | H114: 0.8984126984 | I114: 26
A115: Careaga Canyon | B115: 10965 | C115: 34 | D115: 34 | E115: 0.8549848943 | F115: 10965 | G115: 34 | H115: 0.8549848943 | I115: 34
A116: Carneros Creek | F116: =SUM(B117:B120) -> 35779 | G116: =SUMPRODUCT($B117:$B120,D117:D120)/SUM($B117:$B120) -> 26.44467425 | H116: =SUMPRODUCT($B117:$B120,E117:E120)/SUM($B117:$B120) -> 0.8970011525 | I116: 26.24784638
A117: Button Bed | B117: 4863 | C117: 13 | D117: 13 | E117: =141.5/(D117+131.5) -> 0.9792387543
A118: Carneros | B118: 282 | C118: 23 | D118: 23 | E118: 0.9158576052
A119: Phacoides (WYGAL) | B119: 1356 | C119: 31 | D119: 31 | E119: 0.8707692308
A120: Point of Rocks | B120: 29278 | C120: 26,31 | D120: 28.5 | E120: 0.884375
A121: Cascade | B121: 194287 | C121: 19.5 | D121: 19.5 | E121: 0.9370860927 | F121: =B121 -> 194287 | G121: =D121 -> 19.5 | H121: =141.5/(G121+131.5) -> 0.9370860927 | I121: =(141.5/H121)-131.5 -> 19.5
A122: Casmalia | B122: 185892 | C122: 8-25 | D122: 16.5 | E122: 0.9560810811 | F122: =B122 -> 185892 | G122: =D122 -> 16.5 | H122: =141.5/(G122+131.5) -> 0.9560810811 | I122: =(141.5/H122)-131.5 -> 16.5
A123: Castaic Hills | F123: =SUM(B124:B129) -> 17994 | G123: =SUMPRODUCT($B124:$B129,D124:D129)/SUM($B124:$B129) -> 32.54645993 | H123: =SUMPRODUCT($B124:$B129,E124:E129)/SUM($B124:$B129) -> 0.862561195 | I123: =(141.5/H123)-131.5 -> 32.5463318
A124: Golden (ABD) | B124: 0 | C124: 9 | D124: 9
A125: Sterling | B125: 16322 | C125: 29-36 | D125: 32.5 | E125: =141.5/(D125+131.5) -> 0.862804878
A126: Sterling, East (ABD) | B126: 0 | C126: 29-36 | D126: 32.5 | E126: 0.862804878
A127: Rynne-Fisher | B127: 1672 | C127: 33 | D127: 33 | E127: 0.8601823708
A128: Upper Radovich (ABD) | B128: 0 | C128: 7-9 | D128: 8 | E128: 1.014336918
A129: Lower Radovich (ABD) | B129: 0 | C129: 7-9 | D129: 8 | E129: 1.014336918
A130: Castaic Junction | B130: 0 | C130: 18-22, 16-22 | D130: 19.5 | E130: 0.9370860927 | F130: =B130 -> 0 | G130: =D130 -> 19.5 | H130: =141.5/(G130+131.5) -> 0.9370860927 | I130: =(141.5/H130)-131.5 -> 19.5
A131: Cat Canyon | B131: 286157 | C131: 9-18, 6-11, 7-15, 6.4, 6-8, 8-16, 6.4-11, 13-16.5, 23, 11, 22, 13, 9-14, 6-8, 8.4, 6-8 | D131: 11.5 | E131: 0.9895104895 | F131: =B131 -> 286157 | G131: =D131 -> 11.5 | H131: =141.5/(G131+131.5) -> 0.9895104895 | I131: =(141.5/H131)-131.5 -> 11.5
A132: Chaffee Canyon | B132: 1776 | C132: 34.5-37.5 | D132: 36 | E132: 0.8447761194 | F132: =B132 -> 1776 | G132: =D132 -> 36 | H132: =141.5/(G132+131.5) -> 0.8447761194 | I132: =(141.5/H132)-131.5 -> 36
A133: Charlie Canyon | B133: 0 | C133: 14 | D133: 14 | E133: 0.9725085911 | F133: =B133 -> 0 | G133: =D133 -> 14 | H133: =141.5/(G133+131.5) -> 0.9725085911 | I133: =(141.5/H133)-131.5 -> 14
A134: Cheviot Hills | F134: =SUM(B135:B136) -> 53393 | G134: =SUMPRODUCT($B135:$B136,D135:D136)/SUM($B135:$B136) -> 31 | H134: =SUMPRODUCT($B135:$B136,E135:E136)/SUM($B135:$B136) -> 0.8707692308 | I134: =(141.5/H134)-131.5 -> 31
A135: Pliocene | B135: 45364 | C135: 29, 33 | D135: 31 | E135: =141.5/(D135+131.5) -> 0.8707692308
A136: Miocene | B136: 8029 | C136: 29, 33 | D136: 31 | E136: =141.5/(D136+131.5) -> 0.8707692308
A137: Chico-Martinez | B137: 2995 | C137: 12, 24 | D137: 18 | E137: =141.5/(D137+131.5) -> 0.9464882943 | F137: =B137 -> 2995 | G137: =D137 -> 18 | H137: =141.5/(G137+131.5) -> 0.9464882943 | I137: =(141.5/H137)-131.5 -> 18
A138: Chino-Soquel | B138: 632 | C138: 24, 18-23, 18-23, 18-23 | D138: 21.4 | E138: =141.5/(D138+131.5) -> 0.925441465 | F138: =B138 -> 632 | G138: =D138 -> 21.4 | H138: =141.5/(G138+131.5) -> 0.925441465 | I138: =(141.5/H138)-131.5 -> 21.4
A139: Cienaga Canyon | B139: 12897 | C139: 20, 32 | D139: 26 | E139: =141.5/(D139+131.5) -> 0.8984126984 | F139: =B139 -> 12897 | G139: =D139 -> 26 | H139: =141.5/(G139+131.5) -> 0.8984126984 | I139: =(141.5/H139)-131.5 -> 26
A140: Coalinga | F140: =SUM(B141:B144) -> 5875552 | G140: =SUMPRODUCT($B141:$B144,D141:D144)/SUM($B141:$B144) -> 21 | H140: =SUMPRODUCT($B141:$B144,E141:E144)/SUM($B141:$B144) -> 0.9278688525 | I140: =(141.5/H140)-131.5 -> 21
A141: Echegoin Temblor | B141: 0 | C141: 11-18 | D141: 14.5 | E141: =141.5/(D141+131.5) -> 0.9691780822
A142: Eocene | B142: 0 | C142: 29 | D142: 29 | E142: 0.8816199377
A143: Cretaceous (Oil City) | B143: 0 | C143: 33-40 | D143: 36.5 | E143: 0.8422619048
A144: Temblor | B144: 5875552 | C144: 12-30 | D144: 21 | E144: 0.9278688525
A145: Coalinga, East Extension | B145: 22323 | C145: 34-38, 24-33, 32 | D145: 32.2 | E145: 0.8643860721 | F145: =B145 -> 22323 | G145: =D145 -> 32.2 | H145: =141.5/(G145+131.5) -> 0.8643860721 | I145: =(141.5/H145)-131.5 -> 32.2
A146: Coles Levee, North | B146: 155879 | C146: 33-49 | D146: 41 | E146: 0.8202898551 | F146: 155879 | G146: 41 | H146: 0.8202898551 | I146: 41
A147: Coles Levee, South | B147: 90531 | C147: 30-56 | D147: 43 | E147: 0.8108882521 | F147: 90531 | G147: 43 | H147: 0.8108882521 | I147: 43
A148: Comanche Point | B148: 5460 | C148: 14-16 | D148: 15 | E148: 0.9658703072 | F148: 5460 | G148: 15 | H148: 0.9658703072 | I148: 15
A149: Conejo | B149: 0 | C149: 18 | D149: 18 | E149: 0.9464882943 | F149: 0 | G149: 18 | H149: 0.9464882943 | I149: 18
A150: Coyote, East | B150: 228476 | C150: 17-20, 16-25, 16-25, 17-27, 25, 25, 23 | D150: 22.1 | E150: 0.9212239583 | F150: 228476 | G150: 22.1 | H150: 0.9212239583 | I150: 22.1
A151: Coyote, West | B151: 0 | C151: 19, 26-30, 24-34, 29, 23-28, 30-35 | D151: 27.2 | E151: 0.8916194077 | F151: 0 | G151: 27.2 | H151: 0.8916194077 | I151: 27.2
A152: Cristianitos Creek | B152: 0 | C152: 54.8 | D152: 54.8 | E152: 0.7595276436 | F152: 0 | G152: 54.8 | H152: 0.7595276436 | I152: 54.8
A153: Cuyama, Central | B153: 0 | C153: 46 | D153: 46 | E153: 0.7971830986 | F153: 0 | G153: 46 | H153: 0.7971830986 | I153: 46
A154: Cuyama, South | B154: 227539 | C154: 34-37, 28-36, 33-35, 37 | D154: 34.6 | E154: 0.8518964479 | F154: 227539 | G154: 34.6 | H154: 0.8518964479 | I154: 34.6
A155: Cymric | F155: =SUM(B156:B186) -> 17557874 | G155: =SUMPRODUCT($B156:$B186,D156:D186)/SUM($B156:$B186) -> 22.06906282 | H155: =SUMPRODUCT($B156:$B186,E156:E186)/SUM($B156:$B186) -> 0.9233502507 | I155: 21.74628969
A156: Cymric Flank Area
A157: Carneros | B157: 3995 | C157: 34-39 | D157: 36.5 | E157: =141.5/(D157+131.5) -> 0.8422619048
A158: Phacoides | B158: 0 | C158: 33 | D158: 33 | E158: =141.5/(D158+131.5) -> 0.8601823708
A159: Salt Creek Main Area
A160: Etchegoin | B160: 3390 | C160: 28 | D160: 28 | E160: =141.5/(D160+131.5) -> 0.8871473354
A161: Carneros West | B161: 5487 | C161: 17-22 | D161: 19.5 | E161: =141.5/(D161+131.5) -> 0.9370860927
A162: Carneros Unit | B162: 45604 | C162: 17-22 | D162: 19.5 | E162: =141.5/(D162+131.5) -> 0.9370860927
A163: Phacoides | B163: 9327 | C163: 33 | D163: 33 | E163: =141.5/(D163+131.5) -> 0.8601823708
A164: Salt Creek West Area
A165: Phacoides | B165: 963 | C165: 33 | D165: 33 | E165: =141.5/(D165+131.5) -> 0.8601823708
A166: Sheep Springs Area
A167: Tulare | B167: 1397 | C167: 11-15 | D167: 13 | E167: =141.5/(D167+131.5) -> 0.9792387543
A168: Etchegoin | B168: 28280 | C168: 28 | D168: 28 | E168: =141.5/(D168+131.5) -> 0.8871473354
A169: Monterey | B169: 389 | C169: 21.4 | D169: 21.4 | E169: =141.5/(D169+131.5) -> 0.925441465
A170: Carneros | B170: 45205 | C170: 23 | D170: 23 | E170: =141.5/(D170+131.5) -> 0.9158576052
A171: Oceanic | B171: 71 | C171: 11.5, 16, 21.4, 23, 33 | D171: 21 | E171: =141.5/(D171+131.5) -> 0.9278688525
A172: Welport Area
A173: Tulare Antelope | B173: 1858067 | C173: 11-15, 12.2, 28, 12-20, 14, 14, 27.3, 31-33, 31, 33, 31-52, 48 | D173: 25.8 | E173: =141.5/(D173+131.5) -> 0.8995549905
A174: Tulare | B174: 5633321 | C174: 11-15 | D174: 13 | E174: 0.9792387543
A175: Etchegoin | B175: 8589131 | C175: 28 | D175: 28 | E175: 0.8871473354
A176: San Joaquin ABD | B176: 0 | C176: 12.2 | D176: 12.2 | E176: 0.9846903271
A177: Reef Ridge Antelope | B177: 1279515 | C177: 12-20 | D177: 16 | E177: 0.9593220339
A178: 1st McKittrick | B178: 0 | C178: 14 | D178: 14 | E178: 0.9725085911
A179: 2nd McKittrick | B179: 0 | C179: 14 | D179: 14 | E179: 0.9725085911
A180: McDonald-Devilwater | B180: 7517 | C180: 27.3 | D180: 27.3 | E180: 0.8910579345
A181: Carneros | B181: 26149 | C181: 31-33 | D181: 32 | E181: 0.8654434251
A182: Agua (Santos) | B182: 0 | C182: 31 | D182: 31 | E182: 0.8707692308
A183: Phacoides | B183: 4028 | C183: 33 | D183: 33 | E183: 0.8601823708
A184: Oceanic | B184: 5266 | C184: 31-52 | D184: 41.5 | E184: 0.8179190751
A185: Point of Rocks | B185: 10772 | C185: 48 | D185: 48 | E185: 0.7883008357
A186: Agua (Santos) | B186: 0 | C186: 31 | D186: 31 | E186: 0.8707692308
A187: Deer Creek | B187: 56378 | C187: 16 | D187: 16 | E187: 0.9593220339 | F187: =B187 -> 56378 | G187: =D187 -> 16 | H187: =141.5/(G187+131.5) -> 0.9593220339 | I187: =(141.5/H187)-131.5 -> 16
A188: Deer Creek, North | B188: 122 | C188: 12 | D188: 12 | E188: 0.9860627178 | F188: =B188 -> 122 | G188: =D188 -> 12 | H188: =141.5/(G188+131.5) -> 0.9860627178 | I188: =(141.5/H188)-131.5 -> 12
A189: Del Valle | B189: 58226 | C189: 30-36, 30-33, 31-36, 35, 25-43, 25-43, 30-43, 34-43, 20, 30, 28, 33 | D189: 32.3 | E189: 0.8638583639 | F189: =B189 -> 58226 | G189: =D189 -> 32.3 | H189: =141.5/(G189+131.5) -> 0.8638583639 | I189: =(141.5/H189)-131.5 -> 32.3
A190: Devils Den | F190: =SUM(B191:B193) -> 19768 | G190: =SUMPRODUCT($B191:$B193,D191:D193)/SUM($B191:$B193) -> 25.30609065 | H190: =SUMPRODUCT($B191:$B193,E191:E193)/SUM($B191:$B193) -> 0.9026682588 | I190: =(141.5/H190)-131.5 -> 25.25747832
A191: Alferitz Area | B191: 17274 | C191: 15,15,18-32, 23-41, 40-48 | D191: 26.2 | E191: =141.5/(D191+131.5) -> 0.8972733037
A192: Bates Area | B192: 704 | C192: 25 | D192: 25 | E192: 0.9041533546
A193: Old Area | B193: 1790 | C193: 14,19,16,18 | D193: 16.8 | E193: 0.9541469993
A194: Dominguez | B194: 7416 | C194: 31 | D194: 31 | E194: 0.8707692308 | F194: =B194 -> 7416 | G194: =D194 -> 31 | H194: =141.5/(G194+131.5) -> 0.8707692308 | I194: =(141.5/H194)-131.5 -> 31
A195: Dyer Creek | B195: 0 | C195: 15 | D195: 15 | E195: 0.9658703072 | F195: 0 | G195: 15 | H195: 0.9658703072 | I195: 15
A196: Eagle Rest | B196: 0 | C196: 39.6 | D196: 39.6 | E196: 0.8270017534 | F196: 0 | G196: 39.6 | H196: 0.8270017534 | I196: 39.6
A197: Edison | B197: 676370 | C197: 14-16, 12, 22, 20, 40-43, 38-40, 38-43, 14-22, 22, 16, 20-29, 16-29, 16-20, 14-24, 19, 15, 15, 13, 14, 16, 41, 42, 41, 17-24, 15, 20, 20, 40, 42 | D197: 24.3 | E197: 0.9082156611 | F197: 676370 | G197: 24.3 | H197: 0.9082156611 | I197: 24.3
A198: Edison, Northeast | B198: 0 | C198: 13 | D198: 13 | E198: 0.9792387543 | F198: 0 | G198: 13 | H198: 0.9792387543 | I198: 13
A199: El Rio | B199: 0 | C199: 27 | D199: 27 | E199: 0.8927444795 | F199: 0 | G199: 27 | H199: 0.8927444795 | I199: 27
A200: El Segundo | B200: 26534 | C200: 23 | D200: 23 | E200: 0.9158576052 | F200: 26534 | G200: 23 | H200: 0.9158576052 | I200: 23
... 406 more rows

Sheet Depth
A1: Depth by field
B2: Data Sources: | C2: California Oil and Gas Fields, Volumes I-III. California Department of Conservation, Division of Oil, Gas, and Geothermal Resources, 1982, 1992, 1998
C3: 2009 Annual Report of the State Oil and Gas Supervisor - California Department of Conservation
A4: Field
A5: Pool | B5: 2009 Production | C5: Pool level depth | D5: Depth Used in Calculation | E5: 2009 Field Production | F5: Production-weighted depth
A6: Alegria | B6: 0 | C6: 1890-2350 | D6: 2120 | E6: =B6 -> 0 | F6: =D6 -> 2120
A7: Aliso Canyon | E7: =SUM(B8:B12) -> 147609 | F7: =SUMPRODUCT(B8:B12, D8:D12)/SUM(B8:B12) -> 7422.252891
A8: Aliso | B8: 3314 | C8: 4150 | D8: 4150
A9: Aliso, West | B9: 1042 | C9: 5179 | D9: 5179
A10: Porter-Del Aliso | B10: 53762 | C10: 5050 | D10: 5050
A11: Monterey | B11: 113 | C11: 4150, 5179, 5050 | D11: 4793
A12: Sesnon-Frew | B12: 89378 | C12: 9000 | D12: 9000
A13: Alondra | B13: 0 | D13: 9000 | E13: =B13 -> 0 | F13: =D13 -> 9000
A14: Anaheim | B14: 0 | D14: 4350 | E14: =B14 -> 0 | F14: =D14 -> 4350
A15: Ant Hill | E15: =SUM(B16:B17) -> 58185 | F15: =SUMPRODUCT(B16:B17, D16:D17)/SUM(B16:B17) -> 2300
A16: Olcese | B16: 58185 | C16: 2300 | D16: 2300
A17: Jewett | B17: 0 | C17: 3500 | D17: 3500
A18: Antelope Hills | E18: =SUM(B19:B27) -> 156441 | F18: =SUMPRODUCT(B19:B27, D19:D27)/SUM(B19:B27) -> 2204.805499
A19: Hopkins Area
A20: Phacoides | B20: 1104 | C20: 2400-3400 | D20: 2900
A21: Eocene | B21: 2518 | C21: 2000-2500, 2400-3400 | D21: 2575
A22: Williams Area | C22: 845-1400, 1900, 2100, 2300 | D22: 1856
A23: Upper | B23: 4249 | C23: 845-1400 | D23: 1123
A24: East Block-Button Bed | B24: 26790 | C24: 2100 | D24: 2100
A25: East Block-Agua | B25: 38914 | C25: 2300 | D25: 2300
A26: West Block-Button Bed & Agua | B26: 34896 | C26: 2100, 2300 | D26: 2200
A27: Point of Rocks | B27: 47970 | C27: 2000-2500 | D27: 2250
A28: Antelope Hills, North | E28: =SUM(B29:B30) -> 247591 | F28: =SUMPRODUCT(B29:B30, D29:D30)/SUM(B29:B30) -> 1701.29041
A29: Miocene-Eocene | B29: 96499 | C29: 600-1300, 2340, 2360, 2380, 1545, 2100 | D29: 1946
A30: Point of Rocks | B30: 151092 | C30: 1545 | D30: 1545
A31: Arroyo Grande | B31: 451664 | C31: 750 | D31: 750 | E31: =B31 -> 451664 | F31: =D31 -> 750
A32: Asphalto | E32: =SUM(B33:B38) -> 238399 | F32: =SUMPRODUCT(B33:B38, D33:D38)/SUM(B33:B38) -> 5915.326239
A33: Etchegoin | B33: 5106 | C33: 3050 | D33: 3050
A34: Olig | B34: 0 | C34: 4825 | D34: 4825
A35: Antelope Shale | B35: 29807 | C35: 7550 | D35: 7550
A36: Stevens | B36: 197219 | C36: 5660 | D36: 5660
A37: 1st Carneros | B37: 6267 | C37: 8510 | D37: 8510
A38: Carneros (ABD) | B38: 0 | C38: 8510 | D38: 8510
A39: Bandini | E39: =SUM(B40:B41) -> 9872 | F39: =SUMPRODUCT(B40:B41, D40:D41)/SUM(B40:B41) -> 5040
A40: Pliocene | B40: 9872 | C40: 4200, 4500, 5000, 5300, 6200 | D40: 5040
A41: Miocene (ABD) | B41: 0 | C41: 4200, 4500, 5000, 5300, 6200 | D41: 5040
A42: Bardsdale | E42: =SUM(B43:B44) -> 45641 | F42: =SUMPRODUCT(B43:B44, D43:D44)/SUM(B43:B44) -> 5000
A43: No Pool Breakdown | B43: 33477 | C43: 2000-4000, 5500, 6500 | D43: 5000
A44: Deep | B44: 12164 | C44: 2000-4000, 5500, 6500 | D44: 5000
A45: Barham Ranch | E45: =SUM(B46:B48) -> 87898 | F45: =SUMPRODUCT(B46:B48, D46:D48)/SUM(B46:B48) -> 3561.304011
A46: La Laguna Area
A47: Monterey | B47: 67603 | C47: 4000 | D47: 4000
A48: Old Area | B48: 20295 | C48: 1400-2800 | D48: 2100
A49: Beer Nose | B49: 2418 | C49: 11100 | D49: 11100 | E49: =B49 -> 2418 | F49: =D49 -> 11100
A50: Belgian Anticline | B50: 53858 | C50: 4600, 5300, 6070, 4300, 4600, 1400, 2050, 3400 | D50: 3965 | E50: =B50 -> 53858 | F50: =D50 -> 3965
A51: Bellevue | B51: 32676 | C51: 6400-6700, 7400 | D51: 6975 | E51: =B51 -> 32676 | F51: =D51 -> 6975
A52: Bellevue, West | B52: 29061 | C52: 7740, 7830, 8750-9100 | D52: 8165 | E52: =B52 -> 29061 | F52: =D52 -> 8165
A53: Belridge, North | E53: =SUM(B54:B61) -> 3266538 | F53: =SUMPRODUCT(B54:B61, D54:D61)/SUM(B54:B61) -> 2263.762522
A54: Tulare | B54: 123153 | C54: 600 | D54: 600
A55: Diatomite | B55: 3062605 | C55: 2200 | D55: 2200
A56: Fractured Shale | B56: 0
A57: Temblor | B57: 11201 | C57: 5000 | D57: =C57 -> 5000
A58: R Sand | B58: 14533 | C58: 7100 | D58: 7100
A59: Carneros | B59: 0 | C59: 6700 | D59: =C59 -> 6700
A60: Belridge 64 | B60: 55046 | C60: 7700 | D60: =C60 -> 7700
A61: Y Sand (ABD) | B61: 0 | C61: 8550 | D61: =C61 -> 8550
A62: Belridge, South | E62: =SUM(B63:B70) -> 29273890 | F62: =SUMPRODUCT(B63:B70,D63:D70)/SUM(B63:B70) -> 778.8155571
A63: Tulare | B63: 11234703 | C63: 400 | D63: =C63 -> 400
A64: Diatomite | B64: 17929189 | C64: 1000 | D64: =C64 -> 1000
A65: Diatomite-Antelope Shale | B65: 42673 | C65: 1000, 4000 | D65: 2500
A66: Belridge 64 | B66: 250 | C66: 400, 1500, 1000, 4000, 6700, 8200 | D66: 3633
A67: Etchegoin | B67: 0 | C67: 1500 | D67: =C67 -> 1500
A68: Antelope Shale | B68: 67075 | C68: 4000 | D68: =C68 -> 4000
A69: McDonald | B69: 0 | C69: 6700 | D69: =C69 -> 6700
A70: Devilwater Gold | B70: 0 | C70: 8200 | D70: =C70 -> 8200
A71: Beverly Hills | E71: =SUM(B72:B77) -> 895875 | F71: =SUMPRODUCT(B72:B77, D72:D77)/SUM(B72:B77) -> 7545.339054
A72: East Area
A73: Pliocene | B73: 58283 | C73: 4800, 9000, 9900, 10800 | D73: 8625
A74: Miocene | B74: 648862 | C74: 4800, 9000, 9900, 10800 | D74: 8625
A75: West Area
A76: Pliocene | B76: 4566 | C76: 2500, 4500 | D76: 3500
A77: Miocene | B77: 184164 | C77: 2500, 4500 | D77: 3500
A78: Big Mountain | E78: =SUM(B79:B80) -> 35359 | F78: =SUMPRODUCT(B79:B80, D79:D80)/SUM(B79:B80) -> 6917
A79: Sespe | B79: 35359 | C79: 3800 | D79: 6917
A80: Eocene (ABD) | B80: 0 | C80: 6200 | D80: 6917
A81: Bitterwater | B81: 1865 | C81: 1400 | D81: 1400 | E81: =B81 -> 1865 | F81: =D81 -> 1400
A82: Blackwells Corner | B82: 10448 | C82: 700, 1300, 1400 | D82: 1133 | E82: 10448 | F82: 1133
A83: Bouquet Canyon | B83: 0 | C83: 2340 | D83: =C83 -> 2340 | E83: 0 | F83: 2340
A84: Bowerbank | B84: 0 | C84: 3140, 4000, 4200, 4300, 4600, 4700, 10620 | D84: 5080 | E84: 0 | F84: 5080
A85: Boyle Heights | B85: 0 | C85: 2500 | D85: =C85 -> 2500 | E85: 0 | F85: 2500
A86: Brea-Olinda | B86: 1196057 | C86: 1800, 4000, 5000, 1200 | D86: 3000 | E86: 1196057 | F86: 3000
A87: Brentwood | B87: 0 | C87: 3520 | D87: =C87 -> 3520 | E87: 0 | F87: 3520
A88: Buena Park, East | B88: 0 | C88: 8900, 9240 | D88: 9070 | E88: 0 | F88: 9070
A89: Buena Park, West | B89: 0 | C89: 11000 | D89: =C89 -> 11000 | E89: 0 | F89: 11000
A90: Buena Vista | E90: =SUM(B91:B100) -> 1065707 | F90: =SUMPRODUCT(B91:B100, D91:D100)/SUM(B91:B100) -> 3858.393162
A91: Buena Vista Front Area | B91: 52170 | C91: 4200, 4000, 4050, 4300 | D91: 4138
A92: Buena Vista Hills Area
A93: No Pool Breakdown | B93: 9307 | C93: 1800, 2300, 2400, 2500, 2600, 2900, 3100, 3500, 3800, 3800, 4200, 5300 | D93: 3183
A94: Upper (Undifferentiated) | B94: 558420 | C94: 1800, 2300, 2400, 2500, 2600, 2900, 3100, 3500, 3800, 3800, 4200, 5300 | D94: 3183
A95: Sub Scales & Mulinia | B95: 3023 | C95: 2400 | D95: =C95 -> 2400
A96: 27B Undifferentiated | B96: 27356 | C96: 3500 | D96: 3500
A97: Reef Ridge | B97: 7879 | C97: 3800 | D97: 3800
A98: Antelope Shale-East Dome | B98: 103550 | C98: 4200 | D98: 4200
A99: Antelope Shale-West Dome | B99: 81909 | C99: 4200 | D99: 4200
A100: 555 Stevens | B100: 222093 | C100: 5300 | D100: 5300
A101: Burrel | B101: 1058 | C101: 6500 | D101: 6500 | E101: =B101 -> 1058 | F101: =D101 -> 6500
A102: Burrel, Southeast | B102: 0 | C102: 6700 | D102: 6700 | E102: 0 | F102: =D102 -> 6700
A103: Cabrillo | B103: 48520 | E103: 48520
A104: Calders Corner | B104: 0 | C104: 8700 | D104: =C104 -> 8700 | E104: 0 | F104: =D104 -> 8700
A105: Camden | B105: 1354 | C105: 6120 | D105: =C105 -> 6120 | E105: 1354 | F105: 6120
A106: Canada Larga | B106: 2413 | C106: 2560 | D106: =C106 -> 2560 | E106: 2413 | F106: 2560
A107: Canal | B107: 34892 | C107: 3100-5900, 8000, 8500, 9400, 8900, 10150 | D107: 8242 | E107: 34892 | F107: 8242
A108: Canfield Ranch | B108: 117109 | C108: 7900-9800, 7950-10150, 7900, 8100, 8100 | D108: 8400 | E108: 117109 | F108: 8400
A109: Canoga park | E109: 0 | F109: 0
A110: Canton Creek | B110: 0 | C110: 900 | D110: 900 | E110: 0 | F110: 900
A111: Cantua Creek | B111: 0 | C111: 9300 | D111: =C111 -> 9300 | E111: 0 | F111: 9300
A112: Cantua Nueva | B112: 0 | C112: 7185 | D112: =C112 -> 7185 | E112: 0 | F112: 7185
A113: Capitan | B113: 0 | C113: 1100, 1600, 2300, 2475, 2750, 3400, 3850, 4400 | D113: 2734 | E113: 0 | F113: 2734
A114: Capitola Park | B114: 0 | C114: 650 | D114: =C114 -> 650 | E114: 0 | F114: 650
A115: Careaga Canyon | B115: 10965 | C115: 7960, 7960 | D115: 7960 | E115: 10965 | F115: 7960
A116: Carneros Creek | E116: =SUM(B117:B120) -> 35779 | F116: =SUMPRODUCT(B117:B120, D117:D120)/SUM(B117:B120) -> 3456.946645
A117: Button Bed | B117: 4863 | C117: 2100 | D117: =C117 -> 2100
A118: Carneros | B118: 282 | C118: 2375 | D118: =C118 -> 2375
A119: Phacoides (WYGAL) | B119: 1356 | C119: 2480 | D119: =C119 -> 2480
A120: Point of Rocks | B120: 29278 | C120: 3875, 3600 | D120: 3738
A121: Cascade | B121: 194287 | C121: 2733 | D121: =C121 -> 2733 | E121: =B121 -> 194287 | F121: =D121 -> 2733
A122: Casmalia | B122: 185892 | C122: 1275-2800, 2750, 3953 | D122: 2914 | E122: =B122 -> 185892 | F122: =D122 -> 2914
A123: Castaic Hills | E123: =SUM(B124:B129) -> 17994 | F123: =SUMPRODUCT(B124:B129, D124:D129)/SUM(B124:B129) -> 5546.459931
A124: Golden (ABD) | B124: 0 | C124: 4000 | D124: =C124 -> 4000
A125: Sterling | B125: 16322 | C125: 5500 | D125: 5500
A126: Sterling, East (ABD) | B126: 0 | C126: 5700 | D126: 5700
A127: Rynne-Fisher | B127: 1672 | C127: 6000 | D127: 6000
A128: Upper Radovich (ABD) | B128: 0 | C128: 730 | D128: 730
A129: Lower Radovich (ABD) | B129: 0 | C129: 730 | D129: 730
A130: Castaic Junction | B130: 0 | C130: 8400, 9200, 9850, 10800, 10800, 12000 | D130: 10175 | E130: =B130 -> 0 | F130: =D130 -> 10175
A131: Cat Canyon | B131: 286157 | C131: 3000, 3500, 2800, 1750, 2750, 4900, 4000, 2800, 3405, 3750, 6000, 2210, 3800, 2020-3180, 2550, 3000, | D131: 3301 | E131: =B131 -> 286157 | F131: =D131 -> 3301
A132: Chaffee Canyon | B132: 1776 | C132: 6330, 8712 | D132: 7521 | E132: =B132 -> 1776 | F132: =D132 -> 7521
A133: Charlie Canyon | B133: 0 | C133: 600 | D133: =C133 -> 600 | E133: =B133 -> 0 | F133: =D133 -> 600
A134: Cheviot Hills | E134: =SUM(B135:B136) -> 53393 | F134: =SUMPRODUCT(B135:B136, D135:D136)/SUM(B135:B136) -> 8225
A135: Pliocene | B135: 45364 | C135: 4800, 7800-9800, 9100, 10200 | D135: 8225
A136: Miocene | B136: 8029 | C136: 4800, 7800-9800, 9100, 10200 | D136: 8225
A137: Chico-Martinez | B137: 2995 | C137: 900, 3780 | D137: 2340 | E137: =B137 -> 2995 | F137: =D137 -> 2340
A138: Chino-Soquel | B138: 632 | C138: 1100, 1300, 1700, 1800 | D138: 1475 | E138: =B138 -> 632 | F138: =D138 -> 1475
A139: Cienaga Canyon | B139: 12897 | C139: 2000, 4030 | D139: 3015 | E139: =B139 -> 12897 | F139: =D139 -> 3015
A140: Coalinga | E140: =SUM(B141:B144) -> 5875552 | F140: =SUMPRODUCT(B141:B144, D141:D144)/SUM(B141:B144) -> 2650
A141: Echegoin Temblor | B141: 0 | C141: 500-3500 | D141: 2000
A142: Eocene | B142: 0 | C142: 0-2500 | D142: 1250
A143: Cretaceous (Oil City) | B143: 0 | C143: 700 | D143: =C143 -> 700
A144: Temblor | B144: 5875552 | C144: 700-4600 | D144: 2650
A145: Coalinga, East Extension | B145: 22323 | C145: 6400, 7400-8000, 8000 | D145: 7367 | E145: =B145 -> 22323 | F145: =D145 -> 7367
A146: Coles Levee, North | B146: 155879 | C146: 5300, 8000-9650, 17500 | D146: 10542 | E146: 155879 | F146: 10542
A147: Coles Levee, South | B147: 90531 | C147: 4200, 5120, 9600-9900, 10530, 11680 | D147: 8256 | E147: 90531 | F147: 8256
A148: Comanche Point | B148: 5460 | C148: 650 | D148: =C148 -> 650 | E148: 5460 | F148: 650
A149: Conejo | B149: 0 | C149: 150 | D149: =C149 -> 150 | E149: 0 | F149: 150
A150: Coyote, East | B150: 228476 | C150: 2500, 3100, 3400, 4000, 4600, 5000, 5500 | D150: 4014 | E150: 228476 | F150: 4014
A151: Coyote, West | B151: 0 | C151: 2900, 3300, 4100, 4400, 4900, 5500 | D151: 4183 | E151: 0 | F151: 4183
A152: Cristianitos Creek | B152: 0 | C152: 5860 | D152: =C152 -> 5860 | E152: 0 | F152: 5860
A153: Cuyama, Central | B153: 0 | C153: 7270 | D153: =C153 -> 7270 | E153: 0 | F153: 7270
A154: Cuyama, South | B154: 227539 | C154: 1830, 4100, 4300, 2925, 5840 | D154: 3799 | E154: 227539 | F154: 3799
A155: Cymric | E155: =SUM(B156:B186) -> 17557874 | F155: =SUMPRODUCT(B156:B186, D156:D186)/SUM(B156:B186) -> 2572.173363
A156: Cymric Flank Area
A157: Carneros | B157: 3995 | C157: 8600 | D157: =C157 -> 8600
A158: Phacoides | B158: 0 | C158: 10145 | D158: =C158 -> 10145
A159: Salt Creek Main Area
A160: Etchegoin | B160: 3390 | C160: 650 | D160: =C160 -> 650
A161: Carneros West | B161: 5487 | C161: 1500-2400 | D161: 1950
A162: Carneros Unit | B162: 45604 | C162: 1500-2400 | D162: 1950
A163: Phacoides | B163: 9327 | C163: 500 | D163: =C163 -> 500
A164: Salt Creek West Area
A165: Phacoides | B165: 963 | C165: 4600 | D165: =C165 -> 4600
A166: Sheep Springs Area
A167: Tulare | B167: 1397 | C167: 1420 | D167: =C167 -> 1420
A168: Etchegoin | B168: 28280 | C168: 2470 | D168: =C168 -> 2470
A169: Monterey | B169: 389 | C169: 2650 | D169: =C169 -> 2650
A170: Carneros | B170: 45205 | C170: 3400 | D170: =C170 -> 3400
A171: Oceanic | B171: 71 | C171: 1420, 2450, 2650, 3400, 4600, 4700 | D171: 3216
A172: Welport Area
A173: Tulare Antelope | B173: 1858067 | C173: 1000-1200, 670, 3400, 2250, 1100, 1230, 4050, 4150-5560, 3400, 4300-7870, 4900-8570, 5400 | D173: 3356
A174: Tulare | B174: 5633321 | C174: 1000-1200 | D174: 1100
A175: Etchegoin | B175: 8589131 | C175: 3400 | D175: =C175 -> 3400
A176: San Joaquin ABD | B176: 0 | C176: 670 | D176: 670
A177: Reef Ridge Antelope | B177: 1279515 | C177: 2250 | D177: 2250
A178: 1st McKittrick | B178: 0 | C178: 1100 | D178: 1100
A179: 2nd McKittrick | B179: 0 | C179: 1230 | D179: 1230
A180: McDonald-Devilwater | B180: 7517 | C180: 4050 | D180: 4050
A181: Carneros | B181: 26149 | C181: 4150-5560 | D181: 4855
A182: Agua (Santos) | B182: 0 | C182: 3400 | D182: =C182 -> 3400
A183: Phacoides | B183: 4028 | C183: 4300-7870 | D183: 6085
A184: Oceanic | B184: 5266 | C184: 4900-8570 | D184: 6735
A185: Point of Rocks | B185: 10772 | C185: 5400 | D185: =C185 -> 5400
A186: Agua (Santos) | B186: 0 | C186: 3400 | D186: =C186 -> 3400
A187: Deer Creek | B187: 56378 | C187: 715 | D187: =C187 -> 715 | E187: =B187 -> 56378 | F187: =D187 -> 715
A188: Deer Creek, North | B188: 122 | C188: 790 | D188: =C188 -> 790 | E188: =B188 -> 122 | F188: =D188 -> 790
A189: Del Valle | B189: 58226 | C189: 3800, 4600, 5300, 5600, 6300, 6500, 7650, 9700, 7100, 5400, 8850, 9600 | D189: 6700 | E189: =B189 -> 58226 | F189: =D189 -> 6700
A190: Devils Den | E190: =SUM(B191:B193) -> 19768 | F190: =SUMPRODUCT(B191:B193, D191:D193)/SUM(B191:B193) -> 1987.162586
A191: Alferitz Area | B191: 17274 | C191: 1100, 1350, 2000, 1200-3200, 4200 | D191: 2170
A192: Bates Area | B192: 704 | C192: 1600 | D192: =C192 -> 1600
A193: Old Area | B193: 1790 | C193: 200, 200, 500, 600 | D193: 375
A194: Dominguez | B194: 7416 | C194: 3950, 4250, 4530, 4830, 5300, 5870, 6360, 7050 | D194: 5268 | E194: =B194 -> 7416 | F194: =D194 -> 5268
A195: Dyer Creek | B195: 0 | C195: 2340 | D195: =C195 -> 2340 | E195: 0 | F195: 2340
A196: Eagle Rest | B196: 0 | C196: 7976 | D196: =C196 -> 7976 | E196: 0 | F196: 7976
A197: Edison | B197: 676370 | C197: 1150, 3450, 3300, 3500, 5900, 5950, 6040, 750-4200, 400-4400, 1500-2500, 3000, 3150, 2900, 1200-4500, 4200, 4100, 1070, 1830, 3200, 3260, 4570, 4620, 4730, 3200, 4000, 4500, 4400, 4700, 5300 | D197: 3646 | E197: 676370 | F197: 3646
A198: Edison, Northeast | B198: 0 | C198: 500 | D198: =C198 -> 500 | E198: 0 | F198: 500
A199: El Rio | B199: 0 | C199: 11238 | D199: =C199 -> 11238 | E199: 0 | F199: 11238
A200: El Segundo | B200: 26534 | C200: 1490-4180, 7000-7200, 7250, 7300 | D200: 6121 | E200: 26534 | F200: 6121
... 404 more rows

Sheet 2010 California Flaring Data
A1: 2010 Data from EIA
A3: Jurisdiction | B3: Oil (Mbbl) | C3: V&F (MMcf) | D3: FOR (scf/bbl)* | F3: * Assume all "venting and flaring" is flaring and all is attributable to oil production
A4: California State | B4: 201385 | C4: 2790 | D4: =C4*1000/B4 -> 13.85406063
A5: CA Fed. Offshore | B5: 21702 | C5: 0 | D5: =C5*1000/B5 -> 0
A7: Sources: | B7: http://www.eia.gov/dnav/pet/pet_crd_crpdn_adc_mbblpd_a.htm (accessed on May 21, 2013)
B8: http://www.eia.gov/dnav/ng/ng_prod_sum_a_epg0_vgv_mmcf_a.htm (accessed on May 21, 2013)

Sheet CA Federal OCS
A1: Data inputs | B1: Start field: | C1: End field:
A2: Fields to assess | B2: 1 | C2: 16
A3: 1 Inputs
A5: Variables | E5: Unit | G5: Default | H5: Field 1 | I5: Field 2 | J5: Field 3 | K5: Field 4 | L5: Field 5 | M5: Field 6 | N5: Field 7 | O5: Field 8 | P5: Field 9 | Q5: Field 10 | R5: Field 11 | S5: Field 12 | T5: Field 13 | U5: Field 14 | V5: Field 15 | W5: Field 16
G6: =IF(G21="","NA",G21) -> Generic | H6: =IF(H21="","NA",H21) -> Beta | I6: Carpinteria | J6: Dos Cuadras | K6: Hondo | L6: Hueneme | M6: Pescado | N6: Pescado | O6: =IF(X21="","NA",X21) -> NA | P6: Point Arguello | Q6: Point Pedernales | R6: Point Pedernales | S6: Sacate | T6: Sacate | U6: Santa Clara | V6: Sockeye | W6: Sockeye
A7: 1.1 Production methods
A8: Notes: Enter "1" where applicable and "0" where not applicable
B9: 1.1.1 Downhole pump | E9: NA | G9: 1 | K9: 0 | N9: 0 | P9: 0 | R9: 0 | T9: 0 | W9: 0 | X9: See "2010 OCS Data" sheet
B10: 1.1.2 Water reinjection | E10: NA | G10: 1 | H10: 1 | I10: 0 | J10: 1 | K10: 0 | L10: 0 | M10: 1 | N10: 1 | O10: 1 | P10: 1 | Q10: 1 | R10: 1 | S10: 0 | T10: 0 | U10: 0 | V10: 1 | W10: 1 | X10: See "2010 OCS Data" sheet
B11: 1.1.3 Natural gas reinjection | E11: NA | G11: 1 | H11: 0 | I11: 0 | J11: 0 | K11: 1 | L11: 0 | M11: 1 | N11: 1 | O11: 1 | P11: 1 | Q11: 0 | R11: 0 | S11: 0 | T11: 0 | U11: 0 | V11: 1 | W11: 1 | X11: See "2010 OCS Data" sheet
B12: 1.1.4 Water flooding | E12: NA | G12: 0 | K12: 1 | X12: See "2010 OCS Data" sheet
B13: 1.1.5 Gas lifting | E13: NA | G13: 0 | K13: 1 | N13: 1 | P13: 1 | R13: 1 | T13: 1 | W13: 1 | X13: See "2010 OCS Data" sheet
B14: 1.1.6 Gas flooding | E14: NA | G14: 0
B15: 1.1.7 Steam flooding | E15: NA | G15: 0
B16: 1.1.8 Oil sands mine (integrated with upgrader) | E16: NA | G16: 0
B17: 1.1.9 Oil sands mine (non-integrated with upgrader) | E17: NA | G17: 0
A19: 1.2 Field properties
B20: 1.2.1 Field location (Country) | E20: NA | G20: Generic | H20: United States | I20: United States | J20: United States | K20: United States | L20: United States | M20: United States | N20: United States | O20: United States | P20: United States | Q20: United States | R20: United States | S20: United States | T20: United States | U20: United States | V20: United States | W20: United States
B21: 1.2.2 Field name | E21: NA | G21: Generic | H21: Beta | I21: Carpinteria | J21: Dos Cuadras | K21: Hondo | L21: Hueneme | M21: Pescado | N21: Pescado | O21: Point Arguello | P21: Point Arguello | Q21: Point Pedernales | R21: Point Pedernales | S21: Sacate | T21: Sacate | U21: Santa Clara | V21: Sockeye | W21: Sockeye
B22: 1.2.3 Field age | E22: yr. | G22: 35
B23: 1.2.4 Field depth | E23: ft | G23: 7240 | H23: 3800 | I23: 3300 | J23: 1600 | K23: 8500 | L23: 5101 | O23: 7800 | P23: 7800 | Q23: 5000 | R23: 5000 | U23: 7050 | V23: 4500 | W23: 4500 | X23: US DOI, Estimated Oil and Gas Reserves-Pacific Outer Continental Shelf, OCS Report MMS 94-0008, 1993.
B24: 1.2.5 Oil production volume | E24: bbl/d | G24: 1500 | H24: 4287 | I24: 1233 | J24: 3175 | K24: 13981 | L24: 302 | M24: 905 | N24: 9920 | O24: 992 | P24: 4404 | Q24: 3753 | R24: 2096 | S24: 886 | T24: 7900 | U24: 1707 | V24: 1745 | W24: 1825 | X24: See "2010 OCS Data" sheet
B25: 1.2.6 Number of producing wells | E25: [-] | G25: 8 | H25: 72 | I25: 46 | J25: 130 | K25: 50 | L25: 5 | M25: 2 | N25: 21 | O25: 5 | P25: 23 | Q25: 9 | R25: 4 | S25: 2 | T25: 7 | U25: 29 | V25: 8 | W25: 8 | X25: October 2010 Monthly Oil and Gas Production and Injection Report, California Department of Conservation (ftp://ftp.consrv.ca.gov/pub/oil/monthly_production_reports/)
B26: 1.2.7 Number of water injecting wells | E26: [-] | G26: 5 | H26: 34 | I26: 0 | J26: 25 | K26: 3 | L26: 0 | M26: 1 | N26: 2 | O26: 1 | P26: 1 | Q26: 3 | R26: 1 | S26: 0 | T26: 0 | U26: 0 | V26: 3 | W26: 3 | X26: October 2010 Monthly Oil and Gas Production and Injection Report, California Department of Conservation (ftp://ftp.consrv.ca.gov/pub/oil/monthly_production_reports/), Increased number of water injection wells for Hondo from 1 to 3 to prevent excessive flow rate for water injection.
B27: 1.2.8 Well diameter | E27: in | G27: 2.775
B28: 1.2.9 Productivity index | E28: bbl/psi-d | G28: 3
B29: 1.2.10 Reservoir pressure | E29: psi | G29: 1556.6
B30: 1.2.11 Reservoir temperature | E30: ◦F | G30: 150
B31: 1.2.12 Offshore? | E31: [0-1] | G31: 0 | H31: 1 | I31: 1 | J31: 1 | K31: 1 | L31: 1 | M31: 1 | N31: 1 | O31: 1 | P31: 1 | Q31: 1 | R31: 1 | S31: 1 | T31: 1 | U31: 1 | V31: 1 | W31: 1 | X31: California outer continental shelf (OCS)
A33: 1.3 Fluid properties
B34: 1.3.1 API gravity | E34: deg. API | G34: 30 | H34: 18 | I34: 25.5 | J34: 25 | K34: 17 | L34: 14.5 | O34: 18 | P34: 18 | Q34: 16.3 | R34: 16.3 | U34: 23 | V34: 16.5 | W34: 16.5 | X34: US DOI, Estimated Oil and Gas Reserves-Pacific Outer Continental Shelf, OCS Report MMS 94-0008, 1993.
B35: 1.3.2 Gas composition
C36: N2 | E36: mol% | G36: 2
C37: CO2 | E37: mol% | G37: 6
C38: C1 | E38: mol% | G38: 84
C39: C2 | E39: mol% | G39: 4
C40: C3 | E40: mol% | G40: 2
C41: C4+ | E41: mol% | G41: 1
C42: H2S | E42: mol% | G42: 1
A44: 1.4 Production practices
A45: Notes: Enter "NA" where not applicable
B46: 1.4.1 Gas-to-oil ratio (GOR) | E46: scf/bbl oil | G46: 908 | H46: 286 | I46: 1017 | J46: 1536 | K46: 2642 | L46: 685 | M46: 1874 | N46: 2319 | O46: 1724 | P46: 4493 | Q46: 371 | R46: 843 | S46: 3862 | T46: 713 | U46: 754 | V46: 694 | W46: 1279 | X46: See "2010 OCS Data" sheet
B47: 1.4.2 Water-to-oil ratio (WOR) | E47: bbl water/bbl oil | G47: 4.308369057 | H47: 2.32 | I47: 5.67 | J47: 17.29 | K47: 1.7 | L47: 5.79 | M47: 1.77 | N47: 1.95 | O47: 31.54 | P47: 10.35 | Q47: 15.26 | R47: 8.05 | S47: 0.23 | T47: 1.21 | U47: 2.27 | V47: 11.99 | W47: 7.55 | X47: See "2010 OCS Data" sheet
B48: 1.4.3 Water injection ratio | E48: bbl water/bbl oil | G48: 5.308369057 | K48: 2.72 | X48: See "2010 OCS Data" sheet
B49: 1.4.4 Gas lifting injection ratio | E49: scf/bbl liquid | G49: 1500
B50: 1.4.5 Gas flooding injection ratio | E50: scf/bbl oil | G50: 1362
B51: 1.4.6 Flood gas | E51: NA | G51: 1
C52: 1= Natural gas
C53: 2= Nitrogen (N2)
C54: 3= Carbon Dioxide (CO2)
B57: 1.4.7 Carbon dioxide flooding and sequestration parameters
C58: 1.4.7.1 Percentage of newly acquired CO2 (total injected CO2 includes both new and recycled) | E58: % | G58: 41
C59: 1.4.7.2 Source of CO2 | E59: NA | G59: 1
D60: 1= Natural subsurface reservoir
D61: 2= Anthropogenic
C62: 1.4.7.3 Percentage of sequestration credit assigned to the oilfield | E62: % | G62: 0
B63: 1.4.8 Steam-to-oil ratio (SOR) | E63: bbl steam/bbl oil | G63: 3 | X63: Assumed no steam injection for light crude
B64: 1.4.9 Fraction of required electricity generated onsite | E64: [-] | G64: 0 | H64: 1 | I64: 1 | J64: 1 | K64: 1 | L64: 1 | M64: 1 | N64: 1 | O64: 1 | P64: 1 | Q64: 1 | R64: 1 | S64: 1 | T64: 1 | U64: 1 | V64: 1 | W64: 1 | X64: Assumed all electricity produced onsite for offshore fields
B65: 1.4.10 Fraction of remaining natural gas reinjected | E65: [-] | G65: 0 | H65: 0 | I65: 0 | J65: 0 | K65: 0.36 | L65: 0 | M65: 0.24 | N65: 0.24 | O65: 0.68 | P65: 0.68 | Q65: 0 | R65: 0 | S65: 0 | T65: 0 | U65: 0 | V65: 0.03 | W65: 0.03 | X65: See "2010 OCS Data" sheet
B66: 1.4.11 Fraction of produced water reinjected | E66: [-] | G66: 1 | H66: 0.97 | I66: 0 | J66: 0.61 | K66: 1 | L66: 0 | M66: 0.35 | N66: 0.35 | O66: 0.03 | P66: 0.03 | Q66: 0.54 | R66: 0.54 | S66: 0 | T66: 0 | U66: 0 | V66: 1 | W66: 1 | X66: See "2010 OCS Data" sheet
B67: 1.4.12 Fraction of steam generation via cogeneration | E67: [-] | G67: 0 | X67: Assumed no steam injection for light crude
A69: 1.5 Processing practices
B70: 1.5.1 Heater/treater | E70: NA | G70: 0
B71: 1.5.2 Stabilizer column | E71: NA | G71: 1
B72: 1.5.3 Upgrader type | G72: 0
C73: 0 = None
C74: 1 = Delayed coking
C75: 2 = Hydroconversion
C76: 3 = Combined hydroconversion and fluid coking
B77: 1.5.3 Associated Gas Processing Path | E77: NA | G77: 5
C78: 1= None
C79: 2= Minimal: Dehydrator
C80: 3= Acid Gas: Dehydrator + Amine Process
C81: 4= Wet Gas: Dehydrator + Demethanizer
C82: 5= Acid Wet Gas: Dehydrator + Amine Process + Demethanizer
C83: 6= CO2-EOR Membrane: Dehydrator + Compressor + Membrane + Amine Process + Demethanizer
C84: 7= CO2-EOR Ryan Holmes: Dehydrator + Ryan Holmes Process (Demethanizer Included)
C85: Notes: Choose paths 6 or 7 only if gas flooding is ON and CO2 is the flood gas
B86: 1.5.4 Flaring-to-oil ratio | E86: scf/bbl oil | G86: 181.5280918 | H86: 0 | I86: 0 | J86: 0 | K86: 0 | L86: 0 | M86: 0 | N86: 0 | O86: 0 | P86: 0 | Q86: 0 | R86: 0 | S86: 0 | T86: 0 | U86: 0 | V86: 0 | W86: 0 | X86: See "2010 California Flaring Data" sheet
B87: 1.5.5 Venting-to-oil ratio | E87: scf/bbl oil | G87: 0
B88: 1.5.6 Volume fraction of diluent | E88: [-] | G88: 0
A90: 1.6 Land use impacts
B91: 1.6.1 Crude ecosystem carbon richness
C92: 1.6.1.1 Low carbon richness (semi-arid grasslands) | E92: NA | G92: 0
C93: 1.6.1.2 Moderate carbon richness (mixed) | E93: NA | G93: 1
C94: 1.6.1.3 High carbon richness (forested) | E94: NA | G94: 0
B95: 1.6.2 Field development intensity
C96: 1.6.2.1 Low intensity development and low oxidation | E96: NA | G96: 0
C97: 1.6.2.2 Moderate intensity development and moderate oxidation | E97: NA | G97: 1
C98: 1.6.2.3 High intensity development and high oxidation | E98: NA | G98: 0
A100: 1.8 Crude oil transport
B101: 1.8.1 Fraction of oil transported by each mode
C102: 1.8.1.1 Ocean tanker | E102: [-] | G102: 1 | H102: 0 | I102: 0 | J102: 0 | K102: 0 | L102: 0 | M102: 0 | N102: 0 | O102: 0 | P102: 0 | Q102: 0 | R102: 0 | S102: 0 | T102: 0 | U102: 0 | V102: 0 | W102: 0
C103: 1.8.1.2 Barge | E103: [-] | G103: 0 | H103: 0 | I103: 0 | J103: 0 | K103: 0 | L103: 0 | M103: 0 | N103: 0 | O103: 0 | P103: 0 | Q103: 0 | R103: 0 | S103: 0 | T103: 0 | U103: 0 | V103: 0 | W103: 0
C104: 1.8.1.3 Pipeline | E104: [-] | G104: 1 | H104: 1 | I104: 1 | J104: 1 | K104: 1 | L104: 1 | M104: 1 | N104: 1 | O104: 1 | P104: 1 | Q104: 1 | R104: 1 | S104: 1 | T104: 1 | U104: 1 | V104: 1 | W104: 1 | X104: Assumed pipeline transport for all California fields
C105: 1.8.1.4 Rail | E105: [-] | G105: 0 | H105: 0 | I105: 0 | J105: 0 | K105: 0 | L105: 0 | M105: 0 | N105: 0 | O105: 0 | P105: 0 | Q105: 0 | R105: 0 | S105: 0 | T105: 0 | U105: 0 | V105: 0 | W105: 0
C106: 1.8.1.5 Truck | G106: 0
B107: 1.8.2 Transport distance (one way)
C108: 1.8.2.1 Ocean tanker | E108: Mile | G108: 5082 | H108: 0 | I108: 0 | J108: 0 | K108: 0 | L108: 0 | M108: 0 | N108: 0 | O108: 0 | P108: 0 | Q108: 0 | R108: 0 | S108: 0 | T108: 0 | U108: 0 | V108: 0 | W108: 0
C109: 1.8.2.2 Barge | E109: Mile | G109: 500 | H109: 0 | I109: 0 | J109: 0 | K109: 0 | L109: 0 | M109: 0 | N109: 0 | O109: 0 | P109: 0 | Q109: 0 | R109: 0 | S109: 0 | T109: 0 | U109: 0 | V109: 0 | W109: 0
C110: 1.8.2.3 Pipeline | E110: Mile | G110: 750 | H110: 100 | I110: 100 | J110: 100 | K110: 100 | L110: 100 | M110: 100 | N110: 100 | O110: 100 | P110: 100 | Q110: 100 | R110: 100 | S110: 100 | T110: 100 | U110: 100 | V110: 100 | W110: 100 | X110: Assumed 100 mile transport distance for all California fields
C111: 1.8.2.4 Rail | E111: Mile | G111: 800 | H111: 0 | I111: 0 | J111: 0 | K111: 0 | L111: 0 | M111: 0 | N111: 0 | O111: 0 | P111: 0 | Q111: 0 | R111: 0 | S111: 0 | T111: 0 | U111: 0 | V111: 0 | W111: 0
C112: 1.8.2.5 Truck | G112: 100 | H112: 0 | I112: 0 | J112: 0 | K112: 0 | L112: 0 | M112: 0 | N112: 0 | O112: 0 | P112: 0 | Q112: 0 | R112: 0 | S112: 0 | T112: 0 | U112: 0 | V112: 0 | W112: 0
B113: 1.8.3 Ocean tanker size, if applicable | E113: Ton | G113: 250000
A115: 1.9 Small sources emissions | E115: gCO2eq/MJ | G115: 0.5

Sheet 2010 OCS Data
A1: Source: Data downloaded as ASCII file and converted to Excel on 5/9/2013 from Bureau of Safety and Environmental Enforcement website http://www.data.bsee.gov/homepg/data_center/production/PacificFreeProd.asp
C3: Month | F3: Oil | G3: Gas | H3: Water | N3: Field | O3: Injection | Q3: First Production
A4: P00301 | B4: A050 | C4: 201001 | D4: 0 | E4: G | F4: 0 | G4: 0 | H4: 0 | I4: 43122006500 | J4: 13 | K4: LB 6488 | L4: 2839 | M4: PACIFIC ENERGY RESOURCES LTD | N4: BETA | O4: 0 | P4: S01 | Q4: 19881001 | R4: 891018481
A5: P00301 | B5: C044 | C5: 201001 | D5: 31 | E5: G | F5: 1485 | G5: 426 | H5: 99 | I5: 43122014900 | J5: 11 | K5: LB 6488 | L5: 2839 | M5: PACIFIC ENERGY RESOURCES LTD | N5: BETA | O5: 0 | P5: S01 | Q5: 19870301 | R5: 891018481
A6: P00301 | B6: A050 | C6: 201002 | D6: 0 | E6: G | F6: 0 | G6: 0 | H6: 0 | I6: 43122006500 | J6: 13 | K6: LB 6488 | L6: 2839 | M6: PACIFIC ENERGY RESOURCES LTD | N6: BETA | O6: 0 | P6: S01 | Q6: 19881001 | R6: 891018481
A7: P00301 | B7: C044 | C7: 201002 | D7: 28 | E7: G | F7: 1205 | G7: 365 | H7: 545 | I7: 43122014900 | J7: 11 | K7: LB 6488 | L7: 2839 | M7: PACIFIC ENERGY RESOURCES LTD | N7: BETA | O7: 0 | P7: S01 | Q7: 19870301 | R7: 891018481
A8: P00301 | B8: A050 | C8: 201003 | D8: 0 | E8: G | F8: 0 | G8: 0 | H8: 0 | I8: 43122006500 | J8: 13 | K8: LB 6488 | L8: 2839 | M8: PACIFIC ENERGY RESOURCES LTD | N8: BETA | O8: 0 | P8: S01 | Q8: 19881001 | R8: 891018481
A9: P00301 | B9: C044 | C9: 201003 | D9: 31 | E9: G | F9: 1594 | G9: 532 | H9: 30 | I9: 43122014900 | J9: 11 | K9: LB 6488 | L9: 2839 | M9: PACIFIC ENERGY RESOURCES LTD | N9: BETA | O9: 0 | P9: S01 | Q9: 19870301 | R9: 891018481
A10: P00301 | B10: A050 | C10: 201004 | D10: 0 | E10: G | F10: 0 | G10: 0 | H10: 0 | I10: 43122006500 | J10: 13 | K10: LB 6488 | L10: 2839 | M10: PACIFIC ENERGY RESOURCES LTD | N10: BETA | O10: 0 | P10: S01 | Q10: 19881001 | R10: 891018481
A11: P00301 | B11: C044 | C11: 201004 | D11: 30 | E11: G | F11: 1507 | G11: 516 | H11: 25 | I11: 43122014900 | J11: 11 | K11: LB 6488 | L11: 2839 | M11: PACIFIC ENERGY RESOURCES LTD | N11: BETA | O11: 0 | P11: S01 | Q11: 19870301 | R11: 891018481
A12: P00301 | B12: A050 | C12: 201005 | D12: 0 | E12: G | F12: 0 | G12: 0 | H12: 0 | I12: 43122006500 | J12: 13 | K12: LB 6488 | L12: 3126 | M12: BETA OPERATING COMPANY, LLC | N12: BETA | O12: 0 | P12: S01 | Q12: 19881001 | R12: 891018481
A13: P00301 | B13: C044 | C13: 201005 | D13: 9 | E13: G | F13: 449 | G13: 136 | H13: 8 | I13: 43122014900 | J13: 11 | K13: LB 6488 | L13: 3126 | M13: BETA OPERATING COMPANY, LLC | N13: BETA | O13: 0 | P13: S01 | Q13: 19870301 | R13: 891018481
A14: P00301 | B14: A050 | C14: 201006 | D14: 0 | E14: G | F14: 0 | G14: 0 | H14: 0 | I14: 43122006500 | J14: 13 | K14: LB 6488 | L14: 3126 | M14: BETA OPERATING COMPANY, LLC | N14: BETA | O14: 0 | P14: S01 | Q14: 19881001 | R14: 891018481
A15: P00301 | B15: C044 | C15: 201006 | D15: 0 | E15: G | F15: 0 | G15: 0 | H15: 0 | I15: 43122014900 | J15: 13 | K15: LB 6488 | L15: 3126 | M15: BETA OPERATING COMPANY, LLC | N15: BETA | O15: 0 | P15: S01 | Q15: 19870301 | R15: 891018481
A16: P00301 | B16: A050 | C16: 201007 | D16: 0 | E16: G | F16: 0 | G16: 0 | H16: 0 | I16: 43122006500 | J16: 13 | K16: LB 6488 | L16: 3126 | M16: BETA OPERATING COMPANY, LLC | N16: BETA | O16: 0 | P16: S01 | Q16: 19881001 | R16: 891018481
A17: P00301 | B17: C044 | C17: 201007 | D17: 31 | E17: G | F17: 2053 | G17: 805 | H17: 369 | I17: 43122014900 | J17: 11 | K17: LB 6488 | L17: 3126 | M17: BETA OPERATING COMPANY, LLC | N17: BETA | O17: 0 | P17: S01 | Q17: 19870301 | R17: 891018481
A18: P00301 | B18: A050 | C18: 201008 | D18: 0 | E18: G | F18: 0 | G18: 0 | H18: 0 | I18: 43122006500 | J18: 13 | K18: LB 6488 | L18: 3126 | M18: BETA OPERATING COMPANY, LLC | N18: BETA | O18: 0 | P18: S01 | Q18: 19881001 | R18: 891018481
A19: P00301 | B19: C044 | C19: 201008 | D19: 31 | E19: G | F19: 1549 | G19: 469 | H19: 0 | I19: 43122014900 | J19: 11 | K19: LB 6488 | L19: 3126 | M19: BETA OPERATING COMPANY, LLC | N19: BETA | O19: 0 | P19: S01 | Q19: 19870301 | R19: 891018481
A20: P00301 | B20: A050 | C20: 201009 | D20: 0 | E20: G | F20: 0 | G20: 0 | H20: 0 | I20: 43122006500 | J20: 13 | K20: LB 6488 | L20: 3126 | M20: BETA OPERATING COMPANY, LLC | N20: BETA | O20: 0 | P20: S01 | Q20: 19881001 | R20: 891018481
A21: P00301 | B21: C044 | C21: 201009 | D21: 30 | E21: G | F21: 1257 | G21: 401 | H21: 55 | I21: 43122014900 | J21: 11 | K21: LB 6488 | L21: 3126 | M21: BETA OPERATING COMPANY, LLC | N21: BETA | O21: 0 | P21: S01 | Q21: 19870301 | R21: 891018481
A22: P00301 | B22: A050 | C22: 201010 | D22: 0 | E22: G | F22: 0 | G22: 0 | H22: 0 | I22: 43122006500 | J22: 13 | K22: LB 6488 | L22: 3126 | M22: BETA OPERATING COMPANY, LLC | N22: BETA | O22: 0 | P22: S01 | Q22: 19881001 | R22: 891018481
A23: P00301 | B23: C044 | C23: 201010 | D23: 31 | E23: G | F23: 1271 | G23: 454 | H23: 44 | I23: 43122014900 | J23: 11 | K23: LB 6488 | L23: 3126 | M23: BETA OPERATING COMPANY, LLC | N23: BETA | O23: 0 | P23: S01 | Q23: 19870301 | R23: 891018481
A24: P00301 | B24: A050 | C24: 201011 | D24: 0 | E24: G | F24: 0 | G24: 0 | H24: 0 | I24: 43122006500 | J24: 13 | K24: LB 6488 | L24: 3126 | M24: BETA OPERATING COMPANY, LLC | N24: BETA | O24: 0 | P24: S01 | Q24: 19881001 | R24: 891018481
A25: P00301 | B25: C044 | C25: 201011 | D25: 27 | E25: G | F25: 997 | G25: 331 | H25: 128 | I25: 43122014900 | J25: 11 | K25: LB 6488 | L25: 3126 | M25: BETA OPERATING COMPANY, LLC | N25: BETA | O25: 0 | P25: S01 | Q25: 19870301 | R25: 891018481
A26: P00301 | B26: A050 | C26: 201012 | D26: 0 | E26: G | F26: 0 | G26: 0 | H26: 0 | I26: 43122006500 | J26: 13 | K26: LB 6488 | L26: 3126 | M26: BETA OPERATING COMPANY, LLC | N26: BETA | O26: 0 | P26: S01 | Q26: 19881001 | R26: 891018481
A27: P00301 | B27: C044 | C27: 201012 | D27: 31 | E27: G | F27: 1084 | G27: 383 | H27: 172 | I27: 43122014900 | J27: 11 | K27: LB 6488 | L27: 3126 | M27: BETA OPERATING COMPANY, LLC | N27: BETA | O27: 0 | P27: S01 | Q27: 19870301 | R27: 891018481
A28: P00296 | B28: B002 | C28: 201001 | D28: 30 | E28: O | F28: 348 | G28: 160 | H28: 7 | I28: 43122008700 | J28: 8 | K28: LB 6437 | L28: 2531 | M28: DCOR, L.L.C. | N28: BETA | O28: 0 | P28: S01 | Q28: 19840101 | R28: 891018481
A29: P00296 | B29: B003 | C29: 201001 | D29: 30 | E29: O | F29: 363 | G29: 167 | H29: 12 | I29: 43122008800 | J29: 8 | K29: LB 6437 | L29: 2531 | M29: DCOR, L.L.C. | N29: BETA | O29: 0 | P29: S01 | Q29: 19840201 | R29: 891018481
A30: P00296 | B30: B004 | C30: 201001 | D30: 0 | E30: O | F30: 0 | G30: 0 | H30: 0 | I30: 43122009000 | J30: 12 | K30: LB 6437 | L30: 2531 | M30: DCOR, L.L.C. | N30: BETA | O30: 0 | P30: S01 | Q30: 19840301 | R30: 891018481
A31: P00296 | B31: B005 | C31: 201001 | D31: 30 | E31: O | F31: 798 | G31: 368 | H31: 5244 | I31: 43122009100 | J31: 8 | K31: LB 6438 | L31: 2531 | M31: DCOR, L.L.C. | N31: BETA | O31: 0 | P31: S01 | Q31: 19840401 | R31: 891018481
A32: P00296 | B32: B006 | C32: 201001 | D32: 30 | E32: O | F32: 505 | G32: 232 | H32: 4636 | I32: 43122009300 | J32: 8 | K32: LB 6438 | L32: 2531 | M32: DCOR, L.L.C. | N32: BETA | O32: 0 | P32: S01 | Q32: 19840701 | R32: 891018481
A33: P00296 | B33: B007 | C33: 201001 | D33: 0 | E33: O | F33: 0 | G33: 0 | H33: 0 | I33: 43122009500 | J33: 12 | K33: LB 6438 | L33: 2531 | M33: DCOR, L.L.C. | N33: BETA | O33: 0 | P33: S01 | Q33: 19840801 | R33: 891018481
A34: P00296 | B34: B008 | C34: 201001 | D34: 29 | E34: O | F34: 728 | G34: 336 | H34: 24 | I34: 43122009700 | J34: 8 | K34: LB 6438 | L34: 2531 | M34: DCOR, L.L.C. | N34: BETA | O34: 0 | P34: S01 | Q34: 19840901 | R34: 891018481
A35: P00296 | B35: B009 | C35: 201001 | D35: 30 | E35: O | F35: 1325 | G35: 611 | H35: 29 | I35: 43122009800 | J35: 8 | K35: LB 6438 | L35: 2531 | M35: DCOR, L.L.C. | N35: BETA | O35: 0 | P35: S01 | Q35: 19840901 | R35: 891018481
A36: P00296 | B36: B010 | C36: 201001 | D36: 30 | E36: O | F36: 86 | G36: 39 | H36: 163 | I36: 43122010000 | J36: 8 | K36: LB 6437 | L36: 2531 | M36: DCOR, L.L.C. | N36: BETA | O36: 0 | P36: S01 | Q36: 19841001 | R36: 891018481
A37: P00296 | B37: B011 | C37: 201001 | D37: 0 | E37: O | F37: 0 | G37: 0 | H37: 0 | I37: 43122010100 | J37: 12 | K37: LB 6438 | L37: 2531 | M37: DCOR, L.L.C. | N37: BETA | O37: 0 | P37: S01 | Q37: 19841101 | R37: 891018481
A38: P00296 | B38: B012 | C38: 201001 | D38: 30 | E38: O | F38: 1398 | G38: 645 | H38: 31 | I38: 43122010200 | J38: 8 | K38: LB 6438 | L38: 2531 | M38: DCOR, L.L.C. | N38: BETA | O38: 0 | P38: S01 | Q38: 19841201 | R38: 891018481
A39: P00296 | B39: B014 | C39: 201001 | D39: 30 | E39: O | F39: 1025 | G39: 473 | H39: 10 | I39: 43122010500 | J39: 8 | K39: LB 6438 | L39: 2531 | M39: DCOR, L.L.C. | N39: BETA | O39: 0 | P39: S01 | Q39: 19850201 | R39: 891018481
A40: P00296 | B40: B017 | C40: 201001 | D40: 30 | E40: O | F40: 978 | G40: 451 | H40: 36 | I40: 43122011400 | J40: 8 | K40: LB 6437 | L40: 2531 | M40: DCOR, L.L.C. | N40: BETA | O40: 0 | P40: S01 | Q40: 19850401 | R40: 891018481
A41: P00296 | B41: B018 | C41: 201001 | D41: 30 | E41: O | F41: 237 | G41: 110 | H41: 6 | I41: 43122011500 | J41: 8 | K41: LB 6438 | L41: 2531 | M41: DCOR, L.L.C. | N41: BETA | O41: 0 | P41: S01 | Q41: 19850501 | R41: 891018481
A42: P00296 | B42: B020 | C42: 201001 | D42: 30 | E42: O | F42: 1814 | G42: 837 | H42: 122 | I42: 43122011800 | J42: 8 | K42: LB 6437 | L42: 2531 | M42: DCOR, L.L.C. | N42: BETA | O42: 0 | P42: S01 | Q42: 19850701 | R42: 891018481
A43: P00296 | B43: B023 | C43: 201001 | D43: 0 | E43: O | F43: 0 | G43: 0 | H43: 0 | I43: 43122012300 | J43: 12 | K43: LB 6438 | L43: 2531 | M43: DCOR, L.L.C. | N43: BETA | O43: 0 | P43: S01 | Q43: 19850801 | R43: 891018481
A44: P00300 | B44: A001 | C44: 201001 | D44: 31 | E44: O | F44: 3085 | G44: 1813 | H44: 18677 | I44: 43122002500 | J44: 8 | K44: LB 6438 | L44: 2839 | M44: PACIFIC ENERGY RESOURCES LTD | N44: BETA | O44: 0 | P44: S02 | Q44: 19840101 | R44: 891018481
A45: P00300 | B45: A013 | C45: 201001 | D45: 31 | E45: O | F45: 2314 | G45: 107 | H45: 8166 | I45: 43122004100 | J45: 8 | K45: LB 6438 | L45: 2839 | M45: PACIFIC ENERGY RESOURCES LTD | N45: BETA | O45: 0 | P45: S01 | Q45: 19810901 | R45: 891018481
A46: P00300 | B46: A020 | C46: 201001 | D46: 6 | E46: O | F46: 94 | G46: 14 | H46: 85 | I46: 43122003900 | J46: 8 | K46: LB 6438 | L46: 2839 | M46: PACIFIC ENERGY RESOURCES LTD | N46: BETA | O46: 0 | P46: S01 | Q46: 19820401 | R46: 891018481
A47: P00300 | B47: A024 | C47: 201001 | D47: 17 | E47: O | F47: 1533 | G47: 78 | H47: 0 | I47: 43122004400 | J47: 8 | K47: LB 6438 | L47: 2839 | M47: PACIFIC ENERGY RESOURCES LTD | N47: BETA | O47: 0 | P47: S01 | Q47: 19810801 | R47: 891018481
A48: P00300 | B48: A025 | C48: 201001 | D48: 0 | E48: O | F48: 0 | G48: 0 | H48: 0 | I48: 43122005801 | J48: 12 | K48: LB 6438 | L48: 2839 | M48: PACIFIC ENERGY RESOURCES LTD | N48: BETA | O48: 0 | P48: S01 | Q48: 19960901 | R48: 891018481
A49: P00300 | B49: A028 | C49: 201001 | D49: 31 | E49: O | F49: 546 | G49: 36 | H49: 524 | I49: 43122004700 | J49: 8 | K49: LB 6438 | L49: 2839 | M49: PACIFIC ENERGY RESOURCES LTD | N49: BETA | O49: 0 | P49: S01 | Q49: 19820901 | R49: 891018481
A50: P00300 | B50: A030 | C50: 201001 | D50: 31 | E50: O | F50: 5174 | G50: 569 | H50: 11477 | I50: 43122004800 | J50: 8 | K50: LB 6438 | L50: 2839 | M50: PACIFIC ENERGY RESOURCES LTD | N50: BETA | O50: 0 | P50: S01 | Q50: 19810701 | R50: 891018481
A51: P00300 | B51: A031 | C51: 201001 | D51: 31 | E51: O | F51: 1382 | G51: 71 | H51: 37023 | I51: 43122006002 | J51: 8 | K51: LB 6438 | L51: 2839 | M51: PACIFIC ENERGY RESOURCES LTD | N51: BETA | O51: 0 | P51: S01 | Q51: 19820901 | R51: 891018481
A52: P00300 | B52: A032 | C52: 201001 | D52: 31 | E52: O | F52: 1735 | G52: 107 | H52: 0 | I52: 43122004900 | J52: 8 | K52: LB 6438 | L52: 2839 | M52: PACIFIC ENERGY RESOURCES LTD | N52: BETA | O52: 0 | P52: S01 | Q52: 19820901 | R52: 891018481
A53: P00300 | B53: A036 | C53: 201001 | D53: 0 | E53: O | F53: 0 | G53: 0 | H53: 0 | I53: 43122005300 | J53: 12 | K53: LB 6438 | L53: 2839 | M53: PACIFIC ENERGY RESOURCES LTD | N53: BETA | O53: 0 | P53: S01 | Q53: 19811001 | R53: 891018481
A54: P00300 | B54: A040 | C54: 201001 | D54: 31 | E54: O | F54: 996 | G54: 107 | H54: 0 | I54: 43122005600 | J54: 8 | K54: LB 6438 | L54: 2839 | M54: PACIFIC ENERGY RESOURCES LTD | N54: BETA | O54: 0 | P54: S01 | Q54: 19820201 | R54: 891018481
A55: P00300 | B55: A051 | C55: 201001 | D55: 31 | E55: O | F55: 482 | G55: 71 | H55: 0 | I55: 43122008201 | J55: 8 | K55: LB 6438 | L55: 2839 | M55: PACIFIC ENERGY RESOURCES LTD | N55: BETA | O55: 0 | P55: S01 | Q55: 19970201 | R55: 891018481
A56: P00300 | B56: A052 | C56: 201001 | D56: 12 | E56: O | F56: 734 | G56: 28 | H56: 1687 | I56: 43122006900 | J56: 8 | K56: LB 6487 | L56: 2839 | M56: PACIFIC ENERGY RESOURCES LTD | N56: BETA | O56: 0 | P56: S01 | Q56: 19820801 | R56: 891018481
A57: P00300 | B57: A054 | C57: 201001 | D57: 0 | E57: O | F57: 0 | G57: 0 | H57: 0 | I57: 43122007200 | J57: 12 | K57: LB 6438 | L57: 2839 | M57: PACIFIC ENERGY RESOURCES LTD | N57: BETA | O57: 0 | P57: S01 | R57: 891018481
A58: P00300 | B58: A055 | C58: 201001 | D58: 31 | E58: O | F58: 1575 | G58: 426 | H58: 22070 | I58: 43122008300 | J58: 8 | K58: LB 6438 | L58: 2839 | M58: PACIFIC ENERGY RESOURCES LTD | N58: BETA | O58: 0 | P58: S01 | Q58: 19840201 | R58: 891018481
A59: P00300 | B59: A058 | C59: 201001 | D59: 31 | E59: O | F59: 2057 | G59: 178 | H59: 5269 | I59: 43122007400 | J59: 8 | K59: LB 6438 | L59: 2839 | M59: PACIFIC ENERGY RESOURCES LTD | N59: BETA | O59: 0 | P59: S02 | Q59: 19880701 | R59: 891018481
A60: P00300 | B60: A059 | C60: 201001 | D60: 31 | E60: O | F60: 4049 | G60: 995 | H60: 38347 | I60: 43122008600 | J60: 8 | K60: LB 6438 | L60: 2839 | M60: PACIFIC ENERGY RESOURCES LTD | N60: BETA | O60: 0 | P60: S01 | Q60: 19840401 | R60: 891018481
A61: P00300 | B61: A063 | C61: 201001 | D61: 31 | E61: O | F61: 1318 | G61: 36 | H61: 5131 | I61: 43122009600 | J61: 8 | K61: LB 6438 | L61: 2839 | M61: PACIFIC ENERGY RESOURCES LTD | N61: BETA | O61: 0 | P61: S01 | Q61: 19840901 | R61: 891018481
A62: P00300 | B62: A074 | C62: 201001 | D62: 31 | E62: O | F62: 1093 | G62: 178 | H62: 800 | I62: 43122016200 | J62: 8 | K62: LB 6487 | L62: 2839 | M62: PACIFIC ENERGY RESOURCES LTD | N62: BETA | O62: 0 | P62: S01 | Q62: 19950401 | R62: 891018481
A63: P00300 | B63: A076 | C63: 201001 | D63: 0 | E63: O | F63: 0 | G63: 0 | H63: 0 | I63: 43122016300 | J63: 12 | K63: LB 6438 | L63: 2839 | M63: PACIFIC ENERGY RESOURCES LTD | N63: BETA | O63: 0 | P63: S01 | Q63: 19960601 | R63: 891018481
A64: P00301 | B64: A007 | C64: 201001 | D64: 31 | E64: O | F64: 2956 | G64: 142 | H64: 2676 | I64: 43122003400 | J64: 8 | K64: LB 6438 | L64: 2839 | M64: PACIFIC ENERGY RESOURCES LTD | N64: BETA | O64: 0 | P64: S02 | Q64: 19880301 | R64: 891018481
A65: P00301 | B65: A009 | C65: 201001 | D65: 0 | E65: O | F65: 0 | G65: 0 | H65: 0 | I65: 43122003600 | J65: 12 | K65: LB 6488 | L65: 2839 | M65: PACIFIC ENERGY RESOURCES LTD | N65: BETA | O65: 0 | P65: S02 | Q65: 19860501 | R65: 891018481
A66: P00301 | B66: A015 | C66: 201001 | D66: 31 | E66: O | F66: 2121 | G66: 2168 | H66: 11615 | I66: 43122004001 | J66: 8 | K66: LB 6438 | L66: 2839 | M66: PACIFIC ENERGY RESOURCES LTD | N66: BETA | O66: 0 | P66: S01 | Q66: 19901101 | R66: 891018481
A67: P00301 | B67: A021 | C67: 201001 | D67: 0 | E67: O | F67: 0 | G67: 0 | H67: 0 | I67: 43122005200 | J67: 12 | K67: LB 6438 | L67: 2839 | M67: PACIFIC ENERGY RESOURCES LTD | N67: BETA | O67: 0 | P67: S01 | Q67: 19820101 | R67: 891018481
A68: P00301 | B68: A023 | C68: 201001 | D68: 0 | E68: O | F68: 0 | G68: 0 | H68: 0 | I68: 43122005700 | J68: 12 | K68: LB 6438 | L68: 2839 | M68: PACIFIC ENERGY RESOURCES LTD | N68: BETA | O68: 0 | P68: S02 | Q68: 19880201 | R68: 891018481
A69: P00301 | B69: A027 | C69: 201001 | D69: 31 | E69: O | F69: 4820 | G69: 1315 | H69: 13297 | I69: 43122005900 | J69: 8 | K69: LB 6438 | L69: 2839 | M69: PACIFIC ENERGY RESOURCES LTD | N69: BETA | O69: 0 | P69: S02 | Q69: 19860501 | R69: 891018481
A70: P00301 | B70: A034 | C70: 201001 | D70: 0 | E70: O | F70: 0 | G70: 0 | H70: 0 | I70: 43122005001 | J70: 12 | K70: LB 6438 | L70: 2839 | M70: PACIFIC ENERGY RESOURCES LTD | N70: BETA | O70: 0 | P70: S01 | Q70: 19970930 | R70: 891018481
A71: P00301 | B71: A038 | C71: 201001 | D71: 31 | E71: O | F71: 5559 | G71: 746 | H71: 20112 | I71: 43122005400 | J71: 8 | K71: LB 6438 | L71: 2839 | M71: PACIFIC ENERGY RESOURCES LTD | N71: BETA | O71: 0 | P71: S02 | Q71: 19860801 | R71: 891018481
A72: P00301 | B72: A043 | C72: 201001 | D72: 31 | E72: O | F72: 2764 | G72: 1884 | H72: 11863 | I72: 43122007100 | J72: 8 | K72: LB 6438 | L72: 2839 | M72: PACIFIC ENERGY RESOURCES LTD | N72: BETA | O72: 0 | P72: S02 | Q72: 19880401 | R72: 891018481
A73: P00301 | B73: A045 | C73: 201001 | D73: 0 | E73: O | F73: 0 | G73: 0 | H73: 0 | I73: 43122007900 | J73: 12 | K73: LB 6488 | L73: 2839 | M73: PACIFIC ENERGY RESOURCES LTD | N73: BETA | O73: 0 | P73: S01 | Q73: 19830501 | R73: 891018481
A74: P00301 | B74: A047 | C74: 201001 | D74: 0 | E74: O | F74: 0 | G74: 0 | H74: 0 | I74: 43122008100 | J74: 12 | K74: LB 6438 | L74: 2839 | M74: PACIFIC ENERGY RESOURCES LTD | N74: BETA | O74: 0 | P74: S02 | Q74: 19860701 | R74: 891018481
A75: P00301 | B75: A056 | C75: 201001 | D75: 31 | E75: O | F75: 8195 | G75: 1422 | H75: 11615 | I75: 43122007300 | J75: 8 | K75: LB 6488 | L75: 2839 | M75: PACIFIC ENERGY RESOURCES LTD | N75: BETA | O75: 0 | P75: S02 | Q75: 19860201 | R75: 891018481
A76: P00301 | B76: A057 | C76: 201001 | D76: 31 | E76: O | F76: 3631 | G76: 71 | H76: 10511 | I76: 43122009200 | J76: 8 | K76: LB 6438 | L76: 2839 | M76: PACIFIC ENERGY RESOURCES LTD | N76: BETA | O76: 0 | P76: S01 | Q76: 19840901 | R76: 891018481
A77: P00301 | B77: C001 | C77: 201001 | D77: 31 | E77: O | F77: 7473 | G77: 2204 | H77: 1821 | I77: 43122010400 | J77: 8 | K77: LB 6488 | L77: 2839 | M77: PACIFIC ENERGY RESOURCES LTD | N77: BETA | O77: 0 | P77: S01 | Q77: 19850301 | R77: 891018481
A78: P00301 | B78: C004 | C78: 201001 | D78: 0 | E78: O | F78: 0 | G78: 0 | H78: 0 | I78: 43122010700 | J78: 12 | K78: LB 6488 | L78: 2839 | M78: PACIFIC ENERGY RESOURCES LTD | N78: BETA | O78: 0 | P78: S02 | Q78: 19860701 | R78: 891018481
A79: P00301 | B79: C005 | C79: 201001 | D79: 0 | E79: O | F79: 0 | G79: 0 | H79: 0 | I79: 43122011300 | J79: 12 | K79: LB 6488 | L79: 2839 | M79: PACIFIC ENERGY RESOURCES LTD | N79: BETA | O79: 0 | P79: S01 | Q79: 19850501 | R79: 891018481
A80: P00301 | B80: C006 | C80: 201001 | D80: 31 | E80: O | F80: 2400 | G80: 711 | H80: 32510 | I80: 43122011200 | J80: 8 | K80: LB 6488 | L80: 2839 | M80: PACIFIC ENERGY RESOURCES LTD | N80: BETA | O80: 0 | P80: S01 | Q80: 19850501 | R80: 891018481
A81: P00301 | B81: C008 | C81: 201001 | D81: 0 | E81: O | F81: 0 | G81: 0 | H81: 0 | I81: 43122011600 | J81: 12 | K81: LB 6488 | L81: 2839 | M81: PACIFIC ENERGY RESOURCES LTD | N81: BETA | O81: 0 | P81: S01 | Q81: 19850701 | R81: 891018481
A82: P00301 | B82: C009 | C82: 201001 | D82: 31 | E82: O | F82: 3241 | G82: 960 | H82: 6522 | I82: 43122011700 | J82: 8 | K82: LB 6488 | L82: 2839 | M82: PACIFIC ENERGY RESOURCES LTD | N82: BETA | O82: 0 | P82: S01 | Q82: 19860101 | R82: 891018481
A83: P00301 | B83: C011 | C83: 201001 | D83: 31 | E83: O | F83: 5864 | G83: 1706 | H83: 7978 | I83: 43122012500 | J83: 8 | K83: LB 6488 | L83: 2839 | M83: PACIFIC ENERGY RESOURCES LTD | N83: BETA | O83: 0 | P83: S01 | Q83: 19850901 | R83: 891018481
A84: P00301 | B84: C013 | C84: 201001 | D84: 0 | E84: O | F84: 0 | G84: 0 | H84: 0 | I84: 43122012400 | J84: 12 | K84: LB 6488 | L84: 2839 | M84: PACIFIC ENERGY RESOURCES LTD | N84: BETA | O84: 0 | P84: S01 | Q84: 19880601 | R84: 891018481
A85: P00301 | B85: C016 | C85: 201001 | D85: 0 | E85: O | F85: 0 | G85: 0 | H85: 0 | I85: 43122012200 | J85: 12 | K85: LB 6488 | L85: 2839 | M85: PACIFIC ENERGY RESOURCES LTD | N85: BETA | O85: 0 | P85: S01 | Q85: 19850901 | R85: 891018481
A86: P00301 | B86: C018 | C86: 201001 | D86: 31 | E86: O | F86: 3959 | G86: 1173 | H86: 11322 | I86: 43122012800 | J86: 8 | K86: LB 6488 | L86: 2839 | M86: PACIFIC ENERGY RESOURCES LTD | N86: BETA | O86: 0 | P86: S01 | Q86: 19860201 | R86: 891018481
A87: P00301 | B87: C019 | C87: 201001 | D87: 4 | E87: O | F87: 84 | G87: 23 | H87: 5633 | I87: 43122013600 | J87: 8 | K87: LB 6488 | L87: 2839 | M87: PACIFIC ENERGY RESOURCES LTD | N87: BETA | O87: 0 | P87: S01 | Q87: 19860601 | R87: 891018481
A88: P00301 | B88: C020 | C88: 201001 | D88: 31 | E88: O | F88: 3712 | G88: 1102 | H88: 3973 | I88: 43122013100 | J88: 8 | K88: LB 6488 | L88: 2839 | M88: PACIFIC ENERGY RESOURCES LTD | N88: BETA | O88: 0 | P88: S01 | Q88: 19860401 | R88: 891018481
A89: P00301 | B89: C022 | C89: 201001 | D89: 31 | E89: O | F89: 5666 | G89: 1670 | H89: 1622 | I89: 43122013000 | J89: 8 | K89: LB 6488 | L89: 2839 | M89: PACIFIC ENERGY RESOURCES LTD | N89: BETA | O89: 0 | P89: S01 | Q89: 19860201 | R89: 891018481
A90: P00301 | B90: C023 | C90: 201001 | D90: 0 | E90: O | F90: 0 | G90: 0 | H90: 0 | I90: 43122014200 | J90: 12 | K90: LB 6488 | L90: 2839 | M90: PACIFIC ENERGY RESOURCES LTD | N90: BETA | O90: 0 | P90: S01 | Q90: 19861101 | R90: 891018481
A91: P00301 | B91: C024 | C91: 201001 | D91: 0 | E91: O | F91: 0 | G91: 0 | H91: 0 | I91: 43122013201 | J91: 12 | K91: LB 6488 | L91: 2839 | M91: PACIFIC ENERGY RESOURCES LTD | N91: BETA | O91: 0 | P91: S01 | Q91: 19970731 | R91: 891018481
A92: P00301 | B92: C027 | C92: 201001 | D92: 31 | E92: O | F92: 3736 | G92: 1102 | H92: 9468 | I92: 43122014300 | J92: 8 | K92: LB 6488 | L92: 2839 | M92: PACIFIC ENERGY RESOURCES LTD | N92: BETA | O92: 0 | P92: S01 | Q92: 19861201 | R92: 891018481
A93: P00301 | B93: C030 | C93: 201001 | D93: 0 | E93: O | F93: 0 | G93: 0 | H93: 0 | I93: 43122013700 | J93: 12 | K93: LB 6488 | L93: 2839 | M93: PACIFIC ENERGY RESOURCES LTD | N93: BETA | O93: 0 | P93: S02 | Q93: 19910501 | R93: 891018481
A94: P00301 | B94: C033 | C94: 201001 | D94: 0 | E94: O | F94: 0 | G94: 0 | H94: 0 | I94: 43122015400 | J94: 12 | K94: LB 6488 | L94: 2839 | M94: PACIFIC ENERGY RESOURCES LTD | N94: BETA | O94: 0 | P94: S01 | Q94: 19871101 | R94: 891018481
A95: P00301 | B95: C034 | C95: 201001 | D95: 31 | E95: O | F95: 8289 | G95: 2452 | H95: 7085 | I95: 43122013800 | J95: 8 | K95: LB 6488 | L95: 2839 | M95: PACIFIC ENERGY RESOURCES LTD | N95: BETA | O95: 0 | P95: S01 | Q95: 19860901 | R95: 891018481
A96: P00301 | B96: C035 | C96: 201001 | D96: 0 | E96: O | F96: 0 | G96: 0 | H96: 0 | I96: 43122015200 | J96: 12 | K96: LB 6488 | L96: 2839 | M96: PACIFIC ENERGY RESOURCES LTD | N96: BETA | O96: 0 | P96: S01 | Q96: 19870401 | R96: 891018481
A97: P00301 | B97: C036 | C97: 201001 | D97: 31 | E97: O | F97: 4578 | G97: 0 | H97: 1821 | I97: 43122014400 | J97: 8 | K97: LB 6488 | L97: 2839 | M97: PACIFIC ENERGY RESOURCES LTD | N97: BETA | O97: 0 | P97: S01 | Q97: 19870201 | R97: 891018481
A98: P00301 | B98: C038 | C98: 201001 | D98: 0 | E98: O | F98: 0 | G98: 0 | H98: 0 | I98: 43122014000 | J98: 12 | K98: LB 6488 | L98: 2839 | M98: PACIFIC ENERGY RESOURCES LTD | N98: BETA | O98: 0 | P98: S01 | Q98: 19860901 | R98: 891018481
A99: P00301 | B99: C042 | C99: 201001 | D99: 11 | E99: O | F99: 5691 | G99: 0 | H99: 6489 | I99: 43122014500 | J99: 8 | K99: LB 6488 | L99: 2839 | M99: PACIFIC ENERGY RESOURCES LTD | N99: BETA | O99: 0 | P99: S01 | Q99: 19870601 | R99: 891018481
A100: P00301 | B100: C050 | C100: 201001 | D100: 0 | E100: O | F100: 0 | G100: 0 | H100: 0 | I100: 43122015100 | J100: 12 | K100: LB 6488 | L100: 2839 | M100: PACIFIC ENERGY RESOURCES LTD | N100: BETA | O100: 0 | P100: S01 | Q100: 19870501 | R100: 891018481
A101: P00301 | B101: C052 | C101: 201001 | D101: 0 | E101: O | F101: 0 | G101: 0 | H101: 0 | I101: 43122015500 | J101: 12 | K101: LB 6488 | L101: 2839 | M101: PACIFIC ENERGY RESOURCES LTD | N101: BETA | O101: 0 | P101: S01 | Q101: 19871001 | R101: 891018481
A102: P00301 | B102: C053 | C102: 201001 | D102: 0 | E102: O | F102: 0 | G102: 0 | H102: 0 | I102: 43122015600 | J102: 12 | K102: LB 6488 | L102: 2839 | M102: PACIFIC ENERGY RESOURCES LTD | N102: BETA | O102: 0 | P102: S01 | Q102: 19910801 | R102: 891018481
A103: P00301 | B103: C054 | C103: 201001 | D103: 0 | E103: O | F103: 0 | G103: 0 | H103: 0 | I103: 43122015800 | J103: 12 | K103: LB 6439 | L103: 2839 | M103: PACIFIC ENERGY RESOURCES LTD | N103: BETA | O103: 0 | P103: S01 | Q103: 19930601 | R103: 891018481
A104: P00301 | B104: C055 | C104: 201001 | D104: 0 | E104: O | F104: 0 | G104: 0 | H104: 0 | I104: 43122015900 | J104: 12 | K104: LB 6488 | L104: 2839 | M104: PACIFIC ENERGY RESOURCES LTD | N104: BETA | O104: 0 | P104: S01 | Q104: 19930601 | R104: 891018481
A105: P00301 | B105: C056 | C105: 201001 | D105: 31 | E105: O | F105: 6928 | G105: 2026 | H105: 5462 | I105: 43122016000 | J105: 8 | K105: LB 6438 | L105: 2839 | M105: PACIFIC ENERGY RESOURCES LTD | N105: BETA | O105: 0 | P105: S01 | Q105: 19940101 | R105: 891018481
A106: P00301 | B106: C057 | C106: 201001 | D106: 0 | E106: O | F106: 0 | G106: 0 | H106: 0 | I106: 43122016100 | J106: 12 | K106: LB 6488 | L106: 2839 | M106: PACIFIC ENERGY RESOURCES LTD | N106: BETA | O106: 0 | P106: S01 | Q106: 19940601 | R106: 891018481
A107: P00301 | B107: C059 | C107: 201001 | D107: 0 | E107: O | F107: 0 | G107: 0 | H107: 0 | I107: 43122016400 | J107: 12 | K107: LB 6488 | L107: 2839 | M107: PACIFIC ENERGY RESOURCES LTD | N107: BETA | O107: 0 | P107: S01 | Q107: 19960401 | R107: 891018481
A108: P00301 | B108: C060 | C108: 201001 | D108: 0 | E108: O | F108: 0 | G108: 0 | H108: 0 | I108: 43122016500 | J108: 12 | K108: LB 6488 | L108: 2839 | M108: PACIFIC ENERGY RESOURCES LTD | N108: BETA | O108: 0 | P108: S01 | Q108: 19960401 | R108: 891018481
A109: P00301 | B109: C061 | C109: 201001 | D109: 0 | E109: O | F109: 0 | G109: 0 | H109: 0 | I109: 43122016601 | J109: 12 | K109: LB 6488 | L109: 2839 | M109: PACIFIC ENERGY RESOURCES LTD | N109: BETA | O109: 0 | P109: S01 | Q109: 19970703 | R109: 891018481
A110: P00296 | B110: B002 | C110: 201002 | D110: 27 | E110: O | F110: 319 | G110: 154 | H110: 5 | I110: 43122008700 | J110: 8 | K110: LB 6437 | L110: 2531 | M110: DCOR, L.L.C. | N110: BETA | O110: 0 | P110: S01 | Q110: 19840101 | R110: 891018481
A111: P00296 | B111: B003 | C111: 201002 | D111: 27 | E111: O | F111: 333 | G111: 160 | H111: 9 | I111: 43122008800 | J111: 8 | K111: LB 6437 | L111: 2531 | M111: DCOR, L.L.C. | N111: BETA | O111: 0 | P111: S01 | Q111: 19840201 | R111: 891018481
A112: P00296 | B112: B004 | C112: 201002 | D112: 0 | E112: O | F112: 0 | G112: 0 | H112: 0 | I112: 43122009000 | J112: 12 | K112: LB 6437 | L112: 2531 | M112: DCOR, L.L.C. | N112: BETA | O112: 0 | P112: S01 | Q112: 19840301 | R112: 891018481
A113: P00296 | B113: B005 | C113: 201002 | D113: 27 | E113: O | F113: 714 | G113: 343 | H113: 5787 | I113: 43122009100 | J113: 8 | K113: LB 6438 | L113: 2531 | M113: DCOR, L.L.C. | N113: BETA | O113: 0 | P113: S01 | Q113: 19840401 | R113: 891018481
A114: P00296 | B114: B006 | C114: 201002 | D114: 27 | E114: O | F114: 236 | G114: 114 | H114: 2640 | I114: 43122009300 | J114: 8 | K114: LB 6438 | L114: 2531 | M114: DCOR, L.L.C. | N114: BETA | O114: 0 | P114: S01 | Q114: 19840701 | R114: 891018481
A115: P00296 | B115: B007 | C115: 201002 | D115: 0 | E115: O | F115: 0 | G115: 0 | H115: 0 | I115: 43122009500 | J115: 12 | K115: LB 6438 | L115: 2531 | M115: DCOR, L.L.C. | N115: BETA | O115: 0 | P115: S01 | Q115: 19840801 | R115: 891018481
A116: P00296 | B116: B008 | C116: 201002 | D116: 27 | E116: O | F116: 647 | G116: 312 | H116: 54 | I116: 43122009700 | J116: 8 | K116: LB 6438 | L116: 2531 | M116: DCOR, L.L.C. | N116: BETA | O116: 0 | P116: S01 | Q116: 19840901 | R116: 891018481
A117: P00296 | B117: B009 | C117: 201002 | D117: 27 | E117: O | F117: 1137 | G117: 546 | H117: 14 | I117: 43122009800 | J117: 8 | K117: LB 6438 | L117: 2531 | M117: DCOR, L.L.C. | N117: BETA | O117: 0 | P117: S01 | Q117: 19840901 | R117: 891018481
A118: P00296 | B118: B010 | C118: 201002 | D118: 27 | E118: O | F118: 62 | G118: 31 | H118: 119 | I118: 43122010000 | J118: 8 | K118: LB 6437 | L118: 2531 | M118: DCOR, L.L.C. | N118: BETA | O118: 0 | P118: S01 | Q118: 19841001 | R118: 891018481
A119: P00296 | B119: B011 | C119: 201002 | D119: 0 | E119: O | F119: 0 | G119: 0 | H119: 0 | I119: 43122010100 | J119: 12 | K119: LB 6438 | L119: 2531 | M119: DCOR, L.L.C. | N119: BETA | O119: 0 | P119: S01 | Q119: 19841101 | R119: 891018481
A120: P00296 | B120: B012 | C120: 201002 | D120: 27 | E120: O | F120: 1223 | G120: 587 | H120: 21 | I120: 43122010200 | J120: 8 | K120: LB 6438 | L120: 2531 | M120: DCOR, L.L.C. | N120: BETA | O120: 0 | P120: S01 | Q120: 19841201 | R120: 891018481
A121: P00296 | B121: B014 | C121: 201002 | D121: 27 | E121: O | F121: 1022 | G121: 491 | H121: 14 | I121: 43122010500 | J121: 8 | K121: LB 6438 | L121: 2531 | M121: DCOR, L.L.C. | N121: BETA | O121: 0 | P121: S01 | Q121: 19850201 | R121: 891018481
A122: P00296 | B122: B017 | C122: 201002 | D122: 27 | E122: O | F122: 984 | G122: 472 | H122: 68 | I122: 43122011400 | J122: 8 | K122: LB 6437 | L122: 2531 | M122: DCOR, L.L.C. | N122: BETA | O122: 0 | P122: S01 | Q122: 19850401 | R122: 891018481
A123: P00296 | B123: B018 | C123: 201002 | D123: 27 | E123: O | F123: 251 | G123: 121 | H123: 5 | I123: 43122011500 | J123: 8 | K123: LB 6438 | L123: 2531 | M123: DCOR, L.L.C. | N123: BETA | O123: 0 | P123: S01 | Q123: 19850501 | R123: 891018481
A124: P00296 | B124: B020 | C124: 201002 | D124: 27 | E124: O | F124: 1546 | G124: 740 | H124: 128 | I124: 43122011800 | J124: 8 | K124: LB 6437 | L124: 2531 | M124: DCOR, L.L.C. | N124: BETA | O124: 0 | P124: S01 | Q124: 19850701 | R124: 891018481
A125: P00296 | B125: B023 | C125: 201002 | D125: 0 | E125: O | F125: 0 | G125: 0 | H125: 0 | I125: 43122012300 | J125: 12 | K125: LB 6438 | L125: 2531 | M125: DCOR, L.L.C. | N125: BETA | O125: 0 | P125: S01 | Q125: 19850801 | R125: 891018481
A126: P00300 | B126: A001 | C126: 201002 | D126: 28 | E126: O | F126: 3621 | G126: 33 | H126: 16732 | I126: 43122002500 | J126: 8 | K126: LB 6438 | L126: 2839 | M126: PACIFIC ENERGY RESOURCES LTD | N126: BETA | O126: 0 | P126: S02 | Q126: 19840101 | R126: 891018481
A127: P00300 | B127: A013 | C127: 201002 | D127: 28 | E127: O | F127: 1235 | G127: 299 | H127: 8490 | I127: 43122004100 | J127: 8 | K127: LB 6438 | L127: 2839 | M127: PACIFIC ENERGY RESOURCES LTD | N127: BETA | O127: 0 | P127: S01 | Q127: 19810901 | R127: 891018481
A128: P00300 | B128: A020 | C128: 201002 | D128: 11 | E128: O | F128: 276 | G128: 26 | H128: 400 | I128: 43122003900 | J128: 8 | K128: LB 6438 | L128: 2839 | M128: PACIFIC ENERGY RESOURCES LTD | N128: BETA | O128: 0 | P128: S01 | Q128: 19820401 | R128: 891018481
A129: P00300 | B129: A024 | C129: 201002 | D129: 12 | E129: O | F129: 409 | G129: 28 | H129: 968 | I129: 43122004400 | J129: 8 | K129: LB 6438 | L129: 2839 | M129: PACIFIC ENERGY RESOURCES LTD | N129: BETA | O129: 0 | P129: S01 | Q129: 19810801 | R129: 891018481
A130: P00300 | B130: A025 | C130: 201002 | D130: 0 | E130: O | F130: 0 | G130: 0 | H130: 0 | I130: 43122005801 | J130: 12 | K130: LB 6438 | L130: 2839 | M130: PACIFIC ENERGY RESOURCES LTD | N130: BETA | O130: 0 | P130: S01 | Q130: 19960901 | R130: 891018481
A131: P00300 | B131: A028 | C131: 201002 | D131: 28 | E131: O | F131: 561 | G131: 33 | H131: 0 | I131: 43122004700 | J131: 8 | K131: LB 6438 | L131: 2839 | M131: PACIFIC ENERGY RESOURCES LTD | N131: BETA | O131: 0 | P131: S01 | Q131: 19820901 | R131: 891018481
A132: P00300 | B132: A030 | C132: 201002 | D132: 28 | E132: O | F132: 4969 | G132: 797 | H132: 10600 | I132: 43122004800 | J132: 8 | K132: LB 6438 | L132: 2839 | M132: PACIFIC ENERGY RESOURCES LTD | N132: BETA | O132: 0 | P132: S01 | Q132: 19810701 | R132: 891018481
A133: P00300 | B133: A031 | C133: 201002 | D133: 28 | E133: O | F133: 1151 | G133: 299 | H133: 35003 | I133: 43122006002 | J133: 8 | K133: LB 6438 | L133: 2839 | M133: PACIFIC ENERGY RESOURCES LTD | N133: BETA | O133: 0 | P133: S01 | Q133: 19820901 | R133: 891018481
A134: P00300 | B134: A032 | C134: 201002 | D134: 28 | E134: O | F134: 1488 | G134: 100 | H134: 0 | I134: 43122004900 | J134: 8 | K134: LB 6438 | L134: 2839 | M134: PACIFIC ENERGY RESOURCES LTD | N134: BETA | O134: 0 | P134: S01 | Q134: 19820901 | R134: 891018481
A135: P00300 | B135: A036 | C135: 201002 | D135: 0 | E135: O | F135: 0 | G135: 0 | H135: 0 | I135: 43122005300 | J135: 12 | K135: LB 6438 | L135: 2839 | M135: PACIFIC ENERGY RESOURCES LTD | N135: BETA | O135: 0 | P135: S01 | Q135: 19811001 | R135: 891018481
A136: P00300 | B136: A040 | C136: 201002 | D136: 28 | E136: O | F136: 758 | G136: 100 | H136: 0 | I136: 43122005600 | J136: 8 | K136: LB 6438 | L136: 2839 | M136: PACIFIC ENERGY RESOURCES LTD | N136: BETA | O136: 0 | P136: S01 | Q136: 19820201 | R136: 891018481
A137: P00300 | B137: A051 | C137: 201002 | D137: 28 | E137: O | F137: 393 | G137: 66 | H137: 298 | I137: 43122008201 | J137: 8 | K137: LB 6438 | L137: 2839 | M137: PACIFIC ENERGY RESOURCES LTD | N137: BETA | O137: 0 | P137: S01 | Q137: 19970201 | R137: 891018481
A138: P00300 | B138: A052 | C138: 201002 | D138: 11 | E138: O | F138: 518 | G138: 26 | H138: 49 | I138: 43122006900 | J138: 8 | K138: LB 6487 | L138: 2839 | M138: PACIFIC ENERGY RESOURCES LTD | N138: BETA | O138: 0 | P138: S01 | Q138: 19820801 | R138: 891018481
A139: P00300 | B139: A054 | C139: 201002 | D139: 0 | E139: O | F139: 0 | G139: 0 | H139: 0 | I139: 43122007200 | J139: 12 | K139: LB 6438 | L139: 2839 | M139: PACIFIC ENERGY RESOURCES LTD | N139: BETA | O139: 0 | P139: S01 | R139: 891018481
A140: P00300 | B140: A055 | C140: 201002 | D140: 28 | E140: O | F140: 1207 | G140: 431 | H140: 20505 | I140: 43122008300 | J140: 8 | K140: LB 6438 | L140: 2839 | M140: PACIFIC ENERGY RESOURCES LTD | N140: BETA | O140: 0 | P140: S01 | Q140: 19840201 | R140: 891018481
A141: P00300 | B141: A058 | C141: 201002 | D141: 28 | E141: O | F141: 1769 | G141: 166 | H141: 4171 | I141: 43122007400 | J141: 8 | K141: LB 6438 | L141: 2839 | M141: PACIFIC ENERGY RESOURCES LTD | N141: BETA | O141: 0 | P141: S02 | Q141: 19880701 | R141: 891018481
A142: P00300 | B142: A059 | C142: 201002 | D142: 28 | E142: O | F142: 4323 | G142: 564 | H142: 41283 | I142: 43122008600 | J142: 8 | K142: LB 6438 | L142: 2839 | M142: PACIFIC ENERGY RESOURCES LTD | N142: BETA | O142: 0 | P142: S01 | Q142: 19840401 | R142: 891018481
A143: P00300 | B143: A063 | C143: 201002 | D143: 28 | E143: O | F143: 814 | G143: 66 | H143: 2234 | I143: 43122009600 | J143: 8 | K143: LB 6438 | L143: 2839 | M143: PACIFIC ENERGY RESOURCES LTD | N143: BETA | O143: 0 | P143: S01 | Q143: 19840901 | R143: 891018481
A144: P00300 | B144: A074 | C144: 201002 | D144: 28 | E144: O | F144: 898 | G144: 133 | H144: 1489 | I144: 43122016200 | J144: 8 | K144: LB 6487 | L144: 2839 | M144: PACIFIC ENERGY RESOURCES LTD | N144: BETA | O144: 0 | P144: S01 | Q144: 19950401 | R144: 891018481
A145: P00300 | B145: A076 | C145: 201002 | D145: 0 | E145: O | F145: 0 | G145: 0 | H145: 0 | I145: 43122016300 | J145: 12 | K145: LB 6438 | L145: 2839 | M145: PACIFIC ENERGY RESOURCES LTD | N145: BETA | O145: 0 | P145: S01 | Q145: 19960601 | R145: 891018481
A146: P00301 | B146: A007 | C146: 201002 | D146: 28 | E146: O | F146: 2863 | G146: 365 | H146: 2607 | I146: 43122003400 | J146: 8 | K146: LB 6438 | L146: 2839 | M146: PACIFIC ENERGY RESOURCES LTD | N146: BETA | O146: 0 | P146: S02 | Q146: 19880301 | R146: 891018481
A147: P00301 | B147: A009 | C147: 201002 | D147: 0 | E147: O | F147: 0 | G147: 0 | H147: 0 | I147: 43122003600 | J147: 12 | K147: LB 6488 | L147: 2839 | M147: PACIFIC ENERGY RESOURCES LTD | N147: BETA | O147: 0 | P147: S02 | Q147: 19860501 | R147: 891018481
A148: P00301 | B148: A015 | C148: 201002 | D148: 28 | E148: O | F148: 1937 | G148: 1195 | H148: 10625 | I148: 43122004001 | J148: 8 | K148: LB 6438 | L148: 2839 | M148: PACIFIC ENERGY RESOURCES LTD | N148: BETA | O148: 0 | P148: S01 | Q148: 19901101 | R148: 891018481
A149: P00301 | B149: A021 | C149: 201002 | D149: 0 | E149: O | F149: 0 | G149: 0 | H149: 0 | I149: 43122005200 | J149: 12 | K149: LB 6438 | L149: 2839 | M149: PACIFIC ENERGY RESOURCES LTD | N149: BETA | O149: 0 | P149: S01 | Q149: 19820101 | R149: 891018481
A150: P00301 | B150: A023 | C150: 201002 | D150: 0 | E150: O | F150: 0 | G150: 0 | H150: 0 | I150: 43122005700 | J150: 12 | K150: LB 6438 | L150: 2839 | M150: PACIFIC ENERGY RESOURCES LTD | N150: BETA | O150: 0 | P150: S02 | Q150: 19880201 | R150: 891018481
A151: P00301 | B151: A027 | C151: 201002 | D151: 28 | E151: O | F151: 4071 | G151: 1128 | H151: 11593 | I151: 43122005900 | J151: 8 | K151: LB 6438 | L151: 2839 | M151: PACIFIC ENERGY RESOURCES LTD | N151: BETA | O151: 0 | P151: S02 | Q151: 19860501 | R151: 891018481
A152: P00301 | B152: A034 | C152: 201002 | D152: 0 | E152: O | F152: 0 | G152: 0 | H152: 0 | I152: 43122005001 | J152: 12 | K152: LB 6438 | L152: 2839 | M152: PACIFIC ENERGY RESOURCES LTD | N152: BETA | O152: 0 | P152: S01 | Q152: 19970930 | R152: 891018481
A153: P00301 | B153: A038 | C153: 201002 | D153: 28 | E153: O | F153: 4941 | G153: 564 | H153: 17402 | I153: 43122005400 | J153: 8 | K153: LB 6438 | L153: 2839 | M153: PACIFIC ENERGY RESOURCES LTD | N153: BETA | O153: 0 | P153: S02 | Q153: 19860801 | R153: 891018481
A154: P00301 | B154: A043 | C154: 201002 | D154: 28 | E154: O | F154: 2274 | G154: 1626 | H154: 10352 | I154: 43122007100 | J154: 8 | K154: LB 6438 | L154: 2839 | M154: PACIFIC ENERGY RESOURCES LTD | N154: BETA | O154: 0 | P154: S02 | Q154: 19880401 | R154: 891018481
A155: P00301 | B155: A045 | C155: 201002 | D155: 0 | E155: O | F155: 0 | G155: 0 | H155: 0 | I155: 43122007900 | J155: 12 | K155: LB 6488 | L155: 2839 | M155: PACIFIC ENERGY RESOURCES LTD | N155: BETA | O155: 0 | P155: S01 | Q155: 19830501 | R155: 891018481
A156: P00301 | B156: A047 | C156: 201002 | D156: 0 | E156: O | F156: 0 | G156: 0 | H156: 0 | I156: 43122008100 | J156: 12 | K156: LB 6438 | L156: 2839 | M156: PACIFIC ENERGY RESOURCES LTD | N156: BETA | O156: 0 | P156: S02 | Q156: 19860701 | R156: 891018481
A157: P00301 | B157: A056 | C157: 201002 | D157: 28 | E157: O | F157: 7243 | G157: 1361 | H157: 9955 | I157: 43122007300 | J157: 8 | K157: LB 6488 | L157: 2839 | M157: PACIFIC ENERGY RESOURCES LTD | N157: BETA | O157: 0 | P157: S02 | Q157: 19860201 | R157: 891018481
A158: P00301 | B158: A057 | C158: 201002 | D158: 28 | E158: O | F158: 3004 | G158: 1062 | H158: 9533 | I158: 43122009200 | J158: 8 | K158: LB 6438 | L158: 2839 | M158: PACIFIC ENERGY RESOURCES LTD | N158: BETA | O158: 0 | P158: S01 | Q158: 19840901 | R158: 891018481
A159: P00301 | B159: C001 | C159: 201002 | D159: 28 | E159: O | F159: 6822 | G159: 1991 | H159: 1484 | I159: 43122010400 | J159: 8 | K159: LB 6488 | L159: 2839 | M159: PACIFIC ENERGY RESOURCES LTD | N159: BETA | O159: 0 | P159: S01 | Q159: 19850301 | R159: 891018481
A160: P00301 | B160: C004 | C160: 201002 | D160: 0 | E160: O | F160: 0 | G160: 0 | H160: 0 | I160: 43122010700 | J160: 12 | K160: LB 6488 | L160: 2839 | M160: PACIFIC ENERGY RESOURCES LTD | N160: BETA | O160: 0 | P160: S02 | Q160: 19860701 | R160: 891018481
A161: P00301 | B161: C005 | C161: 201002 | D161: 0 | E161: O | F161: 0 | G161: 0 | H161: 0 | I161: 43122011300 | J161: 12 | K161: LB 6488 | L161: 2839 | M161: PACIFIC ENERGY RESOURCES LTD | N161: BETA | O161: 0 | P161: S01 | Q161: 19850501 | R161: 891018481
A162: P00301 | B162: C006 | C162: 201002 | D162: 28 | E162: O | F162: 2865 | G162: 830 | H162: 28075 | I162: 43122011200 | J162: 8 | K162: LB 6488 | L162: 2839 | M162: PACIFIC ENERGY RESOURCES LTD | N162: BETA | O162: 0 | P162: S01 | Q162: 19850501 | R162: 891018481
A163: P00301 | B163: C008 | C163: 201002 | D163: 0 | E163: O | F163: 0 | G163: 0 | H163: 0 | I163: 43122011600 | J163: 12 | K163: LB 6488 | L163: 2839 | M163: PACIFIC ENERGY RESOURCES LTD | N163: BETA | O163: 0 | P163: S01 | Q163: 19850701 | R163: 891018481
A164: P00301 | B164: C009 | C164: 201002 | D164: 28 | E164: O | F164: 2615 | G164: 763 | H164: 6027 | I164: 43122011700 | J164: 8 | K164: LB 6488 | L164: 2839 | M164: PACIFIC ENERGY RESOURCES LTD | N164: BETA | O164: 0 | P164: S01 | Q164: 19860101 | R164: 891018481
A165: P00301 | B165: C011 | C165: 201002 | D165: 28 | E165: O | F165: 4434 | G165: 1294 | H165: 7511 | I165: 43122012500 | J165: 8 | K165: LB 6488 | L165: 2839 | M165: PACIFIC ENERGY RESOURCES LTD | N165: BETA | O165: 0 | P165: S01 | Q165: 19850901 | R165: 891018481
A166: P00301 | B166: C013 | C166: 201002 | D166: 0 | E166: O | F166: 0 | G166: 0 | H166: 0 | I166: 43122012400 | J166: 12 | K166: LB 6488 | L166: 2839 | M166: PACIFIC ENERGY RESOURCES LTD | N166: BETA | O166: 0 | P166: S01 | Q166: 19880601 | R166: 891018481
A167: P00301 | B167: C016 | C167: 201002 | D167: 0 | E167: O | F167: 0 | G167: 0 | H167: 0 | I167: 43122012200 | J167: 12 | K167: LB 6488 | L167: 2839 | M167: PACIFIC ENERGY RESOURCES LTD | N167: BETA | O167: 0 | P167: S01 | Q167: 19850901 | R167: 891018481
A168: P00301 | B168: C018 | C168: 201002 | D168: 28 | E168: O | F168: 3297 | G168: 963 | H168: 10025 | I168: 43122012800 | J168: 8 | K168: LB 6488 | L168: 2839 | M168: PACIFIC ENERGY RESOURCES LTD | N168: BETA | O168: 0 | P168: S01 | Q168: 19860201 | R168: 891018481
A169: P00301 | B169: C019 | C169: 201002 | D169: 28 | E169: O | F169: 4752 | G169: 1394 | H169: 23865 | I169: 43122013600 | J169: 8 | K169: LB 6488 | L169: 2839 | M169: PACIFIC ENERGY RESOURCES LTD | N169: BETA | O169: 0 | P169: S01 | Q169: 19860601 | R169: 891018481
A170: P00301 | B170: C020 | C170: 201002 | D170: 28 | E170: O | F170: 3365 | G170: 996 | H170: 4058 | I170: 43122013100 | J170: 8 | K170: LB 6488 | L170: 2839 | M170: PACIFIC ENERGY RESOURCES LTD | N170: BETA | O170: 0 | P170: S01 | Q170: 19860401 | R170: 891018481
A171: P00301 | B171: C022 | C171: 201002 | D171: 28 | E171: O | F171: 6390 | G171: 1892 | H171: 1878 | I171: 43122013000 | J171: 8 | K171: LB 6488 | L171: 2839 | M171: PACIFIC ENERGY RESOURCES LTD | N171: BETA | O171: 0 | P171: S01 | Q171: 19860201 | R171: 891018481
A172: P00301 | B172: C023 | C172: 201002 | D172: 0 | E172: O | F172: 0 | G172: 0 | H172: 0 | I172: 43122014200 | J172: 12 | K172: LB 6488 | L172: 2839 | M172: PACIFIC ENERGY RESOURCES LTD | N172: BETA | O172: 0 | P172: S01 | Q172: 19861101 | R172: 891018481
A173: P00301 | B173: C024 | C173: 201002 | D173: 0 | E173: O | F173: 0 | G173: 0 | H173: 0 | I173: 43122013201 | J173: 12 | K173: LB 6488 | L173: 2839 | M173: PACIFIC ENERGY RESOURCES LTD | N173: BETA | O173: 0 | P173: S01 | Q173: 19970731 | R173: 891018481
A174: P00301 | B174: C027 | C174: 201002 | D174: 28 | E174: O | F174: 4207 | G174: 1228 | H174: 7571 | I174: 43122014300 | J174: 8 | K174: LB 6488 | L174: 2839 | M174: PACIFIC ENERGY RESOURCES LTD | N174: BETA | O174: 0 | P174: S01 | Q174: 19861201 | R174: 891018481
A175: P00301 | B175: C030 | C175: 201002 | D175: 0 | E175: O | F175: 0 | G175: 0 | H175: 0 | I175: 43122013700 | J175: 12 | K175: LB 6488 | L175: 2839 | M175: PACIFIC ENERGY RESOURCES LTD | N175: BETA | O175: 0 | P175: S02 | Q175: 19910501 | R175: 891018481
A176: P00301 | B176: C033 | C176: 201002 | D176: 0 | E176: O | F176: 0 | G176: 0 | H176: 0 | I176: 43122015400 | J176: 12 | K176: LB 6488 | L176: 2839 | M176: PACIFIC ENERGY RESOURCES LTD | N176: BETA | O176: 0 | P176: S01 | Q176: 19871101 | R176: 891018481
A177: P00301 | B177: C034 | C177: 201002 | D177: 28 | E177: O | F177: 7345 | G177: 2157 | H177: 4694 | I177: 43122013800 | J177: 8 | K177: LB 6488 | L177: 2839 | M177: PACIFIC ENERGY RESOURCES LTD | N177: BETA | O177: 0 | P177: S01 | Q177: 19860901 | R177: 891018481
A178: P00301 | B178: C035 | C178: 201002 | D178: 0 | E178: O | F178: 0 | G178: 0 | H178: 0 | I178: 43122015200 | J178: 12 | K178: LB 6488 | L178: 2839 | M178: PACIFIC ENERGY RESOURCES LTD | N178: BETA | O178: 0 | P178: S01 | Q178: 19870401 | R178: 891018481
A179: P00301 | B179: C036 | C179: 201002 | D179: 28 | E179: O | F179: 4002 | G179: 1162 | H179: 1969 | I179: 43122014400 | J179: 8 | K179: LB 6488 | L179: 2839 | M179: PACIFIC ENERGY RESOURCES LTD | N179: BETA | O179: 0 | P179: S01 | Q179: 19870201 | R179: 891018481
A180: P00301 | B180: C038 | C180: 201002 | D180: 0 | E180: O | F180: 0 | G180: 0 | H180: 0 | I180: 43122014000 | J180: 12 | K180: LB 6488 | L180: 2839 | M180: PACIFIC ENERGY RESOURCES LTD | N180: BETA | O180: 0 | P180: S01 | Q180: 19860901 | R180: 891018481
A181: P00301 | B181: C042 | C181: 201002 | D181: 28 | E181: O | F181: 5958 | G181: 1759 | H181: 2181 | I181: 43122014500 | J181: 8 | K181: LB 6488 | L181: 2839 | M181: PACIFIC ENERGY RESOURCES LTD | N181: BETA | O181: 0 | P181: S01 | Q181: 19870601 | R181: 891018481
A182: P00301 | B182: C050 | C182: 201002 | D182: 0 | E182: O | F182: 0 | G182: 0 | H182: 0 | I182: 43122015100 | J182: 12 | K182: LB 6488 | L182: 2839 | M182: PACIFIC ENERGY RESOURCES LTD | N182: BETA | O182: 0 | P182: S01 | Q182: 19870501 | R182: 891018481
A183: P00301 | B183: C052 | C183: 201002 | D183: 0 | E183: O | F183: 0 | G183: 0 | H183: 0 | I183: 43122015500 | J183: 12 | K183: LB 6488 | L183: 2839 | M183: PACIFIC ENERGY RESOURCES LTD | N183: BETA | O183: 0 | P183: S01 | Q183: 19871001 | R183: 891018481
A184: P00301 | B184: C053 | C184: 201002 | D184: 0 | E184: O | F184: 0 | G184: 0 | H184: 0 | I184: 43122015600 | J184: 12 | K184: LB 6488 | L184: 2839 | M184: PACIFIC ENERGY RESOURCES LTD | N184: BETA | O184: 0 | P184: S01 | Q184: 19910801 | R184: 891018481
A185: P00301 | B185: C054 | C185: 201002 | D185: 0 | E185: O | F185: 0 | G185: 0 | H185: 0 | I185: 43122015800 | J185: 12 | K185: LB 6439 | L185: 2839 | M185: PACIFIC ENERGY RESOURCES LTD | N185: BETA | O185: 0 | P185: S01 | Q185: 19930601 | R185: 891018481
A186: P00301 | B186: C055 | C186: 201002 | D186: 0 | E186: O | F186: 0 | G186: 0 | H186: 0 | I186: 43122015900 | J186: 12 | K186: LB 6488 | L186: 2839 | M186: PACIFIC ENERGY RESOURCES LTD | N186: BETA | O186: 0 | P186: S01 | Q186: 19930601 | R186: 891018481
A187: P00301 | B187: C056 | C187: 201002 | D187: 28 | E187: O | F187: 5254 | G187: 1560 | H187: 2393 | I187: 43122016000 | J187: 8 | K187: LB 6438 | L187: 2839 | M187: PACIFIC ENERGY RESOURCES LTD | N187: BETA | O187: 0 | P187: S01 | Q187: 19940101 | R187: 891018481
A188: P00301 | B188: C057 | C188: 201002 | D188: 0 | E188: O | F188: 0 | G188: 0 | H188: 0 | I188: 43122016100 | J188: 12 | K188: LB 6488 | L188: 2839 | M188: PACIFIC ENERGY RESOURCES LTD | N188: BETA | O188: 0 | P188: S01 | Q188: 19940601 | R188: 891018481
A189: P00301 | B189: C059 | C189: 201002 | D189: 0 | E189: O | F189: 0 | G189: 0 | H189: 0 | I189: 43122016400 | J189: 12 | K189: LB 6488 | L189: 2839 | M189: PACIFIC ENERGY RESOURCES LTD | N189: BETA | O189: 0 | P189: S01 | Q189: 19960401 | R189: 891018481
A190: P00301 | B190: C060 | C190: 201002 | D190: 0 | E190: O | F190: 0 | G190: 0 | H190: 0 | I190: 43122016500 | J190: 12 | K190: LB 6488 | L190: 2839 | M190: PACIFIC ENERGY RESOURCES LTD | N190: BETA | O190: 0 | P190: S01 | Q190: 19960401 | R190: 891018481
A191: P00301 | B191: C061 | C191: 201002 | D191: 0 | E191: O | F191: 0 | G191: 0 | H191: 0 | I191: 43122016601 | J191: 12 | K191: LB 6488 | L191: 2839 | M191: PACIFIC ENERGY RESOURCES LTD | N191: BETA | O191: 0 | P191: S01 | Q191: 19970703 | R191: 891018481
A192: P00296 | B192: B002 | C192: 201003 | D192: 30 | E192: O | F192: 420 | G192: 197 | H192: 15 | I192: 43122008700 | J192: 8 | K192: LB 6437 | L192: 2531 | M192: DCOR, L.L.C. | N192: BETA | O192: 0 | P192: S01 | Q192: 19840101 | R192: 891018481
A193: P00296 | B193: B003 | C193: 201003 | D193: 30 | E193: O | F193: 420 | G193: 197 | H193: 13 | I193: 43122008800 | J193: 8 | K193: LB 6437 | L193: 2531 | M193: DCOR, L.L.C. | N193: BETA | O193: 0 | P193: S01 | Q193: 19840201 | R193: 891018481
A194: P00296 | B194: B004 | C194: 201003 | D194: 0 | E194: O | F194: 0 | G194: 0 | H194: 0 | I194: 43122009000 | J194: 12 | K194: LB 6437 | L194: 2531 | M194: DCOR, L.L.C. | N194: BETA | O194: 0 | P194: S01 | Q194: 19840301 | R194: 891018481
A195: P00296 | B195: B005 | C195: 201003 | D195: 30 | E195: O | F195: 959 | G195: 450 | H195: 6156 | I195: 43122009100 | J195: 8 | K195: LB 6438 | L195: 2531 | M195: DCOR, L.L.C. | N195: BETA | O195: 0 | P195: S01 | Q195: 19840401 | R195: 891018481
A196: P00296 | B196: B006 | C196: 201003 | D196: 30 | E196: O | F196: 162 | G196: 76 | H196: 2465 | I196: 43122009300 | J196: 8 | K196: LB 6438 | L196: 2531 | M196: DCOR, L.L.C. | N196: BETA | O196: 0 | P196: S01 | Q196: 19840701 | R196: 891018481
A197: P00296 | B197: B007 | C197: 201003 | D197: 0 | E197: O | F197: 0 | G197: 0 | H197: 0 | I197: 43122009500 | J197: 12 | K197: LB 6438 | L197: 2531 | M197: DCOR, L.L.C. | N197: BETA | O197: 0 | P197: S01 | Q197: 19840801 | R197: 891018481
A198: P00296 | B198: B008 | C198: 201003 | D198: 30 | E198: O | F198: 707 | G198: 332 | H198: 58 | I198: 43122009700 | J198: 8 | K198: LB 6438 | L198: 2531 | M198: DCOR, L.L.C. | N198: BETA | O198: 0 | P198: S01 | Q198: 19840901 | R198: 891018481
A199: P00296 | B199: B009 | C199: 201003 | D199: 30 | E199: O | F199: 1320 | G199: 620 | H199: 47 | I199: 43122009800 | J199: 8 | K199: LB 6438 | L199: 2531 | M199: DCOR, L.L.C. | N199: BETA | O199: 0 | P199: S01 | Q199: 19840901 | R199: 891018481
A200: P00296 | B200: B010 | C200: 201003 | D200: 30 | E200: O | F200: 72 | G200: 34 | H200: 123 | I200: 43122010000 | J200: 8 | K200: LB 6437 | L200: 2531 | M200: DCOR, L.L.C. | N200: BETA | O200: 0 | P200: S01 | Q200: 19841001 | R200: 891018481
A201: P00296 | B201: B011 | C201: 201003 | D201: 0 | E201: O | F201: 0 | G201: 0 | H201: 0 | I201: 43122010100 | J201: 12 | K201: LB 6438 | L201: 2531 | M201: DCOR, L.L.C. | N201: BETA | O201: 0 | P201: S01 | Q201: 19841101 | R201: 891018481
... 4295 more rows

Sheet USA-ANS
A1: Data inputs | B1: Start field: | C1: End field:
A2: Fields to assess | B2: 1 | C2: 1 | G2: Modeled ANS as a single "field" using aggregated and production weighted data from the individual fields
A3: 1 Inputs
A5: Variables | E5: Unit | G5: Default | H5: Field 1
G6: =IF(G21="","NA",G21) -> Generic | H6: =IF(H21="","NA",H21) -> ANS
A7: 1.1 Production methods
A8: Notes: Enter "1" where applicable and "0" where not applicable
B9: 1.1.1 Downhole pump | E9: NA | G9: 1 | H9: 0 | I9: Consistent with production and injection data
B10: 1.1.2 Water reinjection | E10: NA | G10: 1 | H10: 0 | I10: Consistent with production and injection data
B11: 1.1.3 Natural gas reinjection | E11: NA | G11: 1 | H11: 1 | I11: Consistent with production and injection data
B12: 1.1.4 Water flooding | E12: NA | G12: 0 | H12: 1 | I12: Consistent with production and injection data
B13: 1.1.5 Gas lifting | E13: NA | G13: 0 | H13: 1 | I13: Consistent with production and injection data
B14: 1.1.6 Gas flooding | E14: NA | G14: 0
B15: 1.1.7 Steam flooding | E15: NA | G15: 0
B16: 1.1.8 Oil sands mine (integrated with upgrader) | E16: NA | G16: 0
B17: 1.1.9 Oil sands mine (non-integrated with upgrader) | E17: NA | G17: 0
A19: 1.2 Field properties
B20: 1.2.1 Field location (Country) | E20: NA | G20: Generic | H20: United States
B21: 1.2.2 Field name | E21: NA | G21: Generic | H21: ANS
B22: 1.2.3 Field age | E22: yr. | G22: 35
B23: 1.2.4 Field depth | E23: ft | G23: 7240 | H23: 7700 | I23: Approximate average value based on information from http://doa.alaska.gov/ogc/annual/annindex.html
B24: 1.2.5 Oil production volume | E24: bbl/d | G24: 1500 | H24: 589266.274 | I24: See "ANS Production Data" and "ANS Injection Data" sheets
B25: 1.2.6 Number of producing wells | E25: [-] | G25: 8 | H25: 1589 | I25: See "ANS Production Data" and "ANS Injection Data" sheets
B26: 1.2.7 Number of water injecting wells | E26: [-] | G26: 5 | H26: 855 | I26: See "ANS Production Data" and "ANS Injection Data" sheets
B27: 1.2.8 Well diameter | E27: in | G27: 2.775
B28: 1.2.9 Productivity index | E28: bbl/psi-d | G28: 3
B29: 1.2.10 Reservoir pressure | E29: psi | G29: 1556.6 | H29: 3200 | I29: Approximate average value based on information from http://doa.alaska.gov/ogc/annual/annindex.html
B30: 1.2.11 Reservoir temperature | E30: ◦F | G30: 150
B31: 1.2.12 Offshore? | E31: [0-1] | G31: 0
A33: 1.3 Fluid properties
B34: 1.3.1 API gravity | E34: deg. API | G34: 30 | H34: 28.3 | I34: Volume weighted average API gravity (based on data from http://doa.alaska.gov/ogc/annual/current/annindex_current.html)
B35: 1.3.2 Gas composition
C36: N2 | E36: mol% | G36: 2
C37: CO2 | E37: mol% | G37: 6
C38: C1 | E38: mol% | G38: 84
C39: C2 | E39: mol% | G39: 4
C40: C3 | E40: mol% | G40: 2
C41: C4+ | E41: mol% | G41: 1
C42: H2S | E42: mol% | G42: 1
A44: 1.4 Production practices
A45: Notes: Enter "NA" where not applicable
B46: 1.4.1 Gas-to-oil ratio (GOR) | E46: scf/bbl oil | G46: 908 | H46: 14351 | I46: Alaska Oil and Gas Conservation Commission 2010 Gas Disposition Data (see below)
B47: 1.4.2 Water-to-oil ratio (WOR) | E47: bbl water/bbl oil | G47: 4.308369057 | H47: 3.37 | I47: See "ANS Production Data" and "ANS Injection Data" sheets
B48: 1.4.3 Water injection ratio | E48: bbl water/bbl oil | G48: 5.308369057 | H48: 5 | I48: See "ANS Production Data" and "ANS Injection Data" sheets
B49: 1.4.4 Gas lifting injection ratio | E49: scf/bbl liquid | G49: 1500 | H49: 1000 | I49: Multiplied default value for gas lifting injection ratio by the percentage of wells using gas lift. Assumed two-thirds gas lift, one third flowing, and no pumps
B50: 1.4.5 Gas flooding injection ratio | E50: scf/bbl oil | G50: 1362
B51: 1.4.6 Flood gas | E51: NA | G51: 1
C52: 1= Natural gas
C53: 2= Nitrogen (N2)
C54: 3= Carbon Dioxide (CO2)
B57: 1.4.7 Carbon dioxide flooding and sequestration parameters
C58: 1.4.7.1 Percentage of newly acquired CO2 (total injected CO2 includes both new and recycled) | E58: % | G58: 41
C59: 1.4.7.2 Source of CO2 | E59: NA | G59: 1
D60: 1= Natural subsurface reservoir
D61: 2= Anthropogenic
C62: 1.4.7.3 Percentage of sequestration credit assigned to the oilfield | E62: % | G62: 0
B63: 1.4.8 Steam-to-oil ratio (SOR) | E63: bbl steam/bbl oil | G63: 3
B64: 1.4.9 Fraction of required electricity generated onsite | E64: [-] | G64: 0
B65: 1.4.10 Fraction of remaining natural gas reinjected | E65: [-] | G65: 0 | H65: 1 | I65: Assumed all electricity produced onsite
B66: 1.4.11 Fraction of produced water reinjected | E66: [-] | G66: 1 | H66: -1 | I66: Assumed all produced gas that is not flared, vented, lost through fugitives, or used on-site is reinjected.
B67: 1.4.12 Fraction of steam generation via cogeneration | E67: [-] | G67: 0
A69: 1.5 Processing practices
B70: 1.5.1 Heater/treater | E70: NA | G70: 0 | H70: 1 | I70: Based on input from operator
B71: 1.5.2 Stabilizer column | E71: NA | G71: 1 | H71: 0 | I71: Based on input from operator
B72: 1.5.3 Upgrader type | G72: 0
C73: 0 = None
C74: 1 = Delayed coking
C75: 2 = Hydroconversion
C76: 3 = Combined hydroconversion and fluid coking
B77: 1.5.3 Associated Gas Processing Path | E77: NA | G77: 5 | H77: 4 | I77: No amine treater. Based on input from operator
C78: 1= None
C79: 2= Minimal: Dehydrator
C80: 3= Acid Gas: Dehydrator + Amine Process
C81: 4= Wet Gas: Dehydrator + Demethanizer
C82: 5= Acid Wet Gas: Dehydrator + Amine Process + Demethanizer
C83: 6= CO2-EOR Membrane: Dehydrator + Compressor + Membrane + Amine Process + Demethanizer
C84: 7= CO2-EOR Ryan Holmes: Dehydrator + Ryan Holmes Process (Demethanizer Included)
C85: Notes: Choose paths 6 or 7 only if gas flooding is ON and CO2 is the flood gas
B86: 1.5.4 Flaring-to-oil ratio | E86: scf/bbl oil | G86: 181.5280918 | H86: 42.7 | I86: See gas disposition data below
B87: 1.5.5 Venting-to-oil ratio | E87: scf/bbl oil | G87: 0
B88: 1.5.6 Volume fraction of diluent | E88: [-] | G88: 0
A90: 1.6 Land use impacts
B91: 1.6.1 Crude ecosystem carbon richness
C92: 1.6.1.1 Low carbon richness (semi-arid grasslands) | E92: NA | G92: 0 | H92: 1 | I92: Assumed grassland
C93: 1.6.1.2 Moderate carbon richness (mixed) | E93: NA | G93: 1 | H93: 0
C94: 1.6.1.3 High carbon richness (forested) | E94: NA | G94: 0 | H94: 0
B95: 1.6.2 Field development intensity
C96: 1.6.2.1 Low intensity development and low oxidation | E96: NA | G96: 0
C97: 1.6.2.2 Moderate intensity development and moderate oxidation | E97: NA | G97: 1
C98: 1.6.2.3 High intensity development and high oxidation | E98: NA | G98: 0
A100: 1.8 Crude oil transport
B101: 1.8.1 Fraction of oil transported by each mode
C102: 1.8.1.1 Ocean tanker | E102: [-] | G102: 1 | H102: 1
C103: 1.8.1.2 Barge | E103: [-] | G103: 0 | H103: 0
C104: 1.8.1.3 Pipeline | E104: [-] | G104: 1 | H104: 1
C105: 1.8.1.4 Rail | E105: [-] | G105: 0 | H105: 0
C106: 1.8.1.5 Truck | G106: 0
B107: 1.8.2 Transport distance (one way)
C108: 1.8.2.1 Ocean tanker | E108: Mile | G108: 5082 | H108: 2364 | I108: Valdez to Los Angeles: http://sea-distances.com/
C109: 1.8.2.2 Barge | E109: Mile | G109: 500 | H109: 0
C110: 1.8.2.3 Pipeline | E110: Mile | G110: 750 | H110: 800 | I110: http://www.alyeska-pipe.com/Default.asp
C111: 1.8.2.4 Rail | E111: Mile | G111: 800 | H111: 0
C112: 1.8.2.5 Truck | G112: 100 | H112: 0
B113: 1.8.3 Ocean tanker size, if applicable | E113: Ton | G113: 250000
A115: 1.9 Small sources emissions | E115: gCO2eq/MJ | G115: 0.5
A118: Additional Data and Assumptions
A119: Demethanizer: Assumed 0% ethane, 1.9% propane and 100% butane condensed to match reported data for NGL (cells M120, 121, 122 of Surface Processing sheet)
A120: Assumed NGL blended with crude (cells M127 and 128 of Surface Processing sheet)
A121: Based on data provided by BP (see BP ANS information sheet) and extrapolated to all ANS production, the following changes were made:
B122: Changed Drilling and Development M103 to 2268054 bbl/well based cumulative volume produced and cumulative wells drilled for ANS fields
B123: Emission Factors G67 changed to 7072 and H67 changed to 39, Emission Factors G96 and H96 changed to zero - vapor recovery used on most gas dehydrators
B124: Emission Factors G60, G60, H61, H61 changed to zero - compressor blowdown lines routed to vapor recovery
B125: Venting and Fugitives M51, M52, and M61 set to zero - natural gas actuated controllers and pumps are not used
B126: Emission Factors G70 and H70 changed to zero - tank vents routed to vapor recovery
A128: Well/Pressure Data | B128: Total ANS | C128: Badami | D128: Colville River | E128: Endicott | F128: Kupuruk River | G128: Milne Point | H128: Northstar | I128: Oooguruk | J128: Prudhoe Bay | K128: Source
A129: Flowing | B129: =SUM(C129:J129) -> 397 | C129: 2 | D129: 1 | E129: 19 | F129: 0 | G129: 0 | H129: 15 | I129: 2 | J129: 358 | K129: http://doa.alaska.gov/ogc/annual/current/annindex_current.html
A130: Gas Lift | B130: =SUM(C130:J130) -> 1008 | C130: 2 | D130: 74 | E130: 33 | F130: 478 | G130: 14 | H130: 1 | I130: 3 | J130: 403 | K130: http://doa.alaska.gov/ogc/annual/current/annindex_current.html
A131: Pump | B131: =SUM(C131:J131) -> 140 | C131: 0 | D131: 0 | E131: 0 | F131: 35 | G131: 100 | H131: 0 | I131: 5 | J131: 0 | K131: http://doa.alaska.gov/ogc/annual/current/annindex_current.html
A132: Avg. Press. (psi) | B132: =(C132*SUM(C129:C131)+D132*SUM(D129:D131)+E132*SUM(E129:E131)+F132*SUM(F129:F131)+G132*SUM(G129:G131)+H132*SUM(H129:H131)+I132*SUM(I129:I131)+J132*SUM(J129:J131))/SUM(C129:J131) -> 3209.352751 | C132: 3825 | D132: 3100 | E132: 4250 | F132: 2950 | G132: 2450 | H132: 5100 | I132: 2800 | J132: 3400 | K132: http://doa.alaska.gov/ogc/annual/current/annindex_current.html
B133: 65% lift
A135: 2010 Gas Disposition Data (supplied by Alaska Oil and Gas Conservation Commission)
A136: Operator | B136: Facility | C136: Sold | D136: Reinjected | E136: LeaseOperations | F136: YrAssistGas | G136: Other(Shrink) | H136: FlareLess1Hr | I136: FlareGrtr1Hr | J136: PilotPurge1 | K136: Total
A137: BP EXPLORATION (ALASKA) INC | B137: Badami | C137: 0 | D137: 330248 | E137: 30131 | F137: 0 | G137: 0 | H137: 718 | I137: 12905 | J137: 403 | K137: 374405
A138: NORTH SLOPE BOROUGH | B138: Barrow | C138: 335161 | D138: 0 | E138: 215 | F138: 0 | G138: 0 | H138: 102 | I138: 0 | J138: 0 | K138: 335478
A139: CONOCOPHILLIPS ALASKA INC | B139: Colville River Unit | C139: 489967 | D139: 30067950 | E139: 5744988 | F139: 0 | G139: 0 | H139: 168729 | I139: 6630 | J139: 161616 | K139: 36639880
A140: BP EXPLORATION (ALASKA) INC | B140: DIU Endicott | C140: 823230 | D140: 118688888 | E140: 11866838 | F140: 275498 | G140: 0 | H140: 17185 | I140: 68841 | J140: 120085 | K140: 131860565
A141: CONOCOPHILLIPS ALASKA INC | B141: KRU CPF 1 | C141: 44589 | D141: 23080122 | E141: 10321393 | F141: 235690 | G141: 0 | H141: 60814 | I141: 3599 | J141: 139597 | K141: 33885804
A142: CONOCOPHILLIPS ALASKA INC | B142: KRU CPF 2 | C142: 80470 | D142: 48545817 | E142: 8014485 | F142: 0 | G142: 0 | H142: 93850 | I142: 22530 | J142: 234551 | K142: 56991703
A143: CONOCOPHILLIPS ALASKA INC | B143: KRU CPF 3 | C143: 334837 | D143: 0 | E143: 5694446 | F143: 0 | G143: 0 | H143: 16579 | I143: 125 | J143: 189490 | K143: 6235477
A144: BP EXPLORATION (ALASKA) INC | B144: Milne Point Central | C144: 0 | D144: 2339452 | E144: 3386697 | F144: 4396 | G144: 0 | H144: 26616 | I144: 7039 | J144: 91758 | K144: 5855958
A145: ENI US OPERATING CO INC | B145: Nikaitchuq Prod Facility | C145: 0 | D145: 0 | E145: 0 | F145: 0 | G145: 0 | H145: 0 | I145: 0 | J145: 0 | K145: 0
A146: BP EXPLORATION (ALASKA) INC | B146: Northstar | C146: 0 | D146: 170392101 | E146: 0 | F146: 0 | G146: 0 | H146: 19903 | I146: 40813 | J146: 0 | K146: 170452817
A147: PIONEER NATURAL RESOURCES ALASKA INC | B147: Oooguruk | C147: 0 | D147: 330157 | E147: 483945 | F147: 1 | G147: 2027396 | H147: 55 | I147: 8931 | J147: 1594 | K147: 2852079
A148: BP EXPLORATION (ALASKA) INC | B148: PBU CCP/FFGU | C148: 26214169 | D148: 2263505885 | E148: 67510752 | F148: 0 | G148: 392398 | H148: 21780 | I148: 6153 | J148: 430041 | K148: 2358081178
A149: BP EXPLORATION (ALASKA) INC | B149: PBU CGF B | C149: 19439968 | D149: 61603842 | E149: 32456014 | F149: 484221 | G149: 0 | H149: 202989 | I149: 230459 | J149: 218771 | K149: 114636264
A150: BP EXPLORATION (ALASKA) INC | B150: PBU FS 1 | C150: 0 | D150: 0 | E150: 7991257 | F150: 446748 | G150: 0 | H150: 16105 | I150: 108637 | J150: 346041 | K150: 8908788
A151: BP EXPLORATION (ALASKA) INC | B151: PBU FS 2 | C151: 0 | D151: 0 | E151: 7973709 | F151: 10578 | G151: 0 | H151: 9141 | I151: 35700 | J151: 168005 | K151: 8197133
A152: BP EXPLORATION (ALASKA) INC | B152: PBU FS 3 | C152: 0 | D152: 0 | E152: 11008914 | F152: 47431 | G152: 0 | H152: 22069 | I152: 37013 | J152: 551066 | K152: 11666493
A153: BP EXPLORATION (ALASKA) INC | B153: PBU GC 1 | C153: 0 | D153: 0 | E153: 8322865 | F153: 0 | G153: 0 | H153: 17560 | I153: 223246 | J153: 534287 | K153: 9097958
A154: BP EXPLORATION (ALASKA) INC | B154: PBU GC 2 | C154: 0 | D154: 0 | E154: 7347656 | F154: 0 | G154: 0 | H154: 40500 | I154: 145631 | J154: 298700 | K154: 7832487
A155: BP EXPLORATION (ALASKA) INC | B155: PBU GC 3 | C155: 0 | D155: 0 | E155: 5750423 | F155: 0 | G155: 0 | H155: 7179 | I155: 1158896 | J155: 184099 | K155: 7100597
A156: BP EXPLORATION (ALASKA) INC | B156: PBU Lisburne Prod (GPMA) | C156: 877436 | D156: 87989346 | E156: 9285828 | F156: 923217 | G156: 15123723 | H156: 24664 | I156: 54483 | J156: 147991 | K156: 114426688
A157: TECK COMINCO ALASKA INCORPORATED | B157: Red Dog | C157: 0 | D157: 0 | E157: 0 | F157: 0 | G157: 0 | H157: 0 | I157: 4 | J157: 0 | K157: 4
A158: NORTH SLOPE BOROUGH | B158: Walakpa | C158: 1246495 | D158: 0 | E158: 58320 | F158: 0 | G158: 0 | H158: 0 | I158: 0 | J158: 0 | K158: 1304815
C160: 49886322 | D160: 2806873808 | E160: 203248876 | F160: 2427780 | G160: 17543517 | H160: 766538 | I160: 2171635 | J160: 3818095 | K160: 3086736571 | L160: Flare Total | M160: 9184048 | N160: Mscf/yr
D161: =D160/1000/365 -> 7690.065227 | E161: =E160/1000/365 -> 556.8462356 | K161: =K160*1000/215082190 -> 14351.42803
L162: Flaring Ratio | M162: =M160*1000/215082190 -> 42.70017894 | N162: scf/bbl

Sheet ANS Production Data
A1: Alaska Monthly Oil, Water, Gas Production Data | D1: Source: | E1: http://doa.alaska.gov/ogc/production/ProdArchives/parchiveindex.html
C3: Badami | D3: Colville River | E3: Endicott | F3: Kupuruk River | G3: Milne Point | H3: Northstar | I3: Oooguruk | J3: Prudhoe Bay | K3: Total | L3: NGL
A4: January | B4: Oil (bbl) | C4: 0 | D4: 2893311 | E4: 384541 | F4: 4183084 | G4: 823962 | H4: 691552 | I4: 274525 | J4: 10280880 | K4: =SUM(C4:J4) -> 19531855 | L4: 1917228
B5: Water (bbl) | C5: 0 | D5: 1337375 | E5: 6221627 | F5: 17154671 | G5: 3834107 | H5: 529857 | I5: 3268 | J5: 39107109 | K5: 68188014
B6: Gas (Mcf) | C6: 0 | D6: 3532425 | E6: 11453465 | F6: 8611186 | G6: 496757 | H6: 17659592 | I6: 144679 | J6: 237709182 | K6: 279607286
A7: February | B7: Oil (bbl) | C7: 0 | D7: 2496276 | E7: 353179 | F7: 3751850 | G7: 742674 | H7: 621382 | I7: 264689 | J7: 9263893 | K7: 17493943 | L7: 1720758
B8: Water (bbl) | C8: 0 | D8: 1186686 | E8: 5552714 | F8: 14736040 | G8: 3246650 | H8: 504827 | I8: 4935 | J8: 31642733 | K8: 56874585
B9: Gas (Mcf) | C9: 0 | D9: 3159369 | E9: 10758419 | F9: 7567273 | G9: 446876 | H9: 15955105 | I9: 193073 | J9: 228149849 | K9: 266229964
A10: March | B10: Oil (bbl) | C10: 0 | D10: 2803245 | E10: 373333 | F10: 4058461 | G10: 891111 | H10: 629371 | I10: 319606 | J10: 10631949 | K10: 19707076 | L10: 1926279
B11: Water (bbl) | C11: 0 | D11: 1370244 | E11: 5725646 | F11: 15862585 | G11: 3746854 | H11: 446367 | I11: 15161 | J11: 35652182 | K11: 62819039
B12: Gas (Mcf) | C12: 0 | D12: 3418979 | E12: 11428753 | F12: 8252408 | G12: 492984 | H12: 17423516 | I12: 231844 | J12: 258068910 | K12: 299317394
A13: April | B13: Oil (bbl) | C13: 0 | D13: 2971780 | E13: 356952 | F13: 3893899 | G13: 891033 | H13: 466784 | I13: 361394 | J13: 9916316 | K13: 18858158 | L13: 893001
B14: Water (bbl) | C14: 0 | D14: 1290809 | E14: 5518799 | F14: 16075407 | G14: 3765213 | H14: 402751 | I14: 2751 | J14: 35406099 | K14: 62461829
B15: Gas (Mcf) | C15: 0 | D15: 3285949 | E15: 10948383 | F15: 8482583 | G15: 511034 | H15: 12910452 | I15: 295277 | J15: 227179776 | K15: 263613454
A16: May | B16: Oil (bbl) | C16: 0 | D16: 2741068 | E16: 332003 | F16: 3789753 | G16: 759654 | H16: 514953 | I16: 263091 | J16: 8931768 | K16: 17332290 | L16: 1589296
B17: Water (bbl) | C17: 0 | D17: 1324587 | E17: 5330601 | F17: 15968130 | G17: 3798173 | H17: 459181 | I17: 3724 | J17: 31982293 | K17: 58866689
B18: Gas (Mcf) | C18: 0 | D18: 3124096 | E18: 10916445 | F18: 8075935 | G18: 449464 | H18: 13556790 | I18: 160556 | J18: 203826214 | K18: 240109500
A19: June | B19: Oil (bbl) | C19: 0 | D19: 2440111 | E19: 366768 | F19: 3848337 | G19: 679756 | H19: 522950 | I19: 312727 | J19: 7556847 | K19: 15727496 | L19: 1404494
B20: Water (bbl) | C20: 0 | D20: 1158806 | E20: 5815528 | F20: 15984441 | G20: 2997297 | H20: 514382 | I20: 2541 | J20: 24614281 | K20: 51087276
B21: Gas (Mcf) | C21: 0 | D21: 2479491 | E21: 10702195 | F21: 7678031 | G21: 380461 | H21: 13828377 | I21: 212737 | J21: 186977690 | K21: 222258982
A22: July | B22: Oil (bbl) | C22: 0 | D22: 2806506 | E22: 370591 | F22: 3953195 | G22: 816232 | H22: 406329 | I22: 363330 | J22: 7846220 | K22: 16562403 | L22: 609878
B23: Water (bbl) | C23: 0 | D23: 1404839 | E23: 6087363 | F23: 15969813 | G23: 3678365 | H23: 433247 | I23: 4605 | J23: 28103050 | K23: 55681282
B24: Gas (Mcf) | C24: 0 | D24: 2925345 | E24: 11002875 | F24: 7855925 | G24: 452313 | H24: 11463586 | I24: 272307 | J24: 163379930 | K24: 197352281
A25: August | B25: Oil (bbl) | C25: 0 | D25: 2783965 | E25: 346143 | F25: 3983217 | G25: 864671 | H25: 190328 | I25: 297798 | J25: 7893430 | K25: 16359552 | L25: 675296
B26: Water (bbl) | C26: 0 | D26: 1380744 | E26: 6068873 | F26: 15695508 | G26: 3991739 | H26: 178735 | I26: 19145 | J26: 25869492 | K26: 53204236
B27: Gas (Mcf) | C27: 0 | D27: 3003355 | E27: 10889120 | F27: 7801573 | G27: 510278 | H27: 5423048 | I27: 228555 | J27: 167832655 | K27: 195688584
A28: September | B28: Oil (bbl) | C28: 0 | D28: 2753069 | E28: 311362 | F28: 3901827 | G28: 822756 | H28: 514405 | I28: 380768 | J28: 9431457 | K28: 18115644 | L28: 1364299
B29: Water (bbl) | C29: 0 | D29: 1453343 | E29: 5365394 | F29: 15262540 | G29: 3776511 | H29: 543546 | I29: 42359 | J29: 32366474 | K29: 58810167
B30: Gas (Mcf) | C30: 0 | D30: 3059408 | E30: 9968307 | F30: 7877579 | G30: 508620 | H30: 15113283 | I30: 285162 | J30: 218971978 | K30: 255784337
A31: October | B31: Oil (bbl) | C31: 0 | D31: 2812709 | E31: 324064 | F31: 4005915 | G31: 792428 | H31: 527081 | I31: 331529 | J31: 10061502 | K31: 18855228 | L31: 1870254
B32: Water (bbl) | C32: 0 | D32: 1640261 | E32: 6081920 | F32: 16302309 | G32: 3711714 | H32: 540749 | I32: 47754 | J32: 37325848 | K32: 65650555
B33: Gas (Mcf) | C33: 0 | D33: 3109800 | E33: 11114844 | F33: 8576015 | G33: 488954 | H33: 16306718 | I33: 278107 | J33: 243183875 | K33: 283058313
A34: November | B34: Oil (bbl) | C34: 34649 | D34: 2696867 | E34: 341200 | F34: 3594184 | G34: 807772 | H34: 463183 | I34: 268271 | J34: 9664433 | K34: 17870559 | L34: 1822980
B35: Water (bbl) | C35: 0 | D35: 1618858 | E35: 5888574 | F35: 14872087 | G35: 3873011 | H35: 500430 | I35: 54269 | J35: 37821304 | K35: 64628533
B36: Gas (Mcf) | C36: 151861 | D36: 2888766 | E36: 11172176 | F36: 8095834 | G36: 548317 | H36: 13069382 | I36: 229273 | J36: 239568017 | K36: 275723626
A37: December | B37: Oil (bbl) | C37: 45949 | D37: 2685787 | E37: 323124 | F37: 3754493 | G37: 833640 | H37: 584774 | I37: 282905 | J37: 10157314 | K37: 18667986 | L37: 2005510
B38: Water (bbl) | C38: 0 | D38: 1668528 | E38: 5882051 | F38: 15537972 | G38: 4082839 | H38: 528504 | I38: 78676 | J38: 37750269 | K38: 65528839
B39: Gas (Mcf) | C39: 222544 | D39: 2953196 | E39: 11505583 | F39: 8238642 | G39: 569900 | H39: 17742968 | I39: 215919 | J39: 263934192 | K39: 305382944
A40: Total | B40: Oil (bbl) | C40: =SUM(C4+C7+C10+C13+C16+C19+C22+C25+C28+C31+C34+C37) -> 80598 | D40: =SUM(D4+D7+D10+D13+D16+D19+D22+D25+D28+D31+D34+D37) -> 32884694 | E40: 4183260 | F40: 46718215 | G40: 9725689 | H40: 6133092 | I40: 3720633 | J40: 111636009 | K40: 215082190 | L40: 17799273
B41: Water (bbl) | C41: =SUM(C5+C8+C11+C14+C17+C20+C23+C26+C29+C32+C35+C38) -> 0 | D41: 16835080 | E41: 69539090 | F41: 189421503 | G41: 44502473 | H41: 5582576 | I41: 279188 | J41: 397641134 | K41: 723801044
B42: Gas (Mcf) | C42: 374405 | D42: 36940179 | E42: 131860565 | F42: 97112984 | G42: 5855958 | H42: 170452817 | I42: 2747489 | J42: 2638782268 | K42: 3084126665
A43: Daily Oil Prod | B43: BOPD | C43: =C40/365 -> 220.8164384 | D43: =D40/365 -> 90095.05205 | E43: 11460.9863 | F43: 127995.1096 | G43: 26645.72329 | H43: 16802.99178 | I43: 10193.51507 | J43: 305852.0795 | K43: 589266.274
A44: WOR | B44: bbl/bbl | C44: =C41/C40 -> 0 | D44: =D41/D40 -> 0.5119427293 | E44: 16.62318144 | F44: 4.054553518 | G44: 4.575765583 | H44: 0.9102384246 | I44: 0.07503776911 | J44: 3.561943297 | K44: 3.365230027
A45: GOR | B45: scf/bbl | C45: =C42*1000/C40 -> 4645.338594 | D45: =D42*1000/D40 -> 1123.324395 | E45: 31521.00634 | F45: 2078.696371 | G45: 602.1124056 | H45: 27792.31373 | I45: 738.4466568 | J45: 23637.37554 | K45: 14339.29357
A46: Producing wells | C46: 5 | D46: 75 | E46: 53 | F46: 513 | G46: 121 | H46: 17 | I46: 11 | J46: 794 | K46: =SUM(C46:J46) -> 1589

Sheet ANS Injection Data
A1: Alaska Monthly Water, Gas, and Waste Injection Data | E1: Source: | F1: http://doa.alaska.gov/ogc/production/ProdArchives/parchiveindex.html
C3: Badami | D3: Colville River | E3: Endicott | F3: Kupuruk River | G3: Milne Point | H3: Northstar | I3: Oooguruk | J3: Prudhoe Bay | K3: Total
A4: January | B4: Water (bbl) | C4: 0 | D4: 5284039 | E4: 6221627 | F4: 21766968 | G4: 3069521 | H4: 0 | I4: 311197 | J4: 61585897 | K4: =SUM(C4:J4) -> 98239249
B5: Gas (Mcf) | C5: 0 | D5: 2930407 | E5: 10327713 | F5: 6822474 | G5: 172163 | H5: 18660047 | I5: 0 | J5: 216435852 | K5: 255348656
B6: Disposal (bbl) | C6: 6193 | D6: 44167 | E6: 0 | F6: 12132 | G6: 771423 | H6: 548545 | I6: 68548 | J6: 5755001 | K6: 7206009
A7: February | B7: Water (bbl) | C7: 0 | D7: 4135432 | E7: 5552714 | F7: 19440880 | G7: 2593750 | H7: 0 | I7: 206225 | J7: 47055073 | K7: 78984074
B8: Gas (Mcf) | C8: 0 | D8: 2610261 | E8: 9719401 | F8: 5872169 | G8: 168514 | H8: 16930688 | I8: 0 | J8: 208953633 | K8: 244254666
B9: Disposal (bbl) | C9: 6246 | D9: 47369 | E9: 0 | F9: 8644 | G9: 675523 | H9: 526173 | I9: 46603 | J9: 4029318 | K9: 5339876
A10: March | B10: Water (bbl) | C10: 0 | D10: 4934597 | E10: 5725646 | F10: 21083642 | G10: 2875778 | H10: 0 | I10: 370391 | J10: 59031510 | K10: 94021564
B11: Gas (Mcf) | C11: 0 | D11: 2819493 | E11: 10305654 | F11: 6615204 | G11: 171022 | H11: 18555030 | I11: 0 | J11: 236364358 | K11: 274830761
B12: Disposal (bbl) | C12: 9427 | D12: 65598 | E12: 0 | F12: 19579 | G12: 906103 | H12: 465645 | I12: 58679 | J12: 4343219 | K12: 5868250
A13: April | B13: Water (bbl) | C13: 0 | D13: 4961210 | E13: 5518799 | F13: 20528442 | G13: 3089694 | H13: 0 | I13: 417232 | J13: 58803143 | K13: 93318520
B14: Gas (Mcf) | C14: 0 | D14: 2717583 | E14: 9802412 | F14: 6760244 | G14: 204607 | H14: 14555592 | I14: 0 | J14: 207805118 | K14: 241845556
B15: Disposal (bbl) | C15: 5198 | D15: 59928 | E15: 0 | F15: 28482 | G15: 763472 | H15: 432034 | I15: 60871 | J15: 4284399 | K15: 5634384
A16: May | B16: Water (bbl) | C16: 0 | D16: 5166277 | E16: 5330601 | F16: 19076352 | G16: 3102389 | H16: 0 | I16: 492622 | J16: 57720065 | K16: 90888306
B17: Gas (Mcf) | C17: 0 | D17: 2562386 | E17: 9837529 | F17: 6712630 | G17: 156371 | H17: 16006686 | I17: 0 | J17: 182913717 | K17: 218189319
B18: Disposal (bbl) | C18: 2856 | D18: 57346 | E18: 0 | F18: 19714 | G18: 592499 | H18: 480198 | I18: 50033 | J18: 4247416 | K18: 5450062
A19: June | B19: Water (bbl) | C19: 0 | D19: 4268351 | E19: 5815528 | F19: 18276993 | G19: 2272362 | H19: 0 | I19: 364902 | J19: 42973234 | K19: 73971370
B20: Gas (Mcf) | C20: 0 | D20: 2016694 | E20: 9634686 | F20: 6393795 | G20: 138312 | H20: 16134733 | I20: 28 | J20: 170028244 | K20: 204346492
B21: Disposal (bbl) | C21: 9551 | D21: 34594 | E21: 0 | F21: 29956 | G21: 798057 | H21: 539340 | I21: 42592 | J21: 4116136 | K21: 5570226
A22: July | B22: Water (bbl) | C22: 0 | D22: 4982798 | E22: 6087363 | F22: 18573731 | G22: 2834262 | H22: 0 | I22: 354971 | J22: 57246252 | K22: 90079377
B23: Gas (Mcf) | C23: 0 | D23: 2384930 | E23: 9896312 | F23: 6230006 | G23: 185221 | H23: 12111025 | I23: 0 | J23: 149447993 | K23: 180255487
B24: Disposal (bbl) | C24: 4194 | D24: 39985 | E24: 0 | F24: 19864 | G24: 757624 | H24: 451641 | I24: 37541 | J24: 5119432 | K24: 6430281
A25: August | B25: Water (bbl) | C25: 0 | D25: 3928055 | E25: 6068873 | F25: 18313903 | G25: 3040889 | H25: 0 | I25: 122496 | J25: 34881184 | K25: 66355400
B26: Gas (Mcf) | C26: 0 | D26: 2481190 | E26: 9769738 | F26: 5779916 | G26: 220149 | H26: 5784937 | I26: 134 | J26: 154268573 | K26: 178304637
B27: Disposal (bbl) | C27: 2653 | D27: 45358 | E27: 0 | F27: 22478 | G27: 929331 | H27: 199448 | I27: 48233 | J27: 3366953 | K27: 4614454
A28: September | B28: Water (bbl) | C28: 0 | D28: 3906570 | E28: 5365394 | F28: 18880672 | G28: 2899706 | H28: 0 | I28: 114100 | J28: 30216973 | K28: 61383415
B29: Gas (Mcf) | C29: 0 | D29: 2541739 | E29: 8970519 | F29: 6572460 | G29: 224590 | H29: 15944809 | I29: 168 | J29: 201454827 | K29: 235709112
B30: Disposal (bbl) | C30: 2878 | D30: 52497 | E30: 0 | F30: 14351 | G30: 829133 | H30: 561158 | I30: 58541 | J30: 5074863 | K30: 6593421
A31: October | B31: Water (bbl) | C31: 0 | D31: 4884873 | E31: 6081920 | F31: 19363324 | G31: 2793159 | H31: 0 | I31: 275493 | J31: 48984915 | K31: 82383684
B32: Gas (Mcf) | C32: 0 | D32: 2558317 | E32: 10024307 | F32: 7352204 | G32: 201826 | H32: 17267074 | I32: 0 | J32: 222839279 | K32: 260243007
B33: Disposal (bbl) | C33: 1419 | D33: 34913 | E33: 0 | F33: 16371 | G33: 688439 | H33: 562811 | I33: 52677 | J33: 4095096 | K33: 5451726
A34: November | B34: Water (bbl) | C34: 0 | D34: 4423743 | E34: 5888574 | F34: 17120313 | G34: 2976704 | H34: 0 | I34: 340653 | J34: 54836287 | K34: 85586274
B35: Gas (Mcf) | C35: 144016 | D35: 2353777 | E35: 10035559 | F35: 6940191 | G35: 248086 | H35: 13811855 | I35: 0 | J35: 219893886 | K35: 253427370
B36: Disposal (bbl) | C36: 1218 | D36: 40255 | E36: 0 | F36: 9906 | G36: 750827 | H36: 526266 | I36: 54450 | J36: 4712115 | K36: 6095037
A37: December | B37: Water (bbl) | C37: 0 | D37: 5104590 | E37: 5882051 | F37: 19824066 | G37: 3156477 | H37: 0 | I37: 393563 | J37: 55278031 | K37: 89638778
B38: Gas (Mcf) | C38: 186232 | D38: 2391472 | E38: 10365058 | F38: 7008083 | G38: 245835 | H38: 18112010 | I38: 0 | J38: 242693597 | K38: 281002287
B39: Disposal (bbl) | C39: 1354 | D39: 33270 | E39: 0 | F39: 23395 | G39: 771878 | H39: 551510 | I39: 49512 | J39: 4373035 | K39: 5803954
A40: Total | B40: Water (bbl) | C40: =SUM(C4+C7+C10+C13+C16+C19+C22+C25+C28+C31+C34+C37) -> 0 | D40: =SUM(D4+D7+D10+D13+D16+D19+D22+D25+D28+D31+D34+D37) -> 55980535 | E40: 69539090 | F40: 232249286 | G40: 34704691 | H40: 0 | I40: 3763845 | J40: 608612564 | K40: 1004850011
B41: Gas (Mcf) | C41: =SUM(C5+C8+C11+C14+C17+C20+C23+C26+C29+C32+C35+C38) -> 330248 | D41: 30368249 | E41: 118688888 | F41: 79059376 | G41: 2336696 | H41: 183874486 | I41: 330 | J41: 2413099077 | K41: 2827757350
B42: Disposal (bbl) | C42: 53187 | D42: 555280 | E42: 0 | F42: 224872 | G42: 9234309 | H42: 5844769 | I42: 628280 | J42: 53516983 | K42: 70057680
A44: Fraction Water Reinjected | D44: 3.358214811 | E44: 1 | F44: 1.22728494 | G44: 0.987338389 | H44: 1.046966311 | I44: 15.73178288 | J44: 1.665143493 | K44: 1.485087235
A45: Fraction Gas Reinjected | C45: 0.8820608699 | D45: 0.8220926325 | E45: 0.9001090508 | F45: 0.8140968668 | G45: 0.3990288182 | H45: 1.078741257 | I45: 0.000120109671 | J45: 0.9144744931 | K45: 0.916874583
A46: Water Injection Ratio | C46: 0.6599047123 | D46: 1.719213656 | F46: 4.976092473 | H46: 0.9529889654 | I46: 1.180477892 | J46: 5.931146706 | K46: 4.997660155
A47: Total Injection wells | C47: =1+1 -> 2 | D47: =74+2 -> 76 | E47: 25 | F47: =357+1 -> 358 | G47: =87+1 -> 88 | H47: =6+1 -> 7 | I47: =3+1 -> 4 | J47: =302+9 -> 311 | K47: =SUM(C47:J47) -> 871

Sheet BP ANS information
A1: EPA Subpart W Reporting
B3: EPA GHG Website
B4: http://ghgdata.epa.gov/ghgp/main.do
B6: EPA Subpart W Calculation Methodology
B7: http://www.ecfr.gov/cgi-bin/text-idx?SID=6f22dcdb3775cc7cf4f10b5de385954b&tpl=/ecfrbrowse/Title40/40cfr98_main_02.tpl
B9: EPA Subpart W General Information
B10: http://www.epa.gov/ghgreporting/reporters/subpart/w.html
A12: Individual BP GHG Reports (with Subpart W)
B14: BP Alaska Arctic Slope Basin (Prudhoe)
B15: http://ghgdata.epa.gov/ghgp/service/html/2012?id=1008172&ds=E
B17: BP Northstar
B18: http://ghgdata.epa.gov/ghgp/service/html/2012?id=1003023&ds=E
B20: BP Lisburne
B21: http://ghgdata.epa.gov/ghgp/service/html/2012?id=1001628&ds=E
B23: BP Endicott
B24: http://ghgdata.epa.gov/ghgp/service/html/2012?id=1001737&ds=E
B26: BP Central Gas Facility (CGF)
B27: http://ghgdata.epa.gov/ghgp/service/html/2012?id=1001650&ds=E
B29: BP Central Compression Plant (CCP)
B30: http://ghgdata.epa.gov/ghgp/service/html/2012?id=1001649&ds=E
A32: BP Dehydrator Information - 11 out of 12 dehydrators have vapor recovery to process or flare
B34: EPA Subpart W Facility
C35: Flash Drum Vent | D35: Reboiler Vent
B36: FS1 | C36: N/A | D36: Process
B37: FS1 Annex | C37: N/A | D37: Process
B38: FS2 | C38: N/A | D38: Process
B39: FS3 | C39: N/A | D39: Process
B40: GC1 | C40: Flare | D40: Process
B41: GC1 Annex | C41: N/A | D41: Process
B42: GC2 | C42: Flare | D42: Process
B43: GC3 | C43: Flare | D43: Process
B44: Lisburne | C44: N/A | D44: Process
B45: Milne Point | C45: Flare | D45: Atm
B46: Endicott | C46: N/A | D46: Process
B47: Northstar | C47: Flare | D47: Flare
A49: BP Compressor Information
C51: Reported in EPA Subpart W | I51: Total | J51: Not covered in Sub W
C52: BP ANS | D52: BP CCP | E52: BP CGF | F52: BP Lisburne | G52: BP NS | H52: BP Endicott | I52: EPA Sub W | J52: Gathering Centers/Flow Stations (1) | K52: Total BP
B54: Reciprocating compressors | C54: 6 | I54: =SUM(C54:H54) -> 6 | K54: =J54+I54 -> 6
B55: Centrifugal compressors
B56: Wet seals (2) | D56: 15 | E56: 8 | F56: 4 | H56: 4 | I56: =SUM(C56:H56) -> 31 | J56: 21 | K56: =J56+I56 -> 52
B57: Dry seals | E57: 1 | G57: 5 | H57: 1 | I57: =SUM(C57:H57) -> 7 | K57: =J57+I57 -> 7
B58: Total compressors (3) | C58: =SUM(C54:C57) -> 6 | D58: 15 | E58: 9 | F58: 4 | G58: 5 | H58: 5 | I58: 44 | J58: 21 | K58: 65
B60: (1) Compressor count for gathering centers and flow stations available at Alaska Department of Alaska Department of Environmental Conservation Division of Air Quality website:
B61: http://dec.alaska.gov/Applications/Air/airtoolsweb/AirPermitsApprovalsAndPublicNotices
B62: (2) All centrifugal compressors with wet seal systems have seal oil degassing systems with gas recovery of over 98%.
B63: (3) All blow-down lines for all compressors are routed to the flare systems at the facilities with none routed to atmospheric vent.
A65: Crude Oil Storage Tank Information
B67: BP has no crude oil storage tanks in its ANS operations. Crude flows directly from low pressure separation into the Trans Alaska Pipeline System (TAPS), Pump Station #1. At the end of TAPS there are storage tanks in Valdez run by Alyeska. Alyeska operating permit information is available at the ADEC website given above. The crude oil storage tanks in Valdez are required to have vapor recovery and are not allowed to vent to atmosphere.
A69: Pneumatic Controllers and Chemical Injection Pumps
B71: BP’s ANS facilities do not use any natural gas powered pneumatic controllers or chemical injection pumps. Because they are large, centralized facilities, they use instrument air or electric control rather than natural gas pneumatic devices, which are more common in onshore dispersed oil & gas facilities.

Sheet USA-North Dakota Bakken
A1: Data inputs | B1: Start field: | C1: End field:
A2: Fields to assess | B2: 1 | C2: 1 | G2: Modeled using average data for North Dakota oil production. This modeling pertains, but is not limited to marketable crudes such as Bakken, North Dakota Sweet, etc. OPGEE does not account for emissions from fracking so the CI estimate will likely be low.
A3: 1 Inputs
A5: Variables | E5: Unit | G5: Default | H5: Field 1
G6: =IF(G21="","NA",G21) -> Generic | H6: =IF(H21="","NA",H21) -> US North Dakota
A7: 1.1 Production methods
A8: Notes: Enter "1" where applicable and "0" where not applicable
B9: 1.1.1 Downhole pump | E9: NA | G9: 1
B10: 1.1.2 Water reinjection | E10: NA | G10: 1
B11: 1.1.3 Natural gas reinjection | E11: NA | G11: 1
B12: 1.1.4 Water flooding | E12: NA | G12: 0
B13: 1.1.5 Gas lifting | E13: NA | G13: 0
B14: 1.1.6 Gas flooding | E14: NA | G14: 0
B15: 1.1.7 Steam flooding | E15: NA | G15: 0
B16: 1.1.8 Oil sands mine (integrated with upgrader) | E16: NA | G16: 0
B17: 1.1.9 Oil sands mine (non-integrated with upgrader) | E17: NA | G17: 0
A19: 1.2 Field properties
B20: 1.2.1 Field location (Country) | E20: NA | G20: Generic | H20: United States
B21: 1.2.2 Field name | E21: NA | G21: Generic | H21: US North Dakota
B22: 1.2.3 Field age | E22: yr. | G22: 35
B23: 1.2.4 Field depth | E23: ft | G23: 7240 | H23: 10000 | I23: Estimate (https://www.dmr.nd.gov/oilgas/presentations/BSCEGConf2012-01-25.pdf)
B24: 1.2.5 Oil production volume | E24: bbl/d | G24: 1500 | H24: 309763 | I24: Average daily oil production for North Dakota (see data table below)
B25: 1.2.6 Number of producing wells | E25: [-] | G25: 8 | H25: 5103 | I25: North Dakota producing wells in December 2010 (https://www.dmr.nd.gov/oilgas/stats/historicaloilprodstats.pdf)
B26: 1.2.7 Number of water injecting wells | E26: [-] | G26: 5
B27: 1.2.8 Well diameter | E27: in | G27: 2.775
B28: 1.2.9 Productivity index | E28: bbl/psi-d | G28: 3
B29: 1.2.10 Reservoir pressure | E29: psi | G29: 1556.6
B30: 1.2.11 Reservoir temperature | E30: ◦F | G30: 150
B31: 1.2.12 Offshore? | E31: [0-1] | G31: 0
A33: 1.3 Fluid properties
B34: 1.3.1 API gravity | E34: deg. API | G34: 30 | H34: 40 | I34: http://www.argusmedia.com/Petroleum/Crude/~/media/C21F9F5995164371B7D51651F950F49E.ashx
B35: 1.3.2 Gas composition
C36: N2 | E36: mol% | G36: 2
C37: CO2 | E37: mol% | G37: 6
C38: C1 | E38: mol% | G38: 84
C39: C2 | E39: mol% | G39: 4
C40: C3 | E40: mol% | G40: 2
C41: C4+ | E41: mol% | G41: 1
C42: H2S | E42: mol% | G42: 1
A44: 1.4 Production practices
A45: Notes: Enter "NA" where not applicable
B46: 1.4.1 Gas-to-oil ratio (GOR) | E46: scf/bbl oil | G46: 908 | H46: 1007 | I46: Average GOR for North Dakota (see data table below)
B47: 1.4.2 Water-to-oil ratio (WOR) | E47: bbl water/bbl oil | G47: 4.308369057 | H47: 1.38 | I47: See "2011 Production Data" sheet
B48: 1.4.3 Water injection ratio | E48: bbl water/bbl oil | G48: 5.308369057
B49: 1.4.4 Gas lifting injection ratio | E49: scf/bbl liquid | G49: 1500
B50: 1.4.5 Gas flooding injection ratio | E50: scf/bbl oil | G50: 1362
B51: 1.4.6 Flood gas | E51: NA | G51: 1
C52: 1= Natural gas
C53: 2= Nitrogen (N2)
C54: 3= Carbon Dioxide (CO2)
B57: 1.4.7 Carbon dioxide flooding and sequestration parameters
C58: 1.4.7.1 Percentage of newly acquired CO2 (total injected CO2 includes both new and recycled) | E58: % | G58: 41
C59: 1.4.7.2 Source of CO2 | E59: NA | G59: 1
D60: 1= Natural subsurface reservoir
D61: 2= Anthropogenic
C62: 1.4.7.3 Percentage of sequestration credit assigned to the oilfield | E62: % | G62: 0
B63: 1.4.8 Steam-to-oil ratio (SOR) | E63: bbl steam/bbl oil | G63: 3
B64: 1.4.9 Fraction of required electricity generated onsite | E64: [-] | G64: 0
B65: 1.4.10 Fraction of remaining natural gas reinjected | E65: [-] | G65: 0 | H65: 0.08 | I65: See "2011 Injection Data" sheet
B66: 1.4.11 Fraction of produced water reinjected | E66: [-] | G66: 1 | H66: 0.56 | I66: See "2011 Injection Data" sheet
B67: 1.4.12 Fraction of steam generation via cogeneration | E67: [-] | G67: 0
A69: 1.5 Processing practices
B70: 1.5.1 Heater/treater | E70: NA | G70: 0
B71: 1.5.2 Stabilizer column | E71: NA | G71: 1
B72: 1.5.3 Upgrader type | G72: 0
C73: 0 = None
C74: 1 = Delayed coking
C75: 2 = Hydroconversion
C76: 3 = Combined hydroconversion and fluid coking
B77: 1.5.3 Associated Gas Processing Path | E77: NA | G77: 5
C78: 1= None
C79: 2= Minimal: Dehydrator
C80: 3= Acid Gas: Dehydrator + Amine Process
C81: 4= Wet Gas: Dehydrator + Demethanizer
C82: 5= Acid Wet Gas: Dehydrator + Amine Process + Demethanizer
C83: 6= CO2-EOR Membrane: Dehydrator + Compressor + Membrane + Amine Process + Demethanizer
C84: 7= CO2-EOR Ryan Holmes: Dehydrator + Ryan Holmes Process (Demethanizer Included)
C85: Notes: Choose paths 6 or 7 only if gas flooding is ON and CO2 is the flood gas
B86: 1.5.4 Flaring-to-oil ratio | E86: scf/bbl oil | G86: 181.5280918 | H86: 217 | I86: See 2010 North Dakota Flaring Data
B87: 1.5.5 Venting-to-oil ratio | E87: scf/bbl oil | G87: 0
B88: 1.5.6 Volume fraction of diluent | E88: [-] | G88: 0
A90: 1.6 Land use impacts
B91: 1.6.1 Crude ecosystem carbon richness
C92: 1.6.1.1 Low carbon richness (semi-arid grasslands) | E92: NA | G92: 0 | H92: 1 | I92: Assumed grassland
C93: 1.6.1.2 Moderate carbon richness (mixed) | E93: NA | G93: 1 | H93: 0
C94: 1.6.1.3 High carbon richness (forested) | E94: NA | G94: 0 | H94: 0
B95: 1.6.2 Field development intensity
C96: 1.6.2.1 Low intensity development and low oxidation | E96: NA | G96: 0
C97: 1.6.2.2 Moderate intensity development and moderate oxidation | E97: NA | G97: 1
C98: 1.6.2.3 High intensity development and high oxidation | E98: NA | G98: 0
A100: 1.8 Crude oil transport
B101: 1.8.1 Fraction of oil transported by each mode
C102: 1.8.1.1 Ocean tanker | E102: [-] | G102: 1 | H102: 0
C103: 1.8.1.2 Barge | E103: [-] | G103: 0 | H103: 0
C104: 1.8.1.3 Pipeline | E104: [-] | G104: 1 | H104: 0
C105: 1.8.1.4 Rail | E105: [-] | G105: 0 | H105: 1 | I105: Assumed transport by rail
C106: 1.8.1.5 Truck | G106: 0
B107: 1.8.2 Transport distance (one way)
C108: 1.8.2.1 Ocean tanker | E108: Mile | G108: 5082 | H108: 0
C109: 1.8.2.2 Barge | E109: Mile | G109: 500 | H109: 0
C110: 1.8.2.3 Pipeline | E110: Mile | G110: 750 | H110: 0
C111: 1.8.2.4 Rail | E111: Mile | G111: 800 | H111: 2000 | I111: Estimated rail distance from Williston to Los Angeles
C112: 1.8.2.5 Truck | G112: 100 | H112: 0
B113: 1.8.3 Ocean tanker size, if applicable | E113: Ton | G113: 250000
A115: 1.9 Small sources emissions | E115: gCO2eq/MJ | G115: 0.5
A117: Month | B117: Gas Produced (Mcf) | C117: Oil (bbls)
A118: 2010-01-01 | B118: 7813167 | C118: 7328963
A119: 2010-02-01 | B119: 7613578 | C119: 7318524
A120: 2010-03-01 | B120: 8640176 | C120: 8606826
A121: 2010-04-01 | B121: 8472470 | C121: 8556223
A122: 2010-05-01 | B122: 9359138 | C122: 9268420
A123: 2010-06-01 | B123: 9159729 | C123: 9443649
A124: 2010-07-01 | B124: 10033668 | C124: 9972915
A125: 2010-08-01 | B125: 10244208 | C125: 10230323
A126: 2010-09-01 | B126: 10289676 | C126: 10298957
A127: 2010-10-01 | B127: 10789365 | C127: 10659682
A128: 2010-11-01 | B128: 10799663 | C128: 10711291
A129: 2010-12-01 | B129: 10629426 | C129: 10667792
A130: Total | B130: =SUM(B118:B129) -> 113844264 | C130: =SUM(C118:C129) -> 113063565
B131: Oil production (BOPD) | C131: =C130/365 -> 309763.1918
B132: GOR (scf/bbl) | C132: =B130*1000/C130 -> 1006.904957
A133: Data Sources
A134: Gas | B134: https://www.dmr.nd.gov/oilgas/stats/Gas1990ToPresent.pdf
A135: Oil | B135: https://www.dmr.nd.gov/oilgas/stats/historicaloilprodstats.pdf

Sheet 2011 Production Data
A1: API_WELLNO | B1: Year | C1: BBLS Oil | D1: MCF Gas | E1: BBLS Water | F1: Depth | H1: Source: Data supplied by North Dakota Department of Mineral Resources
A2: 33007002180000 | B2: 2011 | C2: 13852 | D2: 15768 | E2: 69612 | F2: 10088
A3: 33053032610000 | B3: 2011 | C3: 113633 | D3: 156908 | E3: 77093 | F3: 20871
A4: 33007000260000 | B4: 2011 | C4: 22651 | D4: 11239 | E4: 16135 | F4: 13292
A5: 33053022080000 | B5: 2011 | C5: 3656 | D5: 4303 | E5: 6922 | F5: 13323
A6: 33061016610000 | B6: 2011 | C6: 14842 | D6: 10467 | E6: 22505 | F6: 20330
A7: 33061011670000 | B7: 2011 | C7: 26401 | D7: 21829 | E7: 27416 | F7: 19100
A8: 33025504140000 | B8: 2011 | C8: 1972 | D8: 0 | E8: 689 | F8: 0
A9: 33105015200000 | B9: 2011 | C9: 5964 | D9: 1367 | E9: 4582 | F9: 13980
A10: 33053013380000 | B10: 2011 | C10: 388 | D10: 14936 | E10: 409 | F10: 12937
A11: 33061010290000 | B11: 2011 | C11: 115962 | D11: 62617 | E11: 3774 | F11: 19868
A12: 33053013530000 | B12: 2011 | C12: 446 | D12: 0 | E12: 1953 | F12: 13920
A13: 33053027090000 | B13: 2011 | C13: 8279 | D13: 5420 | E13: 1179 | F13: 15500
A14: 33075007920000 | B14: 2011 | C14: 2371 | D14: 220 | E14: 28172 | F14: 5385
A15: 33061011390000 | B15: 2011 | C15: 68606 | D15: 23558 | E15: 6756 | F15: 14502
A16: 33089004150000 | B16: 2011 | C16: 4310 | D16: 240 | E16: 1969 | F16: 7950
A17: 33013013440000 | B17: 2011 | C17: 1580 | D17: 0 | E17: 81614 | F17: 9184
A18: 33075011100000 | B18: 2011 | C18: 1178 | D18: 0 | E18: 2733 | F18: 5650
A19: 33025000740000 | B19: 2011 | C19: 123 | D19: 92 | E19: 4948 | F19: 11789
A20: 33025004770000 | B20: 2011 | C20: 16022 | D20: 36754 | E20: 1274 | F20: 12621
A21: 33053035110000 | B21: 2011 | C21: 10850 | D21: 25197 | E21: 7386 | F21: 20895
A22: 33061011430000 | B22: 2011 | C22: 20167 | D22: 8129 | E22: 39594 | F22: 14338
A23: 33011013740000 | B23: 2011 | C23: 35409 | D23: 9260 | E23: 685204 | F23: 14604
A24: 33007008520000 | B24: 2011 | C24: 10818 | D24: 19397 | E24: 2046 | F24: 13735
A25: 33053023840000 | B25: 2011 | C25: 1734 | D25: 464 | E25: 33 | F25: 14396
A26: 33025007930000 | B26: 2011 | C26: 14466 | D26: 20362 | E26: 3002 | F26: 22174
A27: 33061000860000 | B27: 2011 | C27: 9265 | D27: 34868 | E27: 7793 | F27: 9587
A28: 33053023820000 | B28: 2011 | C28: 2064 | D28: 2764 | E28: 506 | F28: 15590
A29: 33075010400000 | B29: 2011 | C29: 1293 | D29: 0 | E29: 54087 | F29: 4950
A30: 33053021970000 | B30: 2011 | C30: 5648 | D30: 3205 | E30: 89 | F30: 10700
A31: 33007500300000 | B31: 2011 | C31: 18566 | D31: 0 | E31: 2675 | F31: 0
A32: 33053033670000 | B32: 2011 | C32: 53615 | D32: 24857 | E32: 25713 | F32: 20415
A33: 33105006960000 | B33: 2011 | C33: 20613 | D33: 788728 | E33: 17273 | F33: 13913
A34: 33105019030000 | B34: 2011 | C34: 36389 | D34: 25177 | E34: 52191 | F34: 20440
A35: 33105014390000 | B35: 2011 | C35: 4270 | D35: 67019 | E35: 10357 | F35: 9795
A36: 33061010500000 | B36: 2011 | C36: 32995 | D36: 16432 | E36: 1392 | F36: 14875
A37: 33013001940000 | B37: 2011 | C37: 2411 | D37: 54779 | E37: 55307 | F37: 8005
A38: 33013005500000 | B38: 2011 | C38: 920 | D38: 0 | E38: 318 | F38: 5635
A39: 33061008200000 | B39: 2011 | C39: 134765 | D39: 117504 | E39: 1193 | F39: 14946
A40: 33009021270000 | B40: 2011 | C40: 5099 | D40: 470 | E40: 85402 | F40: 7120
A41: 33007002610000 | B41: 2011 | C41: 10689 | D41: 2192 | E41: 311937 | F41: 10935
A42: 33013008950000 | B42: 2011 | C42: 277 | D42: 2267 | E42: 316 | F42: 5925
A43: 33087003550000 | B43: 2011 | C43: 31297 | D43: 81134 | E43: 36169 | F43: 15327
A44: 33023006330000 | B44: 2011 | C44: 21368 | D44: 33566 | E44: 58107 | F44: 17540
A45: 33053005570000 | B45: 2011 | C45: 6411 | D45: 10568 | E45: 87257 | F45: 10960
A46: 33025006080000 | B46: 2011 | C46: 11611 | D46: 9045 | E46: 2444 | F46: 20345
A47: 33049001460000 | B47: 2011 | C47: 628 | D47: 0 | E47: 19337 | F47: 4231
A48: 33061015730000 | B48: 2011 | C48: 108077 | D48: 78073 | E48: 38969 | F48: 20257
A49: 33105003320000 | B49: 2011 | C49: 4232 | D49: 29132 | E49: 82306 | F49: 10787
A50: 33025010580000 | B50: 2011 | C50: 94989 | D50: 47725 | E50: 25054 | F50: 20487
A51: 33025008790000 | B51: 2011 | C51: 19163 | D51: 17009 | E51: 12311 | F51: 20470
A52: 33061013320000 | B52: 2011 | C52: 123211 | D52: 38987 | E52: 26067 | F52: 15350
A53: 33075001210000 | B53: 2011 | C53: 1025 | D53: 1209 | E53: 7006 | F53: 4682
A54: 33011004070000 | B54: 2011 | C54: 3594 | D54: 1391 | E54: 11270 | F54: 13441
A55: 33009021710000 | B55: 2011 | C55: 578 | D55: 0 | E55: 72536 | F55: 6690
A56: 33053035940000 | B56: 2011 | C56: 19046 | D56: 24452 | E56: 8602 | F56: 20900
A57: 33053030610000 | B57: 2011 | C57: 116127 | D57: 162531 | E57: 16846 | F57: 20056
A58: 33007007210000 | B58: 2011 | C58: 3449 | D58: 9462 | E58: 5268 | F58: 10104
A59: 33053029210000 | B59: 2011 | C59: 26210 | D59: 34801 | E59: 11931 | F59: 20560
A60: 33075001160000 | B60: 2011 | C60: 352 | D60: 349 | E60: 1630 | F60: 4200
A61: 33025005800000 | B61: 2011 | C61: 11157 | D61: 8418 | E61: 3025 | F61: 19875
A62: 33007014880000 | B62: 2011 | C62: 7959 | D62: 5245 | E62: 20135 | F62: 14724
A63: 33101003010000 | B63: 2011 | C63: 279 | D63: 45 | E63: 632 | F63: 6780
A64: 33007003890000 | B64: 2011 | C64: 1474 | D64: 565 | E64: 73834 | F64: 11075
A65: 33053006380000 | B65: 2011 | C65: 424 | D65: 814 | E65: 4297 | F65: 9910
A66: 33011013970000 | B66: 2011 | C66: 18265 | D66: 43145 | E66: 3576 | F66: 14355
A67: 33105014310000 | B67: 2011 | C67: 1120 | D67: 1737 | E67: 2905 | F67: 13049
A68: 33025504920000 | B68: 2011 | C68: 1650 | D68: 0 | E68: 0
A69: 33105010410000 | B69: 2011 | C69: 2294 | D69: 2322 | E69: 3006 | F69: 14175
A70: 33075012160000 | B70: 2011 | C70: 4087 | D70: 0 | E70: 13212 | F70: 4944
A71: 33061017570000 | B71: 2011 | C71: 34384 | D71: 21281 | E71: 7717 | F71: 20953
A72: 33007011390000 | B72: 2011 | C72: 3306 | D72: 5175 | E72: 11368 | F72: 9485
A73: 33007011430000 | B73: 2011 | C73: 1844 | D73: 1968 | E73: 10895 | F73: 10470
A74: 33011010090000 | B74: 2011 | C74: 18509 | D74: 4868 | E74: 457596 | F74: 14999
A75: 33105020580000 | B75: 2011 | C75: 43965 | D75: 24923 | E75: 20838 | F75: 19415
A76: 33023005740000 | B76: 2011 | C76: 51934 | D76: 79239 | E76: 22988 | F76: 18624
A77: 33061012000000 | B77: 2011 | C77: 73133 | D77: 19322 | E77: 61329 | F77: 18294
A78: 33105015190000 | B78: 2011 | C78: 545 | D78: 4090 | E78: 1832 | F78: 13090
A79: 33061012700000 | B79: 2011 | C79: 83770 | D79: 44855 | E79: 8517 | F79: 14270
A80: 33105007060000 | B80: 2011 | C80: 15694 | D80: 19858 | E80: 215584 | F80: 10570
A81: 33025012470000 | B81: 2011 | C81: 97885 | D81: 49131 | E81: 34725 | F81: 19331
A82: 33053033540000 | B82: 2011 | C82: 90833 | D82: 122351 | E82: 35473 | F82: 20700
A83: 33053011670000 | B83: 2011 | C83: 3366 | D83: 11414 | E83: 820 | F83: 14076
A84: 33013009540000 | B84: 2011 | C84: 182 | D84: 84 | E84: 228 | F84: 6040
A85: 33025002210000 | B85: 2011 | C85: 450 | D85: 0 | E85: 0 | F85: 12819
A86: 33053034920000 | B86: 2011 | C86: 48085 | D86: 62040 | E86: 21062 | F86: 21357
A87: 33011000510000 | B87: 2011 | C87: 0 | D87: 16249 | E87: 1619 | F87: 11140
A88: 33023003690000 | B88: 2011 | C88: 5725 | D88: 1672 | E88: 197 | F88: 10810
A89: 33053031880000 | B89: 2011 | C89: 78038 | D89: 140582 | E89: 28717 | F89: 20930
A90: 33025011690000 | B90: 2011 | C90: 126954 | D90: 118069 | E90: 37923 | F90: 21097
A91: 33061017600000 | B91: 2011 | C91: 11957 | D91: 5518 | E91: 27034 | F91: 20018
A92: 33105018760000 | B92: 2011 | C92: 109428 | D92: 71253 | E92: 125075 | F92: 20450
A93: 33105013740000 | B93: 2011 | C93: 1094 | D93: 394 | E93: 5872 | F93: 9202
A94: 33053031890000 | B94: 2011 | C94: 25692 | D94: 23170 | E94: 126 | F94: 13100
A95: 33053031520000 | B95: 2011 | C95: 109520 | D95: 85307 | E95: 28062 | F95: 20623
A96: 33061004800000 | B96: 2011 | C96: 6687 | D96: 0 | E96: 22161 | F96: 11040
A97: 33105012680000 | B97: 2011 | C97: 221 | D97: 671 | E97: 794 | F97: 9415
A98: 33025007920000 | B98: 2011 | C98: 22473 | D98: 18991 | E98: 4157 | F98: 20014
A99: 33061005340000 | B99: 2011 | C99: 18262 | D99: 7878 | E99: 3358 | F99: 14474
A100: 33025007100000 | B100: 2011 | C100: 29475 | D100: 20692 | E100: 5032 | F100: 20065
A101: 33053020470000 | B101: 2011 | C101: 4845 | D101: 3881 | E101: 5632 | F101: 9500
A102: 33011011540000 | B102: 2011 | C102: 42651 | D102: 9932 | E102: 294564 | F102: 17547
A103: 33025013500000 | B103: 2011 | C103: 12824 | D103: 12405 | E103: 2470 | F103: 18723
A104: 33007016230000 | B104: 2011 | C104: 5004 | D104: 7863 | E104: 6054 | F104: 20519
A105: 33025006140000 | B105: 2011 | C105: 18690 | D105: 17717 | E105: 1074 | F105: 17740
A106: 33053023380000 | B106: 2011 | C106: 2922 | D106: 0 | E106: 380 | F106: 10770
A107: 33105006360000 | B107: 2011 | C107: 534 | D107: 0 | E107: 12878 | F107: 10147
A108: 33061018250000 | B108: 2011 | C108: 19396 | D108: 4413 | E108: 8893 | F108: 15601
A109: 33011013610000 | B109: 2011 | C109: 49188 | D109: 11260 | E109: 613431 | F109: 14764
A110: 33009021670000 | B110: 2011 | C110: 6244 | D110: 0 | E110: 30151 | F110: 4802
A111: 33053035710000 | B111: 2011 | C111: 38300 | D111: 34552 | E111: 15978 | F111: 21030
A112: 33061012540000 | B112: 2011 | C112: 10375 | D112: 3130 | E112: 44922 | F112: 13922
A113: 33061005700000 | B113: 2011 | C113: 47019 | D113: 27302 | E113: 2304 | F113: 14346
A114: 33011011990000 | B114: 2011 | C114: 0 | D114: 6567 | E114: 0 | F114: 1639
A115: 33025010110000 | B115: 2011 | C115: 68767 | D115: 46593 | E115: 29675 | F115: 20975
A116: 33025504000000 | B116: 2011 | C116: 3777 | D116: 0 | E116: 0
A117: 33025010960000 | B117: 2011 | C117: 2479 | D117: 44 | E117: 0 | F117: 19948
A118: 33053011170000 | B118: 2011 | C118: 1530 | D118: 281 | E118: 3489 | F118: 9244
A119: 33009019980000 | B119: 2011 | C119: 2479 | D119: 132 | E119: 107219 | F119: 5731
A120: 33023006990000 | B120: 2011 | C120: 28503 | D120: 23584 | E120: 35700 | F120: 18810
A121: 33025005880000 | B121: 2011 | C121: 10349 | D121: 11866 | E121: 7760 | F121: 15120
A122: 33025012200000 | B122: 2011 | C122: 2969 | D122: 0 | E122: 0 | F122: 20314
A123: 33105017980000 | B123: 2011 | C123: 25638 | D123: 36899 | E123: 14756 | F123: 19538
A124: 33009014810000 | B124: 2011 | C124: 936 | D124: 0 | E124: 12723 | F124: 4103
A125: 33053018350000 | B125: 2011 | C125: 3849 | D125: 7220 | E125: 1206 | F125: 14080
A126: 33053027470000 | B126: 2011 | C126: 3790 | D126: 4013 | E126: 1162 | F126: 20362
A127: 33075011700000 | B127: 2011 | C127: 590 | D127: 1700 | E127: 6378 | F127: 4250
A128: 33007014390000 | B128: 2011 | C128: 7616 | D128: 22743 | E128: 4729 | F128: 12450
A129: 33061011060000 | B129: 2011 | C129: 92962 | D129: 42191 | E129: 7651 | F129: 19050
A130: 33023005250000 | B130: 2011 | C130: 10607 | D130: 17104 | E130: 12918 | F130: 18121
A131: 33105019020000 | B131: 2011 | C131: 56949 | D131: 82255 | E131: 38981 | F131: 19237
A132: 33033002460000 | B132: 2011 | C132: 5058 | D132: 7644 | E132: 791 | F132: 16169
A133: 33011013710000 | B133: 2011 | C133: 14419 | D133: 3634 | E133: 79697 | F133: 13155
A134: 33053006780000 | B134: 2011 | C134: 3728 | D134: 4039 | E134: 87698 | F134: 9636
A135: 33075011460000 | B135: 2011 | C135: 1011 | D135: 0 | E135: 1446 | F135: 5725
A136: 33025008310000 | B136: 2011 | C136: 23907 | D136: 25912 | E136: 3832 | F136: 20609
A137: 33009020270000 | B137: 2011 | C137: 786 | D137: 210 | E137: 27858 | F137: 3700
A138: 33013006780000 | B138: 2011 | C138: 1091 | D138: 3817 | E138: 22052 | F138: 6461
A139: 33007015170000 | B139: 2011 | C139: 23377 | D139: 16611 | E139: 531284 | F139: 12014
A140: 33061012670000 | B140: 2011 | C140: 78634 | D140: 51016 | E140: 24583 | F140: 20272
A141: 33061016920000 | B141: 2011 | C141: 11317 | D141: 10949 | E141: 1568 | F141: 21300
A142: 33011013960000 | B142: 2011 | C142: 13457 | D142: 9902 | E142: 5332 | F142: 14870
A143: 33011012100000 | B143: 2011 | C143: 0 | D143: 3564 | E143: 0 | F143: 1659
A144: 33009018140000 | B144: 2011 | C144: 2898 | D144: 1053 | E144: 194915 | F144: 3200
A145: 33105016430000 | B145: 2011 | C145: 8460 | D145: 12028 | E145: 1511 | F145: 19500
A146: 33061014590000 | B146: 2011 | C146: 53079 | D146: 19656 | E146: 54463 | F146: 18167
A147: 33105018900000 | B147: 2011 | C147: 55658 | D147: 55533 | E147: 41737 | F147: 20585
A148: 33007015260000 | B148: 2011 | C148: 21175 | D148: 11856 | E148: 9276 | F148: 14342
A149: 33025008700000 | B149: 2011 | C149: 21707 | D149: 11406 | E149: 4859 | F149: 19770
A150: 33011011340000 | B150: 2011 | C150: 0 | D150: 1755 | E150: 0 | F150: 1624
A151: 33105010540000 | B151: 2011 | C151: 3959 | D151: 2897 | E151: 6088 | F151: 9700
A152: 33007015280000 | B152: 2011 | C152: 1 | D152: 0 | E152: 0 | F152: 8225
A153: 33061006390000 | B153: 2011 | C153: 66252 | D153: 40769 | E153: 635 | F153: 15111
A154: 33105011320000 | B154: 2011 | C154: 1632 | D154: 1023 | E154: 3074 | F154: 12919
A155: 33025010270000 | B155: 2011 | C155: 111407 | D155: 37742 | E155: 24463 | F155: 20542
A156: 33025012290000 | B156: 2011 | C156: 56374 | D156: 50526 | E156: 18308 | F156: 20517
A157: 33013012290000 | B157: 2011 | C157: 3165 | D157: 4213 | E157: 2963 | F157: 6550
A158: 33013002610000 | B158: 2011 | C158: 2493 | D158: 4452 | E158: 1412 | F158: 6197
A159: 33061015130000 | B159: 2011 | C159: 37340 | D159: 38054 | E159: 79678 | F159: 19016
A160: 33105019310000 | B160: 2011 | C160: 33821 | D160: 35715 | E160: 73377 | F160: 19946
A161: 33075006680000 | B161: 2011 | C161: 2107 | D161: 113 | E161: 7045 | F161: 5544
A162: 33011006410000 | B162: 2011 | C162: 5270 | D162: 1099 | E162: 11880 | F162: 14698
A163: 33013007390000 | B163: 2011 | C163: 756 | D163: 6608 | E163: 577 | F163: 6321
A164: 33025013180000 | B164: 2011 | C164: 32415 | D164: 11598 | E164: 13944 | F164: 19900
A165: 33105005560000 | B165: 2011 | C165: 12643 | D165: 325461 | E165: 3817 | F165: 14153
A166: 33061010320000 | B166: 2011 | C166: 41360 | D166: 28538 | E166: 8521 | F166: 18875
A167: 33013009440000 | B167: 2011 | C167: 152 | D167: 481 | E167: 1627 | F167: 6004
A168: 33011006680000 | B168: 2011 | C168: 11099 | D168: 2482 | E168: 27987 | F168: 14821
A169: 33011004850000 | B169: 2011 | C169: 4066 | D169: 5387 | E169: 19775 | F169: 11192
A170: 33075002430000 | B170: 2011 | C170: 10413 | D170: 0 | E170: 10950 | F170: 4998
A171: 33009005940000 | B171: 2011 | C171: 556 | D171: 0 | E171: 6619 | F171: 3968
A172: 33007006310000 | B172: 2011 | C172: 7506 | D172: 11602 | E172: 126722 | F172: 13003
A173: 33061012950000 | B173: 2011 | C173: 148696 | D173: 32464 | E173: 49157 | F173: 19809
A174: 33089005560000 | B174: 2011 | C174: 4214 | D174: 3251 | E174: 236866 | F174: 13217
A175: 33061015100000 | B175: 2011 | C175: 30745 | D175: 28887 | E175: 9105 | F175: 21185
A176: 33105012500000 | B176: 2011 | C176: 3704 | D176: 3475 | E176: 22533 | F176: 9366
A177: 33075004260000 | B177: 2011 | C177: 2912 | D177: 0 | E177: 39070 | F177: 4670
A178: 33105008120000 | B178: 2011 | C178: 2510 | D178: 1305 | E178: 2307 | F178: 9650
A179: 33053014760000 | B179: 2011 | C179: 3641 | D179: 6695 | E179: 12047 | F179: 13961
A180: 33105018750000 | B180: 2011 | C180: 29970 | D180: 17742 | E180: 31392 | F180: 15965
A181: 33105015770000 | B181: 2011 | C181: 29090 | D181: 39017 | E181: 9507 | F181: 16616
A182: 33013006140000 | B182: 2011 | C182: 749 | D182: 1069 | E182: 569 | F182: 5790
A183: 33105020600000 | B183: 2011 | C183: 25326 | D183: 31905 | E183: 19983 | F183: 20815
A184: 33009006020000 | B184: 2011 | C184: 1086 | D184: 0 | E184: 4183 | F184: 3398
A185: 33061011820000 | B185: 2011 | C185: 27164 | D185: 13273 | E185: 25994 | F185: 13713
A186: 33009013710000 | B186: 2011 | C186: 725 | D186: 0 | E186: 19125 | F186: 4024
A187: 33061016560000 | B187: 2011 | C187: 28164 | D187: 21442 | E187: 5427 | F187: 20500
A188: 33089005850000 | B188: 2011 | C188: 70325 | D188: 72365 | E188: 27466 | F188: 20480
A189: 33105017570000 | B189: 2011 | C189: 32187 | D189: 26986 | E189: 32340 | F189: 19700
A190: 33075002580000 | B190: 2011 | C190: 20 | D190: 0 | E190: 134 | F190: 4179
A191: 33053027360000 | B191: 2011 | C191: 23081 | D191: 7371 | E191: 75725 | F191: 13693
A192: 33009006240000 | B192: 2011 | C192: 648 | D192: 35 | E192: 50597 | F192: 4040
A193: 33011012450000 | B193: 2011 | C193: 0 | D193: 1090 | E193: 0 | F193: 1693
A194: 33105019320000 | B194: 2011 | C194: 60773 | D194: 46898 | E194: 61958 | F194: 20339
A195: 33053029110000 | B195: 2011 | C195: 27997 | D195: 49712 | E195: 2932 | F195: 15438
A196: 33007016670000 | B196: 2011 | C196: 30465 | D196: 36464 | E196: 24872 | F196: 21529
A197: 33053029360000 | B197: 2011 | C197: 29712 | D197: 53843 | E197: 5084 | F197: 15797
A198: 33025010000000 | B198: 2011 | C198: 64055 | D198: 25731 | E198: 31686 | F198: 20228
A199: 33025009620000 | B199: 2011 | C199: 146442 | D199: 135750 | E199: 11508 | F199: 20850
A200: 33009022170000 | B200: 2011 | C200: 763 | D200: 0 | E200: 13077 | F200: 3200
... 6639 more rows

Sheet 2011 Injection Data
A1: API_WellNo | B1: Water-Inj | C1: MCF-Inj | D1: Year | F1: Source: Data supplied by North Dakota Department of Mineral Resources
A2: 33007000090000 | B2: 4398 | C2: 0 | D2: 2011
A3: 33007000200000 | B3: 60508 | C3: 0 | D3: 2011
A4: 33007000320000 | B4: 0 | C4: 0 | D4: 2011
A5: 33007000930000 | B5: 42025 | C5: 0 | D5: 2011
A6: 33007000990000 | B6: 0 | C6: 0 | D6: 2011
A7: 33007001540000 | B7: 0 | C7: 0 | D7: 2011
A8: 33007001760000 | B8: 0 | C8: 0 | D8: 2011
A9: 33007001920000 | B9: 0 | C9: 0 | D9: 2011
A10: 33007002600000 | B10: 75245 | C10: 0 | D10: 2011
A11: 33007002690000 | B11: 106529 | C11: 0 | D11: 2011
A12: 33007002930000 | B12: 48328 | C12: 0 | D12: 2011
A13: 33007003750000 | B13: 55596 | C13: 0 | D13: 2011
A14: 33007003910000 | B14: 22272 | C14: 0 | D14: 2011
A15: 33007004010000 | B15: 18092 | C15: 0 | D15: 2011
A16: 33007004310000 | B16: 32973 | C16: 0 | D16: 2011
A17: 33007004520000 | B17: 38650 | C17: 0 | D17: 2011
A18: 33007005100000 | B18: 0 | C18: 0 | D18: 2011
A19: 33007005180000 | B19: 33342 | C19: 0 | D19: 2011
A20: 33007005410000 | B20: 13384 | C20: 0 | D20: 2011
A21: 33007005660000 | B21: 0 | C21: 0 | D21: 2011
A22: 33007005690000 | B22: 39703 | C22: 0 | D22: 2011
A23: 33007006750000 | B23: 27002 | C23: 0 | D23: 2011
A24: 33007006780000 | B24: 9491 | C24: 0 | D24: 2011
A25: 33007006950000 | B25: 22709 | C25: 0 | D25: 2011
A26: 33007007370000 | B26: 14461 | C26: 0 | D26: 2011
A27: 33007007950000 | B27: 48283 | C27: 0 | D27: 2011
A28: 33007008170000 | B28: 29648 | C28: 0 | D28: 2011
A29: 33007008590000 | B29: 13601 | C29: 0 | D29: 2011
A30: 33007008610000 | B30: 22878 | C30: 0 | D30: 2011
A31: 33007009080000 | B31: 0 | C31: 0 | D31: 2011
A32: 33007009360000 | B32: 8644 | C32: 0 | D32: 2011
A33: 33007009530000 | B33: 17674 | C33: 0 | D33: 2011
A34: 33007009850000 | B34: 63162 | C34: 0 | D34: 2011
A35: 33007011210000 | B35: 0 | C35: 0 | D35: 2011
A36: 33007012520000 | B36: 12981 | C36: 0 | D36: 2011
A37: 33007012710000 | B37: 43077 | C37: 0 | D37: 2011
A38: 33007012770000 | B38: 17901 | C38: 0 | D38: 2011
A39: 33007012830000 | B39: 5805 | C39: 0 | D39: 2011
A40: 33007012860000 | B40: 19809 | C40: 0 | D40: 2011
A41: 33007012890000 | B41: 0 | C41: 0 | D41: 2011
A42: 33007012940000 | B42: 0 | C42: 0 | D42: 2011
A43: 33007013020000 | B43: 0 | C43: 0 | D43: 2011
A44: 33007013190000 | B44: 5283 | C44: 0 | D44: 2011
A45: 33007013330000 | B45: 0 | C45: 0 | D45: 2011
A46: 33007013740000 | B46: 8575 | C46: 0 | D46: 2011
A47: 33007013760000 | B47: 0 | C47: 0 | D47: 2011
A48: 33007013950000 | B48: 17054 | C48: 0 | D48: 2011
A49: 33007014970000 | B49: 34963 | C49: 0 | D49: 2011
A50: 33007014980000 | B50: 23652 | C50: 0 | D50: 2011
A51: 33007015060000 | B51: 4527 | C51: 0 | D51: 2011
A52: 33009000620000 | B52: 0 | C52: 0 | D52: 2011
A53: 33009001380000 | B53: 12321 | C53: 0 | D53: 2011
A54: 33009001820000 | B54: 3876 | C54: 0 | D54: 2011
A55: 33009001970000 | B55: 4086 | C55: 0 | D55: 2011
A56: 33009002060000 | B56: 0 | C56: 0 | D56: 2011
A57: 33009002070000 | B57: 0 | C57: 0 | D57: 2011
A58: 33009002080000 | B58: 0 | C58: 0 | D58: 2011
A59: 33009002090000 | B59: 0 | C59: 0 | D59: 2011
A60: 33009002140000 | B60: 0 | C60: 0 | D60: 2011
A61: 33009002200000 | B61: 4465 | C61: 0 | D61: 2011
A62: 33009002290000 | B62: 5139 | C62: 0 | D62: 2011
A63: 33009002300000 | B63: 6361 | C63: 0 | D63: 2011
A64: 33009002320000 | B64: 2528 | C64: 0 | D64: 2011
A65: 33009002330000 | B65: 0 | C65: 0 | D65: 2011
A66: 33009002550000 | B66: 1938 | C66: 0 | D66: 2011
A67: 33009002570000 | B67: 0 | C67: 0 | D67: 2011
A68: 33009002740000 | B68: 885 | C68: 0 | D68: 2011
A69: 33009002790000 | B69: 2106 | C69: 0 | D69: 2011
A70: 33009002870000 | B70: 2991 | C70: 0 | D70: 2011
A71: 33009002920000 | B71: 3791 | C71: 0 | D71: 2011
A72: 33009002960000 | B72: 0 | C72: 0 | D72: 2011
A73: 33009003010000 | B73: 0 | C73: 0 | D73: 2011
A74: 33009003030000 | B74: 2570 | C74: 0 | D74: 2011
A75: 33009003040000 | B75: 0 | C75: 0 | D75: 2011
A76: 33009003200000 | B76: 421 | C76: 0 | D76: 2011
A77: 33009003220000 | B77: 0 | C77: 0 | D77: 2011
A78: 33009003280000 | B78: 1896 | C78: 0 | D78: 2011
A79: 33009003300000 | B79: 0 | C79: 0 | D79: 2011
A80: 33009003330000 | B80: 0 | C80: 0 | D80: 2011
A81: 33009003360000 | B81: 0 | C81: 0 | D81: 2011
A82: 33009003440000 | B82: 2991 | C82: 0 | D82: 2011
A83: 33009003500000 | B83: 1095 | C83: 0 | D83: 2011
A84: 33009003560000 | B84: 2693 | C84: 0 | D84: 2011
A85: 33009003800000 | B85: 0 | C85: 0 | D85: 2011
A86: 33009003940000 | B86: 2401 | C86: 0 | D86: 2011
A87: 33009003990000 | B87: 1095 | C87: 0 | D87: 2011
A88: 33009004040000 | B88: 0 | C88: 0 | D88: 2011
A89: 33009004200000 | B89: 2776 | C89: 0 | D89: 2011
A90: 33009004270000 | B90: 0 | C90: 0 | D90: 2011
A91: 33009004330000 | B91: 9996 | C91: 0 | D91: 2011
A92: 33009004490000 | B92: 0 | C92: 0 | D92: 2011
A93: 33009004600000 | B93: 32822 | C93: 0 | D93: 2011
A94: 33009004620000 | B94: 0 | C94: 0 | D94: 2011
A95: 33009004900000 | B95: 14984 | C95: 0 | D95: 2011
A96: 33009005170000 | B96: 36055 | C96: 0 | D96: 2011
A97: 33009005180000 | B97: 38236 | C97: 0 | D97: 2011
A98: 33009005250000 | B98: 0 | C98: 0 | D98: 2011
A99: 33009005360000 | B99: 0 | C99: 0 | D99: 2011
A100: 33009005380000 | B100: 20934 | C100: 0 | D100: 2011
A101: 33009005430000 | B101: 0 | C101: 0 | D101: 2011
A102: 33009005570000 | B102: 39647 | C102: 0 | D102: 2011
A103: 33009005610000 | B103: 7417 | C103: 0 | D103: 2011
A104: 33009005680000 | B104: 8544 | C104: 0 | D104: 2011
A105: 33009005820000 | B105: 4143 | C105: 0 | D105: 2011
A106: 33009006180000 | B106: 42781 | C106: 0 | D106: 2011
A107: 33009006230000 | B107: 23792 | C107: 0 | D107: 2011
A108: 33009006360000 | B108: 18250 | C108: 0 | D108: 2011
A109: 33009006460000 | B109: 41744 | C109: 0 | D109: 2011
A110: 33009006490000 | B110: 14865 | C110: 0 | D110: 2011
A111: 33009006580000 | B111: 15049 | C111: 0 | D111: 2011
A112: 33009006780000 | B112: 13674 | C112: 0 | D112: 2011
A113: 33009006840000 | B113: 36923 | C113: 0 | D113: 2011
A114: 33009006860000 | B114: 40050 | C114: 0 | D114: 2011
A115: 33009007500000 | B115: 4002 | C115: 0 | D115: 2011
A116: 33009008470000 | B116: 3253 | C116: 0 | D116: 2011
A117: 33009008710000 | B117: 14762 | C117: 0 | D117: 2011
A118: 33009008760000 | B118: 9970 | C118: 0 | D118: 2011
A119: 33009008930000 | B119: 9628 | C119: 0 | D119: 2011
A120: 33009009050000 | B120: 0 | C120: 0 | D120: 2011
A121: 33009009280000 | B121: 19420 | C121: 0 | D121: 2011
A122: 33009009550000 | B122: 23740 | C122: 0 | D122: 2011
A123: 33009009950000 | B123: 10580 | C123: 0 | D123: 2011
A124: 33009009980000 | B124: 10338 | C124: 0 | D124: 2011
A125: 33009009990000 | B125: 7776 | C125: 0 | D125: 2011
A126: 33009010510000 | B126: 21571 | C126: 0 | D126: 2011
A127: 33009010570000 | B127: 0 | C127: 0 | D127: 2011
A128: 33009010850000 | B128: 0 | C128: 0 | D128: 2011
A129: 33009011040000 | B129: 30435 | C129: 0 | D129: 2011
A130: 33009011080000 | B130: 29880 | C130: 0 | D130: 2011
A131: 33009011210000 | B131: 2983 | C131: 0 | D131: 2011
A132: 33009011270000 | B132: 18396 | C132: 0 | D132: 2011
A133: 33009011870000 | B133: 28842 | C133: 0 | D133: 2011
A134: 33009011920000 | B134: 9643 | C134: 0 | D134: 2011
A135: 33009012160000 | B135: 32406 | C135: 0 | D135: 2011
A136: 33009012380000 | B136: 7747 | C136: 0 | D136: 2011
A137: 33009012440000 | B137: 29895 | C137: 0 | D137: 2011
A138: 33009012460000 | B138: 38713 | C138: 0 | D138: 2011
A139: 33009012500000 | B139: 52059 | C139: 0 | D139: 2011
A140: 33009012600000 | B140: 23730 | C140: 0 | D140: 2011
A141: 33009012680000 | B141: 8428 | C141: 0 | D141: 2011
A142: 33009012730000 | B142: 0 | C142: 0 | D142: 2011
A143: 33009012750000 | B143: 0 | C143: 0 | D143: 2011
A144: 33009012760000 | B144: 23082 | C144: 0 | D144: 2011
A145: 33009012980000 | B145: 0 | C145: 0 | D145: 2011
A146: 33009012990000 | B146: 17748 | C146: 0 | D146: 2011
A147: 33009013020000 | B147: 31233 | C147: 0 | D147: 2011
A148: 33009013060000 | B148: 34172 | C148: 0 | D148: 2011
A149: 33009013070000 | B149: 19452 | C149: 0 | D149: 2011
A150: 33009013130000 | B150: 19967 | C150: 0 | D150: 2011
A151: 33009013240000 | B151: 23965 | C151: 0 | D151: 2011
A152: 33009013420000 | B152: 27664 | C152: 0 | D152: 2011
A153: 33009013550000 | B153: 30320 | C153: 0 | D153: 2011
A154: 33009013620000 | B154: 25031 | C154: 0 | D154: 2011
A155: 33009013630000 | B155: 77932 | C155: 0 | D155: 2011
A156: 33009013640000 | B156: 23185 | C156: 0 | D156: 2011
A157: 33009013650000 | B157: 4737 | C157: 0 | D157: 2011
A158: 33009013660000 | B158: 4092 | C158: 0 | D158: 2011
A159: 33009013870000 | B159: 28490 | C159: 0 | D159: 2011
A160: 33009014610000 | B160: 30746 | C160: 0 | D160: 2011
A161: 33009014690000 | B161: 32062 | C161: 0 | D161: 2011
A162: 33009014740000 | B162: 44980 | C162: 0 | D162: 2011
A163: 33009014750000 | B163: 0 | C163: 0 | D163: 2011
A164: 33009014760000 | B164: 45819 | C164: 0 | D164: 2011
A165: 33009014790000 | B165: 0 | C165: 0 | D165: 2011
A166: 33009014800000 | B166: 47772 | C166: 0 | D166: 2011
A167: 33009014820000 | B167: 52141 | C167: 0 | D167: 2011
A168: 33009014830000 | B168: 27188 | C168: 0 | D168: 2011
